Workbook

Sheet PI vs y
A1: Measurement | B1: Hall
A2: Type | B2: Off-axis
A4: PS type | B4: HXR
A5: PS serial no | B5: 16324
A7: Measurement date | B7: ='DF raw data'!B2 -> 20. sep 2017
C11: Nominal gap [mm] | D11: Encoder [counts] | E11: Encoder [mm] | F11: PI [T^2mm^3] | G11: y [mm] | H11: Encoder offset
C12: 10 | D12: =' 10 y=-0.2'!B3 -> 5134403 | E12: =(D12-$H$12)*-0.00025+10 -> 10.0055 | F12: =' 10 y=-0.2'!Q3 -> 717.2656175 | G12: -0.2 | H12: 5134425
C13: 10 | D13: ='10 y=-0.1'!B3 -> 5134434 | E13: =(D13-$H$12)*-0.00025+10 -> 9.99775 | F13: ='10 y=-0.1'!Q3 -> 715.5784188 | G13: -0.1
C14: 10 | D14: ='10 y=0'!B3 -> 5134415 | E14: 10.0025 | F14: ='10 y=0'!Q3 -> 715.2906828 | G14: 0
C15: 10 | D15: ='10 y=0.1'!B3 -> 5134437 | E15: 9.997 | F15: ='10 y=0.1'!Q3 -> 715.2722622 | G15: 0.1
C16: 10 | D16: ='10 y=0.2'!B3 -> 5134429 | E16: 9.999 | F16: ='10 y=0.2'!Q3 -> 715.6848442 | G16: 0.2
A41: Measuring series at 10 mm gap:
A42: Reference magnet
A43: Tref | B43: 20.605 | C43: degC
A44: Hall ref field | B44: 0.50553 | C44: T
A45: NMR ref field | B45: 0.50667 | C45: T
A53: Offset from Faro | B53: 1.328666667

Sheet 10 y=-0.2
A1: dz | B1: ='DF raw data'!B7 -> 0.50029 | C1: mm | F1: T_coeff | G1: -0.0008 | H1: /degC | L1: Hallref | M1: ='PI vs y'!B44 -> 0.50553 | N1: T | P1: IBy total | Q1: =L1203*1000 -> -12.84648293 | R1: muTm | X1: DF ref | Y1: 18
A2: Tref | B2: ='DF raw data'!B8 -> 22.8 | C2: degC | F2: Tcorr | G2: 20 | H2: degC | L2: NMRref | M2: ='PI vs y'!B45 -> 0.50667 | N2: T | P2: JBy total | Q2: =M1203 -> -4.888903996 | R2: muTm^2
A3: Encoder | B3: ='DF raw data'!B9 -> 5134403 | P3: PI total | Q3: =N1203 -> 717.2656175 | R3: T^2mm^3
A5: z [mm] | B5: Bx | C5: By | D5: Bz | F5: Bx_corr | G5: By_corr | H5: Bz_corr | J5: Ix | K5: Jx | L5: Iy | M5: Jy | N5: PI
A6: ='PI vs y'!B53 -> 1.328666667 | B6: ='DF raw data'!A11 -> 4.0912464e-06 | C6: ='DF raw data'!B11 -> 9.6141321e-06 | D6: ='DF raw data'!C11 -> -2.0223272e-06 | F6: =(1-$G$1*($B$2-$G$2))*B6 -> 4.100410792e-06 | G6: =(1-$G$1*($B$2-$G$2))*C6*$M$2/$M$1 -> 9.657396756e-06 | H6: =(1-$G$1*($B$2-$G$2))*D6 -> -2.026857213e-06 | J6: =F6*$B$1 -> 2.051394515e-06 | K6: =J6*$B$1 -> 1.026292162e-06 | L6: =G6*$B$1 -> 4.831499023e-06 | M6: =L6*$B$1 -> 2.417150646e-06 | N6: =(J6^2+L6^2)*$B$1 -> 1.37837911e-11
A7: =A6+$B$1 -> 1.828956667 | B7: ='DF raw data'!A12 -> 4.023158e-06 | C7: ='DF raw data'!B12 -> 1.297156e-05 | D7: ='DF raw data'!C12 -> 6.8101908e-06 | F7: =(1-$G$1*($B$2-$G$2))*B7 -> 4.032169874e-06 | G7: =(1-$G$1*($B$2-$G$2))*C7*$M$2/$M$1 -> 1.302993345e-05 | H7: =(1-$G$1*($B$2-$G$2))*D7 -> 6.825445627e-06 | J7: =F7*$B$1+J6 -> 4.068648781e-06 | K7: =J7*$B$1+K6 -> 3.061796461e-06 | L7: =G7*$B$1+L6 -> 1.135024443e-05 | M7: =L7*$B$1+M6 -> 8.095564432e-06 | N7: =(J7^2+L7^2)*$B$1+N6 -> 8.651692762e-11
A8: =A7+$B$1 -> 2.329246667 | B8: ='DF raw data'!A13 -> 4.6771647e-06 | C8: ='DF raw data'!B13 -> -5.895442e-06 | D8: ='DF raw data'!C13 -> 1.7394981e-07 | F8: 4.687641549e-06 | G8: -5.92197214e-06 | H8: 1.743394576e-07 | J8: =F8*$B$1+J7 -> 6.413828972e-06 | K8: =J8*$B$1+K7 -> 6.270570957e-06 | L8: =G8*$B$1+L7 -> 8.387540988e-06 | M8: =L8*$B$1+M7 -> 1.229176731e-05 | N8: =(J8^2+L8^2)*$B$1+N7 -> 1.422932821e-10
A9: 2.829536667 | B9: ='DF raw data'!A14 -> 4.0228961e-06 | C9: ='DF raw data'!B14 -> 1.1134268e-05 | D9: ='DF raw data'!C14 -> -5.0104027e-06 | F9: 4.031907387e-06 | G9: 1.118437343e-05 | H9: -5.021626002e-06 | J9: 8.430951919e-06 | K9: 1.048849189e-05 | L9: 1.398297117e-05 | M9: 1.928730796e-05 | N9: 2.756728139e-10
A10: 3.329826667 | B10: ='DF raw data'!A15 -> 3.8931221e-06 | C10: ='DF raw data'!B15 -> 1.3837903e-05 | D10: ='DF raw data'!C15 -> -9.4306051e-06 | F10: 3.901842694e-06 | G10: 1.390017509e-05 | H10: -9.451729655e-06 | J10: 1.03830048e-05 | K10: 1.568300536e-05 | L10: 2.093708977e-05 | M10: 2.97619246e-05 | N10: 5.489154612e-10
A11: 3.830116667 | B11: ='DF raw data'!A16 -> 4.2986258e-06 | C11: ='DF raw data'!B16 -> 3.1011518e-06 | D11: ='DF raw data'!C16 -> -6.9537236e-06 | F11: =(1-$G$1*($B$2-$G$2))*B11 -> 4.308254722e-06 | G11: 3.115107325e-06 | H11: =(1-$G$1*($B$2-$G$2))*D11 -> -6.969299941e-06 | J11: 1.253838155e-05 | K11: 2.195583227e-05 | L11: 2.249554681e-05 | M11: 4.101622172e-05 | N11: 8.80738126e-10
A12: 4.330406667 | B12: ='DF raw data'!A17 -> 4.5451352e-06 | C12: ='DF raw data'!B17 -> -2.3650928e-06 | D12: ='DF raw data'!C17 -> 2.7105474e-07 | F12: 4.555316303e-06 | G12: -2.375735979e-06 | H12: 2.716619026e-07 | J12: 1.481736075e-05 | K12: 2.936880968e-05 | L12: 2.130698986e-05 | M12: 5.167589567e-05 | N12: 1.217704451e-09
A13: 4.830696667 | B13: ='DF raw data'!A18 -> 4.3724622e-06 | C13: ='DF raw data'!B18 -> 1.5292461e-06 | D13: ='DF raw data'!C18 -> -5.0938725e-06 | F13: 4.382256515e-06 | G13: 1.536127876e-06 | H13: -5.105282774e-06 | J13: 1.700975986e-05 | K13: 3.787862244e-05 | L13: 2.207549928e-05 | M13: 6.272004721e-05 | N13: 1.606259482e-09
A14: 5.330986667 | B14: ='DF raw data'!A19 -> 4.4845265e-06 | C14: ='DF raw data'!B19 -> 8.3802659e-10 | D14: ='DF raw data'!C19 -> 3.8054093e-06 | F14: 4.494571839e-06 | G14: 8.417978022e-10 | H14: 3.813933417e-06 | J14: 1.925834921e-05 | K14: 4.751338196e-05 | L14: 2.207592042e-05 | M14: 7.376440943e-05 | N14: 2.035623507e-09
A15: 5.831276667 | B15: ='DF raw data'!A20 -> 4.4317903e-06 | C15: ='DF raw data'!B20 -> 2.2929833e-06 | D15: ='DF raw data'!C20 -> 8.8746274e-06 | F15: 4.44171751e-06 | G15: 2.303301978e-06 | H15: 8.894506565e-06 | J15: 2.148049606e-05 | K15: 5.825985934e-05 | L15: 2.322823937e-05 | M15: 8.538526531e-05 | N15: 2.536395194e-09
A16: 6.331566667 | B16: ='DF raw data'!A21 -> 4.2725342e-06 | C16: ='DF raw data'!B21 -> 5.0247713e-06 | D16: ='DF raw data'!C21 -> -6.5977309e-07 | F16: 4.282104677e-06 | G16: 5.047383325e-06 | H16: -6.612509817e-07 | J16: 2.362279021e-05 | K16: 7.007810505e-05 | L16: 2.575339477e-05 | M16: 9.826943118e-05 | N16: 3.147386143e-09
A17: 6.831856667 | B17: ='DF raw data'!A22 -> 4.287348e-06 | C17: ='DF raw data'!B22 -> 3.3116999e-06 | D17: ='DF raw data'!C22 -> -8.3379746e-06 | F17: 4.29695166e-06 | G17: 3.326602915e-06 | H17: -8.356651663e-06 | J17: 2.577251215e-05 | K17: 8.297183515e-05 | L17: 2.741766094e-05 | M17: 0.0001119862128 | N17: 3.855772025e-09
A18: 7.332146667 | B18: ='DF raw data'!A23 -> 4.2912916e-06 | C18: ='DF raw data'!B23 -> 3.8842359e-06 | D18: ='DF raw data'!C23 -> -4.2044448e-06 | F18: 4.300904093e-06 | G18: 3.90171539e-06 | H18: -4.213862756e-06 | J18: 2.792421146e-05 | K18: 9.694203891e-05 | L18: 2.936965013e-05 | M18: 0.000126679555 | N18: 4.677417271e-09
A19: 7.832436667 | B19: ='DF raw data'!A24 -> 4.3564987e-06 | C19: ='DF raw data'!B24 -> 2.876327e-06 | D19: ='DF raw data'!C24 -> 5.8392089e-07 | F19: 4.366257257e-06 | G19: 2.889270789e-06 | H19: 5.852288728e-07 | J19: 3.01086063e-05 | K19: 0.0001120050736 | L19: 3.081512342e-05 | M19: 0.0001420960531 | N19: 5.606005542e-09
A20: 8.332726667 | B20: ='DF raw data'!A25 -> 4.2920919e-06 | C20: ='DF raw data'!B25 -> 5.6105164e-06 | D20: ='DF raw data'!C25 -> 6.7058972e-06 | F20: 4.301706186e-06 | G20: 5.635764343e-06 | H20: 6.72091841e-06 | J20: 3.226070689e-05 | K20: 0.0001281447826 | L20: 3.363463996e-05 | M20: 0.0001589231272 | N20: 6.692656542e-09
A21: 8.833016667 | B21: ='DF raw data'!A26 -> 4.6575487e-06 | C21: ='DF raw data'!B26 -> -4.9334321e-06 | D21: ='DF raw data'!C26 -> 3.2564092e-06 | F21: 4.667981609e-06 | G21: -4.955633089e-06 | H21: 3.263703557e-06 | J21: 3.459605141e-05 | K21: 0.0001454528412 | L21: 3.115538628e-05 | M21: 0.0001745098554 | N21: 7.777057564e-09
A22: 9.333306667 | B22: ='DF raw data'!A27 -> 1.8988546e-06 | C22: ='DF raw data'!B27 -> -3.4116956e-06 | D22: ='DF raw data'!C27 -> -1.0594268e-06 | F22: 1.903108034e-06 | G22: -3.427048607e-06 | H22: -1.061799916e-06 | J22: 3.554815733e-05 | K22: 0.0001632372288 | L22: 2.944086814e-05 | M22: 0.0001892388273 | N22: 8.842893493e-09
A23: 9.833596667 | B23: ='DF raw data'!A28 -> -2.7673334e-06 | C23: ='DF raw data'!B28 -> -3.9662191e-06 | D23: ='DF raw data'!C28 -> 7.5155367e-06 | F23: -2.773532227e-06 | G23: -3.984067524e-06 | H23: 7.532371502e-06 | J23: 3.416058689e-05 | K23: 0.0001803274288 | L23: 2.744767899e-05 | M23: 0.0002029706266 | N23: 9.803610776e-09
A24: 10.33388667 | B24: ='DF raw data'!A29 -> -4.8981119e-06 | C24: ='DF raw data'!B29 -> 3.7126485e-06 | D24: ='DF raw data'!C29 -> 1.4883739e-05 | F24: -4.909083671e-06 | G24: 3.729355828e-06 | H24: 1.491707858e-05 | J24: 3.170462142e-05 | K24: 0.0001961889339 | L24: 2.931343842e-05 | M24: 0.0002176358467 | N24: 1.073638182e-08
A25: 10.83417667 | B25: ='DF raw data'!A30 -> -7.0334308e-06 | C25: ='DF raw data'!B30 -> -8.8041543e-06 | D25: ='DF raw data'!C30 -> 1.4986097e-05 | F25: -7.049185685e-06 | G25: -8.843773966e-06 | H25: 1.501966586e-05 | J25: 2.817798432e-05 | K25: 0.0002102860976 | L25: 2.488898674e-05 | M25: 0.0002300875579 | N25: 1.144352195e-08
A26: 11.33446667 | B26: ='DF raw data'!A31 -> -4.7646854e-06 | C26: ='DF raw data'!B31 -> -3.1724603e-06 | D26: ='DF raw data'!C31 -> -1.1057456e-06 | F26: -4.775358295e-06 | G26: -3.186736722e-06 | H26: -1.10822247e-06 | J26: 2.578892031e-05 | K26: 0.0002231880366 | L26: 2.329469423e-05 | M26: 0.0002417416605 | N26: 1.204772778e-08
A27: 11.83475667 | B27: ='DF raw data'!A32 -> 6.7573711e-07 | C27: ='DF raw data'!B32 -> -9.8775763e-06 | D27: ='DF raw data'!C32 -> -6.070888e-06 | F27: 6.772507611e-07 | G27: -9.922026484e-06 | H27: -6.084486789e-06 | J27: 2.61277421e-05 | K27: 0.0002362594847 | L27: 1.83308036e-05 | M27: 0.0002509123782 | N27: 1.255736183e-08
A28: 12.33504667 | B28: ='DF raw data'!A33 -> 3.2780997e-06 | C28: ='DF raw data'!B33 -> 4.8411124e-07 | D28: ='DF raw data'!C33 -> -2.2370407e-06 | F28: 3.285442643e-06 | G28: 4.86289794e-07 | H28: -2.242051671e-06 | J28: 2.77714162e-05 | K28: 0.0002501532465 | L28: 1.857408952e-05 | M28: 0.0002602048094 | N28: 1.311580972e-08
A29: 12.83533667 | B29: ='DF raw data'!A34 -> 6.2966474e-06 | C29: ='DF raw data'!B34 -> -4.4462895e-06 | D29: ='DF raw data'!C34 -> -1.3305727e-06 | F29: 6.31075189e-06 | G29: -4.466298294e-06 | H29: -1.333553183e-06 | J29: 3.092862226e-05 | K29: 0.0002656265269 | L29: 1.633964515e-05 | M29: 0.0002683793705 | N29: 1.37279464e-08
A30: 13.33562667 | B30: ='DF raw data'!A35 -> 7.0791475e-06 | C30: ='DF raw data'!B35 -> -1.0208341e-05 | D30: ='DF raw data'!C35 -> 3.5600203e-06 | F30: 7.09500479e-06 | G30: -1.025427966e-05 | H30: 3.567994745e-06 | J30: 3.447818221e-05 | K30: 0.0002828756167 | L30: 1.120953158e-05 | M30: 0.0002739873871 | N30: 1.438552689e-08
A31: 13.83591667 | B31: ='DF raw data'!A36 -> 1.9140759e-06 | C31: ='DF raw data'!B36 -> -5.2190999e-06 | D31: ='DF raw data'!C36 -> -4.0601481e-06 | F31: 1.91836343e-06 | G31: -5.242586426e-06 | H31: -4.069242832e-06 | J31: 3.543792025e-05 | K31: 0.0003006048538 | L31: 8.586718013e-06 | M31: 0.0002782832362 | N31: 1.505070143e-08
A32: 14.33620667 | B32: ='DF raw data'!A37 -> -6.4061123e-06 | C32: ='DF raw data'!B37 -> 2.5408272e-07 | D32: ='DF raw data'!C37 -> 4.4988323e-07 | F32: -6.420461992e-06 | G32: 2.552261203e-07 | H32: 4.508909684e-07 | J32: 3.222582732e-05 | K32: 0.000316727113 | L32: 8.714405088e-06 | M32: 0.0002826429659 | N32: 1.560824702e-08
A33: 14.83649667 | B33: ='DF raw data'!A38 -> -7.5959933e-06 | C33: ='DF raw data'!B38 -> -4.6192108e-06 | D33: ='DF raw data'!C38 -> 7.0743517e-06 | F33: -7.613008325e-06 | G33: -4.639997758e-06 | H33: 7.090198248e-06 | J33: 2.841711538e-05 | K33: 0.0003309439116 | L33: 6.39306061e-06 | M33: 0.0002858413502 | N33: 1.603269489e-08
A34: 15.33678667 | B34: ='DF raw data'!A39 -> -4.7976455e-06 | C34: ='DF raw data'!B39 -> -5.351726e-06 | D34: ='DF raw data'!C39 -> -7.6297183e-06 | F34: -4.808392226e-06 | G34: -5.375809358e-06 | H34: -7.646808869e-06 | J34: 2.601152484e-05 | K34: 0.0003439572174 | L34: 3.703596946e-06 | M34: 0.0002876942227 | N34: 1.637805311e-08
A35: 15.83707667 | B35: ='DF raw data'!A40 -> -3.5736696e-06 | C35: ='DF raw data'!B40 -> 6.3175471e-06 | D35: ='DF raw data'!C40 -> -2.2039642e-06 | F35: -3.58167462e-06 | G35: 6.345976759e-06 | H35: -2.20890108e-06 | J35: 2.421964884e-05 | K35: 0.0003560740655 | L35: 6.878425659e-06 | M35: 0.0002911354303 | N35: 1.669518901e-08
A36: 16.33736667 | B36: ='DF raw data'!A41 -> -2.6602022e-06 | C36: ='DF raw data'!B41 -> 9.5727701e-06 | D36: ='DF raw data'!C41 -> -2.4175281e-06 | F36: -2.666161053e-06 | G36: 9.615848622e-06 | H36: -2.422943363e-06 | J36: 2.288579513e-05 | K36: 0.0003675235999 | L36: 1.168913857e-05 | M36: 0.0002969833895 | N36: 1.702557831e-08
A37: 16.83765667 | B37: ='DF raw data'!A42 -> 9.2197007e-07 | C37: ='DF raw data'!B42 -> -7.6436669e-07 | D37: ='DF raw data'!C42 -> 1.9178658e-06 | F37: 9.24035283e-07 | G37: -7.678064245e-07 | H37: 1.922161819e-06 | J37: 2.334808074e-05 | K37: 0.0003792044113 | L37: 1.130501269e-05 | M37: 0.0003026391743 | N37: 1.736224156e-08
A38: 17.33794667 | B38: ='DF raw data'!A43 -> 8.123796e-07 | C38: ='DF raw data'!B43 -> -2.3692935e-07 | D38: ='DF raw data'!C43 -> 4.9509363e-06 | F38: 8.141993303e-07 | G38: -2.379955582e-07 | H38: 4.962026397e-06 | J38: 2.375541652e-05 | K38: 0.0003910890086 | L38: 1.118594589e-05 | M38: 0.0003082353911 | N38: 1.77071641e-08
A39: 17.83823667 | B39: ='DF raw data'!A44 -> -3.952543e-06 | C39: ='DF raw data'!B44 -> 3.1406462e-06 | D39: ='DF raw data'!C44 -> -8.0092667e-07 | F39: -3.961396696e-06 | G39: 3.154779455e-06 | H39: -8.027207457e-07 | J39: 2.177356937e-05 | K39: 0.0004019821076 | L39: 1.276425051e-05 | M39: 0.000314621218 | N39: 1.802585604e-08
A40: 18.33852667 | B40: ='DF raw data'!A45 -> -3.6281956e-06 | C40: ='DF raw data'!B45 -> -1.014056e-05 | D40: ='DF raw data'!C45 -> -4.8932743e-06 | F40: -3.636322758e-06 | G40: -1.018619364e-05 | H40: -4.904235234e-06 | J40: 1.995435346e-05 | K40: 0.0004119650711 | L40: 7.66819969e-06 | M40: 0.0003184575416 | N40: 1.825447732e-08
A41: 18.83881667 | B41: ='DF raw data'!A46 -> -2.1162414e-07 | C41: ='DF raw data'!B46 -> -1.0615027e-05 | D41: ='DF raw data'!C46 -> -1.1911362e-06 | F41: -2.120981781e-07 | G41: -1.066279579e-05 | H41: -1.193804345e-06 | J41: 1.984824286e-05 | K41: 0.0004218949485 | L41: 2.333709582e-06 | M41: 0.0003196250732 | N41: 1.845429261e-08
A42: 19.33910667 | B42: ='DF raw data'!A47 -> 3.9483712e-08 | C42: ='DF raw data'!B47 -> 1.9851668e-06 | D42: ='DF raw data'!C47 -> -8.5044684e-07 | F42: 3.957215551e-08 | G42: 1.99410027e-06 | H42: -8.523518409e-07 | J42: 1.986804041e-05 | K42: 0.0004318347305 | L42: 3.331338006e-06 | M42: 0.0003212917083 | N42: 1.865732873e-08
A43: 19.83939667 | B43: ='DF raw data'!A48 -> 1.4592413e-06 | C43: ='DF raw data'!B48 -> 7.2787566e-06 | D43: ='DF raw data'!C48 -> 3.1314228e-06 | F43: 1.462510001e-06 | G43: 7.311511808e-06 | H43: 3.138437187e-06 | J43: 2.059971954e-05 | K43: 0.0004421405642 | L43: 6.989214249e-06 | M43: 0.0003247883423 | N43: 1.889406474e-08
A44: 20.33968667 | B44: ='DF raw data'!A49 -> 3.8871849e-06 | C44: ='DF raw data'!B49 -> 4.1844469e-06 | D44: ='DF raw data'!C49 -> 5.8932746e-06 | F44: 3.895892194e-06 | G44: 4.203277373e-06 | H44: 5.906475535e-06 | J44: 2.254879545e-05 | K44: 0.000453421501 | L44: 9.092071886e-06 | M44: 0.0003293370149 | N44: 1.918979313e-08
A45: 20.83997667 | B45: ='DF raw data'!A50 -> 3.4372249e-06 | C45: ='DF raw data'!B50 -> 2.9687919e-06 | D45: ='DF raw data'!C50 -> 1.6784142e-06 | F45: 3.444924284e-06 | G45: 2.982151791e-06 | H45: 1.682173848e-06 | J45: 2.427225662e-05 | K45: 0.0004655646683 | L45: 1.058401261e-05 | M45: 0.0003346320906 | N45: 1.954057835e-08
A46: 21.34026667 | B46: ='DF raw data'!A51 -> 9.0080718e-08 | C46: ='DF raw data'!B51 -> 7.317984e-06 | D46: ='DF raw data'!C51 -> -1.80789e-06 | F46: 9.028249881e-08 | G46: 7.350915736e-06 | H46: -1.811939674e-06 | J46: 2.431742405e-05 | K46: 0.0004777304324 | L46: 1.426160224e-05 | M46: 0.0003417670276 | N46: 1.993817403e-08
A47: 21.84055667 | B47: ='DF raw data'!A52 -> -4.901779e-06 | C47: ='DF raw data'!B52 -> 2.0940433e-06 | D47: ='DF raw data'!C52 -> -8.8485867e-06 | F47: -4.912758985e-06 | G47: 2.103466726e-06 | H47: -8.868407534e-06 | J47: 2.185961986e-05 | K47: 0.0004886665816 | L47: 1.531394561e-05 | M47: 0.0003494284414 | N47: 2.029456057e-08
A48: 22.34084667 | B48: ='DF raw data'!A53 -> -5.5895753e-06 | C48: ='DF raw data'!B53 -> -2.6448897e-06 | D48: ='DF raw data'!C53 -> -5.4561278e-06 | F48: -5.602095949e-06 | G48: -2.656791996e-06 | H48: -5.468349526e-06 | J48: 1.905694727e-05 | K48: 0.0004982005817 | L48: 1.398477914e-05 | M48: 0.0003564248866 | N48: 2.057409325e-08
A49: 22.84113667 | B49: ='DF raw data'!A54 -> -5.146353e-06 | C49: ='DF raw data'!B54 -> 9.5056557e-06 | D49: ='DF raw data'!C54 -> 2.0595578e-06 | F49: -5.157880831e-06 | G49: 9.5484322e-06 | H49: 2.064171209e-06 | J49: 1.647651107e-05 | K49: 0.0005064436155 | L49: 1.876176428e-05 | M49: 0.0003658112096 | N49: 2.088601366e-08
A50: 23.34142667 | B50: ='DF raw data'!A55 -> -5.9867989e-06 | C50: ='DF raw data'!B55 -> 8.854131e-06 | D50: ='DF raw data'!C55 -> 4.8571637e-06 | F50: -6.00020933e-06 | G50: 8.893975567e-06 | H50: 4.868043747e-06 | J50: 1.347466635e-05 | K50: 0.0005131848563 | L50: 2.321133132e-05 | M50: 0.0003774236066 | N50: 2.124638883e-08
A51: 23.84171667 | B51: ='DF raw data'!A56 -> -7.4199734e-06 | C51: ='DF raw data'!B56 -> 1.6330989e-05 | D51: ='DF raw data'!C56 -> -9.0089833e-07 | F51: -7.43659414e-06 | G51: 1.640448025e-05 | H51: -9.029163423e-07 | J51: 9.754212665e-06 | K51: 0.0005180647913 | L51: 3.141832875e-05 | M51: 0.0003931418823 | N51: 2.178783071e-08
A52: 24.34200667 | B52: ='DF raw data'!A57 -> -6.7717729e-06 | C52: ='DF raw data'!B57 -> 2.9615869e-06 | D52: ='DF raw data'!C57 -> -6.2035288e-06 | F52: -6.786941671e-06 | G52: 2.974914368e-06 | H52: -6.217424705e-06 | J52: 6.358773616e-06 | K52: 0.0005212460222 | L52: 3.290664866e-05 | M52: 0.0004096047495 | N52: 2.234979722e-08
A53: 24.84229667 | B53: ='DF raw data'!A58 -> -4.3613063e-06 | C53: ='DF raw data'!B58 -> 3.5570724e-06 | D53: ='DF raw data'!C58 -> -1.0172404e-05 | F53: -4.371075626e-06 | G53: 3.573079618e-06 | H53: -1.019519018e-05 | J53: 4.171968191e-06 | K53: 0.0005233332162 | L53: 3.469422466e-05 | M53: 0.0004269619232 | N53: 2.296069861e-08
A54: 25.34258667 | B54: ='DF raw data'!A59 -> 2.0239429e-06 | C54: ='DF raw data'!B59 -> 4.3751143e-06 | D54: ='DF raw data'!C59 -> -1.0617455e-07 | F54: 2.028476532e-06 | G54: 4.394802797e-06 | H54: -1.06412381e-07 | J54: 5.186794715e-06 | K54: 0.0005259281177 | L54: 3.689290055e-05 | M54: 0.0004454190724 | N54: 2.36550956e-08
A55: 25.84287667 | B55: ='DF raw data'!A60 -> 6.9504504e-06 | C55: ='DF raw data'!B60 -> 3.7928382e-06 | D55: ='DF raw data'!C60 -> -3.7434259e-06 | F55: 6.966019409e-06 | G55: 3.809906391e-06 | H55: -3.751811174e-06 | J55: 8.671824566e-06 | K55: 0.0005302665448 | L55: 3.879895862e-05 | M55: 0.0004648298034 | N55: 2.444583383e-08
A56: 26.34316667 | B56: ='DF raw data'!A61 -> 4.5670358e-06 | C56: ='DF raw data'!B61 -> 1.246427e-05 | D56: ='DF raw data'!C61 -> 6.9849593e-06 | F56: 4.57726596e-06 | G56: 1.252036059e-05 | H56: 7.000605609e-06 | J56: 1.096178495e-05 | K56: 0.0005357506162 | L56: 4.506276982e-05 | M56: 0.0004873742565 | N56: 2.552186454e-08
A57: 26.84345667 | B57: ='DF raw data'!A62 -> -3.927179e-06 | C57: ='DF raw data'!B62 -> -2.5604304e-06 | D57: ='DF raw data'!C62 -> 7.6062388e-06 | F57: -3.935975881e-06 | G57: -2.571952619e-06 | H57: 7.623276775e-06 | J57: 8.992655579e-06 | K57: 0.0005402495519 | L57: 4.377604764e-05 | M57: 0.0005092749754 | N57: 2.652104883e-08
A58: 27.34374667 | B58: ='DF raw data'!A63 -> -9.5250534e-06 | C58: ='DF raw data'!B63 -> -1.1160078e-05 | D58: ='DF raw data'!C63 -> 2.5658335e-06 | F58: -9.54638952e-06 | G58: -1.121029958e-05 | H58: 2.571580967e-06 | J58: 4.216692366e-06 | K58: 0.0005423591209 | L58: 3.816764686e-05 | M58: 0.0005283698674 | N58: 2.725875133e-08
A59: 27.84403667 | B59: ='DF raw data'!A64 -> -9.1045904e-06 | C59: ='DF raw data'!B64 -> -3.8874969e-06 | D59: ='DF raw data'!C64 -> 2.3129357e-06 | F59: -9.124984682e-06 | G59: -3.904991065e-06 | H59: 2.318116676e-06 | J59: -3.484462203e-07 | K59: 0.0005421847967 | L59: 3.621401888e-05 | M59: 0.000546487379 | N59: 2.791491998e-08
A60: 28.34432667 | B60: ='DF raw data'!A65 -> -8.2591532e-06 | C60: ='DF raw data'!B65 -> 3.3960257e-06 | D60: ='DF raw data'!C65 -> -9.1108467e-07 | F60: -8.277653703e-06 | G60: 3.411308191e-06 | H60: -9.131254997e-07 | J60: -4.489673591e-06 | K60: 0.0005399386579 | L60: 3.792066226e-05 | M60: 0.0005654587071 | N60: 2.864440974e-08
A61: 28.84461667 | B61: ='DF raw data'!A66 -> -6.4682636e-06 | C61: ='DF raw data'!B66 -> -3.8157132e-06 | D61: ='DF raw data'!C66 -> 4.2233646e-07 | F61: -6.48275251e-06 | G61: -3.832884331e-06 | H61: 4.232824937e-07 | J61: -7.732929845e-06 | K61: 0.0005360699504 | L61: 3.600310856e-05 | M61: 0.0005834707023 | N61: 2.9322814e-08
A62: 29.34490667 | B62: ='DF raw data'!A67 -> -3.6436934e-06 | C62: ='DF raw data'!B67 -> 1.0474871e-05 | D62: ='DF raw data'!C67 -> 8.8775669e-06 | F62: -3.651855273e-06 | G62: 1.052200908e-05 | H62: 8.89745265e-06 | J62: -9.55991652e-06 | K62: 0.0005312872198 | L62: 4.126716448e-05 | M62: 0.000604116252 | N62: 3.02205198e-08
A63: 29.84519667 | B63: ='DF raw data'!A68 -> -1.4610516e-06 | C63: ='DF raw data'!B68 -> 7.9039964e-06 | D63: ='DF raw data'!C68 -> 4.14038e-06 | F63: -1.464324356e-06 | G63: 7.939565256e-06 | H63: 4.149654451e-06 | J63: -1.029250335e-05 | K63: 0.0005261379833 | L63: 4.523924958e-05 | M63: 0.0006267489961 | N63: 3.12974067e-08
A64: 30.34548667 | B64: ='DF raw data'!A69 -> -8.3687627e-07 | C64: ='DF raw data'!B69 -> 9.3124536e-06 | D64: ='DF raw data'!C69 -> 6.3075095e-06 | F64: -8.387508728e-07 | G64: 9.354360669e-06 | H64: 6.321638321e-06 | J64: -1.071212203e-05 | K64: 0.0005207788158 | L64: 4.991914268e-05 | M64: 0.000651723044 | N64: 3.260149781e-08
A65: 30.84577667 | B65: ='DF raw data'!A70 -> -2.6015476e-07 | C65: ='DF raw data'!B70 -> 6.5258268e-06 | D65: ='DF raw data'!C70 -> 1.0480257e-05 | F65: -2.607375067e-07 | G65: 6.555193741e-06 | H65: 1.050373278e-05 | J65: -1.084256639e-05 | K65: 0.0005153543882 | L65: 5.319864056e-05 | M65: 0.0006783377919 | N65: 3.407618093e-08
A66: 31.34606667 | B66: ='DF raw data'!A71 -> 3.5060367e-07 | C66: ='DF raw data'!B71 -> -1.3806206e-05 | D66: ='DF raw data'!C71 -> -3.8438484e-06 | F66: 3.513890222e-07 | G66: -1.386833545e-05 | H66: -3.85245862e-06 | J66: -1.066676998e-05 | K66: 0.0005100179099 | L66: 4.626045101e-05 | M66: 0.000701481433 | N66: 3.520373919e-08
A67: 31.84635667 | B67: ='DF raw data'!A72 -> 6.6846115e-07 | C67: ='DF raw data'!B72 -> 1.3447095e-05 | D67: ='DF raw data'!C72 -> -5.7693869e-06 | F67: 6.69958503e-07 | G67: 1.350760841e-05 | H67: -5.782310327e-06 | J67: -1.033159644e-05 | K67: 0.0005048491155 | L67: 5.301817242e-05 | M67: 0.0007280058944 | N67: 3.666341956e-08
A68: 32.34664667 | B68: ='DF raw data'!A73 -> 3.2999858e-06 | C68: ='DF raw data'!B73 -> 3.1603934e-06 | D68: ='DF raw data'!C73 -> 2.3864084e-06 | F68: 3.307377768e-06 | G68: 3.174615519e-06 | H68: 2.391753955e-06 | J68: -8.676948416e-06 | K68: 0.000500508125 | L68: 5.460640082e-05 | M68: 0.0007553249307 | N68: 3.819288036e-08
A69: 32.84693667 | B69: ='DF raw data'!A74 -> -3.3645046e-07 | C69: ='DF raw data'!B74 -> -4.3620967e-06 | D69: ='DF raw data'!C74 -> 2.6090381e-06 | F69: -3.37204109e-07 | G69: -4.381726617e-06 | H69: 2.614882345e-06 | J69: -8.845648259e-06 | K69: 0.0004960827356 | L69: 5.241426681e-05 | M69: 0.0007815472642 | N69: 3.960645018e-08
A70: 33.34722667 | B70: ='DF raw data'!A75 -> -2.3414716e-06 | C70: ='DF raw data'!B75 -> -1.0843456e-05 | D70: ='DF raw data'!C75 -> 8.7888822e-07 | F70: -2.346716496e-06 | G70: -1.089225275e-05 | H70: 8.808569296e-07 | J70: -1.001968706e-05 | K70: 0.0004910699864 | L70: 4.696498169e-05 | M70: 0.0008050433749 | N70: 4.076017077e-08
A71: 33.84751667 | B71: ='DF raw data'!A76 -> 6.167291e-07 | C71: ='DF raw data'!B76 -> -1.0520562e-05 | D71: ='DF raw data'!C76 -> -4.1549247e-06 | F71: 6.181105732e-07 | G71: =(1-$G$1*($B$2-$G$2))*C71*$M$2/$M$1 -> -1.056790569e-05 | H71: -4.164231731e-06 | J71: -9.710452517e-06 | K71: 0.0004862119441 | L71: 4.167796415e-05 | M71: 0.0008258944436 | N71: 4.167637465e-08
A72: =A71+$B$1 -> 34.34780667 | B72: ='DF raw data'!A77 -> 2.8947586e-06 | C72: ='DF raw data'!B77 -> -5.1147599e-06 | D72: ='DF raw data'!C77 -> -9.1464062e-06 | F72: 2.901242859e-06 | G72: -5.137776884e-06 | H72: -9.16689415e-06 | J72: =F72*$B$1+J71 -> -8.258989727e-06 | K72: =J72*$B$1+K71 -> 0.0004820800541 | L72: =G72*$B$1+L71 -> 3.910758575e-05 | M72: =L72*$B$1+M71 -> 0.0008454595777 | N72: =(J72^2+L72^2)*$B$1+N71 -> 4.247564505e-08
A73: 34.84809667 | B73: ='DF raw data'!A78 -> 8.3774358e-07 | C73: ='DF raw data'!B78 -> -1.2187467e-05 | D73: ='DF raw data'!C78 -> -1.7478634e-06 | F73: 8.396201256e-07 | G73: -1.224231195e-05 | H73: -1.751778614e-06 | J73: -7.838936174e-06 | K73: 0.0004781583127 | L73: 3.298287951e-05 | M73: 0.0008619605825 | N73: 4.305063798e-08
A74: 35.34838667 | B74: ='DF raw data'!A79 -> 2.3939793e-07 | C74: ='DF raw data'!B79 -> -1.4874087e-06 | D74: ='DF raw data'!C79 -> 3.3477806e-06 | F74: 2.399341814e-07 | G74: -1.494102203e-06 | H74: 3.355279629e-06 | J74: -7.718899502e-06 | K74: 0.0004742966245 | L74: 3.223539512e-05 | M74: 0.0008780876283 | N74: 4.360030766e-08
A75: 35.84867667 | B75: ='DF raw data'!A80 -> 3.5575838e-06 | C75: ='DF raw data'!B80 -> 6.6272314e-06 | D75: ='DF raw data'!C80 -> -4.6241366e-06 | F75: =(1-$G$1*($B$2-$G$2))*B75 -> 3.565552788e-06 | G75: 6.657054673e-06 | H75: =(1-$G$1*($B$2-$G$2))*D75 -> -4.634494666e-06 | J75: -5.935089098e-06 | K75: 0.0004713273588 | L75: 3.5565853e-05 | M75: 0.0008958808689 | N75: 4.425076229e-08
A76: 36.34896667 | B76: ='DF raw data'!A81 -> 2.8584516e-06 | C76: ='DF raw data'!B81 -> 1.0765278e-06 | D76: ='DF raw data'!C81 -> -2.9892292e-06 | F76: 2.864854532e-06 | G76: 1.081372294e-06 | H76: -2.995925073e-06 | J76: -4.501831025e-06 | K76: 0.0004690751377 | L76: 3.610685274e-05 | M76: 0.0009139447663 | N76: 4.49131319e-08
A77: 36.84925667 | B77: ='DF raw data'!A82 -> 1.8720209e-06 | C77: ='DF raw data'!B82 -> -7.0545482e-08 | D77: ='DF raw data'!C82 -> 4.5575398e-06 | F77: 1.876214227e-06 | G77: -7.086294446e-08 | H77: 4.567748689e-06 | J77: -3.563179809e-06 | K77: 0.0004672925145 | L77: 3.607140072e-05 | M77: 0.0009319909273 | N77: 4.557043401e-08
A78: 37.34954667 | B78: ='DF raw data'!A83 -> 5.8645719e-06 | C78: ='DF raw data'!B83 -> -1.3080827e-06 | D78: ='DF raw data'!C83 -> 6.6039465e-06 | F78: 5.877708541e-06 | G78: -1.313969217e-06 | H78: 6.61873934e-06 | J78: -6.226210032e-07 | K78: 0.0004669810234 | L78: 3.541403506e-05 | M78: 0.0009497082149 | N78: 4.619806859e-08
A79: 37.84983667 | B79: ='DF raw data'!A84 -> 4.480321e-06 | C79: ='DF raw data'!B84 -> -4.1723633e-06 | D79: ='DF raw data'!C84 -> 6.5277964e-06 | F79: 4.490356919e-06 | G79: -4.191139395e-06 | H79: 6.542418664e-06 | J79: 1.62385966e-06 | K79: 0.0004677934242 | L79: 3.331724993e-05 | M79: 0.0009663765019 | N79: 4.67547293e-08
A80: 38.35012667 | B80: ='DF raw data'!A85 -> -2.2171837e-06 | C80: ='DF raw data'!B85 -> 4.3358868e-06 | D80: ='DF raw data'!C85 -> 8.0520949e-06 | F80: -2.222150191e-06 | G80: 4.355398769e-06 | H80: 8.070131593e-06 | J80: 5.121401405e-07 | K80: 0.0004680496428 | L80: 3.549621238e-05 | M80: 0.000984134902 | N80: 4.738521646e-08
A81: 38.85041667 | B81: ='DF raw data'!A86 -> -4.231154e-06 | C81: ='DF raw data'!B86 -> -4.8329612e-06 | D81: ='DF raw data'!C86 -> -9.3836951e-07 | F81: -4.240631785e-06 | G81: -4.854710059e-06 | H81: -9.404714577e-07 | J81: -1.609405535e-06 | K81: 0.0004672444733 | L81: 3.306744949e-05 | M81: 0.001000678216 | N81: 4.793355752e-08
A82: 39.35070667 | B82: ='DF raw data'!A87 -> -3.3233621e-06 | C82: ='DF raw data'!B87 -> -1.2334771e-05 | D82: ='DF raw data'!C87 -> -6.8432217e-07 | F82: -3.330806431e-06 | G82: -1.239027883e-05 | H82: -6.858550517e-07 | J82: -3.275774685e-06 | K82: 0.000465605636 | L82: 2.686871689e-05 | M82: 0.001014120367 | N82: 4.830009931e-08
A83: 39.85099667 | B83: ='DF raw data'!A88 -> 8.1873438e-08 | C83: ='DF raw data'!B88 -> 6.6236993e-07 | D83: ='DF raw data'!C88 -> -4.5206434e-06 | F83: 8.20568345e-08 | G83: 6.653506678e-07 | H83: -4.530769641e-06 | J83: -3.234722471e-06 | K83: 0.0004639873367 | L83: 2.720158518e-05 | M83: 0.001027729048 | N83: 4.867551176e-08
A84: 40.35128667 | B84: ='DF raw data'!A89 -> 2.3751825e-06 | C84: ='DF raw data'!B89 -> 2.6569106e-07 | D84: ='DF raw data'!C89 -> -5.0038834e-06 | F84: 2.380502909e-06 | G84: 2.668866991e-07 | H84: -5.015092099e-06 | J84: -2.043780671e-06 | K84: 0.0004629648536 | L84: 2.733510592e-05 | M84: 0.001041404528 | N84: 4.905142219e-08
A85: 40.85157667 | B85: ='DF raw data'!A90 -> -2.4748005e-07 | C85: ='DF raw data'!B90 -> -9.0788808e-06 | D85: ='DF raw data'!C90 -> -4.5979723e-06 | F85: -2.480344053e-07 | G85: -9.119736766e-06 | H85: -4.608271758e-06 | J85: -2.167869803e-06 | K85: 0.0004618802901 | L85: 2.277259282e-05 | M85: 0.001052797428 | N85: 4.931321926e-08
A86: 41.35186667 | B86: ='DF raw data'!A91 -> -1.2226913e-06 | C86: ='DF raw data'!B91 -> 1.3390388e-05 | D86: ='DF raw data'!C91 -> -4.1088679e-06 | F86: -1.225430129e-06 | G86: 1.345064622e-05 | H86: -4.118071764e-06 | J86: -2.780940242e-06 | K86: 0.0004604890135 | L86: 2.950181662e-05 | M86: 0.001067556892 | N86: 4.975251932e-08
A87: 41.85215667 | B87: ='DF raw data'!A92 -> -3.7828534e-06 | C87: ='DF raw data'!B92 -> 2.2500199e-06 | D87: ='DF raw data'!C92 -> 3.4206809e-07 | F87: -3.791326992e-06 | G87: 2.260145238e-06 | H87: 3.428343225e-07 | J87: -4.677703223e-06 | K87: 0.0004581488053 | L87: 3.063254468e-05 | M87: 0.001082882048 | N87: 5.023291463e-08
A88: 42.35244667 | B88: ='DF raw data'!A93 -> -5.6316885e-06 | C88: ='DF raw data'!B93 -> -3.9588804e-06 | D88: ='DF raw data'!C93 -> -5.0569741e-07 | F88: -5.644303482e-06 | G88: -3.976695799e-06 | H88: -5.068301722e-07 | J88: -7.501491812e-06 | K88: 0.000454395884 | L88: 2.864304354e-05 | M88: 0.001097211876 | N88: 5.067151704e-08
A89: 42.85273667 | B89: ='DF raw data'!A94 -> 1.7660248e-06 | C89: ='DF raw data'!B94 -> -1.506222e-06 | D89: ='DF raw data'!C94 -> -6.8078989e-06 | F89: 1.769980696e-06 | G89: -1.513000165e-06 | H89: -6.823148594e-06 | J89: -6.61598817e-06 | K89: 0.0004510859713 | L89: 2.788610468e-05 | M89: 0.001111163015 | N89: 5.108245831e-08
A90: 43.35302667 | B90: ='DF raw data'!A95 -> 8.3534587e-06 | C90: ='DF raw data'!B95 -> 1.0557862e-05 | D90: ='DF raw data'!C95 -> -7.6783654e-06 | F90: 8.372170447e-06 | G90: 1.060537354e-05 | H90: -7.695564938e-06 | J90: -2.427475017e-06 | K90: 0.0004498715298 | L90: 3.319186701e-05 | M90: 0.001127768575 | N90: 5.163657585e-08
A91: 43.85331667 | B91: ='DF raw data'!A96 -> 9.0871081e-06 | C91: ='DF raw data'!B96 -> 3.7103803e-06 | D91: ='DF raw data'!C96 -> -3.6054203e-07 | F91: 9.107463222e-06 | G91: 3.727077421e-06 | H91: -3.613496441e-07 | J91: 2.128897759e-06 | K91: 0.000450936596 | L91: 3.505648658e-05 | M91: 0.001145306984 | N91: 5.225367829e-08
A92: 44.35360667 | B92: ='DF raw data'!A97 -> 6.4974929e-06 | C92: ='DF raw data'!B97 -> 7.0445917e-06 | D92: ='DF raw data'!C97 -> -1.9975744e-06 | F92: 6.512047284e-06 | G92: 7.07629314e-06 | H92: -2.002048967e-06 | J92: 5.386809895e-06 | K92: 0.0004536315632 | L92: 3.859668527e-05 | M92: 0.00116461652 | N92: 5.301347964e-08
A93: 44.85389667 | B93: ='DF raw data'!A98 -> 6.1166256e-06 | C93: ='DF raw data'!B98 -> 7.3688198e-06 | D93: ='DF raw data'!C98 -> -9.6657932e-06 | F93: 6.130326841e-06 | G93: 7.401980302e-06 | H93: -9.687444577e-06 | J93: 8.45375111e-06 | K93: 0.0004578608903 | L93: 4.2299822e-05 | M93: 0.001185778698 | N93: 5.394438968e-08
A94: 45.35418667 | B94: ='DF raw data'!A99 -> 5.9339991e-06 | C94: ='DF raw data'!B99 -> -1.1430668e-05 | D94: ='DF raw data'!C99 -> -2.3061914e-06 | F94: 5.947291258e-06 | G94: -1.148210727e-05 | H94: -2.311357269e-06 | J94: 1.142912145e-05 | K94: 0.0004635787655 | L94: 3.655543855e-05 | M94: 0.001204067018 | N94: 5.467827754e-08
A95: 45.85447667 | B95: ='DF raw data'!A100 -> 5.4345046e-06 | C95: ='DF raw data'!B100 -> -5.4193742e-06 | D95: ='DF raw data'!C100 -> 7.0499283e-07 | F95: 5.44667789e-06 | G95: -5.443761982e-06 | H95: 7.065720139e-07 | J95: 1.415403994e-05 | K95: 0.0004706598901 | L95: 3.383197887e-05 | M95: 0.001220992819 | N95: 5.535113739e-08
A96: 46.35476667 | B96: ='DF raw data'!A101 -> 3.141661e-06 | C96: ='DF raw data'!B101 -> -3.4185005e-06 | D96: ='DF raw data'!C101 -> 9.3380714e-07 | F96: 3.148698321e-06 | G96: -3.43388413e-06 | H96: 9.35898868e-07 | J96: 1.572930222e-05 | K96: 0.0004785291027 | L96: 3.211404098e-05 | M96: 0.001237059153 | N96: 5.599086951e-08
A97: 46.85505667 | B97: ='DF raw data'!A102 -> -1.6632941e-06 | C97: ='DF raw data'!B102 -> -4.3843793e-06 | D97: ='DF raw data'!C102 -> 4.191952e-06 | F97: -1.667019879e-06 | G97: -4.404109491e-06 | H97: 4.201341972e-06 | J97: 1.489530884e-05 | K97: 0.0004859810768 | L97: 2.991070904e-05 | M97: 0.001252023181 | N97: 5.654945367e-08
A98: 47.35534667 | B98: ='DF raw data'!A103 -> -3.6085796e-06 | C98: ='DF raw data'!B103 -> 1.1052611e-05 | D98: ='DF raw data'!C103 -> 6.8899208e-06 | F98: -3.616662818e-06 | G98: 1.110234897e-05 | H98: 6.905354223e-06 | J98: 1.30859286e-05 | K98: 0.000492527836 | L98: 3.546510321e-05 | M98: 0.001269766018 | N98: 5.726437562e-08
A99: 47.85563667 | B99: ='DF raw data'!A104 -> -9.8131864e-07 | C99: ='DF raw data'!B104 -> -2.2528802e-06 | D99: ='DF raw data'!C104 -> 7.3460797e-06 | F99: -9.835167938e-07 | G99: -2.26301841e-06 | H99: 7.362534919e-06 | J99: 1.259388498e-05 | K99: 0.0004988284307 | L99: 3.433293773e-05 | M99: 0.001286942443 | N99: 5.793344173e-08
A100: 48.35592667 | B100: ='DF raw data'!A105 -> -2.7846211e-06 | C100: ='DF raw data'!B105 -> 1.1420469e-05 | D100: ='DF raw data'!C105 -> -6.9724427e-07 | F100: -2.790858651e-06 | G100: 1.147186237e-05 | H100: -6.988060972e-07 | J100: 1.119764631e-05 | K100: 0.0005044305012 | L100: 4.007219575e-05 | M100: 0.001306990162 | N100: 5.879952785e-08
A101: 48.85621667 | B101: ='DF raw data'!A106 -> -5.989069e-06 | C101: ='DF raw data'!B106 -> -2.7001906e-07 | D101: ='DF raw data'!C106 -> -2.155841e-06 | F101: -6.002484515e-06 | G101: -2.712341756e-07 | H101: -2.160670084e-06 | J101: 8.194663332e-06 | K101: 0.0005085302093 | L101: 3.993650001e-05 | M101: 0.001326969993 | N101: 5.963104812e-08
A102: 49.35650667 | B102: ='DF raw data'!A107 -> -9.5498208e-06 | C102: ='DF raw data'!B107 -> 7.6459482e-06 | D102: ='DF raw data'!C107 -> -1.2115089e-06 | F102: -9.571212399e-06 | G102: 7.680355811e-06 | H102: -1.21422268e-06 | J102: 3.406281481e-06 | K102: 0.0005102343379 | L102: 4.377890522e-05 | M102: 0.001348872142 | N102: 6.059570494e-08
A103: 49.85679667 | B103: ='DF raw data'!A108 -> -9.5377281e-06 | C103: ='DF raw data'!B108 -> 1.1793999e-06 | D103: ='DF raw data'!C108 -> 3.1492489e-06 | F103: -9.559092611e-06 | G103: 1.18470733e-06 | H103: 3.156303218e-06 | J103: -1.376036961e-06 | K103: 0.0005095459203 | L103: 4.437160245e-05 | M103: 0.001371070811 | N103: 6.158164275e-08
A104: 50.35708667 | B104: ='DF raw data'!A109 -> -4.4505532e-06 | C104: ='DF raw data'!B109 -> 4.1091939e-06 | D104: ='DF raw data'!C109 -> 6.0810235e-06 | F104: -4.460522439e-06 | G104: 4.127685726e-06 | H104: 6.094644993e-06 | J104: -3.607591732e-06 | K104: 0.0005077410783 | L104: 4.643664234e-05 | M104: 0.001394302599 | N104: 6.26669601e-08
A105: 50.85737667 | B105: ='DF raw data'!A110 -> 4.6130199e-06 | C105: ='DF raw data'!B110 -> -3.5160356e-06 | D105: ='DF raw data'!C110 -> 4.1622079e-06 | F105: 4.623353065e-06 | G105: -3.531858148e-06 | H105: 4.171531246e-06 | J105: -1.294574427e-06 | K105: 0.0005070934156 | L105: 4.466968903e-05 | M105: 0.001416650397 | N105: 6.366606777e-08
A106: 51.35766667 | B106: ='DF raw data'!A111 -> 9.6774356e-06 | C106: ='DF raw data'!B111 -> -4.6747173e-06 | D106: ='DF raw data'!C111 -> -1.2904967e-06 | F106: 9.699113056e-06 | G106: -4.695754044e-06 | H106: -1.293387413e-06 | J106: 3.557794843e-06 | K106: 0.0005088733448 | L106: 4.232045024e-05 | M106: 0.001437822896 | N106: 6.456843004e-08
A107: 51.85795667 | B107: ='DF raw data'!A112 -> 1.0217646e-05 | C107: ='DF raw data'!B112 -> -9.5129832e-07 | D107: ='DF raw data'!C112 -> -4.4598746e-06 | F107: 1.024053353e-05 | G107: -9.555792674e-07 | H107: -4.469864719e-06 | J107: 8.681031362e-06 | K107: 0.000513216378 | L107: 4.184238348e-05 | M107: 0.001458756222 | N107: 6.54820323e-08
A108: 52.35824667 | B108: ='DF raw data'!A113 -> 1.0490116e-05 | C108: ='DF raw data'!B113 -> 3.5666792e-06 | D108: ='DF raw data'!C113 -> 1.1693299e-06 | F108: 1.051361386e-05 | G108: 3.58272965e-06 | H108: 1.171949199e-06 | J108: 1.394088724e-05 | K108: 0.0005201908645 | L108: 4.36347873e-05 | M108: 0.001480586269 | N108: 6.653181232e-08
A109: 52.85853667 | B109: ='DF raw data'!A114 -> 1.1062822e-05 | C109: ='DF raw data'!B114 -> -8.6088176e-06 | D109: ='DF raw data'!C114 -> 4.4139852e-06 | F109: 1.108760272e-05 | G109: -8.647558229e-06 | H109: 4.423872527e-06 | J109: 1.9487904e-05 | K109: 0.000529940468 | L109: 3.930850039e-05 | M109: 0.001500251919 | N109: 6.749483886e-08
A110: 53.35882667 | B110: ='DF raw data'!A115 -> 9.9967629e-06 | C110: ='DF raw data'!B115 -> -6.617016e-06 | D110: ='DF raw data'!C115 -> 1.1481715e-06 | F110: 1.001915565e-05 | G110: -6.646793302e-06 | H110: 1.150743404e-06 | J110: 2.450038738e-05 | K110: 0.0005421977668 | L110: 3.598317617e-05 | M110: 0.001518253942 | N110: 6.84429174e-08
A111: 53.85911667 | B111: ='DF raw data'!A116 -> 7.9733918e-06 | C111: ='DF raw data'!B116 -> -3.8283888e-06 | D111: ='DF raw data'!C116 -> -7.7642217e-06 | F111: 7.991252198e-06 | G111: -3.845616972e-06 | H111: -7.781613557e-06 | J111: 2.849833095e-05 | K111: 0.0005564551968 | L111: 3.405925246e-05 | M111: 0.001535293446 | N111: 6.94295831e-08
A112: 54.35940667 | B112: ='DF raw data'!A117 -> 5.5515166e-06 | C112: ='DF raw data'!B117 -> 3.1906814e-06 | D112: ='DF raw data'!C117 -> -9.3227172e-06 | F112: 5.563951997e-06 | G112: 3.205039818e-06 | H112: -9.343600087e-06 | J112: 3.128192049e-05 | K112: 0.0005721052288 | L112: 3.566270183e-05 | M112: 0.001553135139 | N112: 7.055542914e-08
A113: 54.85969667 | B113: ='DF raw data'!A118 -> 1.1459822e-06 | C113: ='DF raw data'!B118 -> -2.8147424e-06 | D113: ='DF raw data'!C118 -> 3.694839e-07 | F113: 1.1485492e-06 | G113: -2.827409051e-06 | H113: 3.703115439e-07 | J113: 3.185652817e-05 | K113: 0.0005880427312 | L113: 3.424817735e-05 | M113: 0.001570269159 | N113: 7.164995162e-08
A114: 55.35998667 | B114: ='DF raw data'!A119 -> -3.7143326e-07 | C114: ='DF raw data'!B119 -> -1.8400104e-05 | D114: ='DF raw data'!C119 -> 6.4085434e-06 | F114: -3.722652705e-07 | G114: -1.84829065e-05 | H114: 6.422898537e-06 | J114: 3.167028758e-05 | K114: 0.0006038870594 | L114: 2.500136406e-05 | M114: 0.001582777092 | N114: 7.246446142e-08
A115: 55.86027667 | B115: ='DF raw data'!A120 -> 1.0702249e-06 | C115: ='DF raw data'!B120 -> -1.0007401e-05 | D115: ='DF raw data'!C120 -> 2.3259161e-06 | F115: 1.072622204e-06 | G115: -1.005243541e-05 | H115: 2.331126152e-06 | J115: 3.220690974e-05 | K115: 0.0006199998543 | L115: 1.997223115e-05 | M115: 0.001592768999 | N115: 7.318296543e-08
A116: 56.36056667 | B116: ='DF raw data'!A121 -> -2.1555127e-06 | C116: ='DF raw data'!B121 -> 4.0084565e-06 | D116: ='DF raw data'!C121 -> 2.3532591e-06 | F116: -2.160341048e-06 | G116: 4.026494997e-06 | H116: 2.3585304e-06 | J116: 3.112611272e-05 | K116: 0.0006355719372 | L116: 2.198664633e-05 | M116: 0.001603768699 | N116: 7.390951034e-08
A117: 56.86085667 | B117: ='DF raw data'!A122 -> -6.9180196e-06 | C117: ='DF raw data'!B122 -> -7.6438719e-06 | D117: ='DF raw data'!C122 -> 5.1486677e-06 | F117: -6.933515964e-06 | G117: -7.678270167e-06 | H117: 5.160200716e-06 | J117: 2.765734402e-05 | K117: 0.0006494086299 | L117: 1.814528455e-05 | M117: 0.001612846603 | N117: 7.445691767e-08
A118: 57.36114667 | B118: ='DF raw data'!A123 -> -7.1406203e-06 | C118: ='DF raw data'!B123 -> -9.0086274e-07 | D118: ='DF raw data'!C123 -> 2.7555177e-06 | F118: -7.156615289e-06 | G118: -9.049167218e-07 | H118: 2.76169006e-06 | J118: 2.407696095e-05 | K118: 0.0006614540927 | L118: 1.769256376e-05 | M118: 0.001621698016 | N118: 7.490353999e-08
A119: 57.86143667 | B119: ='DF raw data'!A124 -> -5.0507033e-06 | C119: ='DF raw data'!B124 -> 3.4708785e-06 | D119: ='DF raw data'!C124 -> 3.0506887e-06 | F119: -5.062016875e-06 | G119: 3.486497836e-06 | H119: 3.057522243e-06 | J119: 2.154448453e-05 | K119: 0.0006722325828 | L119: 1.943682377e-05 | M119: 0.001631422064 | N119: 7.532476162e-08
A120: 58.36172667 | B120: ='DF raw data'!A125 -> -1.3430938e-06 | C120: ='DF raw data'!B125 -> -6.2338131e-06 | D120: ='DF raw data'!C125 -> -7.734381e-07 | F120: -1.34610233e-06 | G120: -6.261865947e-06 | H120: -7.751706013e-07 | J120: 2.0871043e-05 | K120: 0.0006826741569 | L120: 1.630407485e-05 | M120: 0.00163957883 | N120: 7.567567668e-08
A121: 58.86201667 | B121: ='DF raw data'!A126 -> 4.9004493e-06 | C121: ='DF raw data'!B126 -> 3.0972824e-06 | D121: ='DF raw data'!C126 -> -7.8135381e-06 | F121: 4.911426306e-06 | G121: 3.111220513e-06 | H121: -7.831040425e-06 | J121: 2.332818046e-05 | K121: 0.0006943450123 | L121: 1.786058736e-05 | M121: 0.001648514303 | N121: 7.61075293e-08
A122: 59.36230667 | B122: ='DF raw data'!A127 -> 5.0425488e-06 | C122: ='DF raw data'!B127 -> 7.4047116e-06 | D122: ='DF raw data'!C127 -> -2.1020571e-06 | F122: 5.053844109e-06 | G122: 7.43803362e-06 | H122: -2.106765708e-06 | J122: 2.585656813e-05 | K122: 0.0007072807948 | L122: 2.15817612e-05 | M122: 0.001659311442 | N122: 7.667502553e-08
A123: 59.86259667 | B123: ='DF raw data'!A128 -> 1.5878657e-06 | C123: ='DF raw data'!B128 -> 3.331447e-06 | D123: ='DF raw data'!C128 -> 6.393293e-06 | F123: 1.591422519e-06 | G123: 3.346438879e-06 | H123: 6.407613976e-06 | J123: 2.66527409e-05 | K123: 0.0007206148945 | L123: 2.325595111e-05 | M123: 0.001670946162 | N123: 7.730099231e-08
A124: 60.36288667 | B124: ='DF raw data'!A129 -> 1.7337195e-06 | C124: ='DF raw data'!B129 -> -1.3638552e-06 | D124: ='DF raw data'!C129 -> 5.3780786e-06 | F124: 1.737603032e-06 | G124: -1.369992699e-06 | H124: 5.390125496e-06 | J124: 2.752204632e-05 | K124: 0.0007343838991 | L124: 2.257055746e-05 | M124: 0.001682237986 | N124: 7.793480625e-08
A125: 60.86317667 | B125: ='DF raw data'!A130 -> 1.3081924e-06 | C125: ='DF raw data'!B130 -> 4.6134151e-06 | D125: ='DF raw data'!C130 -> -2.9662663e-06 | F125: 1.311122751e-06 | G125: 4.634175977e-06 | H125: -2.972910737e-06 | J125: 2.817798793e-05 | K125: 0.0007484810647 | L125: 2.488898936e-05 | M125: 0.001694689699 | N125: 7.864194656e-08
A126: 61.36346667 | B126: ='DF raw data'!A131 -> -5.6890231e-06 | C126: ='DF raw data'!B131 -> -5.0799354e-06 | D126: ='DF raw data'!C131 -> -6.0731436e-06 | F126: -5.701766512e-06 | G126: -5.10279567e-06 | H126: -6.086747442e-06 | J126: 2.532545116e-05 | K126: 0.0007611511346 | L126: 2.233611171e-05 | M126: 0.001705864232 | N126: 7.921241742e-08
A127: 61.86375667 | B127: ='DF raw data'!A132 -> -1.4577522e-05 | C127: ='DF raw data'!B132 -> -1.4493822e-06 | D127: ='DF raw data'!C132 -> -8.0265835e-07 | F127: -1.461017565e-05 | G127: -1.45590458e-06 | H127: -8.044563047e-07 | J127: 1.801612638e-05 | K127: 0.0007701644225 | L127: 2.160773721e-05 | M127: 0.001716674367 | N127: 7.96083845e-08
A128: 62.36404667 | B128: ='DF raw data'!A133 -> -1.114653e-05 | C128: ='DF raw data'!B133 -> 2.7174151e-06 | D128: ='DF raw data'!C133 -> -2.8173856e-06 | F128: -1.117149823e-05 | G128: 2.729643768e-06 | H128: -2.823696544e-06 | J128: 1.242713753e-05 | K128: 0.0007763815951 | L128: 2.297335069e-05 | M128: 0.001728167705 | N128: 7.994968664e-08
A129: 62.86433667 | B129: ='DF raw data'!A134 -> 6.3168847e-07 | C129: ='DF raw data'!B134 -> -5.2006186e-07 | D129: ='DF raw data'!C134 -> -2.2928764e-06 | F129: 6.331034522e-07 | G129: -5.224021958e-07 | H129: -2.298012443e-06 | J129: 1.274387286e-05 | K129: 0.0007827572273 | L129: 2.27119981e-05 | M129: 0.00173953029 | N129: 8.028900391e-08
A130: 63.36462667 | B130: ='DF raw data'!A135 -> 7.0167343e-06 | C130: ='DF raw data'!B135 -> 3.3748108e-06 | D130: ='DF raw data'!C135 -> 5.2214855e-06 | F130: 7.032451785e-06 | G130: 3.389997821e-06 | H130: 5.233181628e-06 | J130: 1.626213816e-05 | K130: 0.0007908930124 | L130: 2.440798011e-05 | M130: 0.001751741359 | N130: 8.071935668e-08
A131: 63.86491667 | B131: ='DF raw data'!A136 -> 5.4974562e-06 | C131: ='DF raw data'!B136 -> -1.9008995e-06 | D131: ='DF raw data'!C136 -> 3.4992661e-06 | F131: 5.509770502e-06 | G131: -1.909453758e-06 | H131: 3.507104456e-06 | J131: 1.901862125e-05 | K131: 0.0008004078384 | L131: 2.345269949e-05 | M131: 0.00176347451 | N131: 8.117548962e-08
A132: 64.36520667 | B132: ='DF raw data'!A137 -> 7.4369456e-07 | C132: ='DF raw data'!B137 -> -3.4717377e-06 | D132: ='DF raw data'!C137 -> 8.6758138e-07 | F132: 7.453604358e-07 | G132: -3.487360903e-06 | H132: 8.695247623e-07 | J132: 1.939151762e-05 | K132: 0.0008101092208 | L132: 2.17080077e-05 | M132: 0.001774334809 | N132: 8.15993696e-08
A133: 64.86549667 | B133: ='DF raw data'!A138 -> -3.409524e-06 | C133: ='DF raw data'!B138 -> 5.1489919e-06 | D133: ='DF raw data'!C138 -> -4.2316569e-06 | F133: -3.417161334e-06 | G133: 5.172162932e-06 | H133: -4.241135811e-06 | J133: 1.768194598e-05 | K133: 0.0008189553215 | L133: 2.42955891e-05 | M133: 0.001786489649 | N133: 8.205109488e-08
A134: 65.36578667 | B134: ='DF raw data'!A139 -> -3.1063494e-06 | C134: ='DF raw data'!B139 -> 7.8099301e-06 | D134: ='DF raw data'!C139 -> -1.1646517e-06 | F134: -3.113307623e-06 | G134: 7.845075648e-06 | H134: -1.16726052e-06 | J134: 1.612438931e-05 | K134: 0.0008270221922 | L134: 2.822040199e-05 | M134: 0.001800608034 | N134: 8.257959475e-08
A135: 65.86607667 | B135: ='DF raw data'!A140 -> 1.0020055e-06 | C135: ='DF raw data'!B140 -> 8.5930827e-07 | D135: ='DF raw data'!C140 -> 5.7391408e-06 | F135: 1.004249992e-06 | G135: =(1-$G$1*($B$2-$G$2))*C135*$M$2/$M$1 -> 8.631752521e-07 | H135: 5.751996475e-06 | J135: 1.662680553e-05 | K135: 0.0008353404168 | L135: 2.865223994e-05 | M135: 0.001814942463 | N135: 8.312861375e-08
A136: =A135+$B$1 -> 66.36636667 | B136: ='DF raw data'!A141 -> 1.3832803e-06 | C136: ='DF raw data'!B141 -> -4.5268106e-07 | D136: ='DF raw data'!C141 -> -5.1707701e-07 | F136: 1.386378848e-06 | G136: -4.547181747e-07 | H136: -5.182352625e-07 | J136: =F136*$B$1+J135 -> 1.732039701e-05 | K136: =J136*$B$1+K135 -> 0.0008440056382 | L136: =G136*$B$1+L135 -> 2.842474898e-05 | M136: =L136*$B$1+M135 -> 0.001829163081 | N136: =(J136^2+L136^2)*$B$1+N135 -> 8.368291631e-08
A137: 66.86665667 | B137: ='DF raw data'!A142 -> 1.9925108e-06 | C137: ='DF raw data'!B142 -> 3.9189267e-06 | D137: ='DF raw data'!C142 -> -3.9977203e-06 | F137: 1.996974024e-06 | G137: 3.936562303e-06 | H137: -4.006675193e-06 | J137: 1.831946314e-05 | K137: 0.0008531706824 | L137: 3.039417174e-05 | M137: 0.001844368981 | N137: 8.431298574e-08
A138: 67.36694667 | B138: ='DF raw data'!A143 -> 3.1144343e-06 | C138: ='DF raw data'!B143 -> 3.7394673e-06 | D138: ='DF raw data'!C143 -> -7.0920833e-06 | F138: 3.121410633e-06 | G138: 3.756295316e-06 | H138: -7.107969567e-06 | J138: 1.988107367e-05 | K138: 0.0008631169848 | L138: 3.227340872e-05 | M138: 0.001860515045 | N138: 8.503181743e-08
A139: 67.86723667 | B139: ='DF raw data'!A144 -> 1.052879e-06 | C139: ='DF raw data'!B144 -> -4.3106601e-07 | D139: ='DF raw data'!C144 -> 2.9929506e-08 | F139: =(1-$G$1*($B$2-$G$2))*B139 -> 1.055237449e-06 | G139: -4.330058546e-07 | H139: =(1-$G$1*($B$2-$G$2))*D139 -> 2.999654809e-08 | J139: 2.040899841e-05 | K139: 0.0008733274026 | L139: 3.205678022e-05 | M139: 0.001876552731 | N139: 8.575431842e-08
A140: 68.36752667 | B140: ='DF raw data'!A145 -> 2.3641667e-06 | C140: ='DF raw data'!B145 -> -4.3085929e-06 | D140: ='DF raw data'!C145 -> 4.520869e-06 | F140: 2.369462433e-06 | G140: -4.327982044e-06 | H140: 4.530995747e-06 | J140: 2.159441677e-05 | K140: 0.0008841308734 | L140: 2.989153408e-05 | M140: 0.001891507167 | N140: 8.643462409e-08
A141: 68.86781667 | B141: ='DF raw data'!A146 -> 5.7087791e-06 | C141: ='DF raw data'!B146 -> 6.6767329e-06 | D141: ='DF raw data'!C146 -> -5.4791744e-08 | F141: 5.721566765e-06 | G141: 6.706778935e-06 | H141: -5.491447751e-08 | J141: 2.445685941e-05 | K141: 0.0008963663955 | L141: 3.324686852e-05 | M141: 0.001908140243 | N141: 8.728686422e-08
A142: 69.36810667 | B142: ='DF raw data'!A147 -> 3.8100886e-06 | C142: ='DF raw data'!B147 -> 7.8862504e-06 | D142: ='DF raw data'!C147 -> 6.2810832e-06 | F142: 3.818623198e-06 | G142: 7.921739397e-06 | H142: 6.295152826e-06 | J142: 2.636727841e-05 | K142: 0.0009095576813 | L142: 3.721003552e-05 | M142: 0.001926756051 | N142: 8.832737743e-08
A143: 69.86839667 | B143: ='DF raw data'!A148 -> -3.3136851e-06 | C143: ='DF raw data'!B148 -> 2.7438339e-06 | D143: ='DF raw data'!C148 -> 6.7479668e-06 | F143: -3.321107755e-06 | G143: 2.756181455e-06 | H143: 6.763082246e-06 | J143: 2.470576141e-05 | K143: 0.0009219177266 | L143: 3.858892554e-05 | M143: 0.001946061705 | N143: 8.937772619e-08
A144: 70.36868667 | B144: ='DF raw data'!A149 -> -8.0910058e-06 | C144: ='DF raw data'!B149 -> -3.5227067e-06 | D144: ='DF raw data'!C149 -> -5.5156161e-06 | F144: -8.109129653e-06 | G144: -3.538559269e-06 | H144: -5.52797108e-06 | J144: 2.064884494e-05 | K144: 0.0009322481373 | L144: 3.681861972e-05 | M144: 0.001964481692 | N144: 9.026923574e-08
A145: 70.86897667 | B145: ='DF raw data'!A150 -> -7.6200913e-06 | C145: ='DF raw data'!B150 -> 2.3627658e-06 | D145: ='DF raw data'!C150 -> -5.0806884e-06 | F145: -7.637160305e-06 | G145: 2.373398507e-06 | H145: -5.092069142e-06 | J145: 1.682805001e-05 | K145: 0.0009406670424 | L145: 3.800600726e-05 | M145: 0.001983495717 | N145: 9.113355669e-08
A146: 71.36926667 | B146: ='DF raw data'!A151 -> -2.5537986e-06 | C146: ='DF raw data'!B151 -> 4.5629799e-06 | D146: ='DF raw data'!C151 -> -2.2672505e-06 | F146: -2.559519109e-06 | G146: 4.583513813e-06 | H146: -2.272329141e-06 | J146: 1.554754819e-05 | K146: 0.0009484453253 | L146: 4.029909339e-05 | M146: 0.002003656951 | N146: 9.206696934e-08
A147: 71.86955667 | B147: ='DF raw data'!A152 -> 1.0307747e-06 | C147: ='DF raw data'!B152 -> 1.2064522e-05 | D147: ='DF raw data'!C152 -> -2.3693467e-06 | F147: 1.033083635e-06 | G147: 1.211881368e-05 | H147: -2.374654037e-06 | J147: 1.606438961e-05 | K147: 0.0009564821788 | L147: 4.636201469e-05 | M147: 0.002026851403 | N147: 9.327141803e-08
A148: 72.36984667 | B148: ='DF raw data'!A153 -> -5.0519446e-07 | C148: ='DF raw data'!B153 -> 1.6778104e-05 | D148: ='DF raw data'!C153 -> 4.2764841e-06 | F148: -5.063260956e-07 | G148: 1.685360732e-05 | H148: 4.286063424e-06 | J148: 1.581107972e-05 | K148: 0.0009643923038 | L148: 5.479370589e-05 | M148: 0.002054264146 | N148: 9.489853143e-08
A149: 72.87013667 | B149: ='DF raw data'!A154 -> -8.1110483e-07 | C149: ='DF raw data'!B154 -> 2.0867049e-06 | D149: ='DF raw data'!C154 -> -1.0397963e-06 | F149: -8.129217048e-07 | G149: 2.096095302e-06 | H149: -1.042125444e-06 | J149: 1.540438312e-05 | K149: 0.0009720989627 | L149: 5.584236141e-05 | M149: 0.002082201521 | N149: 9.657733675e-08
A150: 73.37042667 | B150: ='DF raw data'!A155 -> 3.1564748e-06 | C150: ='DF raw data'!B155 -> -7.1994255e-06 | D150: ='DF raw data'!C155 -> -1.1743414e-05 | F150: 3.163545304e-06 | G150: -7.231823709e-06 | H150: -1.176971925e-05 | J150: 1.69870732e-05 | K150: 0.0009805974255 | L150: 5.222435233e-05 | M150: 0.002108328843 | N150: 9.808618319e-08
A151: 73.87071667 | B151: ='DF raw data'!A156 -> 3.4513839e-06 | C151: ='DF raw data'!B156 -> 1.2299887e-05 | D151: ='DF raw data'!C156 -> -1.255138e-05 | F151: 3.459115e-06 | G151: 1.235523785e-05 | H151: -1.257949509e-05 | J151: 1.871763385e-05 | K151: 0.0009899616706 | L151: 5.840555427e-05 | M151: 0.002137548557 | N151: 9.996805333e-08
A152: 74.37100667 | B152: ='DF raw data'!A157 -> -1.2748162e-06 | C152: ='DF raw data'!B157 -> 1.5951389e-05 | D152: ='DF raw data'!C157 -> -1.1582164e-05 | F152: -1.277671788e-06 | G152: 1.602317201e-05 | H152: -1.160810805e-05 | J152: 1.807842743e-05 | K152: 0.000999006127 | L152: 6.6421787e-05 | M152: 0.002170778713 | N152: 1.023387692e-07
A153: 74.87129667 | B153: ='DF raw data'!A158 -> -5.0227927e-06 | C153: ='DF raw data'!B158 -> 1.2655872e-05 | D153: ='DF raw data'!C158 -> -2.9365804e-06 | F153: -5.034043756e-06 | G153: 1.271282482e-05 | H153: -2.94315834e-06 | J153: 1.555994568e-05 | K153: 0.001006790612 | L153: 7.278188613e-05 | M153: 0.002207190763 | N153: 1.05110033e-07
A154: 75.37158667 | B154: ='DF raw data'!A159 -> -3.3203498e-06 | C154: ='DF raw data'!B159 -> 1.0234168e-05 | D154: ='DF raw data'!C159 -> 1.6366793e-06 | F154: -3.327787384e-06 | G154: 1.028022289e-05 | H154: 1.640345462e-06 | J154: 1.389508693e-05 | K154: 0.001013742185 | L154: 7.792497883e-05 | M154: 0.002246175851 | N154: 1.082445379e-07
A155: 75.87187667 | B155: ='DF raw data'!A160 -> 6.4774937e-08 | C155: ='DF raw data'!B160 -> 7.3696201e-06 | D155: ='DF raw data'!C160 -> -5.8170207e-07 | F155: 6.492003286e-08 | G155: 7.402784204e-06 | H155: -5.830050826e-07 | J155: 1.392756577e-05 | K155: 0.001020710007 | L155: 8.162851774e-05 | M155: 0.002287013782 | N155: 1.116751225e-07
A156: 76.37216667 | B156: ='DF raw data'!A161 -> 1.3982396e-06 | C156: ='DF raw data'!B161 -> 5.8656292e-06 | D156: ='DF raw data'!C161 -> -1.1506673e-06 | F156: 1.401371657e-06 | G156: 5.892025179e-06 | H156: -1.153244795e-06 | J156: 1.4628658e-05 | K156: 0.001028028578 | L156: 8.457623902e-05 | M156: 0.002329326428 | N156: 1.153608279e-07
A157: 76.87245667 | B157: ='DF raw data'!A162 -> 1.2316202e-06 | C157: ='DF raw data'!B162 -> -2.4467499e-06 | D157: ='DF raw data'!C162 -> 2.5034058e-06 | F157: 1.234379029e-06 | G157: -2.457760545e-06 | H157: 2.509013429e-06 | J157: 1.524620548e-05 | K157: 0.001035656103 | L157: 8.3346646e-05 | M157: 0.002371023922 | N157: 1.189524649e-07
A158: 77.37274667 | B158: ='DF raw data'!A163 -> 8.1104082e-07 | C158: ='DF raw data'!B163 -> -6.7763285e-06 | D158: ='DF raw data'!C163 -> 5.0960189e-06 | F158: 8.128575514e-07 | G158: -6.806822726e-06 | H158: 5.107433982e-06 | J158: 1.565286998e-05 | K158: 0.001043487077 | L158: 7.994126065e-05 | M158: 0.002411017735 | N158: 1.22272198e-07
A159: 77.87303667 | B159: ='DF raw data'!A164 -> 1.8222242e-06 | C159: ='DF raw data'!B164 -> -9.0073645e-06 | D159: ='DF raw data'!C164 -> 8.1553117e-06 | F159: 1.826305982e-06 | G159: -9.047898634e-06 | H159: 8.173579598e-06 | J159: 1.65665526e-05 | K159: 0.001051775158 | L159: 7.541468745e-05 | M159: 0.002448746949 | N159: 1.252548398e-07
A160: 78.37332667 | B160: ='DF raw data'!A165 -> 1.4369477e-06 | C160: ='DF raw data'!B165 -> 2.0577513e-06 | D160: ='DF raw data'!C165 -> 6.0793645e-06 | F160: 1.440166463e-06 | G160: 2.067011408e-06 | H160: 6.092982276e-06 | J160: 1.728705348e-05 | K160: 0.001060423698 | L160: 7.644879258e-05 | M160: 0.002486993516 | N160: 1.283282514e-07
A161: 78.87361667 | B161: ='DF raw data'!A166 -> 4.5682828e-08 | C161: ='DF raw data'!B166 -> 6.4577789e-06 | D161: ='DF raw data'!C166 -> 7.0804873e-07 | F161: 4.578515753e-08 | G161: 6.486839618e-06 | H161: 7.096347592e-07 | J161: 1.730995934e-05 | K161: 0.001069083697 | L161: 7.969409358e-05 | M161: 0.002526863674 | N161: 1.316555717e-07
A162: 79.37390667 | B162: ='DF raw data'!A167 -> -1.1956538e-06 | C162: ='DF raw data'!B167 -> 2.5043321e-06 | D162: ='DF raw data'!C167 -> 7.6686083e-06 | F162: -1.198332065e-06 | G162: 2.515601871e-06 | H162: 7.685785983e-06 | J162: 1.671044579e-05 | K162: 0.001077443766 | L162: 8.095262404e-05 | M162: 0.002567363462 | N162: 1.350738363e-07
A163: 79.87419667 | B163: ='DF raw data'!A168 -> -1.05808e-06 | C163: ='DF raw data'!B168 -> 2.5310173e-06 | D163: ='DF raw data'!C168 -> 7.795792e-06 | F163: -1.060450099e-06 | G163: 2.542407157e-06 | H163: 7.813254574e-06 | J163: 1.617991321e-05 | K163: 0.001085538415 | L163: 8.222456491e-05 | M163: 0.00260849959 | N163: 1.385872072e-07
A164: 80.37448667 | B164: ='DF raw data'!A169 -> 1.9256156e-06 | C164: ='DF raw data'!B169 -> 7.7558454e-08 | D164: ='DF raw data'!C169 -> -2.135672e-06 | F164: 1.929928979e-06 | G164: 7.79074756e-08 | H164: -2.140455905e-06 | J164: 1.714543738e-05 | K164: 0.001094116106 | L164: 8.226354124e-05 | M164: 0.002649655217 | N164: 1.421198831e-07
A165: 80.87477667 | B165: ='DF raw data'!A170 -> 1.6352612e-06 | C165: ='DF raw data'!B170 -> 7.0099009e-06 | D165: ='DF raw data'!C170 -> -5.0786221e-06 | F165: 1.638924185e-06 | G165: 7.041446228e-06 | H165: -5.089998214e-06 | J165: 1.796537476e-05 | K165: 0.001103104003 | L165: 8.578630638e-05 | M165: 0.002692573248 | N165: 1.459631334e-07
A166: 81.37506667 | B166: ='DF raw data'!A171 -> -3.0741938e-07 | C166: ='DF raw data'!B171 -> -1.0561791e-05 | D166: ='DF raw data'!C171 -> 2.9757464e-06 | F166: -3.081079994e-07 | G166: -1.060932023e-05 | H166: 2.982412072e-06 | J166: 1.781123141e-05 | K166: 0.001112014784 | L166: 8.047856956e-05 | M166: 0.002732835871 | N166: 1.493621238e-07
A167: 81.87535667 | B167: ='DF raw data'!A172 -> -2.6532609e-06 | C167: ='DF raw data'!B172 -> -1.1271555e-06 | D167: ='DF raw data'!C172 -> 7.8083067e-06 | F167: -2.659204204e-06 | G167: -1.132227824e-06 | H167: 7.825797307e-06 | J167: 1.648085814e-05 | K167: 0.001120259992 | L167: 7.99121273e-05 | M167: 0.00277281511 | N167: 1.526928379e-07
A168: 82.37564667 | B168: ='DF raw data'!A173 -> -3.510587e-06 | C168: ='DF raw data'!B173 -> 1.8093095e-06 | D168: ='DF raw data'!C173 -> 2.62554e-06 | F168: -3.518450715e-06 | G168: 1.817451592e-06 | H168: 2.63142121e-06 | J168: 1.472061243e-05 | K168: 0.001127624568 | L168: 8.082138016e-05 | M168: 0.002813249238 | N168: 1.56069191e-07
A169: 82.87593667 | B169: ='DF raw data'!A174 -> -2.6082664e-06 | C169: ='DF raw data'!B174 -> -1.0419957e-05 | D169: ='DF raw data'!C174 -> -8.2678926e-06 | F169: -2.614108917e-06 | G169: -1.046684796e-05 | H169: -8.286412679e-06 | J169: 1.341279988e-05 | K169: 0.001134334857 | L169: 7.55849208e-05 | M169: 0.002851063618 | N169: 1.590173917e-07
A170: 83.37622667 | B170: ='DF raw data'!A175 -> -3.2960627e-06 | C170: ='DF raw data'!B175 -> -2.6264761e-06 | D170: ='DF raw data'!C175 -> -6.1240607e-06 | F170: -3.30344588e-06 | G170: -2.638295532e-06 | H170: -6.137778596e-06 | J170: 1.176011894e-05 | K170: 0.001140218327 | L170: 7.426500792e-05 | M170: 0.002888217659 | N170: 1.618458271e-07
A171: 83.87651667 | B171: ='DF raw data'!A176 -> -3.5932273e-06 | C171: ='DF raw data'!B176 -> 1.157271e-05 | D171: ='DF raw data'!C176 -> -1.1574631e-06 | F171: -3.601276129e-06 | G171: 1.162478847e-05 | H171: -1.160055817e-06 | J171: 9.958436507e-06 | K171: 0.001145200433 | L171: 8.008077335e-05 | M171: 0.002928281269 | N171: 1.65103766e-07
A172: 84.37680667 | B172: ='DF raw data'!A177 -> -1.9280226e-06 | C172: ='DF raw data'!B177 -> 1.1275567e-05 | D172: ='DF raw data'!C177 -> -7.2940056e-06 | F172: -1.932341371e-06 | G172: 1.13263083e-05 | H172: -7.310344173e-06 | J172: 8.991705443e-06 | K172: 0.001149698894 | L172: 8.574721213e-05 | M172: 0.002971179742 | N172: 1.688226392e-07
A173: 84.87709667 | B173: ='DF raw data'!A178 -> 1.7048776e-06 | C173: ='DF raw data'!B178 -> -1.023014e-07 | D173: ='DF raw data'!C178 -> -7.2946168e-06 | F173: 1.708696526e-06 | G173: -1.027617676e-07 | H173: -7.310956742e-06 | J173: 9.846549228e-06 | K173: 0.001154625024 | L173: 8.569580144e-05 | M173: 0.003014052494 | N173: 1.725451595e-07
A174: 85.37738667 | B174: ='DF raw data'!A179 -> 7.5329053e-06 | C174: ='DF raw data'!B179 -> -3.6334513e-06 | D174: ='DF raw data'!C179 -> -3.5300511e-06 | F174: 7.549779008e-06 | G174: -3.649802232e-06 | H174: -3.537958414e-06 | J174: 1.362362817e-05 | K174: 0.001161440789 | L174: 8.386984188e-05 | M174: 0.003056011737 | N174: 1.7615713e-07
A175: 85.87767667 | B175: ='DF raw data'!A180 -> 1.0253415e-05 | C175: ='DF raw data'!B180 -> 2.8090797e-06 | D175: ='DF raw data'!C180 -> -1.0826517e-06 | F175: 1.027638265e-05 | G175: 2.821720869e-06 | H175: -1.08507684e-06 | J175: 1.876479964e-05 | K175: 0.00117082863 | L175: 8.528152062e-05 | M175: 0.003098677229 | N175: 1.79971869e-07
A176: 86.37796667 | B176: ='DF raw data'!A181 -> 6.9770222e-06 | C176: ='DF raw data'!B181 -> 3.2243049e-06 | D176: ='DF raw data'!C181 -> 5.111473e-06 | F176: 6.99265073e-06 | G176: 3.238814628e-06 | H176: 5.1229227e-06 | J176: 2.226315288e-05 | K176: 0.001181966663 | L176: 8.690186719e-05 | M176: 0.003142153364 | N176: 1.839979941e-07
A177: 86.87825667 | B177: ='DF raw data'!A182 -> 5.2361139e-07 | C177: ='DF raw data'!B182 -> -5.4461231e-07 | D177: ='DF raw data'!C182 -> 7.3075462e-06 | F177: 5.247842795e-07 | G177: -5.470631255e-07 | H177: 7.323915103e-06 | J177: 2.25256972e-05 | K177: 0.001193236044 | L177: 8.662817698e-05 | M177: 0.003185492575 | N177: 1.880062416e-07
A178: 87.37854667 | B178: ='DF raw data'!A183 -> -2.7734743e-06 | C178: ='DF raw data'!B183 -> -2.7591032e-06 | D178: ='DF raw data'!C183 -> 1.9949327e-06 | F178: -2.779686882e-06 | G178: -2.771519469e-06 | H178: 1.999401349e-06 | J178: 2.113504765e-05 | K178: 0.001203809697 | L178: 8.52416135e-05 | M178: 0.003228138102 | N178: 1.918648897e-07
A179: 87.87883667 | B179: ='DF raw data'!A184 -> -5.4397532e-07 | C179: ='DF raw data'!B184 -> 4.240691e-07 | D179: ='DF raw data'!C184 -> 6.1825231e-06 | F179: -5.451938247e-07 | G179: 4.259774578e-07 | H179: 6.196371952e-06 | J179: 2.086229264e-05 | K179: 0.001214246894 | L179: 8.545472576e-05 | M179: 0.003270890247 | N179: 1.957360064e-07
A180: 88.37912667 | B180: ='DF raw data'!A185 -> 1.7598111e-06 | C180: ='DF raw data'!B185 -> 1.9080458e-06 | D180: ='DF raw data'!C185 -> 7.7092081e-06 | F180: 1.763753077e-06 | G180: 1.916632217e-06 | H180: 7.726476726e-06 | J180: 2.174468066e-05 | K180: 0.00122512554 | L180: 8.64135977e-05 | M180: 0.003314122105 | N180: 1.997083795e-07
A181: 88.87941667 | B181: ='DF raw data'!A186 -> 2.366495e-06 | C181: ='DF raw data'!B186 -> 4.7505782e-06 | D181: ='DF raw data'!C186 -> 4.6782043e-06 | F181: 2.371795949e-06 | G181: 4.771956326e-06 | H181: 4.688683478e-06 | J181: 2.293126646e-05 | K181: 0.001236597823 | L181: 8.880095973e-05 | M181: 0.003358548337 | N181: 2.039165456e-07
A182: 89.37970667 | B182: ='DF raw data'!A187 -> 4.8266857e-06 | C182: ='DF raw data'!B187 -> 3.7770938e-06 | D182: ='DF raw data'!C187 -> 3.2458881e-06 | F182: 4.837497476e-06 | G182: 3.794091139e-06 | H182: 3.253158889e-06 | J182: 2.535141807e-05 | K182: 0.001249280884 | L182: 9.069910558e-05 | M182: 0.003403924193 | N182: 2.083536287e-07
A183: 89.87999667 | B183: ='DF raw data'!A188 -> 6.7127594e-06 | C183: ='DF raw data'!B188 -> 1.5942049e-05 | D183: ='DF raw data'!C188 -> 5.1150528e-06 | F183: 6.727795981e-06 | G183: 1.601378998e-05 | H183: 5.126510518e-06 | J183: 2.871726712e-05 | K183: 0.001263647846 | L183: 9.871064457e-05 | M183: 0.003453308141 | N183: 2.136409299e-07
A184: 90.38028667 | B184: ='DF raw data'!A189 -> 5.7285988e-06 | C184: ='DF raw data'!B189 -> 1.8192832e-05 | D184: ='DF raw data'!C189 -> 7.276929e-06 | F184: 5.741430861e-06 | G184: 1.827470175e-05 | H184: 7.293229321e-06 | J184: 3.158964757e-05 | K184: 0.00127945183 | L184: 0.0001078532951 | M184: 0.003507266066 | N184: 2.199597122e-07
A185: 90.88057667 | B185: ='DF raw data'!A190 -> 2.5570087e-06 | C185: ='DF raw data'!B190 -> 8.0202108e-06 | D185: ='DF raw data'!C190 -> 3.116769e-06 | F185: 2.562736399e-06 | G185: 8.056302634e-06 | H185: 3.123750563e-06 | J185: 3.287175896e-05 | K185: 0.001295897243 | L185: 0.0001118837828 | M185: 0.003563240404 | N185: 2.267629225e-07
A186: 91.38086667 | B186: ='DF raw data'!A191 -> 7.1598771e-07 | C186: ='DF raw data'!B191 -> 7.4935742e-06 | D186: ='DF raw data'!C191 -> -1.764603e-07 | F186: 7.175915225e-07 | G186: 7.527296111e-06 | H186: -1.768555711e-07 | J186: 3.323076282e-05 | K186: 0.001312522261 | L186: 0.0001156496137 | M186: 0.003621098749 | N186: 2.340066798e-07
A187: 91.88115667 | B187: ='DF raw data'!A192 -> 3.4768789e-06 | C187: ='DF raw data'!B192 -> 5.4933676e-06 | D187: ='DF raw data'!C192 -> -5.8452606e-06 | F187: 3.484667109e-06 | G187: 5.518088361e-06 | H187: -5.858353984e-06 | J187: 3.497410693e-05 | K187: 0.001330019457 | L187: 0.0001184102582 | M187: 0.003680338217 | N187: 2.416331893e-07
A188: 92.38144667 | B188: ='DF raw data'!A193 -> 5.360348e-06 | C188: ='DF raw data'!B193 -> 7.9324163e-06 | D188: ='DF raw data'!C193 -> -4.4067601e-06 | F188: 5.37235518e-06 | G188: 7.968113049e-06 | H188: -4.416631243e-06 | J188: 3.76618425e-05 | K188: 0.0013488613 | L188: 0.0001223966254 | M188: 0.003741572025 | N188: 2.498376193e-07
A189: 92.88173667 | B189: ='DF raw data'!A194 -> 3.4300945e-06 | C189: ='DF raw data'!B194 -> 4.7652552e-06 | D189: ='DF raw data'!C194 -> -3.0610332e-07 | F189: 3.437777912e-06 | G189: 4.786699374e-06 | H189: -3.067889914e-07 | J189: 3.938172841e-05 | K189: 0.001368563585 | L189: 0.0001247913633 | M189: 0.003804003896 | N189: 2.584044876e-07
A190: 93.38202667 | B190: ='DF raw data'!A195 -> 2.1816668e-07 | C190: ='DF raw data'!B195 -> 1.3496196e-05 | D190: ='DF raw data'!C195 -> 3.2987989e-06 | F190: 2.186553734e-07 | G190: 1.355693037e-05 | H190: 3.30618821e-06 | J190: 3.949111951e-05 | K190: 0.001388320597 | L190: 0.00013157376 | M190: 0.003869828933 | N190: 2.678455617e-07
A191: 93.88231667 | B191: ='DF raw data'!A196 -> -1.9839019e-06 | C191: ='DF raw data'!B196 -> 1.9338171e-05 | D191: ='DF raw data'!C196 -> 2.5430743e-06 | F191: -1.98834584e-06 | G191: 1.94251949e-05 | H191: 2.548770786e-06 | J191: 3.849636997e-05 | K191: 0.001407579946 | L191: 0.0001412919907 | M191: 0.003940515903 | N191: 2.785744794e-07
A192: 94.38260667 | B192: ='DF raw data'!A197 -> -2.2795969e-06 | C192: ='DF raw data'!B197 -> 2.2232009e-06 | D192: ='DF raw data'!C197 -> 2.0143013e-06 | F192: -2.284703197e-06 | G192: 2.233205549e-06 | H192: 2.018813335e-06 | J192: 3.735335581e-05 | K192: 0.001426267457 | L192: 0.0001424092411 | M192: 0.004011761822 | N192: 2.894185979e-07
A193: 94.88289667 | B193: ='DF raw data'!A198 -> -1.1379118e-06 | C193: ='DF raw data'!B198 -> 2.3906521e-06 | D193: ='DF raw data'!C198 -> 1.1871434e-05 | F193: -1.140460722e-06 | G193: 2.401410298e-06 | H193: 1.189802601e-05 | J193: 3.678279471e-05 | K193: 0.001444669521 | L193: 0.0001436106427 | M193: 0.00408360879 | N193: 3.004134666e-07
A194: 95.38318667 | B194: ='DF raw data'!A199 -> 2.6815585e-06 | C194: ='DF raw data'!B199 -> 9.8418923e-06 | D194: ='DF raw data'!C199 -> 1.5556256e-05 | F194: 2.687565191e-06 | G194: 9.886181902e-06 | H194: 1.559110201e-05 | J194: 3.81273567e-05 | K194: 0.001463744256 | L194: 0.0001485566006 | M194: 0.004157930172 | N194: 3.121816677e-07
A195: 95.88347667 | B195: ='DF raw data'!A200 -> 3.5806049e-06 | C195: ='DF raw data'!B200 -> 2.0891066e-06 | D195: ='DF raw data'!C200 -> 1.3472116e-05 | F195: 3.588625455e-06 | G195: 2.09850781e-06 | H195: 1.350229354e-05 | J195: 3.992271013e-05 | K195: 0.001483717189 | L195: 0.0001496064631 | M195: 0.004232776789 | N195: 3.24176579e-07
A196: 96.38376667 | B196: ='DF raw data'!A201 -> 2.532445e-06 | C196: ='DF raw data'!B201 -> 3.1056882e-06 | D196: ='DF raw data'!C201 -> 1.0374624e-05 | F196: 2.538117677e-06 | G196: 3.11966414e-06 | H196: 1.039786316e-05 | J196: 4.119250502e-05 | K196: 0.001504325387 | L196: 0.0001511671999 | M196: 0.004308404228 | N196: 3.364578704e-07
A197: 96.88405667 | B197: ='DF raw data'!A202 -> 4.7507974e-06 | C197: ='DF raw data'!B202 -> 3.846209e-06 | D197: ='DF raw data'!C202 -> 9.3812906e-07 | F197: 4.761439186e-06 | G197: 3.863517365e-06 | H197: 9.402304691e-07 | J197: 4.357460543e-05 | K197: 0.001526125327 | L197: 0.000153100079 | M197: 0.004384998666 | N197: 3.491344087e-07
A198: 97.38434667 | B198: ='DF raw data'!A203 -> 5.6041799e-06 | C198: ='DF raw data'!B203 -> 6.7501178e-06 | D198: ='DF raw data'!C203 -> 6.8674473e-07 | F198: 5.616733263e-06 | G198: 6.780494075e-06 | H198: 6.882830382e-07 | J198: 4.638460092e-05 | K198: 0.001549331079 | L198: 0.0001564922923 | M198: 0.004463290195 | N198: 3.624628191e-07
A199: 97.88463667 | B199: ='DF raw data'!A204 -> 2.6395035e-06 | C199: ='DF raw data'!B204 -> 1.6747148e-05 | D199: ='DF raw data'!C204 -> -1.992714e-06 | F199: 2.645415988e-06 | G199: =(1-$G$1*($B$2-$G$2))*C199*$M$2/$M$1 -> 1.682251201e-05 | H199: -1.997177679e-06 | J199: 4.770807608e-05 | K199: 0.001573198952 | L199: 0.0001649084269 | M199: 0.004545792232 | N199: 3.772067905e-07
A200: =A199+$B$1 -> 98.38492667 | B200: ='DF raw data'!A205 -> -4.0053709e-07 | C200: ='DF raw data'!B205 -> 9.0514695e-06 | D200: ='DF raw data'!C205 -> -9.6113545e-06 | F200: -4.014342931e-07 | G200: 9.092202112e-06 | H200: -9.632883934e-06 | J200: =F200*$B$1+J199 -> 4.750724252e-05 | K200: =J200*$B$1+K199 -> 0.00159696635 | L200: =G200*$B$1+L199 -> 0.0001694571647 | M200: =L200*$B$1+M199 -> 0.004630569957 | N200: =(J200^2+L200^2)*$B$1+N199 -> 3.92702107e-07
A201: 98.88521667 | B201: ='DF raw data'!A206 -> 1.6263657e-07 | C201: ='DF raw data'!B206 -> 3.128104e-06 | D201: ='DF raw data'!C206 -> 6.3018143e-07 | F201: 1.630008759e-07 | G201: 3.142180813e-06 | H201: 6.315930364e-07 | J201: 4.758879023e-05 | K201: 0.001620774546 | L201: 0.0001710291663 | M201: 0.004716134139 | N201: 4.084690809e-07
... 1002 more rows

Sheet 10 y=-0.1
A1: dz | B1: ='DF raw data'!E7 -> 0.50014 | C1: mm | F1: T_coeff | G1: -0.0008 | H1: /degC | L1: Hallref | M1: ='PI vs y'!B44 -> 0.50553 | N1: T | P1: IBy total | Q1: =L1203*1000 -> -11.64037442 | R1: muTm | X1: DF ref | Y1: 19
A2: Tref | B2: ='DF raw data'!E8 -> 21.63 | C2: degC | F2: Tcorr | G2: 20 | H2: degC | L2: NMRref | M2: ='PI vs y'!B45 -> 0.50667 | N2: T | P2: JBy total | Q2: =M1203 -> -4.597003266 | R2: muTm^2
A3: Encoder | B3: ='DF raw data'!E9 -> 5134434 | P3: PI total | Q3: =N1203 -> 715.5784188 | R3: T^2mm^3
A5: z [mm] | B5: Bx | C5: By | D5: Bz | F5: Bx_corr | G5: By_corr | H5: Bz_corr | J5: Ix | K5: Jx | L5: Iy | M5: Jy | N5: PI
A6: ='PI vs y'!B53 -> 1.328666667 | B6: ='DF raw data'!D11 -> 2.0579132e-06 | C6: ='DF raw data'!E11 -> 4.2924548e-06 | D6: ='DF raw data'!F11 -> 8.3037668e-07 | F6: =(1-$G$1*($B$2-$G$2))*B6 -> 2.060596719e-06 | G6: =(1-$G$1*($B$2-$G$2))*C6*$M$2/$M$1 -> 4.307744522e-06 | H6: =(1-$G$1*($B$2-$G$2))*D6 -> 8.314594912e-07 | J6: =F6*$B$1 -> 1.030586843e-06 | K6: =J6*$B$1 -> 5.154377036e-07 | L6: =G6*$B$1 -> 2.154475345e-06 | M6: =L6*$B$1 -> 1.077539299e-06 | N6: =(J6^2+L6^2)*$B$1 -> 2.85273517e-12
A7: =A6+$B$1 -> 1.828806667 | B7: ='DF raw data'!D12 -> 2.3138232e-06 | C7: ='DF raw data'!E12 -> -1.2446393e-06 | D7: ='DF raw data'!F12 -> 9.2135897e-06 | F7: =(1-$G$1*($B$2-$G$2))*B7 -> 2.316840425e-06 | G7: =(1-$G$1*($B$2-$G$2))*C7*$M$2/$M$1 -> -1.249072705e-06 | H7: 9.225604221e-06 | J7: =F7*$B$1+J6 -> 2.189331413e-06 | K7: =J7*$B$1+K6 -> 1.610409917e-06 | L7: =G7*$B$1+L6 -> 1.529764123e-06 | M7: =L7*$B$1+M6 -> 1.842635528e-06 | N7: =(J7^2+L7^2)*$B$1+N6 -> 6.420408993e-12
A8: =A7+$B$1 -> 2.328946667 | B8: ='DF raw data'!D13 -> 2.6152661e-06 | C8: ='DF raw data'!E13 -> -8.9922214e-06 | D8: ='DF raw data'!F13 -> 1.1647339e-05 | F8: 2.618676407e-06 | G8: -9.024251689e-06 | H8: 1.166252713e-05 | J8: =F8*$B$1+J7 -> 3.499036232e-06 | K8: =J8*$B$1+K7 -> 3.360417898e-06 | L8: =G8*$B$1+L7 -> -2.983625117e-06 | M8: =L8*$B$1+M7 -> 3.504052617e-07 | N8: =(J8^2+L8^2)*$B$1+N7 -> 1.699600603e-11
A9: 2.829086667 | B9: ='DF raw data'!D14 -> 2.2595009e-06 | C9: ='DF raw data'!E14 -> 7.2901537e-07 | D9: ='DF raw data'!F14 -> 1.1525147e-05 | F9: 2.262447289e-06 | G9: 7.316121225e-07 | H9: 1.154017579e-05 | J9: 4.630576619e-06 | K9: 5.676354488e-06 | L9: -2.61771663e-06 | M9: -9.588195337e-07 | N9: 3.114730737e-11
A10: 3.329226667 | B10: ='DF raw data'!D15 -> 2.7558522e-06 | C10: ='DF raw data'!E15 -> -1.363482e-05 | D10: ='DF raw data'!F15 -> 6.373929e-06 | F10: 2.759445831e-06 | G10: -1.368338722e-05 | H10: 6.382240603e-06 | J10: 6.010685857e-06 | K10: 8.682538912e-06 | L10: -9.461325916e-06 | M10: -5.690807077e-06 | N10: 9.398741396e-11
A11: 3.829366667 | B11: ='DF raw data'!D16 -> 2.3653661e-06 | C11: ='DF raw data'!E16 -> -4.2762381e-06 | D11: ='DF raw data'!F16 -> -1.621883e-06 | F11: 2.368450537e-06 | G11: -4.291470059e-06 | H11: -1.623997935e-06 | J11: 7.195242709e-06 | K11: 1.22811676e-05 | L11: -1.160766175e-05 | M11: -1.149626303e-05 | N11: 1.872681897e-10
A12: 4.329506667 | B12: ='DF raw data'!D17 -> 2.4100841e-06 | C12: ='DF raw data'!E17 -> -5.1453831e-06 | D12: ='DF raw data'!F17 -> 5.3893092e-07 | F12: 2.41322685e-06 | G12: -5.163710953e-06 | H12: 5.396336859e-07 | J12: 8.402193985e-06 | K12: 1.64834409e-05 | L12: -1.419024015e-05 | M12: -1.859336973e-05 | N12: 3.232861537e-10
A13: 4.829646667 | B13: ='DF raw data'!D18 -> 2.3225107e-06 | C13: ='DF raw data'!E18 -> -3.4367145e-06 | D13: ='DF raw data'!F18 -> -3.2435339e-06 | F13: 2.325539254e-06 | G13: -3.448956076e-06 | H13: -3.247763468e-06 | J13: 9.565289188e-06 | K13: 2.126742463e-05 | L13: -1.591520104e-05 | M13: -2.655319838e-05 | N13: 4.957286148e-10
A14: 5.329786667 | B14: ='DF raw data'!D19 -> 2.4647557e-06 | C14: ='DF raw data'!E19 -> -8.0442214e-06 | D14: ='DF raw data'!F19 -> -7.3959809e-06 | F14: 2.467969741e-06 | G14: -8.072874914e-06 | H14: -7.405625259e-06 | J14: 1.079961957e-05 | K14: 2.666874637e-05 | L14: -1.99527687e-05 | M14: -3.653237612e-05 | N14: 7.531730599e-10
A15: 5.829926667 | B15: ='DF raw data'!D20 -> 2.4461292e-06 | C15: ='DF raw data'!E20 -> -7.0008214e-06 | D15: ='DF raw data'!F20 -> -4.2115707e-06 | F15: 2.449318952e-06 | G15: -7.025758323e-06 | H15: -4.217062588e-06 | J15: 1.202462195e-05 | K15: 3.268274079e-05 | L15: -2.346663147e-05 | M15: -4.826897718e-05 | N15: 1.100907561e-09
A16: 6.330066667 | B16: ='DF raw data'!D21 -> 2.616343e-06 | C16: ='DF raw data'!E21 -> -1.1624205e-05 | D16: ='DF raw data'!F21 -> -4.3703612e-06 | F16: 2.619754711e-06 | G16: -1.166561041e-05 | H16: -4.376060151e-06 | J16: 1.333486608e-05 | K16: 3.935204071e-05 | L16: -2.930106986e-05 | M16: -6.292361426e-05 | N16: 1.619238327e-09
A17: 6.830206667 | B17: ='DF raw data'!D22 -> 2.6159355e-06 | C17: ='DF raw data'!E22 -> -1.0705025e-05 | D17: ='DF raw data'!F22 -> 5.8599181e-07 | F17: 2.61934668e-06 | G17: -1.07431563e-05 | H17: 5.867559433e-07 | J17: 1.464490612e-05 | K17: 4.667654406e-05 | L17: -3.467415205e-05 | M17: -8.026554466e-05 | N17: 2.327821723e-09
A18: 7.330346667 | B18: ='DF raw data'!D23 -> 2.50927e-06 | C18: ='DF raw data'!E23 -> -6.7986789e-06 | D18: ='DF raw data'!F23 -> 6.4876667e-06 | F18: 2.512542088e-06 | G18: -6.822895792e-06 | H18: 6.496126617e-06 | J18: 1.590152892e-05 | K18: 5.462953474e-05 | L18: -3.808655515e-05 | M18: -9.931415436e-05 | N18: 3.179782358e-09
A19: 7.830486667 | B19: ='DF raw data'!D24 -> 2.1135161e-06 | C19: ='DF raw data'!E24 -> 3.1152269e-06 | D19: ='DF raw data'!F24 -> 1.6952406e-06 | F19: 2.116272125e-06 | G19: 3.126323337e-06 | H19: 1.697451194e-06 | J19: 1.695996127e-05 | K19: 6.311188976e-05 | L19: -3.65229558e-05 | M19: -0.0001175807455 | N19: 3.99079267e-09
A20: 8.330626667 | B20: ='DF raw data'!D25 -> 2.6776211e-06 | C20: ='DF raw data'!E25 -> -1.0865672e-05 | D20: ='DF raw data'!F25 -> 1.016917e-05 | F20: 2.681112718e-06 | G20: -1.090437552e-05 | H20: 1.01824306e-05 | J20: 1.830089298e-05 | K20: 7.226489838e-05 | L20: -4.197667017e-05 | M20: -0.0001385749573 | N20: 5.039568006e-09
A21: 8.830766667 | B21: ='DF raw data'!D26 -> 2.6246812e-06 | C21: ='DF raw data'!E26 -> -9.6341391e-06 | D21: ='DF raw data'!F26 -> 8.2219349e-06 | F21: 2.628103784e-06 | G21: -9.6684559e-06 | H21: 8.232656303e-06 | J21: 1.961531281e-05 | K21: 8.207530093e-05 | L21: -4.68122517e-05 | M21: -0.0001619876369 | N21: 6.32800237e-09
A22: 9.330906667 | B22: ='DF raw data'!D27 -> -2.2111094e-06 | C22: ='DF raw data'!E27 -> 3.2825446e-06 | D22: ='DF raw data'!F27 -> 5.095485e-06 | F22: -2.213992687e-06 | G22: 3.294237023e-06 | H22: 5.102129512e-06 | J22: 1.85080065e-05 | K22: 9.13318953e-05 | L22: -4.5164672e-05 | M22: -0.0001845762959 | N22: 7.519532856e-09
A23: 9.831046667 | B23: ='DF raw data'!D28 -> -1.0461157e-05 | C23: ='DF raw data'!E28 -> 2.7214833e-06 | D23: ='DF raw data'!F28 -> 2.4515618e-06 | F23: =(1-$G$1*($B$2-$G$2))*B23 -> -1.047479835e-05 | G23: 2.731177223e-06 | H23: 2.454758637e-06 | J23: 1.326914086e-05 | K23: 9.796832341e-05 | L23: -4.379870102e-05 | M23: -0.0002064817782 | N23: 8.567024226e-09
A24: 10.33118667 | B24: ='DF raw data'!D29 -> -1.4033245e-05 | C24: ='DF raw data'!E29 -> 1.1196777e-05 | D24: ='DF raw data'!F29 -> 4.2769398e-06 | F24: -1.405154435e-05 | G24: 1.123665992e-05 | H24: 4.282516929e-06 | J24: 6.241401466e-06 | K24: 0.0001010898979 | L24: -3.817879793e-05 | M24: -0.0002255765222 | N24: 9.315521599e-09
A25: 10.83132667 | B25: ='DF raw data'!D30 -> -1.5675618e-05 | C25: ='DF raw data'!E30 -> 4.5875959e-06 | D25: ='DF raw data'!F30 -> 6.4577916e-06 | F25: -1.569605901e-05 | G25: 4.603936915e-06 | H25: 6.46621256e-06 | J25: -1.608825485e-06 | K25: 0.00010028526 | L25: -3.587618492e-05 | M25: -0.0002435196374 | N25: 9.960546637e-09
A26: 11.33146667 | B26: ='DF raw data'!D31 -> -1.0392996e-05 | C26: ='DF raw data'!E31 -> 5.8043179e-06 | D26: ='DF raw data'!F31 -> 1.1176076e-05 | F26: -1.040654847e-05 | G26: 5.824992878e-06 | H26: 1.11906496e-05 | J26: -6.813556635e-06 | K26: 9.687752775e-05 | L26: -3.296287298e-05 | M26: -0.0002600056887 | N26: 1.052719303e-08
A27: 11.83160667 | B27: ='DF raw data'!D32 -> -3.89561e-06 | C27: ='DF raw data'!E32 -> 5.0504545e-06 | D27: ='DF raw data'!F32 -> 4.8150987e-06 | F27: -3.900689875e-06 | G27: 5.068444217e-06 | H27: 4.821377589e-06 | J27: -8.764447669e-06 | K27: 9.249407689e-05 | L27: -3.042794129e-05 | M27: -0.0002752239192 | N27: 1.102867098e-08
A28: 12.33174667 | B28: ='DF raw data'!D33 -> -2.4034347e-07 | C28: ='DF raw data'!E33 -> -5.0251754e-07 | D28: ='DF raw data'!F33 -> 6.3467023e-06 | F28: -2.406568779e-07 | G28: -5.043075073e-07 | H28: 6.3549784e-06 | J28: -8.8848098e-06 | K28: 8.805042811e-05 | L28: -3.068016565e-05 | M28: -0.0002905682973 | N28: 1.153892001e-08
A29: 12.83188667 | B29: ='DF raw data'!D34 -> -1.4704605e-06 | C29: ='DF raw data'!E34 -> 9.6073927e-06 | D29: ='DF raw data'!F34 -> 1.0480174e-05 | F29: -1.47237798e-06 | G29: 9.641614229e-06 | H29: 1.049384015e-05 | J29: -9.621204923e-06 | K29: 8.323847868e-05 | L29: -2.585800871e-05 | M29: -0.0003035009217 | N29: 1.191962868e-08
A30: 13.33202667 | B30: ='DF raw data'!D35 -> -3.7409523e-06 | C30: ='DF raw data'!E35 -> 1.9734905e-06 | D30: ='DF raw data'!F35 -> 1.7556747e-06 | F30: -3.745830502e-06 | G30: 1.980520072e-06 | H30: 1.7579641e-06 | J30: -1.149464459e-05 | K30: 7.748954714e-05 | L30: -2.48674714e-05 | M30: -0.0003159381389 | N30: 1.229499275e-08
A31: 13.83216667 | B31: ='DF raw data'!D36 -> -4.653954e-06 | C31: ='DF raw data'!E36 -> -8.9452551e-06 | D31: ='DF raw data'!F36 -> -7.3893161e-06 | F31: -4.660022756e-06 | G31: -8.977118095e-06 | H31: -7.398951768e-06 | J31: -1.382530837e-05 | K31: 7.057495741e-05 | L31: -2.935728724e-05 | M31: -0.0003306208925 | N31: 1.28216349e-08
A32: 14.33230667 | B32: ='DF raw data'!D37 -> -4.7242397e-06 | C32: ='DF raw data'!E37 -> -8.81503e-06 | D32: ='DF raw data'!F37 -> -8.2714969e-06 | F32: -4.730400109e-06 | G32: -8.846429134e-06 | H32: -8.282282932e-06 | J32: -1.619117068e-05 | K32: 6.24771053e-05 | L32: -3.378174031e-05 | M32: -0.0003475164921 | N32: 1.352351136e-08
A33: 14.83244667 | B33: ='DF raw data'!D38 -> -7.4747845e-06 | C33: ='DF raw data'!E38 -> -9.1264492e-06 | D33: ='DF raw data'!F38 -> -6.3175967e-06 | F33: -7.484531619e-06 | G33: -9.158957609e-06 | H33: -6.325834846e-06 | J33: -1.993448433e-05 | K33: 5.250707231e-05 | L33: -3.836250137e-05 | M33: -0.0003667031136 | N33: 1.445830562e-08
A34: 15.33258667 | B34: ='DF raw data'!D39 -> -1.0729087e-05 | C34: ='DF raw data'!E39 -> 3.1725912e-07 | D34: ='DF raw data'!F39 -> 3.1910969e-07 | F34: -1.074307773e-05 | G34: 3.183891969e-07 | H34: 3.19525809e-07 | J34: -2.530752722e-05 | K34: 3.984976565e-05 | L34: -3.82032622e-05 | M34: -0.0003858100931 | N34: 1.55085797e-08
A35: 15.83272667 | B35: ='DF raw data'!D40 -> -1.1401255e-05 | C35: ='DF raw data'!E40 -> -6.7066144e-06 | D35: ='DF raw data'!F40 -> 3.8931184e-06 | F35: -1.141612224e-05 | G35: -6.730503358e-06 | H35: 3.898195026e-06 | J35: -3.10171866e-05 | K35: 2.433682994e-05 | L35: -4.156945615e-05 | M35: -0.0004066006409 | N35: 1.685399909e-08
A36: 16.33286667 | B36: ='DF raw data'!D41 -> -6.0072966e-06 | C36: ='DF raw data'!E41 -> -1.9537372e-05 | D36: ='DF raw data'!F41 -> -5.3477697e-06 | F36: -6.015130115e-06 | G36: -1.960696411e-05 | H36: -5.354743192e-06 | J36: -3.402559377e-05 | K36: 7.319269475e-06 | L36: -5.137568318e-05 | M36: -0.0004322956751 | N36: 1.875313163e-08
A37: 16.83300667 | B37: ='DF raw data'!D42 -> -8.9280769e-07 | C37: ='DF raw data'!E42 -> -1.1597866e-07 | D37: ='DF raw data'!F42 -> 3.7780562e-06 | F37: -8.939719112e-07 | G37: -1.163917759e-07 | H37: 3.782982785e-06 | J37: -3.447270488e-05 | K37: -9.921909146e-06 | L37: -5.143389536e-05 | M37: -0.0004580198235 | N37: 2.067057485e-08
A38: 17.33314667 | B38: ='DF raw data'!D43 -> 2.5750155e-06 | C38: ='DF raw data'!E43 -> -1.419548e-05 | D38: ='DF raw data'!F43 -> 8.0962791e-06 | F38: 2.57837332e-06 | G38: -1.424604429e-05 | H38: 8.106836648e-06 | J38: -3.318315725e-05 | K38: -2.651813341e-05 | L38: -5.855891195e-05 | M38: -0.0004873074777 | N38: 2.293634313e-08
A39: 17.83328667 | B39: ='DF raw data'!D44 -> 1.7311064e-06 | C39: ='DF raw data'!E44 -> -1.4252321e-05 | D39: ='DF raw data'!F44 -> -3.0082731e-06 | F39: 1.733363763e-06 | G39: -1.430308776e-05 | H39: -3.012195888e-06 | J39: -3.23162327e-05 | K39: -4.268077404e-05 | L39: -6.571245827e-05 | M39: -0.0005201729066 | N39: 2.561832691e-08
A40: 18.33342667 | B40: ='DF raw data'!D45 -> -4.6062237e-06 | C40: ='DF raw data'!E45 -> -1.5975533e-05 | D40: ='DF raw data'!F45 -> -1.5369558e-05 | F40: -4.612230216e-06 | G40: -1.603243784e-05 | H40: -1.53895999e-05 | J40: -3.462299352e-05 | K40: -5.999711802e-05 | L40: -7.373092173e-05 | M40: -0.0005570486898 | N40: 2.893675606e-08
A41: 18.83356667 | B41: ='DF raw data'!D46 -> -7.3219894e-06 | C41: ='DF raw data'!E46 -> 1.9170509e-06 | D41: ='DF raw data'!F46 -> -1.6631559e-05 | F41: -7.331537274e-06 | G41: 1.923879435e-06 | H41: -1.665324655e-05 | J41: -3.828978857e-05 | K41: -7.914737287e-05 | L41: -7.276871267e-05 | M41: -0.0005934432338 | N41: 3.231839938e-08
A42: 19.33370667 | B42: ='DF raw data'!D47 -> -5.7713373e-06 | C42: ='DF raw data'!E47 -> 2.2013842e-06 | D42: ='DF raw data'!F47 -> -1.0563016e-05 | F42: -5.778863124e-06 | G42: 2.20922553e-06 | H42: -1.057679017e-05 | J42: -4.118002917e-05 | K42: -9.974315266e-05 | L42: -7.166379061e-05 | M42: -0.000629285162 | N42: 3.573510263e-08
A43: 19.83384667 | B43: ='DF raw data'!D48 -> -3.2691646e-06 | C43: ='DF raw data'!E48 -> 5.6502099e-06 | D43: ='DF raw data'!F48 -> -5.2805916e-07 | F43: -3.273427591e-06 | G43: 5.670335946e-06 | H43: -5.287477491e-07 | J43: -4.281720125e-05 | K43: -0.0001211577477 | L43: -6.882782879e-05 | M43: -0.0006637087123 | N43: 3.902131389e-08
A44: 20.33398667 | B44: ='DF raw data'!D49 -> -3.8391266e-07 | C44: ='DF raw data'!E49 -> -8.4918693e-06 | D44: ='DF raw data'!F49 -> 6.4009519e-06 | F44: -3.844132821e-07 | G44: -8.522117335e-06 | H44: 6.409298741e-06 | J44: -4.300946171e-05 | K44: -0.0001426684999 | L44: -7.309008056e-05 | M44: -0.0007002639852 | N44: 4.26183076e-08
A45: 20.83412667 | B45: ='DF raw data'!D50 -> -2.933743e-06 | C45: ='DF raw data'!E50 -> 1.4711374e-06 | D45: ='DF raw data'!F50 -> 5.8908781e-06 | F45: -2.937568601e-06 | G45: 1.476377591e-06 | H45: 5.898559805e-06 | J45: -4.447865727e-05 | K45: -0.0001649140555 | L45: -7.235168507e-05 | M45: -0.000736449957 | N45: 4.622587608e-08
A46: 21.33426667 | B46: ='DF raw data'!D51 -> -9.2170703e-06 | C46: ='DF raw data'!E51 -> 6.5680551e-06 | D46: ='DF raw data'!F51 -> -6.2415338e-06 | F46: -9.22908936e-06 | G46: 6.59145051e-06 | H46: -6.24967276e-06 | J46: -4.909449402e-05 | K46: -0.0001894681758 | L46: -6.905503701e-05 | M46: -0.0007709871432 | N46: 4.981631486e-08
A47: 21.83440667 | B47: ='DF raw data'!D52 -> -9.7700286e-06 | C47: ='DF raw data'!E52 -> -7.2095013e-06 | D47: ='DF raw data'!F52 -> -1.3876342e-05 | F47: -9.782768717e-06 | G47: -7.235181541e-06 | H47: -1.389443675e-05 | J47: -5.398724797e-05 | K47: -0.000216469358 | L47: -7.267364071e-05 | M47: -0.0008073341378 | N47: 5.391550281e-08
A48: 22.33454667 | B48: ='DF raw data'!D53 -> -1.2084627e-05 | C48: ='DF raw data'!E53 -> 1.1176888e-06 | D48: ='DF raw data'!F53 -> -9.9632298e-06 | F48: -1.210038535e-05 | G48: 1.121670007e-06 | H48: -9.976221852e-06 | J48: -6.00391347e-05 | K48: -0.0002464973308 | L48: -7.211264867e-05 | M48: -0.0008434005579 | N48: 5.83192014e-08
A49: 22.83468667 | B49: ='DF raw data'!D54 -> -1.1229367e-05 | C49: ='DF raw data'!E54 -> 4.9218227e-07 | D49: ='DF raw data'!F54 -> -5.7630668e-06 | F49: -1.124401009e-05 | G49: 4.939354231e-07 | H49: -5.770581839e-06 | J49: -6.566271391e-05 | K49: -0.0002793378805 | L49: -7.186561181e-05 | M49: -0.000879343425 | N49: 6.305865715e-08
A50: 23.33482667 | B50: ='DF raw data'!D55 -> -7.5712928e-06 | C50: ='DF raw data'!E55 -> -3.0132164e-06 | D50: ='DF raw data'!F55 -> -6.5255144e-06 | F50: -7.581165766e-06 | G50: -3.023949476e-06 | H50: -6.534023671e-06 | J50: -6.945435815e-05 | K50: -0.0003140747832 | L50: -7.33780099e-05 | M50: -0.0009160427029 | N50: 6.816420641e-08
A51: 23.83496667 | B51: ='DF raw data'!D56 -> -7.8455669e-06 | C51: ='DF raw data'!E56 -> 3.0389065e-06 | D51: ='DF raw data'!F56 -> -1.2372032e-06 | F51: -7.855797519e-06 | G51: 3.049731084e-06 | H51: -1.238816513e-06 | J51: -7.338335672e-05 | K51: -0.0003507767352 | L51: -7.185271739e-05 | M51: -0.000951979121 | N51: 7.343964814e-08
A52: 24.33510667 | B52: ='DF raw data'!D57 -> -1.421494e-05 | C52: ='DF raw data'!E57 -> 8.3559798e-06 | D52: ='DF raw data'!F57 -> 2.8042275e-06 | F52: -1.423347628e-05 | G52: 8.385743797e-06 | H52: 2.807884213e-06 | J52: -8.050208755e-05 | K52: -0.0003910390493 | L52: -6.765867149e-05 | M52: -0.0009858179289 | N52: 7.897033726e-08
A53: 24.83524667 | B53: ='DF raw data'!D58 -> -1.9871692e-05 | C53: ='DF raw data'!E58 -> 4.1431499e-06 | D53: ='DF raw data'!F58 -> -6.0514567e-06 | F53: -1.989760469e-05 | G53: 4.157907798e-06 | H53: -6.0593478e-06 | J53: -9.045367556e-05 | K53: -0.0004362785506 | L53: -6.557913549e-05 | M53: -0.001018616678 | N53: 8.521333003e-08
A54: 25.33538667 | B54: ='DF raw data'!D59 -> -2.0655269e-05 | C54: ='DF raw data'!E59 -> -5.154056e-06 | D54: ='DF raw data'!F59 -> -7.6038259e-06 | F54: -2.068220347e-05 | G54: -5.172414746e-06 | H54: -7.613741289e-06 | J54: -0.0001007976728 | K54: -0.0004866914987 | L54: -6.8166067e-05 | M54: -0.001052709255 | N54: 9.261879474e-08
A55: 25.83552667 | B55: ='DF raw data'!D60 -> -1.8614668e-05 | C55: ='DF raw data'!E60 -> -3.9043766e-06 | D55: ='DF raw data'!F60 -> 1.6218989e-06 | F55: -1.863894153e-05 | G55: -3.918283988e-06 | H55: 1.624013856e-06 | J55: -0.000110119753 | K55: -0.000541766792 | L55: -7.012575755e-05 | M55: -0.001087781951 | N55: 1.011431718e-07
A56: 26.33566667 | B56: ='DF raw data'!D61 -> -1.6912414e-05 | C56: ='DF raw data'!E61 -> 5.4558063e-06 | D56: ='DF raw data'!F61 -> 9.74862e-06 | F56: -1.693446779e-05 | G56: 5.47523988e-06 | H56: 9.7613322e-06 | J56: -0.0001185893577 | K56: -0.0006010780733 | L56: -6.738737108e-05 | M56: -0.001121485071 | N56: 1.104480232e-07
A57: 26.83580667 | B57: ='DF raw data'!D62 -> -1.4855807e-05 | C57: ='DF raw data'!E62 -> -3.7334562e-06 | D57: ='DF raw data'!F62 -> 8.6557275e-06 | F57: -1.487517897e-05 | G57: -3.74675477e-06 | H57: 8.667014569e-06 | J57: -0.0001260290297 | K57: -0.0006641102323 | L57: -6.926127301e-05 | M57: -0.001156125404 | N57: 1.207911386e-07
A58: 27.33594667 | B58: ='DF raw data'!D63 -> -1.4849724e-05 | C58: ='DF raw data'!E63 -> -1.9744862e-06 | D58: ='DF raw data'!F63 -> 5.3811391e-06 | F58: -1.486908804e-05 | G58: -1.981519319e-06 | H58: 5.388156105e-06 | J58: -0.0001334656554 | K58: -0.0007308617452 | L58: -7.025231008e-05 | M58: -0.001191261394 | N58: 1.321685576e-07
A59: 27.83608667 | B59: ='DF raw data'!D64 -> -1.5851376e-05 | C59: ='DF raw data'!E64 -> -1.9097738e-06 | D59: ='DF raw data'!F64 -> 8.3665518e-06 | F59: -1.587204619e-05 | G59: -1.916576414e-06 | H59: 8.377461784e-06 | J59: -0.0001414039006 | K59: -0.000801583492 | L59: -7.121086661e-05 | M59: -0.001226876797 | N59: 1.447050921e-07
A60: 28.33622667 | B60: ='DF raw data'!D65 -> -1.4335488e-05 | C60: ='DF raw data'!E65 -> 7.9582333e-06 | D60: ='DF raw data'!F65 -> 5.7479201e-06 | F60: -1.435418148e-05 | G60: 7.986580524e-06 | H60: 5.755415388e-06 | J60: -0.0001485830009 | K60: -0.0008758957941 | L60: -6.721645822e-05 | M60: -0.001260494436 | N60: 1.580062956e-07
A61: 28.83636667 | B61: ='DF raw data'!D66 -> -1.3840679e-05 | C61: ='DF raw data'!E66 -> 7.2265184e-06 | D61: ='DF raw data'!F66 -> 1.4780824e-06 | F61: -1.385872725e-05 | G61: 7.252259256e-06 | H61: 1.480009819e-06 | J61: -0.0001555143048 | K61: -0.0009536747185 | L61: -6.358931328e-05 | M61: -0.001292297995 | N61: 1.721243975e-07
A62: 29.33650667 | B62: ='DF raw data'!D67 -> -1.2511959e-05 | C62: ='DF raw data'!E67 -> -3.7745517e-06 | D62: ='DF raw data'!F67 -> 1.5322446e-06 | F62: -1.252827459e-05 | G62: -3.787996652e-06 | H62: 1.534242647e-06 | J62: -0.000161780196 | K62: -0.001034587466 | L62: -6.548384192e-05 | M62: -0.001325049084 | N62: 1.873591447e-07
A63: 29.83664667 | B63: ='DF raw data'!D68 -> -8.7782573e-06 | C63: ='DF raw data'!E68 -> -1.438348e-05 | D63: ='DF raw data'!F68 -> 1.5758341e-07 | F63: -8.789704148e-06 | G63: -1.443471395e-05 | H63: 1.577888988e-07 | J63: -0.0001661762787 | K63: -0.00111769887 | L63: -7.270321976e-05 | M63: -0.001361410873 | N63: 2.038139076e-07
A64: 30.33678667 | B64: ='DF raw data'!D69 -> -3.10109e-06 | C64: ='DF raw data'!E69 -> -3.5892213e-06 | D64: ='DF raw data'!F69 -> -1.9736174e-06 | F64: -3.105133821e-06 | G64: -3.602006105e-06 | H64: -1.976190997e-06 | J64: -0.0001677292803 | K64: -0.001201586992 | L64: -7.450472709e-05 | M64: -0.001398673667 | N64: 2.206606563e-07
A65: 30.83692667 | B65: ='DF raw data'!D70 -> -3.880185e-06 | C65: ='DF raw data'!E70 -> -2.3205962e-06 | D65: ='DF raw data'!F70 -> 4.0430759e-06 | F65: -3.885244761e-06 | G65: -2.328862163e-06 | H65: 4.048348071e-06 | J65: -0.0001696724466 | K65: -0.00128644697 | L65: -7.566948422e-05 | M65: -0.001436519003 | N65: 2.379227933e-07
A66: 31.33706667 | B66: ='DF raw data'!D71 -> -8.4307721e-06 | C66: ='DF raw data'!E71 -> -5.7672864e-06 | D66: ='DF raw data'!F71 -> -1.8343846e-06 | F66: -8.441765827e-06 | G66: -5.787829472e-06 | H66: -1.836776638e-06 | J66: -0.0001738945114 | K66: -0.00137341857 | L66: -7.856420925e-05 | M66: -0.001475812106 | N66: 2.56133709e-07
A67: 31.83720667 | B67: ='DF raw data'!D72 -> -9.8133496e-06 | C67: ='DF raw data'!E72 -> 6.2979989e-06 | D67: ='DF raw data'!F72 -> -4.804896e-06 | F67: -9.826146208e-06 | G67: 6.32043237e-06 | H67: -4.811161584e-06 | J67: -0.0001788089602 | K67: -0.001462848084 | L67: -7.54031082e-05 | M67: -0.001513524217 | N67: 2.749681176e-07
A68: 32.33734667 | B68: ='DF raw data'!D73 -> -3.7069735e-06 | C68: ='DF raw data'!E73 -> 7.2696153e-06 | D68: ='DF raw data'!F73 -> 1.5397679e-06 | F68: -3.711807393e-06 | G68: 7.295509667e-06 | H68: 1.541775757e-06 | J68: -0.0001806653835 | K68: -0.001553206069 | L68: -7.1754332e-05 | M68: -0.001549411428 | N68: 2.938677405e-07
A69: 32.83748667 | B69: ='DF raw data'!D74 -> -4.6097598e-06 | C69: ='DF raw data'!E74 -> -1.5411146e-06 | D69: ='DF raw data'!F74 -> 6.0866159e-06 | F69: -4.615770927e-06 | G69: -1.54660405e-06 | H69: 6.094552847e-06 | J69: -0.0001829739152 | K69: -0.001644718643 | L69: -7.252785055e-05 | M69: -0.001585685507 | N69: 3.132430355e-07
A70: 33.33762667 | B70: ='DF raw data'!D75 -> -1.1269283e-05 | C70: ='DF raw data'!E75 -> -3.5003591e-06 | D70: ='DF raw data'!F75 -> 8.3324858e-06 | F70: -1.128397815e-05 | G70: -3.512827378e-06 | H70: 8.343351361e-06 | J70: -0.000188617484 | K70: -0.001739053791 | L70: -7.428475603e-05 | M70: -0.001622838285 | N70: 3.337961789e-07
A71: 33.83776667 | B71: ='DF raw data'!D76 -> -1.2287423e-05 | C71: ='DF raw data'!E76 -> -5.8845694e-06 | D71: ='DF raw data'!F76 -> -2.2038869e-06 | F71: -1.23034458e-05 | G71: =(1-$G$1*($B$2-$G$2))*C71*$M$2/$M$1 -> -5.905530234e-06 | H71: -2.206760769e-06 | J71: -0.0001947709294 | K71: -0.001836466524 | L71: -7.723834792e-05 | M71: -0.001661468273 | N71: 3.557530637e-07
A72: =A71+$B$1 -> 34.33790667 | B72: ='DF raw data'!D77 -> -1.1975895e-05 | C72: ='DF raw data'!E77 -> -1.246066e-05 | D72: ='DF raw data'!F77 -> 4.2738111e-06 | F72: -1.199151157e-05 | G72: -1.250504487e-05 | H72: 4.27938415e-06 | J72: =F72*$B$1+J71 -> -0.000200768364 | K72: =J72*$B$1+K71 -> -0.001936878813 | L72: =G72*$B$1+L71 -> -8.349262106e-05 | M72: =L72*$B$1+M71 -> -0.001703226272 | N72: =(J72^2+L72^2)*$B$1+N71 -> 3.793991597e-07
A73: 34.83804667 | B73: ='DF raw data'!D78 -> -1.3046218e-05 | C73: ='DF raw data'!E78 -> -3.4429854e-06 | D73: ='DF raw data'!F78 -> 5.2899568e-06 | F73: -1.306323027e-05 | G73: -3.455249313e-06 | H73: 5.296854904e-06 | J73: -0.000207301808 | K73: -0.002040558739 | L73: -8.522072945e-05 | M73: -0.001745848568 | N73: 4.045244989e-07
A74: 35.33818667 | B74: ='DF raw data'!D79 -> -1.3786546e-05 | C74: ='DF raw data'!E79 -> -3.6586039e-06 | D74: ='DF raw data'!F79 -> -5.1619563e-06 | F74: -1.380452366e-05 | G74: -3.671635846e-06 | H74: -5.168687491e-06 | J74: -0.0002142060024 | K74: -0.00214769173 | L74: -8.705706141e-05 | M74: -0.001789389287 | N74: 4.312635555e-07
A75: 35.83832667 | B75: ='DF raw data'!D80 -> -9.1031288e-06 | C75: ='DF raw data'!E80 -> 3.9575525e-06 | D75: ='DF raw data'!F80 -> 4.149486e-07 | F75: -9.11499928e-06 | G75: 3.971649301e-06 | H75: 4.15489693e-07 | J75: -0.0002187647782 | K75: -0.002257104746 | L75: -8.507068072e-05 | M75: -0.001831936537 | N75: 4.588187932e-07
A76: 36.33846667 | B76: ='DF raw data'!D81 -> 5.2495943e-05 | C76: ='DF raw data'!E81 -> -4.0592854e-06 | D76: ='DF raw data'!F81 -> 8.2549386e-06 | F76: 5.256439771e-05 | G76: -4.073744573e-06 | H76: 8.26570304e-06 | J76: -0.0001924752203 | K76: -0.002353369302 | L76: -8.710812333e-05 | M76: -0.001875502794 | N76: 4.811423099e-07
A77: 36.83860667 | B77: ='DF raw data'!D82 -> 0.00016552913 | C77: ='DF raw data'!E82 -> -4.609406e-06 | D77: ='DF raw data'!F82 -> 9.6549056e-06 | F77: 0.00016574498 | G77: -4.625824703e-06 | H77: 9.667495597e-06 | J77: -0.000109579526 | K77: -0.002408174407 | L77: -8.94216833e-05 | M77: -0.001920226154 | N77: 4.911470654e-07
A78: 37.33874667 | B78: ='DF raw data'!D83 -> 0.00019303076 | C78: ='DF raw data'!E83 -> 3.3752765e-06 | D78: ='DF raw data'!F83 -> 5.0401877e-06 | F78: 0.0001932824721 | G78: 3.387299234e-06 | H78: 5.046760105e-06 | J78: -1.29112304e-05 | K78: -0.002414631829 | L78: -8.772755946e-05 | M78: -0.001964102216 | N78: 4.950795785e-07
A79: 37.83888667 | B79: ='DF raw data'!D84 -> 0.00014605938 | C79: ='DF raw data'!E84 -> 1.0768076e-05 | D79: ='DF raw data'!F84 -> 8.9785391e-07 | F79: 0.0001462498414 | G79: 1.080643188e-05 | H79: 8.990247115e-07 | J79: 6.023416529e-05 | K79: -0.002384506314 | L79: -8.232283062e-05 | M79: -0.002005275156 | N79: 5.002836367e-07
A80: 38.33902667 | B80: ='DF raw data'!D85 -> 9.8236276e-05 | C80: ='DF raw data'!E85 -> 6.1988621e-06 | D80: ='DF raw data'!F85 -> -4.2915626e-06 | F80: 9.83643761e-05 | G80: 6.220942445e-06 | H80: -4.297158798e-06 | J80: 0.0001094301244 | K80: -0.002329775931 | L80: -7.921148847e-05 | M80: -0.00204489199 | N80: 5.094108977e-07
A81: 38.83916667 | B81: ='DF raw data'!D86 -> 6.3088482e-05 | C81: ='DF raw data'!E86 -> 1.3945511e-05 | D81: ='DF raw data'!F86 -> -8.0965247e-06 | F81: 6.317074938e-05 | G81: 1.399518491e-05 | H81: -8.107082568e-06 | J81: 0.0001410243429 | K81: -0.002259244017 | L81: -7.221193669e-05 | M81: -0.002081008068 | N81: 5.219656266e-07
A82: 39.33930667 | B82: ='DF raw data'!D87 -> 3.9457107e-05 | C82: ='DF raw data'!E87 -> 8.9006289e-06 | D82: ='DF raw data'!F87 -> -1.9742511e-07 | F82: 3.950855907e-05 | G82: 8.932332937e-06 | H82: -1.976825523e-07 | J82: 0.0001607841537 | K82: -0.00217882943 | L82: -6.774451969e-05 | M82: -0.002114889812 | N82: 5.371903203e-07
A83: 39.83944667 | B83: ='DF raw data'!D88 -> 2.0710311e-05 | C83: ='DF raw data'!E88 -> 9.9669787e-06 | D83: ='DF raw data'!F88 -> 5.3878621e-06 | F83: 2.073731725e-05 | G83: 1.000248107e-05 | H83: 5.394887872e-06 | J83: 0.0001711557155 | K83: -0.00209322761 | L83: -6.274187881e-05 | M83: -0.002146269536 | N83: 5.538103838e-07
A84: 40.33958667 | B84: ='DF raw data'!D89 -> 1.0022526e-05 | C84: ='DF raw data'!E89 -> 8.211211e-06 | D84: ='DF raw data'!F89 -> -1.1856894e-06 | F84: 1.003559537e-05 | G84: 8.240459331e-06 | H84: -1.187235539e-06 | J84: 0.0001761749182 | K84: -0.002005115487 | L84: -5.862049548e-05 | M84: -0.00217558799 | N84: 5.710521923e-07
A85: 40.83972667 | B85: ='DF raw data'!D90 -> 1.0914428e-05 | C85: ='DF raw data'!E90 -> -9.7527563e-06 | D85: ='DF raw data'!F90 -> 1.4027326e-06 | F85: 1.092866041e-05 | G85: -9.787495614e-06 | H85: 1.404561763e-06 | J85: 0.0001816407784 | K85: -0.001914269668 | L85: -6.351561354e-05 | M85: -0.002207354689 | N85: 5.895711789e-07
A86: 41.33986667 | B86: ='DF raw data'!D91 -> 1.8238654e-05 | C86: ='DF raw data'!E91 -> -6.7525129e-06 | D86: ='DF raw data'!F91 -> -3.7553393e-06 | F86: 1.82624372e-05 | G86: -6.776565349e-06 | H86: -3.760236262e-06 | J86: 0.0001907745538 | K86: -0.001818855683 | L86: -6.690484493e-05 | M86: -0.002240816478 | N86: 6.100124952e-07
A87: 41.84000667 | B87: ='DF raw data'!D92 -> 1.7172057e-05 | C87: ='DF raw data'!E92 -> 1.8572756e-06 | D87: ='DF raw data'!F92 -> 1.0327567e-07 | F87: =(1-$G$1*($B$2-$G$2))*B87 -> 1.719444936e-05 | G87: 1.863891215e-06 | H87: 1.034103415e-07 | J87: 0.0001993741857 | K87: -0.001719140677 | L87: -6.597263838e-05 | M87: -0.002273812034 | N87: 6.32069897e-07
A88: 42.34014667 | B88: ='DF raw data'!D93 -> 5.3733634e-06 | C88: ='DF raw data'!E93 -> 2.4718411e-06 | D88: ='DF raw data'!F93 -> 4.7843861e-07 | F88: 5.380370266e-06 | G88: 2.480645797e-06 | H88: 4.790624939e-07 | J88: 0.0002020651241 | K88: -0.001618079826 | L88: -6.473196819e-05 | M88: -0.00230618708 | N88: 6.545864709e-07
A89: 42.84028667 | B89: ='DF raw data'!D94 -> -7.0252904e-06 | C89: ='DF raw data'!E94 -> -3.3786732e-06 | D89: ='DF raw data'!F94 -> 1.5884295e-06 | F89: -7.034451379e-06 | G89: -3.390708033e-06 | H89: 1.590500812e-06 | J89: 0.0001985469135 | K89: -0.001518778573 | L89: -6.64277969e-05 | M89: -0.002339410279 | N89: 6.765093721e-07
A90: 43.34042667 | B90: ='DF raw data'!D95 -> -1.3083398e-05 | C90: ='DF raw data'!E95 -> -3.0785959e-06 | D90: ='DF raw data'!F95 -> 5.2826372e-06 | F90: -1.310045875e-05 | G90: -3.089561857e-06 | H90: 5.289525759e-06 | J90: 0.0001919948501 | K90: -0.001422754269 | L90: -6.797301037e-05 | M90: -0.0023734063 | N90: 6.97256356e-07
A91: 43.84056667 | B91: ='DF raw data'!D96 -> -1.2913591e-05 | C91: ='DF raw data'!E96 -> 3.5333876e-06 | D91: ='DF raw data'!F96 -> 1.9840816e-06 | F91: -1.293043032e-05 | G91: 3.545973525e-06 | H91: 1.986668842e-06 | J91: 0.0001855278247 | K91: -0.001329964382 | L91: -6.619952717e-05 | M91: -0.002406515331 | N91: 7.16663264e-07
A92: 44.34070667 | B92: ='DF raw data'!D97 -> -1.4588401e-05 | C92: ='DF raw data'!E97 -> 5.1972247e-06 | D92: ='DF raw data'!F97 -> -3.3284589e-06 | F92: -1.460742427e-05 | G92: 5.215737213e-06 | H92: -3.33279921e-06 | J92: 0.0001782220675 | K92: -0.001240828397 | L92: -6.359092836e-05 | M92: -0.002438319698 | N92: 7.345717327e-07
A93: 44.84084667 | B93: ='DF raw data'!D98 -> -1.3366549e-05 | C93: ='DF raw data'!E98 -> 4.5826591e-06 | D93: ='DF raw data'!F98 -> -9.5430141e-06 | F93: -1.338397898e-05 | G93: 4.59898253e-06 | H93: -9.55545819e-06 | J93: 0.0001715282043 | K93: -0.001155040281 | L93: -6.129079324e-05 | M93: -0.002468973676 | N93: 7.511656208e-07
A94: 45.34098667 | B94: ='DF raw data'!D99 -> -6.988445e-06 | C94: ='DF raw data'!E99 -> 7.8258736e-06 | D94: ='DF raw data'!F99 -> -8.0667078e-06 | F94: -6.997557932e-06 | G94: 7.853749359e-06 | H94: -8.077226787e-06 | J94: 0.0001680284456 | K94: -0.001071002535 | L94: -5.736281903e-05 | M94: -0.002497663116 | N94: 7.669320599e-07
A95: 45.84112667 | B95: ='DF raw data'!D100 -> -4.4249359e-06 | C95: ='DF raw data'!E100 -> 1.2788697e-05 | D95: ='DF raw data'!F100 -> -4.8030915e-06 | F95: -4.430706016e-06 | G95: 1.283425033e-05 | H95: -4.809354731e-06 | J95: 0.0001658124723 | K95: -0.0009880730847 | L95: -5.094389707e-05 | M95: -0.002523142197 | N95: 7.819808007e-07
A96: 46.34126667 | B96: ='DF raw data'!D101 -> -8.5445099e-06 | C96: ='DF raw data'!E101 -> 1.3578577e-06 | D96: ='DF raw data'!F101 -> -5.5687406e-06 | F96: -8.555651941e-06 | G96: 1.362694389e-06 | H96: -5.576002238e-06 | J96: 0.0001615334486 | K96: -0.0009072837457 | L96: -5.02623591e-05 | M96: -0.002548280413 | N96: 7.962944873e-07
A97: 46.84140667 | B97: ='DF raw data'!D102 -> -1.4853405e-05 | C97: ='DF raw data'!E102 -> 1.0692546e-06 | D97: ='DF raw data'!F102 -> -1.0775977e-06 | F97: -1.487277384e-05 | G97: 1.073063285e-06 | H97: -1.079002887e-06 | J97: 0.0001540949795 | K97: -0.0008302146827 | L97: -4.972567723e-05 | M97: -0.002573150213 | N97: 8.094071106e-07
A98: 47.34154667 | B98: ='DF raw data'!D103 -> -1.7184419e-05 | C98: ='DF raw data'!E103 -> 1.0296944e-05 | D98: ='DF raw data'!F103 -> 2.9143855e-06 | F98: -1.720682748e-05 | G98: 1.033362171e-05 | H98: 2.918185859e-06 | J98: 0.0001454891568 | K98: -0.0007574497358 | L98: -4.455741967e-05 | M98: -0.002595435161 | N98: 8.209865811e-07
A99: 47.84168667 | B99: ='DF raw data'!D104 -> -1.2026696e-05 | C99: ='DF raw data'!E104 -> 5.7117097e-07 | D99: ='DF raw data'!F104 -> -1.7311534e-06 | F99: -1.204237881e-05 | G99: 5.732054808e-07 | H99: -1.733410824e-06 | J99: 0.0001394662814 | K99: -0.0006876970699 | L99: -4.427073668e-05 | M99: -0.002617576727 | N99: 8.316949495e-07
A100: 48.34182667 | B100: ='DF raw data'!D105 -> -7.9802739e-06 | C100: ='DF raw data'!E105 -> 4.2813804e-06 | D100: ='DF raw data'!F105 -> -1.4285463e-06 | F100: -7.990680177e-06 | G100: 4.296630675e-06 | H100: -1.430409124e-06 | J100: 0.0001354698226 | K100: -0.0006199431928 | L100: -4.212181981e-05 | M100: -0.002638643534 | N100: 8.417609275e-07
A101: 48.84196667 | B101: ='DF raw data'!D106 -> -9.1210859e-06 | C101: ='DF raw data'!E106 -> 1.746264e-06 | D101: ='DF raw data'!F106 -> -1.5066028e-06 | F101: -9.132979796e-06 | G101: 1.752484192e-06 | H101: -1.50856741e-06 | J101: 0.0001309020541 | K101: -0.0005544738394 | L101: -4.124533237e-05 | M101: -0.002659271975 | N101: 8.511818272e-07
A102: 49.34210667 | B102: ='DF raw data'!D107 -> -1.3409215e-05 | C102: ='DF raw data'!E107 -> -6.4903284e-06 | D102: ='DF raw data'!F107 -> -1.6378465e-06 | F102: -1.342670062e-05 | G102: -6.513446947e-06 | H102: -1.639982252e-06 | J102: 0.0001241868241 | K102: -0.0004923630412 | L102: -4.450296773e-05 | M102: -0.002681529689 | N102: 8.598857043e-07
A103: 49.84224667 | B103: ='DF raw data'!D108 -> -1.9571384e-05 | C103: ='DF raw data'!E108 -> -5.0114218e-06 | D103: ='DF raw data'!F108 -> -1.6108963e-06 | F103: -1.959690508e-05 | G103: -5.029272483e-06 | H103: -1.612996909e-06 | J103: 0.000114385628 | K103: -0.0004351542133 | L103: -4.701830806e-05 | M103: -0.002705045426 | N103: 8.675352422e-07
A104: 50.34238667 | B104: ='DF raw data'!D109 -> -1.8470415e-05 | C104: ='DF raw data'!E109 -> -6.5637137e-06 | D104: ='DF raw data'!F109 -> -8.6302161e-06 | F104: -1.849450042e-05 | G104: -6.587093646e-06 | H104: -8.641469902e-06 | J104: 0.0001051357885 | K104: -0.0003825716 | L104: -5.031277708e-05 | M104: -0.002730208858 | N104: 8.743295989e-07
A105: 50.84252667 | B105: ='DF raw data'!D110 -> -1.1098138e-05 | C105: ='DF raw data'!E110 -> 5.0453846e-06 | D105: ='DF raw data'!F110 -> -8.8077932e-06 | F105: -1.111260997e-05 | G105: 5.063356258e-06 | H105: -8.819278562e-06 | J105: 9.957792777e-05 | K105: -0.0003327686952 | L105: -4.778039008e-05 | M105: -0.002754105742 | N105: 8.804306714e-07
A106: 51.34266667 | B106: ='DF raw data'!D111 -> -5.3351873e-06 | C106: ='DF raw data'!E111 -> 3.6451997e-06 | D106: ='DF raw data'!F111 -> -6.477595e-06 | F106: -5.342144384e-06 | G106: 3.6581839e-06 | H106: -6.486041784e-06 | J106: 9.690610768e-05 | K106: -0.0002843020745 | L106: -4.595078599e-05 | M106: -0.002777087568 | N106: 8.861834159e-07
A107: 51.84280667 | B107: ='DF raw data'!D112 -> -6.3931116e-06 | C107: ='DF raw data'!E112 -> -2.9328935e-06 | D107: ='DF raw data'!F112 -> -7.3124755e-07 | F107: -6.401448218e-06 | G107: -2.943340466e-06 | H107: -7.322010968e-07 | J107: 9.370448737e-05 | K107: -0.0002374367122 | L107: -4.742286829e-05 | M107: -0.002800805642 | N107: 8.916996897e-07
A108: 52.34294667 | B108: ='DF raw data'!D113 -> -1.0176536e-05 | C108: ='DF raw data'!E113 -> -6.2801805e-06 | D108: ='DF raw data'!F113 -> 4.8970987e-06 | F108: -1.01898062e-05 | G108: -6.302550501e-06 | H108: 4.903484517e-06 | J108: 8.860815769e-05 | K108: -0.0001931202282 | L108: -5.057502589e-05 | M108: -0.002826100235 | N108: 8.969057664e-07
A109: 52.84308667 | B109: ='DF raw data'!D114 -> -1.0561682e-05 | C109: ='DF raw data'!E114 -> -1.2343912e-05 | D109: ='DF raw data'!F114 -> 4.7740332e-06 | F109: -1.057545443e-05 | G109: -1.238788101e-05 | H109: 4.780258539e-06 | J109: 8.331894991e-05 | K109: -0.0001514490886 | L109: -5.67707007e-05 | M109: -0.002854493533 | N109: 9.019896695e-07
A110: 53.34322667 | B110: ='DF raw data'!D115 -> -7.0294232e-06 | C110: ='DF raw data'!E115 -> -7.9165311e-06 | D110: ='DF raw data'!F115 -> 8.5811926e-06 | F110: -7.038589568e-06 | G110: -7.944729781e-06 | H110: 8.592382475e-06 | J110: 7.979866972e-05 | K110: -0.0001115385819 | L110: -6.074417785e-05 | M110: -0.002884874127 | N110: 9.07019919e-07
A111: 53.84336667 | B111: ='DF raw data'!D116 -> -5.4141606e-06 | C111: ='DF raw data'!E116 -> -9.1475304e-06 | D111: ='DF raw data'!F116 -> 2.8872316e-06 | F111: -5.421220665e-06 | G111: -9.1801139e-06 | H111: 2.89099655e-06 | J111: 7.708730042e-05 | K111: -7.298413948e-05 | L111: -6.533552002e-05 | M111: -0.002917551034 | N111: 9.121269396e-07
A112: 54.34350667 | B112: ='DF raw data'!D117 -> -8.4949752e-06 | C112: ='DF raw data'!E117 -> -5.2238379e-06 | D112: ='DF raw data'!F117 -> -2.7829803e-06 | F112: -8.506052648e-06 | G112: -5.242445209e-06 | H112: -2.786609306e-06 | J112: 7.283308325e-05 | K112: -3.655740123e-05 | L112: -6.795747657e-05 | M112: -0.002951539286 | N112: 9.170897671e-07
A113: 54.84364667 | B113: ='DF raw data'!D118 -> -1.0369567e-05 | C113: ='DF raw data'!E118 -> 4.8117536e-06 | D113: ='DF raw data'!F118 -> 8.6555965e-06 | F113: -1.038308892e-05 | G113: 4.828893065e-06 | H113: 8.666883398e-06 | J113: 6.764008516e-05 | K113: -2.727889035e-06 | L113: -6.554235399e-05 | M113: -0.002984319639 | N113: 9.215264997e-07
A114: 55.34378667 | B114: ='DF raw data'!D119 -> -1.3635148e-05 | C114: ='DF raw data'!E119 -> -2.4900487e-06 | D114: ='DF raw data'!F119 -> 1.0659206e-05 | F114: -1.365292823e-05 | G114: -2.498918253e-06 | H114: 1.06731056e-05 | J114: 6.081170963e-05 | K114: 2.768647942e-05 | L114: -6.679216297e-05 | M114: -0.003017725071 | N114: 9.256072705e-07
A115: 55.84392667 | B115: ='DF raw data'!D120 -> -1.6426889e-05 | C115: ='DF raw data'!E120 -> 1.157958e-05 | D115: ='DF raw data'!F120 -> 4.3261252e-06 | F115: -1.644830966e-05 | G115: 1.162082646e-05 | H115: 4.331766467e-06 | J115: 5.258525204e-05 | K115: 5.398646737e-05 | L115: -6.098012282e-05 | M115: -0.00304822367 | N115: 9.288500703e-07
A116: 56.34406667 | B116: ='DF raw data'!D121 -> -1.6881855e-05 | C116: ='DF raw data'!E121 -> 1.3570981e-05 | D116: ='DF raw data'!F121 -> -1.7804116e-06 | F116: -1.690386894e-05 | G116: 1.361932083e-05 | H116: -1.782733257e-06 | J116: 4.413095103e-05 | K116: 7.605812122e-05 | L116: -5.41685557e-05 | M116: -0.003075315531 | N116: 9.312916404e-07
A117: 56.84420667 | B117: ='DF raw data'!D122 -> -1.7628645e-05 | C117: ='DF raw data'!E122 -> -7.0986323e-07 | D117: ='DF raw data'!F122 -> -1.6376573e-06 | F117: -1.765163275e-05 | G117: -7.123917626e-07 | H117: -1.639792805e-06 | J117: 3.530266342e-05 | K117: 9.37143953e-05 | L117: -5.452485132e-05 | M117: -0.00310258559 | N117: 9.334018498e-07
A118: 57.34434667 | B118: ='DF raw data'!D123 -> -1.4595676e-05 | C118: ='DF raw data'!E123 -> 2.5125364e-06 | D118: ='DF raw data'!F123 -> 1.6546256e-08 | F118: -1.461470876e-05 | G118: 2.521486054e-06 | H118: 1.656783232e-08 | J118: 2.799326298e-05 | K118: 0.0001077149459 | L118: -5.326375528e-05 | M118: -0.003129224925 | N118: 9.352126819e-07
A119: 57.84448667 | B119: ='DF raw data'!D124 -> -9.9438366e-06 | C119: ='DF raw data'!E124 -> 8.3192872e-06 | D119: ='DF raw data'!F124 -> -4.2995516e-06 | F119: -9.956803363e-06 | G119: 8.348920498e-06 | H119: -4.305158215e-06 | J119: 2.301346735e-05 | K119: 0.0001192249014 | L119: -4.908812618e-05 | M119: -0.00315377586 | N119: 9.366827253e-07
A120: 58.34462667 | B120: ='DF raw data'!D125 -> -1.1232234e-05 | C120: ='DF raw data'!E125 -> 1.3477448e-05 | D120: ='DF raw data'!F125 -> -3.8260177e-06 | F120: -1.124688083e-05 | G120: 1.352545466e-05 | H120: -3.831006827e-06 | J120: 1.738845237e-05 | K120: 0.000127921562 | L120: -4.232350529e-05 | M120: -0.003174943538 | N120: 9.377298371e-07
A121: 58.84476667 | B121: ='DF raw data'!D126 -> -1.2337277e-05 | C121: ='DF raw data'!E126 -> 1.1567038e-05 | D121: ='DF raw data'!F126 -> -4.2316896e-07 | F121: -1.235336481e-05 | G121: 1.160823979e-05 | H121: -4.237207723e-07 | J121: 1.121004049e-05 | K121: 0.0001335281516 | L121: -3.651776024e-05 | M121: -0.003193207531 | N121: 9.384596473e-07
A122: 59.34490667 | B122: ='DF raw data'!D127 -> -8.2281804e-06 | C122: ='DF raw data'!E127 -> 8.7562612e-06 | D122: ='DF raw data'!F127 -> 4.4129129e-06 | F122: -8.238909947e-06 | G122: 8.787450999e-06 | H122: 4.418667338e-06 | J122: 7.089432071e-06 | K122: 0.0001370738602 | L122: -3.21228045e-05 | M122: -0.00320927343 | N122: 9.390008661e-07
A123: 59.84504667 | B123: ='DF raw data'!D128 -> -6.9042039e-06 | C123: ='DF raw data'!E128 -> 1.3804068e-06 | D123: ='DF raw data'!F128 -> 8.651813e-06 | F123: -6.913206982e-06 | G123: 1.385323809e-06 | H123: 8.663094964e-06 | J123: 3.631860731e-06 | K123: 0.000138890299 | L123: -3.142994865e-05 | M123: -0.003224992805 | N123: 9.395015223e-07
A124: 60.34518667 | B124: ='DF raw data'!D129 -> -5.8631745e-06 | C124: ='DF raw data'!E129 -> -1.6837483e-06 | D124: ='DF raw data'!F129 -> 5.7364678e-06 | F124: -5.87082008e-06 | G124: -1.689745811e-06 | H124: 5.743948154e-06 | J124: 6.956287766e-07 | K124: 0.0001392382108 | L124: -3.227505812e-05 | M124: -0.003241134852 | N124: 9.400227498e-07
A125: 60.84532667 | B125: ='DF raw data'!D130 -> -4.6016107e-06 | C125: ='DF raw data'!E130 -> -7.1746767e-06 | D125: ='DF raw data'!F130 -> -1.1213262e-06 | F125: -4.6076112e-06 | G125: -7.200232896e-06 | H125: -1.122788409e-06 | J125: -1.608821889e-06 | K125: 0.0001384335746 | L125: -3.58761826e-05 | M125: -0.003259077966 | N125: 9.406677747e-07
A126: 61.34546667 | B126: ='DF raw data'!D131 -> -6.0105563e-06 | C126: ='DF raw data'!E131 -> -2.1378118e-07 | D126: ='DF raw data'!F131 -> 2.0146406e-06 | F126: -6.018394065e-06 | G126: -2.145426685e-07 | H126: 2.017267691e-06 | J126: -4.618861497e-06 | K126: 0.0001361234972 | L126: -3.598348397e-05 | M126: -0.003277074746 | N126: 9.413260315e-07
A127: 61.84560667 | B127: ='DF raw data'!D132 -> -6.2657532e-06 | C127: ='DF raw data'!E132 -> 2.012051e-06 | D127: ='DF raw data'!F132 -> 2.507936e-06 | F127: -6.273923742e-06 | G127: 2.019217925e-06 | H127: 2.511206349e-06 | J127: -7.756701717e-06 | K127: 0.0001322440604 | L127: -3.497359232e-05 | M127: -0.003294566439 | N127: 9.419678705e-07
A128: 62.34574667 | B128: ='DF raw data'!D133 -> -1.3702123e-06 | C128: ='DF raw data'!E133 -> 3.0338363e-06 | D128: ='DF raw data'!F133 -> 3.9889574e-06 | F128: -1.371999057e-06 | G128: 3.044642824e-06 | H128: 3.994159e-06 | J128: -8.442893326e-06 | K128: 0.0001280214318 | L128: -3.345084465e-05 | M128: -0.003311296544 | N128: 9.425631578e-07
A129: 62.84588667 | B129: ='DF raw data'!D134 -> 1.3224013e-06 | C129: ='DF raw data'!E134 -> 4.3583677e-06 | D129: ='DF raw data'!F134 -> 7.29139e-07 | F129: 1.324125711e-06 | G129: 4.373892204e-06 | H129: 7.300897973e-07 | J129: -7.780645093e-06 | K129: 0.0001241300199 | L129: -3.126328621e-05 | M129: -0.003326932564 | N129: 9.430822689e-07
A130: 63.34602667 | B130: ='DF raw data'!D135 -> -5.5688183e-06 | C130: ='DF raw data'!E135 -> -3.2145672e-07 | D130: ='DF raw data'!F135 -> -3.5904807e-06 | F130: -5.576080039e-06 | G130: -3.226017487e-07 | H130: -3.595162687e-06 | J130: -1.056946576e-05 | K130: 0.0001188438073 | L130: -3.142463225e-05 | M130: -0.00334264928 | N130: 9.436320333e-07
A131: 63.84616667 | B131: ='DF raw data'!D136 -> -1.1842338e-05 | C131: ='DF raw data'!E136 -> -5.8077153e-06 | D131: ='DF raw data'!F136 -> -6.3243924e-06 | F131: -1.185778041e-05 | G131: -5.82840238e-06 | H131: -6.332639408e-06 | J131: -1.650001606e-05 | K131: 0.0001105914893 | L131: -3.433964941e-05 | M131: -0.003359823912 | N131: 9.443579676e-07
A132: 64.34630667 | B132: ='DF raw data'!D137 -> -7.0405117e-06 | C132: ='DF raw data'!E137 -> 3.8481426e-06 | D132: ='DF raw data'!F137 -> -3.3058307e-06 | F132: -7.049692527e-06 | G132: 3.861849683e-06 | H132: -3.310141503e-06 | J132: -2.002584928e-05 | K132: 0.000100575761 | L132: -3.240818391e-05 | M132: -0.003376032541 | N132: 9.450838333e-07
A133: 64.84644667 | B133: ='DF raw data'!D138 -> -1.5254441e-08 | C133: ='DF raw data'!E138 -> 1.3957386e-05 | D133: ='DF raw data'!F138 -> 1.1031086e-06 | F133: -1.527433279e-08 | G133: 1.40071022e-05 | H133: 1.104547054e-06 | J133: -2.003348858e-05 | K133: 9.055621204e-05 | L133: -2.540267182e-05 | M133: -0.003388737433 | N133: 9.45607298e-07
A134: 65.34658667 | B134: ='DF raw data'!D139 -> 6.1593269e-06 | C134: ='DF raw data'!E139 -> -2.5085951e-06 | D134: ='DF raw data'!F139 -> 2.653557e-06 | F134: 6.167358662e-06 | G134: -2.517530715e-06 | H134: 2.657017238e-06 | J134: -1.694894582e-05 | K134: 8.207936628e-05 | L134: -2.666178963e-05 | M134: -0.003402072061 | N134: 9.461064966e-07
A135: 65.84672667 | B135: ='DF raw data'!D140 -> 4.5811717e-06 | C135: ='DF raw data'!E140 -> -3.9453384e-06 | D135: ='DF raw data'!F140 -> -1.8443673e-06 | F135: 4.587145548e-06 | G135: =(1-$G$1*($B$2-$G$2))*C135*$M$2/$M$1 -> -3.959391694e-06 | H135: -1.846772355e-06 | J135: -1.465473085e-05 | K135: 7.47499492e-05 | L135: -2.864203979e-05 | M135: -0.00341639709 | N135: 9.466242053e-07
A136: =A135+$B$1 -> 66.34686667 | B136: ='DF raw data'!D141 -> -7.2316075e-06 | C136: ='DF raw data'!E141 -> 2.0328655e-06 | D136: ='DF raw data'!F141 -> -4.2048478e-06 | F136: -7.241037516e-06 | G136: 2.040106566e-06 | H136: -4.210330922e-06 | J136: =F136*$B$1+J135 -> -1.827626335e-05 | K136: =J136*$B$1+K135 -> 6.560925884e-05 | L136: =G136*$B$1+L135 -> -2.762170089e-05 | M136: =L136*$B$1+M135 -> -0.003430211808 | N136: =(J136^2+L136^2)*$B$1+N135 -> 9.47172849e-07
A137: 66.84700667 | B137: ='DF raw data'!D142 -> -1.1828251e-05 | C137: ='DF raw data'!E142 -> -3.7371924e-06 | D137: ='DF raw data'!F142 -> 1.0992589e-07 | F137: -1.184367504e-05 | G137: -3.750504278e-06 | H137: 1.100692334e-07 | J137: -2.419975898e-05 | K137: 5.350599139e-05 | L137: -2.94974781e-05 | M137: -0.003444964677 | N137: 9.479009176e-07
A138: 67.34714667 | B138: ='DF raw data'!D143 -> -9.0081485e-06 | C138: ='DF raw data'!E143 -> -5.8863038e-06 | D138: ='DF raw data'!F143 -> 7.4558267e-07 | F138: -9.019895126e-06 | G138: -5.907270812e-06 | H138: 7.465549098e-07 | J138: -2.871096933e-05 | K138: 3.914648718e-05 | L138: -3.245194052e-05 | M138: -0.00346119519 | N138: 9.488399045e-07
A139: 67.84728667 | B139: ='DF raw data'!D144 -> -4.2904326e-06 | C139: ='DF raw data'!E144 -> 5.2614027e-06 | D139: ='DF raw data'!F144 -> 7.0043907e-06 | F139: -4.296027324e-06 | G139: 5.280143815e-06 | H139: 7.013524425e-06 | J139: -3.085958444e-05 | K139: 2.371237462e-05 | L139: -2.98111294e-05 | M139: -0.003476104928 | N139: 9.497606709e-07
A140: 68.34742667 | B140: ='DF raw data'!D145 -> -6.710074e-07 | C140: ='DF raw data'!E145 -> 2.9785974e-06 | D140: ='DF raw data'!F145 -> 9.8517785e-06 | F140: -6.718823936e-07 | G140: 2.989207163e-06 | H140: 9.864625219e-06 | J140: -3.11956197e-05 | K140: 8.110197387e-06 | L140: -2.831610733e-05 | M140: -0.003490266946 | N140: 9.506484038e-07
A141: 68.84756667 | B141: ='DF raw data'!D146 -> -3.8660987e-06 | C141: ='DF raw data'!E146 -> -4.4434223e-06 | D141: ='DF raw data'!F146 -> 4.2892507e-06 | F141: -3.871140093e-06 | G141: -4.459249769e-06 | H141: 4.294843883e-06 | J141: -3.31317317e-05 | K141: -8.460306908e-06 | L141: -3.054635651e-05 | M141: -0.003505544401 | N141: 9.516640838e-07
A142: 69.34770667 | B142: ='DF raw data'!D147 -> -4.4736557e-06 | C142: ='DF raw data'!E147 -> -1.8150403e-06 | D142: ='DF raw data'!F147 -> -1.273874e-06 | F142: -4.479489347e-06 | G142: -1.821505473e-06 | H142: -1.275535132e-06 | J142: -3.537210351e-05 | K142: -2.615131076e-05 | L142: -3.145736425e-05 | M142: -0.003521277487 | N142: 9.527847733e-07
A143: 69.84784667 | B143: ='DF raw data'!D148 -> -2.7856336e-06 | C143: ='DF raw data'!E148 -> 1.1308981e-06 | D143: ='DF raw data'!F148 -> 2.4570916e-06 | F143: -2.789266066e-06 | G143: 1.134926359e-06 | H143: 2.460295647e-06 | J143: -3.676712704e-05 | K143: -4.454002167e-05 | L143: -3.088974218e-05 | M143: -0.003536726683 | N143: 9.53938095e-07
A144: 70.34798667 | B144: ='DF raw data'!D149 -> -4.3230725e-06 | C144: ='DF raw data'!E149 -> 6.0854491e-06 | D144: ='DF raw data'!F149 -> 1.1352838e-05 | F144: -4.328709787e-06 | G144: 6.107125468e-06 | H144: 1.13676421e-05 | J144: -3.893208795e-05 | K144: -6.401151614e-05 | L144: -2.783532445e-05 | M144: -0.003550648242 | N144: 9.550836721e-07
A145: 70.84812667 | B145: ='DF raw data'!D150 -> -8.9384012e-06 | C145: ='DF raw data'!E150 -> 8.7067592e-06 | D145: ='DF raw data'!F150 -> -3.5788906e-07 | F145: -8.950056875e-06 | G145: 8.737772673e-06 | H145: -3.583557473e-07 | J145: -4.34083694e-05 | K145: -8.572177801e-05 | L145: -2.346521483e-05 | M145: -0.003562384135 | N145: 9.563014644e-07
A146: 71.34826667 | B146: ='DF raw data'!D151 -> -1.1469401e-05 | C146: ='DF raw data'!E151 -> 7.2119747e-06 | D146: ='DF raw data'!F151 -> -1.211054e-05 | F146: -1.14843571e-05 | G146: 7.237663751e-06 | H146: -1.212633214e-05 | J146: -4.915215575e-05 | K146: -0.0001103047372 | L146: -1.984536968e-05 | M146: -0.003572309598 | N146: 9.577067443e-07
A147: 71.84840667 | B147: ='DF raw data'!D152 -> -7.6851757e-06 | C147: ='DF raw data'!E152 -> -8.7544629e-07 | D147: ='DF raw data'!F152 -> -1.5698795e-05 | F147: -7.695197169e-06 | G147: -8.785646294e-07 | H147: -1.571926623e-05 | J147: -5.300083167e-05 | K147: -0.0001368125731 | L147: -2.028477499e-05 | M147: -0.003582454825 | N147: 9.593174753e-07
A148: 72.34854667 | B148: ='DF raw data'!D153 -> -8.8305278e-06 | C148: ='DF raw data'!E153 -> -4.318535e-06 | D148: ='DF raw data'!F153 -> -1.1511816e-05 | F148: -8.842042808e-06 | G148: -4.33391762e-06 | H148: -1.152682741e-05 | J148: -5.742309096e-05 | K148: -0.0001655321578 | L148: -2.245234055e-05 | M148: -0.003593684139 | N148: 9.61218767e-07
A149: 72.84868667 | B149: ='DF raw data'!D154 -> -1.201568e-05 | C149: ='DF raw data'!E154 -> 5.0401809e-06 | D149: ='DF raw data'!F154 -> 2.88085e-07 | F149: -1.203134845e-05 | G149: 5.058134023e-06 | H149: 2.884606628e-07 | J149: -6.344044957e-05 | K149: -0.0001972612643 | L149: -1.99225654e-05 | M149: -0.003603648211 | N149: 9.634301857e-07
A150: 73.34882667 | B150: ='DF raw data'!D155 -> -1.0919324e-05 | C150: ='DF raw data'!E155 -> 9.4196514e-07 | D150: ='DF raw data'!F155 -> 4.1746544e-06 | F150: -1.09335628e-05 | G150: 9.453204195e-07 | H150: 4.180098149e-06 | J150: -6.890876167e-05 | K150: -0.0002317252924 | L150: -1.944977285e-05 | M150: -0.00361337582 | N150: 9.659942589e-07
A151: 73.84896667 | B151: ='DF raw data'!D156 -> -1.120281e-05 | C151: ='DF raw data'!E156 -> -2.2001113e-06 | D151: ='DF raw data'!F156 -> 1.546229e-06 | F151: =(1-$G$1*($B$2-$G$2))*B151 -> -1.121741846e-05 | G151: -2.207948096e-06 | H151: 1.548245283e-06 | J151: -7.451904134e-05 | K151: -0.0002689952457 | L151: -2.055405601e-05 | M151: -0.003623655726 | N151: 9.689828739e-07
A152: 74.34910667 | B152: ='DF raw data'!D157 -> -1.1551168e-05 | C152: ='DF raw data'!E157 -> 5.3730814e-06 | D152: ='DF raw data'!F157 -> -3.8433927e-06 | F152: -1.156623072e-05 | G152: 5.392220314e-06 | H152: -3.848404484e-06 | J152: -8.030377597e-05 | K152: -0.0003091583762 | L152: -1.785719094e-05 | M152: -0.003632586821 | N152: 9.723676092e-07
A153: 74.84924667 | B153: ='DF raw data'!D158 -> -1.0666936e-05 | C153: ='DF raw data'!E158 -> -3.5616026e-06 | D153: ='DF raw data'!F158 -> -1.7155246e-06 | F153: -1.068084568e-05 | G153: -3.574289027e-06 | H153: -1.717761644e-06 | J153: -8.564569413e-05 | K153: -0.0003519932137 | L153: -1.964483585e-05 | M153: -0.003642411989 | N153: 9.762292424e-07
A154: 75.34938667 | B154: ='DF raw data'!D159 -> -9.1577276e-06 | C154: ='DF raw data'!E159 -> 1.1958772e-06 | D154: ='DF raw data'!F159 -> -1.2447119e-06 | F154: -9.169669277e-06 | G154: 1.200136914e-06 | H154: -1.246335004e-06 | J154: -9.023181252e-05 | K154: -0.0003971217524 | L154: -1.904459938e-05 | M154: -0.003651936955 | N154: 9.804826714e-07
A155: 75.84952667 | B155: ='DF raw data'!D160 -> -5.4778397e-06 | C155: ='DF raw data'!E160 -> 1.1024923e-05 | D155: ='DF raw data'!F160 -> 1.1796517e-06 | F155: -5.484982803e-06 | G155: 1.106419377e-05 | H155: 1.181189966e-06 | J155: -9.297507182e-05 | K155: -0.0004436223048 | L155: -1.35109535e-05 | M155: -0.003658694323 | N155: 9.848973621e-07
A156: 76.34966667 | B156: ='DF raw data'!D161 -> -5.2297296e-06 | C156: ='DF raw data'!E161 -> 4.7803871e-07 | D156: ='DF raw data'!F161 -> 6.6633083e-06 | F156: -5.236549167e-06 | G156: 4.797414837e-07 | H156: 6.671997254e-06 | J156: -9.559407952e-05 | K156: -0.0004914327277 | L156: -1.32710156e-05 | M156: -0.003665331689 | N156: 9.895558401e-07
A157: 76.84980667 | B157: ='DF raw data'!D162 -> -1.2701526e-05 | C157: ='DF raw data'!E162 -> 9.9533611e-07 | D157: ='DF raw data'!F162 -> 4.6884388e-06 | F157: -1.271808879e-05 | G157: 9.988814969e-07 | H157: 4.694552524e-06 | J157: -0.0001019549045 | K157: -0.0005424244537 | L157: -1.277143501e-05 | M157: -0.003671719195 | N157: 9.948362742e-07
A158: 77.34994667 | B158: ='DF raw data'!D163 -> -1.5331654e-05 | C158: ='DF raw data'!E163 -> 6.4035394e-06 | D158: ='DF raw data'!F163 -> -1.3099336e-06 | F158: -1.535164648e-05 | G158: 6.426348805e-06 | H158: -1.311641753e-06 | J158: -0.0001096328769 | K158: -0.0005972562407 | L158: -9.557360916e-06 | M158: -0.003676499213 | N158: 1.000893325e-06
A159: 77.85008667 | B159: ='DF raw data'!D164 -> -7.5228349e-06 | C159: ='DF raw data'!E164 -> 1.096288e-05 | D159: ='DF raw data'!F164 -> -4.0089798e-08 | F159: -7.532644677e-06 | G159: 1.100192977e-05 | H159: -4.01420751e-08 | J159: -0.0001134002538 | K159: -0.0006539722437 | L159: -4.054855758e-06 | M159: -0.003678527209 | N159: 1.007333157e-06
A160: 78.35022667 | B160: ='DF raw data'!D165 -> -3.2907888e-06 | C160: ='DF raw data'!E165 -> 1.0809972e-05 | D160: ='DF raw data'!F165 -> -3.3990066e-06 | F160: -3.295079989e-06 | G160: 1.084847712e-05 | H160: -3.403438905e-06 | J160: -0.0001150482551 | K160: -0.000711512478 | L160: 1.370901587e-06 | M160: -0.003677841566 | N160: 1.013954001e-06
A161: 78.85036667 | B161: ='DF raw data'!D166 -> -8.7366825e-06 | C161: ='DF raw data'!E166 -> -5.1174961e-06 | D161: ='DF raw data'!F166 -> -6.8550862e-06 | F161: -8.748075134e-06 | G161: -5.135724619e-06 | H161: -6.864025232e-06 | J161: -0.0001194235174 | K161: -0.000771240956 | L161: -1.197679724e-06 | M161: -0.003678440574 | N161: 1.021087703e-06
A162: 79.35050667 | B162: ='DF raw data'!D167 -> -1.3431509e-05 | C162: ='DF raw data'!E167 -> -2.2364038e-06 | D162: ='DF raw data'!F167 -> -1.5010876e-06 | F162: -1.344902369e-05 | G162: -2.24436987e-06 | H162: -1.503045018e-06 | J162: -0.0001261499121 | K162: -0.0008343335731 | L162: -2.320178871e-06 | M162: -0.003679600988 | N162: 1.029049524e-06
A163: 79.85064667 | B163: ='DF raw data'!D168 -> -1.0376509e-05 | C163: ='DF raw data'!E168 -> -3.7852265e-06 | D163: ='DF raw data'!F168 -> -6.565183e-06 | F163: -1.039003997e-05 | G163: -3.798709475e-06 | H163: -6.573743999e-06 | J163: -0.0001313463867 | K163: -0.0009000251549 | L163: -4.220065428e-06 | M163: -0.003681711611 | N163: 1.037686783e-06
A164: 80.35078667 | B164: ='DF raw data'!D169 -> -8.7972185e-06 | C164: ='DF raw data'!E169 -> -7.6929073e-06 | D164: ='DF raw data'!F169 -> -1.0505056e-05 | F164: -8.808690073e-06 | G164: -7.720309433e-06 | H164: -1.051875459e-05 | J164: -0.000135751965 | K164: -0.0009679201427 | L164: -8.081300988e-06 | M164: -0.003685753393 | N164: 1.046936324e-06
A165: 80.85092667 | B165: ='DF raw data'!D170 -> -1.1754415e-05 | C165: ='DF raw data'!E170 -> 3.2366456e-06 | D165: ='DF raw data'!F170 -> -5.3407848e-06 | F165: -1.176974276e-05 | G165: 3.24817453e-06 | H165: -5.347749183e-06 | J165: -0.0001416384841 | K165: -0.001038759214 | L165: -6.456758978e-06 | M165: -0.003688982677 | N165: 1.056990713e-06
A166: 81.35106667 | B166: ='DF raw data'!D171 -> -1.0955631e-05 | C166: ='DF raw data'!E171 -> 6.14535e-07 | D166: ='DF raw data'!F171 -> 3.4593256e-06 | F166: -1.096991714e-05 | G166: 6.167239735e-07 | H166: 3.463836561e-06 | J166: -0.0001471249785 | K166: -0.001112342301 | L166: -6.14831065e-06 | M166: -0.003692057693 | N166: 1.067835529e-06
A167: 81.85120667 | B167: ='DF raw data'!D172 -> -1.209445e-05 | C167: ='DF raw data'!E172 -> 1.3695993e-06 | D167: ='DF raw data'!F172 -> 2.0443847e-06 | F167: -1.211022116e-05 | G167: 1.374477812e-06 | H167: 2.047050578e-06 | J167: -0.0001531817845 | K167: -0.001188954639 | L167: -5.460879317e-06 | M167: -0.003694788897 | N167: 1.079586059e-06
A168: 82.35134667 | B168: ='DF raw data'!D173 -> -1.4512236e-05 | C168: ='DF raw data'!E173 -> 1.2067389e-05 | D168: ='DF raw data'!F173 -> -3.4034595e-06 | F168: -1.453115996e-05 | G168: 1.211037304e-05 | H168: -3.407897611e-06 | J168: -0.0001604493988 | K168: -0.001269201801 | L168: 5.96002653e-07 | M168: -0.003694490812 | N168: 1.092461845e-06
A169: 82.85148667 | B169: ='DF raw data'!D174 -> -1.3167173e-05 | C169: ='DF raw data'!E174 -> 7.2162443e-06 | D169: ='DF raw data'!F174 -> -5.6776762e-06 | F169: -1.318434299e-05 | G169: 7.24194856e-06 | H169: -5.68507989e-06 | J169: -0.0001670434161 | K169: -0.001352746895 | L169: 4.217990806e-06 | M169: -0.003692381226 | N169: 1.106426401e-06
A170: 83.35162667 | B170: ='DF raw data'!D175 -> -1.2448018e-05 | C170: ='DF raw data'!E175 -> 5.9799081e-06 | D170: ='DF raw data'!F175 -> -2.0006985e-06 | F170: -1.246425022e-05 | G170: 6.001208531e-06 | H170: -2.003307411e-06 | J170: -0.0001732772862 | K170: -0.001439409797 | L170: 7.21943524e-06 | M170: -0.003688770498 | N170: 1.121469181e-06
A171: 83.85176667 | B171: ='DF raw data'!D176 -> -1.1000349e-05 | C171: ='DF raw data'!E176 -> 7.6891101e-06 | D171: ='DF raw data'!F176 -> 9.0643954e-07 | F171: -1.101469346e-05 | G171: 7.716498707e-06 | H171: 9.076215372e-07 | J171: -0.000178786175 | K171: -0.001528827915 | L171: 1.10787649e-05 | M171: -0.003683229564 | N171: 1.137517291e-06
A172: 84.35190667 | B172: ='DF raw data'!D177 -> -7.8485791e-06 | C172: ='DF raw data'!E177 -> 7.5875723e-06 | D172: ='DF raw data'!F177 -> 5.8011656e-06 | F172: -7.858813647e-06 | G172: 7.61459923e-06 | H172: 5.80873032e-06 | J172: -0.0001827166821 | K172: -0.001620211836 | L172: 1.488713056e-05 | M172: -0.003675783915 | N172: 1.154325502e-06
A173: 84.85204667 | B173: ='DF raw data'!D178 -> -4.5887323e-06 | C173: ='DF raw data'!E178 -> 6.8088912e-06 | D173: ='DF raw data'!F178 -> 1.3065336e-05 | F173: -4.594716007e-06 | G173: 6.833144468e-06 | H173: 1.30823732e-05 | J173: -0.0001850146833 | K173: -0.00171274508 | L173: 1.830465944e-05 | M173: -0.003666629023 | N173: 1.171613088e-06
A174: 85.35218667 | B174: ='DF raw data'!D179 -> -5.5183523e-06 | C174: ='DF raw data'!E179 -> 2.8115467e-06 | D174: ='DF raw data'!F179 -> 4.5755742e-06 | F174: -5.525548231e-06 | G174: 2.821561428e-06 | H174: 4.581540749e-06 | J174: -0.000187778231 | K174: -0.001806660484 | L174: 1.971583517e-05 | M174: -0.003656768345 | N174: 1.189442768e-06
A175: 85.85232667 | B175: ='DF raw data'!D180 -> -7.8814228e-06 | C175: ='DF raw data'!E180 -> -6.0290708e-06 | D175: ='DF raw data'!F180 -> -3.8614953e-06 | F175: -7.891700175e-06 | G175: -6.050546348e-06 | H175: -3.86653069e-06 | J175: -0.000191725186 | K175: -0.001902549919 | L175: 1.668971492e-05 | M175: -0.003648421151 | N175: 1.2079665e-06
A176: 86.35246667 | B176: ='DF raw data'!D181 -> -6.2408549e-06 | C176: ='DF raw data'!E181 -> -1.3373714e-06 | D176: ='DF raw data'!F181 -> -9.9706745e-07 | F176: -6.248992975e-06 | G176: -1.342135116e-06 | H176: -9.98367626e-07 | J176: -0.0001948505573 | K176: -0.002000002476 | L176: 1.601845946e-05 | M176: -0.003640409678 | N176: 1.227083517e-06
A177: 86.85260667 | B177: ='DF raw data'!D182 -> -8.7255939e-06 | C177: ='DF raw data'!E182 -> 1.53198e-06 | D177: ='DF raw data'!F182 -> 9.9896056e-07 | F177: -8.736972074e-06 | G177: 1.537436912e-06 | H177: 1.000263205e-06 | J177: -0.0001992202665 | K177: -0.0020996405 | L177: 1.678739316e-05 | M177: -0.003632013632 | N177: 1.247074378e-06
A178: 87.35274667 | B178: ='DF raw data'!D183 -> -1.3514265e-05 | C178: ='DF raw data'!E183 -> -7.7793684e-06 | D178: ='DF raw data'!F183 -> 3.6214485e-06 | F178: -1.35318876e-05 | G178: -7.807078507e-06 | H178: 3.626170869e-06 | J178: -0.0002059881048 | K178: -0.002202663391 | L178: 1.288276091e-05 | M178: -0.003625570448 | N178: 1.268378874e-06
A179: 87.85288667 | B179: ='DF raw data'!D184 -> -1.2343346e-05 | C179: ='DF raw data'!E184 -> 4.9833407e-06 | D179: ='DF raw data'!F184 -> 5.1077296e-07 | F179: -1.235944172e-05 | G179: 5.001091358e-06 | H179: 5.114390079e-07 | J179: -0.000212169556 | K179: -0.002308777873 | L179: 1.538400675e-05 | M179: -0.00361787629 | N179: 1.291011504e-06
A180: 88.35302667 | B180: ='DF raw data'!D185 -> -4.8054685e-06 | C180: ='DF raw data'!E185 -> -3.5014355e-07 | D180: ='DF raw data'!F185 -> -4.2437741e-06 | F180: -4.811734831e-06 | G180: -3.513907612e-07 | H180: -4.249307981e-06 | J180: -0.000214576097 | K180: -0.002416095962 | L180: 1.520826217e-05 | M180: -0.00361027003 | N180: 1.314155079e-06
A181: 88.85316667 | B181: ='DF raw data'!D186 -> -4.5726887e-07 | C181: ='DF raw data'!E186 -> -1.97075e-06 | D181: ='DF raw data'!F186 -> -3.3647368e-06 | F181: -4.578651486e-07 | G181: -1.977769811e-06 | H181: -3.369124417e-06 | J181: -0.0002148050937 | K181: -0.002523528582 | L181: 1.421910038e-05 | M181: -0.003603158489 | N181: 1.337333272e-06
A182: 89.35330667 | B182: ='DF raw data'!D187 -> -5.492057e-06 | C182: ='DF raw data'!E187 -> -2.0181169e-06 | D182: ='DF raw data'!F187 -> -3.3002427e-06 | F182: -5.499218642e-06 | G182: -2.025305432e-06 | H182: -3.304546216e-06 | J182: -0.0002175554729 | K182: -0.002632336776 | L182: 1.320616412e-05 | M182: -0.003596553558 | N182: 1.361092316e-06
A183: 89.85344667 | B183: ='DF raw data'!D188 -> -1.0783744e-05 | C183: ='DF raw data'!E188 -> -4.2131273e-06 | D183: ='DF raw data'!F188 -> -7.3794063e-06 | F183: -1.0797806e-05 | G183: -4.228134458e-06 | H183: -7.389029046e-06 | J183: -0.0002229558876 | K183: -0.002743845934 | L183: 1.109150495e-05 | M183: -0.003591006253 | N183: 1.386015467e-06
A184: 90.35358667 | B184: ='DF raw data'!D189 -> -1.1295724e-05 | C184: ='DF raw data'!E189 -> 8.0066666e-06 | D184: ='DF raw data'!F189 -> -9.3872795e-06 | F184: -1.131045362e-05 | G184: 8.035186344e-06 | H184: -9.399520512e-06 | J184: -0.0002286126979 | K184: -0.002858184288 | L184: 1.511022305e-05 | M184: -0.003583449026 | N184: 1.412268858e-06
A185: 90.85372667 | B185: ='DF raw data'!D190 -> -9.5116447e-06 | C185: ='DF raw data'!E190 -> 1.7153767e-05 | D185: ='DF raw data'!F190 -> 2.1892054e-06 | F185: -9.524047885e-06 | G185: 1.721486871e-05 | H185: 2.192060124e-06 | J185: -0.0002333760552 | K185: -0.002974904989 | L185: 2.372006749e-05 | M185: -0.003571585672 | N185: 1.439790075e-06
A186: 91.35386667 | B186: ='DF raw data'!D191 -> -6.6813268e-06 | C186: ='DF raw data'!E191 -> 1.3831697e-05 | D186: ='DF raw data'!F191 -> 1.3887883e-05 | F186: -6.69003925e-06 | G186: 1.38809655e-05 | H186: 1.39059928e-05 | J186: -0.0002367220114 | K186: -0.003093299135 | L186: 3.066249357e-05 | M186: -0.003556250132 | N186: 1.468286801e-06
A187: 91.85400667 | B187: ='DF raw data'!D192 -> -5.9895433e-06 | C187: ='DF raw data'!E192 -> 9.1131787e-06 | D187: ='DF raw data'!F192 -> 3.7849102e-06 | F187: -5.997353664e-06 | G187: 9.145639839e-06 | H187: 3.789845723e-06 | J187: -0.0002397215279 | K187: -0.00321319346 | L187: 3.523659388e-05 | M187: -0.003538626902 | N187: 1.497649034e-06
A188: 92.35414667 | B188: ='DF raw data'!D193 -> -7.4555614e-06 | C188: ='DF raw data'!E193 -> 1.2083267e-05 | D188: ='DF raw data'!F193 -> -2.5464535e-06 | F188: -7.465283452e-06 | G188: 1.212630759e-05 | H188: -2.549774075e-06 | J188: -0.0002434552148 | K188: -0.003334955151 | L188: 4.130144536e-05 | M188: -0.003517970397 | N188: 1.528145697e-06
A189: 92.85428667 | B189: ='DF raw data'!D194 -> -7.8322228e-06 | C189: ='DF raw data'!E194 -> 5.0932849e-06 | D189: ='DF raw data'!F194 -> 3.0543458e-06 | F189: -7.842436019e-06 | G189: 5.111427179e-06 | H189: 3.058328667e-06 | J189: -0.0002473775307 | K189: -0.00345867855 | L189: 4.385787455e-05 | M189: -0.00349603532 | N189: 1.559714111e-06
A190: 93.35442667 | B190: ='DF raw data'!D195 -> -8.6822729e-06 | C190: ='DF raw data'!E195 -> 4.8782003e-06 | D190: ='DF raw data'!F195 -> 1.6742131e-06 | F190: -8.693594584e-06 | G190: 4.895576448e-06 | H190: 1.676396274e-06 | J190: -0.0002517255451 | K190: -0.003584576564 | L190: 4.630634815e-05 | M190: -0.003472875663 | N190: 1.592478297e-06
A191: 93.85456667 | B191: ='DF raw data'!D196 -> -1.1080312e-05 | C191: ='DF raw data'!E196 -> 4.9135583e-06 | D191: ='DF raw data'!F196 -> -2.5659531e-06 | F191: -1.109476073e-05 | G191: 4.931060393e-06 | H191: -2.569299103e-06 | J191: -0.0002572744787 | K191: -0.003713249822 | L191: 4.87725687e-05 | M191: -0.00344848255 | N191: 1.626772357e-06
A192: 94.35470667 | B192: ='DF raw data'!D197 -> -1.3232322e-05 | C192: ='DF raw data'!E197 -> 4.6843306e-06 | D192: ='DF raw data'!F197 -> 3.5928249e-06 | F192: -1.324957695e-05 | G192: 4.701016184e-06 | H192: 3.597509944e-06 | J192: -0.0002639011221 | K192: -0.003845237329 | L192: 5.112373493e-05 | M192: -0.003422913526 | N192: 1.662911192e-06
A193: 94.85484667 | B193: ='DF raw data'!D198 -> -1.4865615e-05 | C193: ='DF raw data'!E198 -> 6.4920018e-06 | D193: ='DF raw data'!F198 -> 8.3183704e-06 | F193: -1.488499976e-05 | G193: 6.515126308e-06 | H193: 8.329217555e-06 | J193: -0.0002713457059 | K193: -0.00398094817 | L193: 5.438221021e-05 | M193: -0.003395714807 | N193: 1.701214872e-06
A194: 95.35498667 | B194: ='DF raw data'!D199 -> -1.5754315e-05 | C194: ='DF raw data'!E199 -> 4.5440984e-06 | D194: ='DF raw data'!F199 -> 2.9107184e-06 | F194: -1.577485863e-05 | G194: 4.560284477e-06 | H194: 2.914513977e-06 | J194: -0.0002792353437 | K194: -0.004120604935 | L194: 5.666299088e-05 | M194: -0.003367375379 | N194: 1.741817774e-06
A195: 95.85512667 | B195: ='DF raw data'!D200 -> -1.4825291e-05 | C195: ='DF raw data'!E200 -> 1.1782523e-05 | D195: ='DF raw data'!F200 -> -1.9788124e-06 | F195: -1.484462318e-05 | G195: 1.182449234e-05 | H195: -1.981392771e-06 | J195: -0.0002866597336 | K195: -0.004263974934 | L195: 6.257689248e-05 | M195: -0.003336078172 | N195: 1.784874662e-06
A196: 96.35526667 | B196: ='DF raw data'!D201 -> -1.0533975e-05 | C196: ='DF raw data'!E201 -> 1.4758082e-05 | D196: ='DF raw data'!F201 -> -6.639325e-06 | F196: -1.05477113e-05 | G196: 1.481065028e-05 | H196: -6.64798268e-06 | J196: -0.0002919350659 | K196: -0.004409983338 | L196: 6.998429112e-05 | M196: -0.003301076228 | N196: 1.829949221e-06
A197: 96.85540667 | B197: ='DF raw data'!D202 -> -7.0574647e-06 | C197: ='DF raw data'!E202 -> 1.3705609e-05 | D197: ='DF raw data'!F202 -> -2.2613233e-06 | F197: -7.066667634e-06 | G197: 1.375442837e-05 | H197: -2.264272066e-06 | J197: -0.000295469389 | K197: -0.004557759398 | L197: 7.686343092e-05 | M197: -0.003262633752 | N197: 1.876567344e-06
A198: 97.35554667 | B198: ='DF raw data'!D203 -> -8.6349501e-06 | C198: ='DF raw data'!E203 -> 1.3882934e-05 | D198: ='DF raw data'!F203 -> 6.8347445e-06 | F198: -8.646210075e-06 | G198: 1.393238501e-05 | H198: 6.843657007e-06 | J198: -0.0002997937045 | K198: -0.004707698222 | L198: 8.383157396e-05 | M198: -0.003220706229 | N198: 1.925032909e-06
A199: 97.85568667 | B199: ='DF raw data'!D204 -> -9.6496115e-06 | C199: ='DF raw data'!E204 -> 1.4870561e-05 | D199: ='DF raw data'!F204 -> 9.7478924e-06 | F199: -9.662194593e-06 | G199: =(1-$G$1*($B$2-$G$2))*C199*$M$2/$M$1 -> 1.492352993e-05 | H199: 9.760603652e-06 | J199: -0.0003046261546 | K199: -0.004860053946 | L199: 9.129542822e-05 | M199: -0.003175045733 | N199: 1.975613042e-06
A200: =A199+$B$1 -> 98.35582667 | B200: ='DF raw data'!D205 -> -1.0991545e-05 | C200: ='DF raw data'!E205 -> 5.0734043e-06 | D200: ='DF raw data'!F205 -> 7.9951869e-06 | F200: -1.100587797e-05 | G200: 5.091475764e-06 | H200: 8.005612624e-06 | J200: =F200*$B$1+J199 -> -0.0003101306344 | K200: =J200*$B$1+K199 -> -0.005015162682 | L200: =G200*$B$1+L199 -> 9.384187891e-05 | M200: =L200*$B$1+M199 -> -0.003128111656 | N200: =(J200^2+L200^2)*$B$1+N199 -> 2.028121395e-06
A201: 98.85596667 | B201: ='DF raw data'!D206 -> -1.4587542e-05 | C201: ='DF raw data'!E206 -> 2.5181403e-06 | D201: ='DF raw data'!F206 -> 1.6204292e-06 | F201: -1.460656415e-05 | G201: 2.527109915e-06 | H201: 1.62254224e-06 | J201: -0.0003174359614 | K201: -0.005173925104 | L201: 9.510578766e-05 | M201: -0.003080545447 | N201: 2.083042119e-06
... 1002 more rows

Sheet 10 y=0
A1: dz | B1: ='DF raw data'!H7 -> 0.50014 | C1: mm | F1: T_coeff | G1: -0.0008 | H1: /degC | L1: Hallref | M1: ='PI vs y'!B44 -> 0.50553 | N1: T | P1: IBy total | Q1: =L1203*1000 -> -14.25494691 | R1: muTm | X1: DF ref | Y1: 20
A2: Tref | B2: ='DF raw data'!H8 -> 21.58 | C2: degC | F2: Tcorr | G2: 20 | H2: degC | L2: NMRref | M2: ='PI vs y'!B45 -> 0.50667 | N2: T | P2: JBy total | Q2: =M1203 -> -5.295596449 | R2: muTm^2
A3: Encoder | B3: ='DF raw data'!H9 -> 5134415 | P3: PI total | Q3: =N1203 -> 715.2906828 | R3: T^2mm^3
A5: z [mm] | B5: Bx | C5: By | D5: Bz | F5: Bx_corr | G5: By_corr | H5: Bz_corr | J5: Ix | K5: Jx | L5: Iy | M5: Jy | N5: PI
A6: ='PI vs y'!B53 -> 1.328666667 | B6: ='DF raw data'!G11 -> -1.4915989e-06 | C6: ='DF raw data'!H11 -> -4.0091304e-06 | D6: ='DF raw data'!I11 -> -4.2163711e-06 | F6: =(1-$G$1*($B$2-$G$2))*B6 -> -1.493484281e-06 | G6: =(1-$G$1*($B$2-$G$2))*C6*$M$2/$M$1 -> -4.023250194e-06 | H6: =(1-$G$1*($B$2-$G$2))*D6 -> -4.221700593e-06 | J6: =F6*$B$1 -> -7.469512283e-07 | K6: =J6*$B$1 -> -3.735801873e-07 | L6: =G6*$B$1 -> -2.012188352e-06 | M6: =L6*$B$1 -> -1.006375882e-06 | N6: =(J6^2+L6^2)*$B$1 -> 2.304064008e-12
A7: =A6+$B$1 -> 1.828806667 | B7: ='DF raw data'!G12 -> -1.4002275e-06 | C7: ='DF raw data'!H12 -> -7.0237843e-06 | D7: ='DF raw data'!I12 -> -7.4779209e-06 | F7: =(1-$G$1*($B$2-$G$2))*B7 -> -1.401997388e-06 | G7: =(1-$G$1*($B$2-$G$2))*C7*$M$2/$M$1 -> -7.048521432e-06 | H7: -7.487372992e-06 | J7: =F7*$B$1+J6 -> -1.448146202e-06 | K7: =J7*$B$1+K6 -> -1.097856029e-06 | L7: =G7*$B$1+L6 -> -5.537435861e-06 | M7: =L7*$B$1+M6 -> -3.775869054e-06 | N7: =(J7^2+L7^2)*$B$1+N6 -> 1.868881212e-11
A8: =A7+$B$1 -> 2.328946667 | B8: ='DF raw data'!G13 -> -1.8734121e-06 | C8: ='DF raw data'!H13 -> 5.3619938e-06 | D8: ='DF raw data'!I13 -> -1.0478366e-05 | F8: -1.875780093e-06 | G8: 5.380878257e-06 | H8: -1.049161065e-05 | J8: =F8*$B$1+J7 -> -2.386298857e-06 | K8: =J8*$B$1+K7 -> -2.291339539e-06 | L8: =G8*$B$1+L7 -> -2.84624341e-06 | M8: =L8*$B$1+M7 -> -5.199389233e-06 | N8: =(J8^2+L8^2)*$B$1+N7 -> 2.558850539e-11
A9: 2.829086667 | B9: ='DF raw data'!G14 -> -1.8404374e-06 | C9: ='DF raw data'!H14 -> 5.1531802e-06 | D9: ='DF raw data'!I14 -> -5.7500993e-06 | F9: -1.842763713e-06 | G9: 5.171329234e-06 | H9: -5.757367426e-06 | J9: -3.307938701e-06 | K9: -3.945772001e-06 | L9: -2.598548069e-07 | M9: -5.329353016e-06 | N9: 3.109503827e-11
A10: 3.329226667 | B10: ='DF raw data'!G15 -> -1.5776444e-06 | C10: ='DF raw data'!H15 -> -1.0231637e-06 | D10: ='DF raw data'!I15 -> 4.3050676e-07 | F10: -1.579638543e-06 | G10: -1.02676719e-06 | H10: 4.310509205e-07 | J10: -4.097979121e-06 | K10: -5.995335279e-06 | L10: -7.733821493e-07 | M10: -5.716152364e-06 | N10: 3.97932495e-11
A11: 3.829366667 | B11: ='DF raw data'!G16 -> -1.3708471e-06 | C11: ='DF raw data'!H16 -> -6.3765287e-06 | D11: ='DF raw data'!I16 -> 1.8312742e-06 | F11: -1.372579851e-06 | G11: -6.398986257e-06 | H11: 1.833588931e-06 | J11: -4.784461208e-06 | K11: -8.388235707e-06 | L11: -3.973771136e-06 | M11: -7.70359426e-06 | N11: 5.913962802e-11
A12: 4.329506667 | B12: ='DF raw data'!G17 -> -1.7632686e-06 | C12: ='DF raw data'!H17 -> 4.4646958e-06 | D12: ='DF raw data'!I17 -> 2.4966023e-06 | F12: -1.765497372e-06 | G12: 4.480420054e-06 | H12: 2.499758005e-06 | J12: -5.667457063e-06 | K12: -1.122275768e-05 | L12: -1.73293385e-06 | M12: -8.570303796e-06 | N12: 7.67061099e-11
A13: 4.829646667 | B13: ='DF raw data'!G18 -> -1.4853271e-06 | C13: ='DF raw data'!H18 -> -2.7938759e-06 | D13: ='DF raw data'!I18 -> 4.6559608e-06 | F13: -1.487204553e-06 | G13: -2.803715678e-06 | H13: 4.661845934e-06 | J13: -6.411267549e-06 | K13: -1.442928903e-05 | L13: -3.135184209e-06 | M13: -1.013833483e-05 | N13: 1.021801064e-10
A14: 5.329786667 | B14: ='DF raw data'!G19 -> -1.5377285e-06 | C14: ='DF raw data'!H19 -> -6.7638655e-07 | D14: ='DF raw data'!I19 -> 8.9583364e-06 | F14: -1.539672189e-06 | G14: -6.787687222e-07 | H14: 8.969659737e-06 | J14: -7.181319197e-06 | K14: -1.802095402e-05 | L14: -3.474663598e-06 | M14: -1.187615308e-05 | N14: 1.340113329e-10
A15: 5.829926667 | B15: ='DF raw data'!G20 -> -1.4356032e-06 | C15: ='DF raw data'!H20 -> -3.0021556e-06 | D15: ='DF raw data'!I20 -> 1.1448591e-05 | F15: -1.437417802e-06 | G15: -3.01272892e-06 | H15: 1.146306202e-05 | J15: -7.900229337e-06 | K15: -2.197217472e-05 | L15: -4.98144984e-06 | M15: -1.43675754e-05 | N15: 1.77637778e-10
A16: 6.330066667 | B16: ='DF raw data'!G21 -> -1.2213408e-06 | C16: ='DF raw data'!H21 -> -1.0323704e-05 | D16: ='DF raw data'!I21 -> 1.9270985e-06 | F16: -1.222884575e-06 | G16: -1.036006315e-05 | H16: 1.929534353e-06 | J16: -8.511842828e-06 | K16: -2.622928779e-05 | L16: -1.016293182e-05 | M16: -1.945046412e-05 | N16: 2.655307069e-10
A17: 6.830206667 | B17: ='DF raw data'!G22 -> -1.769948e-06 | C17: ='DF raw data'!H22 -> 4.1255239e-06 | D17: ='DF raw data'!I22 -> -1.4111108e-06 | F17: -1.772185214e-06 | G17: 4.140053622e-06 | H17: -1.412894444e-06 | J17: -9.398183541e-06 | K17: -3.092969531e-05 | L17: -8.092325406e-06 | M17: -2.349775975e-05 | N17: 3.424580327e-10
A18: 7.330346667 | B18: ='DF raw data'!G23 -> -1.985622e-06 | C18: ='DF raw data'!H23 -> 1.1433197e-05 | D18: ='DF raw data'!I23 -> 7.9096526e-06 | F18: -1.988131826e-06 | G18: 1.147346368e-05 | H18: 7.919650401e-06 | J18: -1.039252779e-05 | K18: -3.612741416e-05 | L18: -2.353987278e-06 | M18: -2.467508295e-05 | N18: 3.992468741e-10
A19: 7.830486667 | B19: ='DF raw data'!G24 -> -1.6595426e-06 | C19: ='DF raw data'!H24 -> 2.0485966e-06 | D19: ='DF raw data'!I24 -> 5.9486365e-06 | F19: -1.661640262e-06 | G19: 2.055811572e-06 | H19: 5.956155577e-06 | J19: -1.122358055e-05 | K19: -4.174077574e-05 | L19: -1.325793679e-06 | M19: -2.53381654e-05 | N19: 4.631280005e-10
A20: 8.330626667 | B20: ='DF raw data'!G25 -> -1.4988167e-06 | C20: ='DF raw data'!H25 -> -3.2654075e-06 | D20: ='DF raw data'!I25 -> 4.3263134e-07 | F20: -1.500711204e-06 | G20: -3.27690797e-06 | H20: 4.33178186e-07 | J20: -1.197414626e-05 | K20: -4.772952524e-05 | L20: -2.964706431e-06 | M20: -2.682093367e-05 | N20: 5.392341356e-10
A21: 8.830766667 | B21: ='DF raw data'!G26 -> -1.1470387e-06 | C21: ='DF raw data'!H26 -> -1.3138218e-05 | D21: ='DF raw data'!I26 -> -1.8834514e-06 | F21: -1.148488557e-06 | G21: -1.318448961e-05 | H21: -1.885832083e-06 | J21: -1.254855132e-05 | K21: -5.40055577e-05 | L21: -9.558797066e-06 | M21: -3.160167044e-05 | N21: 6.636873436e-10
A22: 9.330906667 | B22: ='DF raw data'!G27 -> -2.3855814e-06 | C22: ='DF raw data'!H27 -> -1.1834094e-06 | D22: ='DF raw data'!I27 -> 3.5056321e-06 | F22: -2.388596775e-06 | G22: -1.187577261e-06 | H22: 3.510063219e-06 | J22: -1.374318411e-05 | K22: -6.08790738e-05 | L22: -1.015275196e-05 | M22: -3.66794678e-05 | N22: 8.09704958e-10
A23: 9.831046667 | B23: ='DF raw data'!G28 -> -2.5880277e-06 | C23: ='DF raw data'!H28 -> -7.5783068e-06 | D23: ='DF raw data'!I28 -> 3.7976745e-06 | F23: =(1-$G$1*($B$2-$G$2))*B23 -> -2.591298967e-06 | G23: -7.60499691e-06 | H23: 3.802474761e-06 | J23: -1.503919638e-05 | K23: -6.840077748e-05 | L23: -1.395631511e-05 | M23: -4.365957924e-05 | N23: 1.020241971e-09
A24: 10.33118667 | B24: ='DF raw data'!G29 -> -2.4221649e-06 | C24: ='DF raw data'!H29 -> -1.4721462e-06 | D24: ='DF raw data'!I29 -> -8.8822098e-06 | F24: -2.425226516e-06 | G24: -1.477330966e-06 | H24: -8.893436913e-06 | J24: -1.625214917e-05 | K24: -7.652912737e-05 | L24: -1.469518742e-05 | M24: -5.100923028e-05 | N24: 1.260349626e-09
A25: 10.83132667 | B25: ='DF raw data'!G30 -> -5.4455727e-06 | C25: ='DF raw data'!H30 -> 4.9451673e-06 | D25: ='DF raw data'!I30 -> -6.9661883e-06 | F25: -5.452455904e-06 | G25: 4.962583731e-06 | H25: -6.974993562e-06 | J25: -1.897914046e-05 | K25: -8.602135468e-05 | L25: -1.221320079e-05 | M25: -5.711754052e-05 | N25: 1.515105961e-09
A26: 11.33146667 | B26: ='DF raw data'!G31 -> -5.7658458e-06 | C26: ='DF raw data'!H31 -> -1.2054251e-06 | D26: ='DF raw data'!I31 -> 1.4821883e-06 | F26: -5.773133829e-06 | G26: -1.209670498e-06 | H26: 1.484061786e-06 | J26: -2.186651562e-05 | K26: -9.69576738e-05 | L26: -1.28182054e-05 | M26: -6.352843777e-05 | N26: 1.836421351e-09
A27: 11.83160667 | B27: ='DF raw data'!G32 -> -1.6029356e-06 | C27: ='DF raw data'!H32 -> -9.509532e-06 | D27: ='DF raw data'!I32 -> 4.6401865e-06 | F27: -1.604961711e-06 | G27: -9.543023711e-06 | H27: 4.646051696e-06 | J27: -2.266922117e-05 | K27: -0.0001082954581 | L27: -1.759105328e-05 | M27: -7.232642716e-05 | N27: 2.248205991e-09
A28: 12.33174667 | B28: ='DF raw data'!G33 -> 2.5854547e-06 | C28: ='DF raw data'!H33 -> -1.4753353e-05 | D28: ='DF raw data'!I33 -> 5.0286644e-06 | F28: 2.588722715e-06 | G28: -1.480531297e-05 | H28: 5.035020632e-06 | J28: -2.137449739e-05 | K28: -0.0001189856992 | L28: -2.499578251e-05 | M28: -8.482781782e-05 | N28: 2.789186564e-09
A29: 12.83188667 | B29: ='DF raw data'!G34 -> -8.5988574e-07 | C29: ='DF raw data'!H34 -> -6.2377644e-06 | D29: ='DF raw data'!I34 -> 4.8465035e-06 | F29: -8.609726356e-07 | G29: -6.259733241e-06 | H29: 4.85262948e-06 | J29: -2.180510424e-05 | K29: -0.000129891304 | L29: -2.812652549e-05 | M29: -9.889501828e-05 | N29: 3.422645886e-09
A30: 13.33202667 | B30: ='DF raw data'!G35 -> -4.0999876e-07 | C30: ='DF raw data'!H35 -> -4.3385621e-06 | D30: ='DF raw data'!I35 -> 5.1847337e-06 | F30: -4.105169984e-07 | G30: -4.353842123e-06 | H30: 5.191287203e-06 | J30: -2.201042021e-05 | K30: -0.0001408995956 | L30: -3.030405609e-05 | M30: -0.0001140512889 | N30: 4.124239484e-09
A31: 13.83216667 | B31: ='DF raw data'!G36 -> 3.414681e-06 | C31: ='DF raw data'!H36 -> 4.2802994e-06 | D31: ='DF raw data'!I36 -> -2.4590088e-06 | F31: 3.418997157e-06 | G31: 4.295374227e-06 | H31: -2.462116987e-06 | J31: -2.030044298e-05 | K31: -0.0001510526591 | L31: -2.815576762e-05 | M31: -0.0001281331145 | N31: 4.726835781e-09
A32: 14.33230667 | B32: ='DF raw data'!G37 -> 4.029383e-06 | C32: ='DF raw data'!H37 -> 8.8564559e-07 | D32: ='DF raw data'!I37 -> -1.9842817e-06 | F32: 4.03447614e-06 | G32: 8.887647536e-07 | H32: -1.986789832e-06 | J32: -1.828264008e-05 | K32: -0.0001601965388 | L32: -2.771126082e-05 | M32: -0.0001419926245 | N32: 5.278074537e-09
A33: 14.83244667 | B33: ='DF raw data'!G38 -> 2.5406639e-06 | C33: ='DF raw data'!H38 -> 4.0685509e-06 | D33: ='DF raw data'!I38 -> 4.739547e-06 | F33: 2.543875299e-06 | G33: 4.082879968e-06 | H33: 4.745537787e-06 | J33: -1.701034629e-05 | K33: -0.0001687040933 | L33: -2.566924923e-05 | M33: -0.0001548308428 | N33: 5.752338413e-09
A34: 15.33258667 | B34: ='DF raw data'!G39 -> 4.4617204e-06 | C34: ='DF raw data'!H39 -> 2.6755711e-06 | D34: ='DF raw data'!I39 -> -3.5831006e-06 | F34: 4.467360015e-06 | G34: 2.684994219e-06 | H34: -3.587629639e-06 | J34: -1.477604085e-05 | K34: -0.0001760941824 | L34: -2.432637622e-05 | M34: -0.0001669974366 | N34: 6.157503809e-09
A35: 15.83272667 | B35: ='DF raw data'!G40 -> 7.9964393e-06 | C35: ='DF raw data'!H40 -> -1.1523881e-05 | D35: ='DF raw data'!I40 -> -9.7022248e-06 | F35: 8.006546799e-06 | G35: -1.156446707e-05 | H35: -9.714488412e-06 | J35: -1.077164653e-05 | K35: -0.0001814815137 | L35: -3.011022878e-05 | M35: -0.0001820567664 | N35: 6.668974103e-09
A36: 16.33286667 | B36: ='DF raw data'!G41 -> 7.0579422e-06 | C36: ='DF raw data'!H41 -> -1.0559336e-05 | D36: ='DF raw data'!I41 -> -6.6692855e-06 | F36: 7.066863439e-06 | G36: -1.059652503e-05 | H36: -6.677715477e-06 | J36: -7.237225453e-06 | K36: -0.0001851011397 | L36: -3.540997481e-05 | M36: -0.0001997667112 | N36: 7.322278852e-09
A37: 16.83300667 | B37: ='DF raw data'!G42 -> 2.5046188e-06 | C37: ='DF raw data'!H42 -> -5.3783601e-06 | D37: ='DF raw data'!I42 -> -2.7415342e-06 | F37: 2.507784638e-06 | G37: -5.397302197e-06 | H37: -2.744999499e-06 | J37: -5.982982044e-06 | K37: -0.0001880934683 | L37: -3.810938153e-05 | M37: -0.0002188267373 | N37: 8.066547706e-09
A38: 17.33314667 | B38: ='DF raw data'!G43 -> 2.9501693e-06 | C38: ='DF raw data'!H43 -> -2.7447745e-06 | D38: ='DF raw data'!I43 -> -3.735983e-06 | F38: 2.953898314e-06 | G38: -2.754441347e-06 | H38: -3.740705283e-06 | J38: -4.505619341e-06 | K38: -0.0001903469088 | L38: -3.948698782e-05 | M38: -0.0002385757594 | N38: 8.856530246e-09
A39: 17.83328667 | B39: ='DF raw data'!G44 -> 7.4339346e-06 | C39: ='DF raw data'!H44 -> -1.2182079e-05 | D39: ='DF raw data'!I44 -> -9.2699776e-07 | F39: 7.443331093e-06 | G39: -1.222498318e-05 | H39: -9.281694852e-07 | J39: -7.829117284e-07 | K39: -0.0001907384742 | L39: -4.560119091e-05 | M39: -0.000261382739 | N39: 9.896862239e-09
A40: 18.33342667 | B40: ='DF raw data'!G45 -> 3.1080285e-06 | C40: ='DF raw data'!H45 -> 4.9968035e-06 | D40: ='DF raw data'!I45 -> 8.0189375e-06 | F40: 3.111957048e-06 | G40: 5.014401789e-06 | H40: 8.029073437e-06 | J40: 7.735024696e-07 | K40: -0.0001903516147 | L40: -4.3093288e-05 | M40: -0.0002829354161 | N40: 1.08259372e-08
A41: 18.83356667 | B41: ='DF raw data'!G46 -> -2.0454886e-06 | C41: ='DF raw data'!H46 -> 1.5725287e-06 | D41: ='DF raw data'!I46 -> 3.9139441e-06 | F41: -2.048074098e-06 | G41: 1.578067004e-06 | H41: 3.918891325e-06 | J41: -2.508213096e-07 | K41: -0.0001904770605 | L41: -4.230403357e-05 | M41: -0.0003040933554 | N41: 1.172103484e-08
A42: 19.33370667 | B42: ='DF raw data'!G47 -> -2.4564638e-06 | C42: ='DF raw data'!H47 -> 2.0493972e-06 | D42: ='DF raw data'!I47 -> -2.1547282e-06 | F42: -2.45956877e-06 | G42: 2.056614991e-06 | H42: -2.157451776e-06 | J42: -1.480950034e-06 | K42: -0.0001912177428 | L42: -4.127543815e-05 | M42: -0.0003247368531 | N42: 1.257420116e-08
A43: 19.83384667 | B43: ='DF raw data'!G48 -> 3.49639e-06 | C43: ='DF raw data'!H48 -> -5.9246065e-07 | D43: ='DF raw data'!I48 -> 1.1863292e-05 | F43: 3.500809437e-06 | G43: -5.945472428e-07 | H43: 1.18782872e-05 | J43: 2.699447975e-07 | K43: -0.0001910827326 | L43: -4.1572795e-05 | M43: -0.0003455290708 | N43: 1.343862821e-08
A44: 20.33398667 | B44: ='DF raw data'!G49 -> 1.0584105e-05 | C44: ='DF raw data'!H49 -> -1.5828109e-05 | D44: ='DF raw data'!I49 -> 1.5008572e-05 | F44: 1.059748331e-05 | G44: -1.588385417e-05 | H44: 1.502754284e-05 | J44: 5.570170099e-06 | K44: -0.0001882968678 | L44: -4.951694583e-05 | M44: -0.000370294476 | N44: 1.468045318e-08
A45: 20.83412667 | B45: ='DF raw data'!G50 -> 8.4379153e-06 | C45: ='DF raw data'!H50 -> -9.5404846e-07 | D45: ='DF raw data'!I50 -> 3.8131868e-06 | F45: 8.448580825e-06 | G45: -9.574085323e-07 | H45: 3.818006668e-06 | J45: 9.795643313e-06 | K45: -0.0001833976747 | L45: -4.999578413e-05 | M45: -0.0003952993675 | N45: 1.597858309e-08
A46: 21.33426667 | B46: ='DF raw data'!G51 -> 6.5343497e-06 | C46: ='DF raw data'!H51 -> 1.0516686e-05 | D46: ='DF raw data'!I51 -> -7.2105731e-06 | F46: 6.542609118e-06 | G46: 1.055372482e-05 | H46: -7.219687264e-06 | J46: 1.306786384e-05 | K46: -0.0001768619133 | L46: -4.47174442e-05 | M46: -0.0004176643501 | N46: 1.706409638e-08
A47: 21.83440667 | B47: ='DF raw data'!G52 -> 3.7832083e-06 | C47: ='DF raw data'!H52 -> 7.9704989e-07 | D47: ='DF raw data'!I52 -> -5.2333171e-06 | F47: 3.787990275e-06 | G47: 7.998570275e-07 | H47: -5.239932013e-06 | J47: 1.496238929e-05 | K47: -0.0001693786239 | L47: -4.431740371e-05 | M47: -0.0004398292564 | N47: 1.815835537e-08
A48: 22.33454667 | B48: ='DF raw data'!G53 -> -1.1363591e-08 | C48: ='DF raw data'!H53 -> 3.9742176e-06 | D48: ='DF raw data'!I53 -> 1.2801349e-06 | F48: -1.137795458e-08 | G48: 3.988214434e-06 | H48: 1.281752991e-06 | J48: 1.495669872e-05 | K48: -0.0001618981806 | L48: -4.232273814e-05 | M48: -0.0004609965506 | N48: 1.916609596e-08
A49: 22.83468667 | B49: ='DF raw data'!G54 -> 2.3519692e-06 | C49: ='DF raw data'!H54 -> -6.0313528e-06 | D49: ='DF raw data'!I54 -> 3.9265169e-06 | F49: 2.354942089e-06 | G49: -6.052594678e-06 | H49: 3.931480017e-06 | J49: 1.613449946e-05 | K49: -0.000153828672 | L49: -4.534988284e-05 | M49: -0.000483677841 | N49: 2.032488731e-08
A50: 23.33482667 | B50: ='DF raw data'!G55 -> 6.0565667e-06 | C50: ='DF raw data'!H55 -> -2.6676517e-07 | D50: ='DF raw data'!I55 -> -3.0212511e-06 | F50: 6.0642222e-06 | G50: -2.677046928e-07 | H50: -3.025069961e-06 | J50: 1.916745955e-05 | K50: -0.0001442422588 | L50: -4.548377267e-05 | M50: -0.0005064260951 | N50: 2.154331091e-08
A51: 23.83496667 | B51: ='DF raw data'!G56 -> -7.5208516e-07 | C51: ='DF raw data'!H56 -> 1.9082313e-06 | D51: ='DF raw data'!I56 -> -7.0171636e-06 | F51: -7.530357956e-07 | G51: 1.914951918e-06 | H51: -7.026033295e-06 | J51: 1.879083623e-05 | K51: -0.00013484421 | L51: -4.452602862e-05 | M51: -0.000528695343 | N51: 2.271146928e-08
A52: 24.33510667 | B52: ='DF raw data'!G57 -> -1.244126e-05 | C52: ='DF raw data'!H57 -> -8.1915357e-07 | D52: ='DF raw data'!I57 -> 1.7855521e-06 | F52: -1.245698575e-05 | G52: -8.220385547e-07 | H52: 1.787809038e-06 | J52: 1.256059937e-05 | K52: -0.0001285621518 | L52: -4.493716298e-05 | M52: -0.0005511702157 | N52: 2.380033271e-08
A53: 24.83524667 | B53: ='DF raw data'!G58 -> -1.7465149e-05 | C53: ='DF raw data'!H58 -> -1.1377773e-06 | D53: ='DF raw data'!I58 -> -4.049507e-08 | F53: -1.748722495e-05 | G53: -1.141784449e-06 | H53: -4.054625577e-08 | J53: 3.814538689e-06 | K53: -0.0001266543484 | L53: -4.550821505e-05 | M53: -0.0005739306944 | N53: 2.484339886e-08
A54: 25.33538667 | B54: ='DF raw data'!G59 -> -1.0976042e-05 | C54: ='DF raw data'!H59 -> 7.2197004e-06 | D54: ='DF raw data'!I59 -> 4.5032093e-06 | F54: -1.098991572e-05 | G54: 7.245127531e-06 | H54: 4.508901357e-06 | J54: -1.681957758e-06 | K54: -0.0001274955628 | L54: -4.188463697e-05 | M54: -0.0005948788767 | N54: 2.572222076e-08
A55: 25.83552667 | B55: ='DF raw data'!G60 -> 1.6739228e-06 | C55: ='DF raw data'!H60 -> 3.6717383e-06 | D55: ='DF raw data'!I60 -> 8.648075e-06 | F55: 1.676038638e-06 | G55: 3.68466983e-06 | H55: 8.659006167e-06 | J55: -8.437037936e-07 | K55: -0.0001279175328 | L55: -4.00417862e-05 | M55: -0.0006149053757 | N55: 2.652447357e-08
A56: 26.33566667 | B56: ='DF raw data'!G61 -> 3.6227443e-06 | C56: ='DF raw data'!H61 -> 4.0748218e-06 | D56: ='DF raw data'!I61 -> 5.9834447e-06 | F56: 3.627323449e-06 | G56: 4.089172953e-06 | H56: 5.991007774e-06 | J56: 9.704657561e-07 | K56: -0.0001274321641 | L56: -3.799662724e-05 | M56: -0.0006339090088 | N56: 2.724701856e-08
A57: 26.83580667 | B57: ='DF raw data'!G62 -> 1.7260478e-06 | C57: ='DF raw data'!H62 -> 4.0724199e-06 | D57: ='DF raw data'!I62 -> 5.2177375e-06 | F57: 1.728229524e-06 | G57: 4.086762594e-06 | H57: 5.22433272e-06 | J57: 1.83482247e-06 | K57: -0.000126514496 | L57: -3.59526738e-05 | M57: -0.0006518903791 | N57: 2.789518066e-08
A58: 27.33594667 | B58: ='DF raw data'!G63 -> 2.422255e-06 | C58: ='DF raw data'!H63 -> 9.475687e-06 | D58: ='DF raw data'!I63 -> 5.0144763e-06 | F58: 2.42531673e-06 | G58: 9.509059512e-06 | H58: 5.020814598e-06 | J58: 3.04782038e-06 | K58: -0.0001249901591 | L58: -3.119681277e-05 | M58: -0.000667493153 | N58: 2.838658338e-08
A59: 27.83608667 | B59: ='DF raw data'!G64 -> -1.3857338e-06 | C59: ='DF raw data'!H64 -> 3.0212807e-06 | D59: ='DF raw data'!I64 -> 3.2594573e-06 | F59: -1.387485368e-06 | G59: 3.031921377e-06 | H59: 3.263577254e-06 | J59: 2.353883448e-06 | K59: -0.0001238128878 | L59: -2.968042761e-05 | M59: -0.0006823375221 | N59: 2.882994177e-08
A60: 28.33622667 | B60: ='DF raw data'!G65 -> -6.6451307e-06 | C60: ='DF raw data'!H65 -> 2.293302e-06 | D60: ='DF raw data'!I65 -> 6.3357757e-06 | F60: -6.653530145e-06 | G60: 2.301378802e-06 | H60: 6.34378412e-06 | J60: -9.738131186e-07 | K60: -0.0001242999307 | L60: -2.852941602e-05 | M60: -0.0006966062242 | N60: 2.923749379e-08
A61: 28.83636667 | B61: ='DF raw data'!G66 -> -9.7511784e-06 | C61: ='DF raw data'!H66 -> 1.8928873e-06 | D61: ='DF raw data'!I66 -> 2.2025663e-06 | F61: -9.763503889e-06 | G61: 1.899553878e-06 | H61: 2.205350344e-06 | J61: -5.856931954e-06 | K61: -0.0001272292166 | L61: -2.757937314e-05 | M61: -0.0007103997719 | N61: 2.963506782e-08
A62: 29.33650667 | B62: ='DF raw data'!G67 -> -4.1011795e-06 | C62: ='DF raw data'!H67 -> 1.1432934e-06 | D62: ='DF raw data'!I67 -> -2.126774e-06 | F62: -4.106363391e-06 | G62: 1.147319976e-06 | H62: -2.129462242e-06 | J62: -7.91068854e-06 | K62: -0.0001311856684 | L62: -2.700555253e-05 | M62: -0.000723906329 | N62: 3.003111811e-08
A63: 29.83664667 | B63: ='DF raw data'!G68 -> 2.2135951e-06 | C63: ='DF raw data'!H68 -> -1.5077711e-06 | D63: ='DF raw data'!I68 -> 1.0672986e-06 | F63: 2.216393084e-06 | G63: -1.513081333e-06 | H63: 1.068647665e-06 | J63: -6.802181703e-06 | K63: -0.0001345877116 | L63: -2.776230503e-05 | M63: -0.0007377913682 | N63: 3.043974012e-08
A64: 30.33678667 | B64: ='DF raw data'!G69 -> -9.5274152e-07 | C64: ='DF raw data'!H69 -> 3.6778758e-06 | D64: ='DF raw data'!I69 -> 5.2157438e-06 | F64: -9.539457853e-07 | G64: 3.690828946e-06 | H64: 5.2223365e-06 | J64: -7.279288148e-06 | K64: -0.0001382283747 | L64: -2.591637384e-05 | M64: -0.0007507531834 | N64: 3.080216481e-08
A65: 30.83692667 | B65: ='DF raw data'!G70 -> -5.924971e-06 | C65: ='DF raw data'!H70 -> 7.0838714e-06 | D65: ='DF raw data'!I70 -> 2.2911584e-06 | F65: -5.932460163e-06 | G65: 7.108820154e-06 | H65: 2.294054424e-06 | J65: -1.024634877e-05 | K65: -0.0001433529836 | L65: -2.236096853e-05 | M65: -0.0007619367982 | N65: 3.11047498e-08
A66: 31.33706667 | B66: ='DF raw data'!G71 -> -6.3677858e-06 | C66: ='DF raw data'!H71 -> -5.8727078e-06 | D66: ='DF raw data'!I71 -> -2.6079622e-06 | F66: -6.375834681e-06 | G66: -5.893390945e-06 | H66: -2.611258664e-06 | J66: -1.343515873e-05 | K66: -0.0001500724439 | L66: -2.530848908e-05 | M66: -0.0007745945859 | N66: 3.15153763e-08
A67: 31.83720667 | B67: ='DF raw data'!G72 -> -7.8761932e-06 | C67: ='DF raw data'!H72 -> -2.0024527e-05 | D67: ='DF raw data'!I72 -> 6.2550242e-07 | F67: -7.886148708e-06 | G67: -2.009505157e-05 | H67: 6.262930551e-07 | J67: -1.737933715e-05 | K67: -0.0001587645456 | L67: -3.535882817e-05 | M67: -0.0007922789503 | N67: 3.229173766e-08
A68: 32.33734667 | B68: ='DF raw data'!G73 -> -9.7672728e-06 | C68: ='DF raw data'!H73 -> -7.7956593e-06 | D68: ='DF raw data'!I73 -> -8.9012437e-06 | F68: -9.779618633e-06 | G68: -7.823114906e-06 | H68: -8.912494872e-06 | J68: -2.227051561e-05 | K68: -0.0001699029213 | L68: -3.927148086e-05 | M68: -0.0008119201887 | N68: 3.331113555e-08
A69: 32.83748667 | B69: ='DF raw data'!G74 -> -4.3647728e-06 | C69: ='DF raw data'!H74 -> 5.0381659e-06 | D69: ='DF raw data'!I74 -> -1.2288915e-05 | F69: -4.370289873e-06 | G69: 5.055909864e-06 | H69: -1.230444819e-05 | J69: -2.445627239e-05 | K69: -0.0001821344813 | L69: -3.67428181e-05 | M69: -0.0008302967417 | N69: 3.428548026e-08
A70: 33.33762667 | B70: ='DF raw data'!G75 -> 3.8058947e-06 | C70: ='DF raw data'!H75 -> -5.1972997e-06 | D70: ='DF raw data'!I75 -> -3.3622753e-06 | F70: 3.810705351e-06 | G70: -5.215604119e-06 | H70: -3.366525216e-06 | J70: -2.255038621e-05 | K70: -0.0001934128315 | L70: -3.935135034e-05 | M70: -0.0008499779261 | N70: 3.531429259e-08
A71: 33.83776667 | B71: ='DF raw data'!G76 -> 8.4836358e-07 | C71: ='DF raw data'!H76 -> -5.8200035e-06 | D71: ='DF raw data'!I76 -> 4.0098557e-06 | F71: 8.494359116e-07 | G71: =(1-$G$1*($B$2-$G$2))*C71*$M$2/$M$1 -> -5.840501025e-06 | H71: 4.014924158e-06 | J71: -2.212554934e-05 | K71: -0.0002044787037 | L71: -4.227241853e-05 | M71: -0.0008711200535 | N71: 3.645285995e-08
A72: =A71+$B$1 -> 34.33790667 | B72: ='DF raw data'!G77 -> -4.4898611e-06 | C72: ='DF raw data'!H77 -> -4.9495252e-06 | D72: ='DF raw data'!I77 -> 3.2443379e-06 | F72: -4.495536284e-06 | G72: -4.96695698e-06 | H72: 3.248438743e-06 | J72: =F72*$B$1+J71 -> -2.437394685e-05 | K72: =J72*$B$1+K71 -> -0.0002166690895 | L72: =G72*$B$1+L71 -> -4.475659239e-05 | M72: =L72*$B$1+M71 -> -0.0008935046156 | N72: =(J72^2+L72^2)*$B$1+N71 -> 3.775184449e-08
A73: 34.83804667 | B73: ='DF raw data'!G78 -> -4.8782081e-06 | C73: ='DF raw data'!H78 -> -3.936279e-06 | D73: ='DF raw data'!I78 -> -1.9265105e-06 | F73: -4.884374155e-06 | G73: -3.950142218e-06 | H73: -1.928945609e-06 | J73: -2.681681774e-05 | K73: -0.0002300812527 | L73: -4.673221652e-05 | M73: -0.0009168772664 | N73: 3.92037718e-08
A74: 35.33818667 | B74: ='DF raw data'!G79 -> -4.2228626e-06 | C74: ='DF raw data'!H79 -> -4.1538992e-06 | D74: ='DF raw data'!I79 -> -2.3534492e-06 | F74: -4.228200298e-06 | G74: -4.168528857e-06 | H74: -2.35642396e-06 | J74: -2.893150984e-05 | K74: -0.0002445510581 | L74: -4.881706454e-05 | M74: -0.000941292633 | N74: 4.081429165e-08
A75: 35.83832667 | B75: ='DF raw data'!G80 -> -2.9522184e-06 | C75: ='DF raw data'!H80 -> -8.3105551e-06 | D75: ='DF raw data'!I80 -> -1.4429213e-06 | F75: -2.955950004e-06 | G75: -8.339824122e-06 | H75: -1.444745153e-06 | J75: -3.040989868e-05 | K75: -0.0002597602648 | L75: -5.298814418e-05 | M75: -0.0009677941235 | N75: 4.268106688e-08
A76: 36.33846667 | B76: ='DF raw data'!G81 -> -1.0254589e-07 | C76: ='DF raw data'!H81 -> 3.740987e-06 | D76: ='DF raw data'!I81 -> 5.0899571e-06 | F76: -1.02675508e-07 | G76: 3.754162417e-06 | H76: 5.096390806e-06 | J76: -3.04612508e-05 | K76: -0.0002749951548 | L76: -5.111053739e-05 | M76: -0.0009933565476 | N76: 4.445164992e-08
A77: 36.83860667 | B77: ='DF raw data'!G82 -> 3.3839037e-06 | C77: ='DF raw data'!H82 -> 7.2127618e-06 | D77: ='DF raw data'!I82 -> 3.4446741e-06 | F77: 3.388180954e-06 | G77: 7.238164494e-06 | H77: 3.449028168e-06 | J77: -2.876668598e-05 | K77: -0.0002893825251 | L77: -4.74904418e-05 | M77: -0.001017108417 | N77: 4.599351366e-08
A78: 37.33874667 | B78: ='DF raw data'!G83 -> 2.0965831e-06 | C78: ='DF raw data'!H83 -> 7.8601506e-06 | D78: ='DF raw data'!I83 -> -4.3345035e-06 | F78: 2.099233181e-06 | G78: 7.887833339e-06 | H78: -4.339982312e-06 | J78: -2.77167755e-05 | K78: -0.0003032447932 | L78: -4.354542083e-05 | M78: -0.001038887224 | N78: 4.732609834e-08
A79: 37.83888667 | B79: ='DF raw data'!G84 -> -3.4155223e-06 | C79: ='DF raw data'!H84 -> 1.1915135e-05 | D79: ='DF raw data'!I84 -> -5.4801612e-06 | F79: -3.41983952e-06 | G79: 1.195709903e-05 | H79: -5.487088124e-06 | J79: -2.942717404e-05 | K79: -0.0003179625 | L79: -3.756519732e-05 | M79: -0.001057675082 | N79: 4.846496845e-08
A80: 38.33902667 | B80: ='DF raw data'!G85 -> -6.7297065e-06 | C80: ='DF raw data'!H85 -> 1.2310081e-05 | D80: ='DF raw data'!I85 -> -1.8214894e-06 | F80: -6.738212849e-06 | G80: 1.235343599e-05 | H80: -1.823791763e-06 | J80: -3.279722381e-05 | K80: -0.0003343657035 | L80: -3.138674985e-05 | M80: -0.001073372851 | N80: 4.949564994e-08
A81: 38.83916667 | B81: ='DF raw data'!G86 -> -6.4108449e-06 | C81: ='DF raw data'!H86 -> 7.9053825e-06 | D81: ='DF raw data'!I86 -> -8.8693605e-06 | F81: -6.418948208e-06 | G81: 7.933224541e-06 | H81: -8.880571372e-06 | J81: -3.600759657e-05 | K81: -0.0003523745429 | L81: -2.741902692e-05 | M81: -0.001087086203 | N81: 5.052011173e-08
A82: 39.33930667 | B82: ='DF raw data'!G87 -> -3.3829551e-06 | C82: ='DF raw data'!H87 -> 4.0637474e-06 | D82: ='DF raw data'!I87 -> -1.6162154e-05 | F82: -3.387231155e-06 | G82: 4.07805955e-06 | H82: -1.618258296e-05 | J82: -3.770168636e-05 | K82: -0.0003712306643 | L82: -2.537942622e-05 | M82: -0.001099779469 | N82: 5.155316712e-08
A83: 39.83944667 | B83: ='DF raw data'!G88 -> 1.9150189e-06 | C83: ='DF raw data'!H88 -> 7.5580715e-06 | D83: ='DF raw data'!I88 -> -7.8589337e-06 | F83: 1.917439484e-06 | G83: 7.584690343e-06 | H83: -7.868867392e-06 | J83: -3.674269817e-05 | K83: -0.0003896071574 | L83: -2.158601919e-05 | M83: -0.001110575501 | N83: 5.24614124e-08
A84: 40.33958667 | B84: ='DF raw data'!G89 -> 5.9141762e-06 | C84: ='DF raw data'!H89 -> 1.8607312e-06 | D84: ='DF raw data'!I89 -> 3.0474068e-06 | F84: 5.921651719e-06 | G84: 1.867284527e-06 | H84: 3.051258722e-06 | J84: -3.378104328e-05 | K84: -0.0004065024084 | L84: -2.065211551e-05 | M84: -0.00112090445 | N84: 5.324546626e-08
A85: 40.83972667 | B85: ='DF raw data'!G90 -> 3.741226e-06 | C85: ='DF raw data'!H90 -> 9.1055599e-06 | D85: ='DF raw data'!I90 -> 4.5203806e-06 | F85: 3.74595491e-06 | G85: 9.137628857e-06 | H85: 4.526094361e-06 | J85: -3.190754139e-05 | K85: -0.0004224606461 | L85: -1.608202181e-05 | M85: -0.001128947712 | N85: 5.388400631e-08
A86: 41.33986667 | B86: ='DF raw data'!G91 -> 1.1561511e-06 | C86: ='DF raw data'!H91 -> 1.5862717e-06 | D86: ='DF raw data'!I91 -> 5.4844159e-06 | F86: 1.157612475e-06 | G86: 1.591858405e-06 | H86: 5.491348202e-06 | J86: -3.132857309e-05 | K86: -0.0004381293187 | L86: -1.528586975e-05 | M86: -0.001136592787 | N86: 5.449174508e-08
A87: 41.84000667 | B87: ='DF raw data'!G92 -> -1.6184916e-06 | C87: ='DF raw data'!H92 -> 1.0205667e-05 | D87: ='DF raw data'!I92 -> -5.1443641e-07 | F87: =(1-$G$1*($B$2-$G$2))*B87 -> -1.620537373e-06 | G87: 1.024161043e-05 | H87: -5.150866576e-07 | J87: -3.213906865e-05 | K87: -0.0004542033525 | L87: -1.016363071e-05 | M87: -0.001141676025 | N87: 5.506001371e-08
A88: 42.34014667 | B88: ='DF raw data'!G93 -> -3.147185e-06 | C88: ='DF raw data'!H93 -> -3.5606813e-06 | D88: ='DF raw data'!I93 -> -6.0767053e-07 | F88: -3.151163042e-06 | G88: -3.573221697e-06 | H88: -6.084386255e-07 | J88: -3.371509134e-05 | K88: -0.0004710656182 | L88: -1.195074181e-05 | M88: -0.001147653069 | N88: 5.569995665e-08
A89: 42.84028667 | B89: ='DF raw data'!G94 -> -2.9205826e-06 | C89: ='DF raw data'!H94 -> -4.6028813e-06 | D89: ='DF raw data'!I94 -> -1.2709468e-06 | F89: -2.924274216e-06 | G89: -4.619092231e-06 | H89: -1.272553277e-06 | J89: -3.517763784e-05 | K89: -0.000488659362 | L89: -1.426093459e-05 | M89: -0.001154785533 | N89: 5.64205786e-08
A90: 43.34042667 | B90: ='DF raw data'!G95 -> -3.4591213e-07 | C90: ='DF raw data'!H95 -> -5.7591558e-07 | D90: ='DF raw data'!I95 -> -5.958148e-06 | F90: -3.463493629e-07 | G90: -5.779439025e-07 | H90: -5.965679099e-06 | J90: -3.535086101e-05 | K90: -0.0005063397416 | L90: -1.454998746e-05 | M90: -0.001162062564 | N90: 5.715147595e-08
A91: 43.84056667 | B91: ='DF raw data'!G96 -> -5.5304406e-07 | C91: ='DF raw data'!H96 -> -4.7285698e-06 | D91: ='DF raw data'!I96 -> -6.7323826e-06 | F91: -5.537431077e-07 | G91: -4.745223395e-06 | H91: -6.740892332e-06 | J91: -3.562781009e-05 | K91: -0.0005241586346 | L91: -1.692326349e-05 | M91: -0.001170526565 | N91: 5.79295626e-08
A92: 44.34070667 | B92: ='DF raw data'!G97 -> -2.3570742e-06 | C92: ='DF raw data'!H97 -> -7.8448938e-06 | D92: ='DF raw data'!I97 -> 5.2130808e-06 | F92: -2.360053542e-06 | G92: -7.872522806e-06 | H92: 5.219670134e-06 | J92: -3.680816727e-05 | K92: -0.0005425678714 | L92: -2.086062704e-05 | M92: -0.001180959799 | N92: 5.882481667e-08
A93: 44.84084667 | B93: ='DF raw data'!G98 -> 3.199822e-06 | C93: ='DF raw data'!H98 -> 3.5727353e-06 | D93: ='DF raw data'!I98 -> 9.7113398e-06 | F93: 3.203866575e-06 | G93: 3.58531815e-06 | H93: 9.723614934e-06 | J93: -3.520578544e-05 | K93: -0.0005601756929 | L93: -1.906746602e-05 | M93: -0.001190496201 | N93: 5.962654889e-08
A94: 45.34098667 | B94: ='DF raw data'!G99 -> 9.477737e-06 | C94: ='DF raw data'!H99 -> 8.8186916e-06 | D94: ='DF raw data'!I99 -> -2.1257438e-08 | F94: 9.48971686e-06 | G94: 8.849750233e-06 | H94: -2.12843074e-08 | J94: -3.045959845e-05 | K94: -0.0005754097565 | L94: -1.464135194e-05 | M94: -0.001197818927 | N94: 6.019778695e-08
A95: 45.84112667 | B95: ='DF raw data'!G100 -> 7.5617004e-06 | C95: ='DF raw data'!H100 -> -3.1343816e-06 | D95: ='DF raw data'!I100 -> -1.8149701e-06 | F95: 7.571258389e-06 | G95: -3.145420608e-06 | H95: -1.817264222e-06 | J95: -2.667290928e-05 | K95: -0.0005887499453 | L95: -1.62145026e-05 | M95: -0.001205928449 | N95: 6.068510046e-08
A96: 46.34126667 | B96: ='DF raw data'!G101 -> 2.0811581e-06 | C96: ='DF raw data'!H101 -> 1.871539e-06 | D96: ='DF raw data'!I101 -> 6.5379135e-07 | F96: 2.083788684e-06 | G96: 1.878130391e-06 | H96: 6.546177423e-07 | J96: -2.563072321e-05 | K96: -0.0006015688952 | L96: -1.527517447e-05 | M96: -0.001213568174 | N96: 6.113035756e-08
A97: 46.84140667 | B97: ='DF raw data'!G102 -> 1.2809047e-06 | C97: ='DF raw data'!H102 -> 1.7607944e-06 | D97: ='DF raw data'!I102 -> -1.4359364e-06 | F97: 1.282523764e-06 | G97: 1.766995758e-06 | H97: -1.437751424e-06 | J97: -2.498928177e-05 | K97: -0.0006140670346 | L97: -1.439142921e-05 | M97: -0.001220765904 | N97: 6.15462627e-08
A98: 47.34154667 | B98: ='DF raw data'!G103 -> 6.4927603e-06 | C98: ='DF raw data'!H103 -> 7.4519971e-06 | D98: ='DF raw data'!I103 -> -6.4341003e-07 | F98: 6.500967149e-06 | G98: 7.478242359e-06 | H98: -6.442233003e-07 | J98: -2.173788806e-05 | K98: -0.0006249390219 | L98: -1.065126108e-05 | M98: -0.001226093025 | N98: 6.18393373e-08
A99: 47.84168667 | B99: ='DF raw data'!G104 -> 6.6109801e-06 | C99: ='DF raw data'!H104 -> 3.7528621e-06 | D99: ='DF raw data'!I104 -> 6.1540222e-06 | F99: 6.619336379e-06 | G99: 3.76607934e-06 | H99: 6.161800884e-06 | J99: -1.842729317e-05 | K99: -0.0006341552483 | L99: -8.767694157e-06 | M99: -0.0012304781 | N99: 6.20476144e-08
A100: 48.34182667 | B100: ='DF raw data'!G105 -> 1.2005345e-06 | C100: ='DF raw data'!H105 -> -3.5721564e-06 | D100: ='DF raw data'!I105 -> 2.83416e-07 | F100: 1.202051976e-06 | G100: -3.584737211e-06 | H100: 2.837742378e-07 | J100: -1.782609889e-05 | K100: -0.0006430707934 | L100: -1.056056463e-05 | M100: -0.001235759861 | N100: 6.226232217e-08
A101: 48.84196667 | B101: ='DF raw data'!G106 -> -8.0033931e-07 | C101: ='DF raw data'!H106 -> 7.4051641e-06 | D101: ='DF raw data'!I106 -> -6.5950708e-06 | F101: -8.013509389e-07 | G101: 7.431244417e-06 | H101: -6.603406969e-06 | J101: -1.822688655e-05 | K101: -0.0006521867885 | L101: -6.843902043e-06 | M101: -0.00123918277 | N101: 6.245190443e-08
A102: 49.34210667 | B102: ='DF raw data'!G107 -> 1.9213635e-06 | C102: ='DF raw data'!H107 -> 6.9128178e-06 | D102: ='DF raw data'!I107 -> -6.436615e-06 | F102: 1.923792103e-06 | G102: 6.937164118e-06 | H102: -6.444750881e-06 | J102: -1.726472117e-05 | K102: -0.0006608215661 | L102: -3.374348781e-06 | M102: -0.001240870417 | N102: 6.260667617e-08
A103: 49.84224667 | B103: ='DF raw data'!G108 -> 2.5755739e-06 | C103: ='DF raw data'!H108 -> -1.5848791e-05 | D103: ='DF raw data'!I108 -> 1.1943048e-07 | F103: 2.578829425e-06 | G103: -1.590460901e-05 | H103: 1.195814401e-07 | J103: -1.597494542e-05 | K103: -0.0006688112753 | L103: -1.132887993e-05 | M103: -0.001246536443 | N103: 6.279850106e-08
A104: 50.34238667 | B104: ='DF raw data'!G109 -> -3.7635473e-07 | C104: ='DF raw data'!H109 -> -9.4520246e-06 | D104: ='DF raw data'!I109 -> 8.4368976e-06 | F104: -3.768304424e-07 | G104: -9.485313775e-06 | H104: 8.447561839e-06 | J104: -1.61634134e-05 | K104: -0.0006768952449 | L104: -1.607286476e-05 | M104: -0.001254575125 | N104: 6.305837026e-08
A105: 50.84252667 | B105: ='DF raw data'!G110 -> -2.3092857e-06 | C105: ='DF raw data'!H110 -> 6.7572419e-06 | D105: ='DF raw data'!I110 -> 2.5673537e-06 | F105: -2.312204637e-06 | G105: 6.781040294e-06 | H105: 2.570598835e-06 | J105: -1.731983942e-05 | K105: -0.0006855575894 | L105: -1.268139527e-05 | M105: -0.001260917598 | N105: 6.328883209e-08
A106: 51.34266667 | B106: ='DF raw data'!G111 -> -8.0348252e-07 | C106: ='DF raw data'!H111 -> 5.6000276e-06 | D106: ='DF raw data'!I111 -> -6.2732843e-06 | F106: -8.044981219e-07 | G106: 5.61975039e-06 | H106: -6.281213731e-06 | J106: -1.772220111e-05 | K106: -0.0006944211711 | L106: -9.870733308e-06 | M106: -0.001265854347 | N106: 6.349464359e-08
A107: 51.84280667 | B107: ='DF raw data'!G112 -> 5.4978592e-08 | C107: ='DF raw data'!H112 -> 4.1702224e-06 | D107: ='DF raw data'!I112 -> -5.2002988e-06 | F107: 5.504808494e-08 | G107: 4.184909546e-06 | H107: -5.206871978e-06 | J107: -1.769466936e-05 | K107: -0.000703270983 | L107: -7.777692648e-06 | M107: -0.001269744282 | N107: 6.368149281e-08
A108: 52.34294667 | B108: ='DF raw data'!G113 -> -2.0688313e-07 | C108: ='DF raw data'!H113 -> 6.326939e-06 | D108: ='DF raw data'!I113 -> 2.3214409e-06 | F108: -2.071446303e-07 | G108: 6.349221906e-06 | H108: 2.324375201e-06 | J108: -1.779827068e-05 | K108: -0.0007121726101 | L108: -4.602192804e-06 | M108: -0.001272046023 | N108: 6.385051943e-08
A109: 52.84308667 | B109: ='DF raw data'!G114 -> 2.5509376e-06 | C109: ='DF raw data'!H114 -> -3.0604633e-06 | D109: ='DF raw data'!I114 -> 5.167286e-06 | F109: 2.554161985e-06 | G109: -3.071241975e-06 | H109: 5.17381745e-06 | J109: -1.65208321e-05 | K109: -0.0007204353391 | L109: -6.138243765e-06 | M109: -0.001275116004 | N109: 6.400587088e-08
A110: 53.34322667 | B110: ='DF raw data'!G115 -> 9.5609739e-06 | C110: ='DF raw data'!H115 -> -1.3199054e-06 | D110: ='DF raw data'!I115 -> -1.6406527e-06 | F110: 9.573058971e-06 | G110: -1.324553987e-06 | H110: -1.642726485e-06 | J110: -1.173296239e-05 | K110: -0.0007263034629 | L110: -6.800706196e-06 | M110: -0.001278517309 | N110: 6.409785264e-08
A111: 53.84336667 | B111: ='DF raw data'!G116 -> 1.2698672e-05 | C111: ='DF raw data'!H116 -> 1.2434972e-06 | D111: ='DF raw data'!I116 -> -1.0979827e-06 | F111: 1.271472312e-05 | G111: 1.247876685e-06 | H111: -1.09937055e-06 | J111: -5.373820769e-06 | K111: -0.0007289911256 | L111: -6.176593151e-06 | M111: -0.001281606471 | N111: 6.413137615e-08
A112: 54.34350667 | B112: ='DF raw data'!G117 -> 4.8607485e-06 | C112: ='DF raw data'!H117 -> -1.0901439e-06 | D112: ='DF raw data'!I117 -> 2.780059e-06 | F112: 4.866892486e-06 | G112: -1.093983288e-06 | H112: 2.783572995e-06 | J112: -2.939693161e-06 | K112: -0.0007304613837 | L112: -6.723737953e-06 | M112: -0.001284969281 | N112: 6.415830891e-08
A113: 54.84364667 | B113: ='DF raw data'!G118 -> -3.7545383e-06 | C113: ='DF raw data'!H118 -> 2.8052623e-06 | D113: ='DF raw data'!I118 -> 7.4909184e-07 | F113: -3.759284036e-06 | G113: 2.81514218e-06 | H113: 7.500386921e-07 | J113: -4.819861479e-06 | K113: -0.0007328719892 | L113: -5.315772743e-06 | M113: -0.001287627911 | N113: 6.418406037e-08
A114: 55.34378667 | B114: ='DF raw data'!G119 -> -1.9101849e-06 | C114: ='DF raw data'!H119 -> 4.9597106e-06 | D114: ='DF raw data'!I119 -> -1.5613884e-06 | F114: -1.912599374e-06 | G114: 4.977178252e-06 | H114: -1.563361995e-06 | J114: -5.776428929e-06 | K114: -0.0007357610124 | L114: -2.826486812e-06 | M114: -0.001289041551 | N114: 6.420474424e-08
A115: 55.84392667 | B115: ='DF raw data'!G120 -> -8.8328669e-08 | C115: ='DF raw data'!H120 -> -3.0487217e-06 | D115: ='DF raw data'!I120 -> 2.8458192e-06 | F115: -8.844031644e-08 | G115: -3.059459022e-06 | H115: 2.849416315e-06 | J115: -5.820661469e-06 | K115: -0.000738672158 | L115: -4.356644647e-06 | M115: -0.001291220483 | N115: 6.423118187e-08
A116: 56.34406667 | B116: ='DF raw data'!G121 -> -5.8025457e-06 | C116: ='DF raw data'!H121 -> -3.1656036e-06 | D116: ='DF raw data'!I121 -> 3.1842385e-06 | F116: -5.809880118e-06 | G116: -3.176752569e-06 | H116: 3.188263377e-06 | J116: -8.726414911e-06 | K116: -0.0007430365872 | L116: -5.945465677e-06 | M116: -0.001294194048 | N116: 6.428694692e-08
A117: 56.84420667 | B117: ='DF raw data'!G122 -> -7.6085257e-06 | C117: ='DF raw data'!H122 -> 5.2819416e-07 | D117: ='DF raw data'!I122 -> -7.1907971e-06 | F117: -7.618142876e-06 | G117: 5.30054412e-07 | H117: -7.199886268e-06 | J117: -1.253655289e-05 | K117: -0.0007493066188 | L117: -5.680364264e-06 | M117: -0.001297035025 | N117: 6.438168928e-08
A118: 57.34434667 | B118: ='DF raw data'!G123 -> -4.0744039e-06 | C118: ='DF raw data'!H123 -> -1.6577432e-06 | D118: ='DF raw data'!I123 -> -1.2549132e-05 | F118: -4.079553947e-06 | G118: -1.663581621e-06 | H118: -1.25649941e-05 | J118: -1.4576901e-05 | K118: -0.00075659711 | L118: -6.512387976e-06 | M118: -0.001300292131 | N118: 6.450917359e-08
A119: 57.84448667 | B119: ='DF raw data'!G124 -> 1.2436518e-06 | C119: ='DF raw data'!H124 -> -4.7445806e-06 | D119: ='DF raw data'!I124 -> -9.5789555e-06 | F119: 1.245223776e-06 | G119: -4.761290583e-06 | H119: -9.5910633e-06 | J119: -1.395411478e-05 | K119: -0.000763576121 | L119: -8.893699848e-06 | M119: -0.001304740226 | N119: 6.464611953e-08
A120: 58.34462667 | B120: ='DF raw data'!G125 -> 9.1704296e-06 | C120: ='DF raw data'!H125 -> -7.3349327e-07 | D120: ='DF raw data'!I125 -> -5.1193756e-06 | F120: 9.182021023e-06 | G120: -7.360765669e-07 | H120: -5.125846491e-06 | J120: -9.361818787e-06 | K120: -0.000768258341 | L120: -9.261841182e-06 | M120: -0.001309372443 | N120: 6.473285649e-08
A121: 58.84476667 | B121: ='DF raw data'!G126 -> 5.1907568e-06 | C121: ='DF raw data'!H126 -> -2.49193e-06 | D121: ='DF raw data'!I126 -> 2.9377291e-06 | F121: 5.197317917e-06 | G121: -2.500706352e-06 | H121: 2.94144239e-06 | J121: -6.762432204e-06 | K121: -0.0007716405039 | L121: -1.051254446e-05 | M121: -0.001314630187 | N121: 6.48110004e-08
A122: 59.34490667 | B122: ='DF raw data'!G127 -> -3.8488638e-06 | C122: ='DF raw data'!H127 -> -3.7494815e-06 | D122: ='DF raw data'!I127 -> 3.4658326e-06 | F122: -3.853728764e-06 | G122: -3.762686834e-06 | H122: 3.470213412e-06 | J122: -8.689836108e-06 | K122: -0.0007759866385 | L122: -1.239441465e-05 | M122: -0.00132082913 | N122: 6.492559986e-08
A123: 59.84504667 | B123: ='DF raw data'!G128 -> -5.6511622e-06 | C123: ='DF raw data'!H128 -> 3.6119629e-06 | D123: ='DF raw data'!I128 -> -1.1547497e-06 | F123: -5.658305269e-06 | G123: 3.624683906e-06 | H123: -1.156209304e-06 | J123: -1.151978091e-05 | K123: -0.0007817481417 | L123: -1.058156524e-05 | M123: -0.001326121394 | N123: 6.504797156e-08
A124: 60.34518667 | B124: ='DF raw data'!G129 -> -7.6344859e-06 | C124: ='DF raw data'!H129 -> 3.0550436e-07 | D124: ='DF raw data'!I129 -> 2.5147776e-06 | F124: -7.64413589e-06 | G124: 3.065803187e-07 | H124: 2.517956279e-06 | J124: -1.534291903e-05 | K124: -0.0007894217493 | L124: -1.042823216e-05 | M124: -0.00133133697 | N124: 6.522009633e-08
A125: 60.84532667 | B125: ='DF raw data'!G130 -> -7.2612297e-06 | C125: ='DF raw data'!H130 -> -3.5564121e-06 | D125: ='DF raw data'!I130 -> 5.5710143e-06 | F125: -7.270407894e-06 | G125: -3.568937461e-06 | H125: 5.578056062e-06 | J125: -1.897914083e-05 | K125: -0.0007989139768 | L125: -1.221320054e-05 | M125: -0.00133744528 | N125: 6.547485267e-08
A126: 61.34546667 | B126: ='DF raw data'!G131 -> -7.9853326e-06 | C126: ='DF raw data'!H131 -> -5.1518005e-06 | D126: ='DF raw data'!I131 -> 2.6164082e-06 | F126: -7.99542606e-06 | G126: -5.169944675e-06 | H126: 2.61971534e-06 | J126: -2.297797322e-05 | K126: -0.0008104061803 | L126: -1.479889667e-05 | M126: -0.0013448468 | N126: 6.584845455e-08
A127: 61.84560667 | B127: ='DF raw data'!G132 -> -1.2387723e-05 | C127: ='DF raw data'!H132 -> 4.5877159e-06 | D127: ='DF raw data'!I132 -> -2.2112799e-07 | F127: -1.240338108e-05 | G127: 4.60387342e-06 | H127: -2.214074958e-07 | J127: -2.918140024e-05 | K127: -0.0008250009658 | L127: -1.249631542e-05 | M127: -0.001351096708 | N127: 6.635245164e-08
A128: 62.34574667 | B128: ='DF raw data'!G133 -> -1.0491565e-05 | C128: ='DF raw data'!H133 -> 1.0469053e-05 | D128: ='DF raw data'!I133 -> 3.6893761e-07 | F128: -1.050482634e-05 | G128: 1.050592406e-05 | H128: 3.694039471e-07 | J128: -3.443528408e-05 | K128: -0.0008422234288 | L128: -7.241882563e-06 | M128: -0.001354718663 | N128: 6.697174182e-08
A129: 62.84588667 | B129: ='DF raw data'!G134 -> -5.6638514e-06 | C129: ='DF raw data'!H134 -> 6.1732351e-07 | D129: ='DF raw data'!I134 -> 4.4399812e-06 | F129: -5.671010508e-06 | G129: 6.194976675e-07 | H129: 4.445593336e-06 | J129: -3.727158328e-05 | K129: -0.0008608644384 | L129: -6.932046999e-06 | M129: -0.001358185657 | N129: 6.769055513e-08
A130: 63.34602667 | B130: ='DF raw data'!G135 -> -3.6317929e-06 | C130: ='DF raw data'!H135 -> -6.2274908e-06 | D130: ='DF raw data'!I135 -> 1.1969416e-06 | F130: -3.636383486e-06 | G130: -6.249423459e-06 | H130: 1.198454534e-06 | J130: -3.909028411e-05 | K130: -0.0008804150531 | L130: -1.005763365e-05 | M130: -0.001363215882 | N130: 6.850538637e-08
A131: 63.84616667 | B131: ='DF raw data'!G136 -> -5.0669755e-06 | C131: ='DF raw data'!H136 -> -1.4881553e-07 | D131: ='DF raw data'!I136 -> -7.7271661e-06 | F131: -5.073380157e-06 | G131: -1.493396448e-07 | H131: -7.736933238e-06 | J131: -4.162768447e-05 | K131: -0.0009012347232 | L131: -1.013232438e-05 | M131: -0.001368283462 | N131: 6.94234074e-08
A132: 64.34630667 | B132: ='DF raw data'!G137 -> -8.2144088e-06 | C132: ='DF raw data'!H137 -> 4.6731093e-06 | D132: ='DF raw data'!I137 -> -5.9180866e-06 | F132: -8.224791813e-06 | G132: 4.689567568e-06 | H132: -5.925567061e-06 | J132: -4.574123184e-05 | K132: -0.0009241117429 | L132: -7.786884055e-06 | M132: -0.001372177994 | N132: 7.050015673e-08
A133: 64.84644667 | B133: ='DF raw data'!G138 -> -6.6187044e-06 | C133: ='DF raw data'!H138 -> 8.5375643e-07 | D133: ='DF raw data'!I138 -> 2.4610665e-06 | F133: -6.627070442e-06 | G133: 8.567632828e-07 | H133: 2.464177288e-06 | J133: -4.905569485e-05 | K133: -0.0009486464582 | L133: -7.358382466e-06 | M133: -0.001375858216 | N133: 7.173080471e-08
A134: 65.34658667 | B134: ='DF raw data'!G139 -> 1.8885927e-06 | C134: ='DF raw data'!H139 -> -5.6585573e-06 | D134: ='DF raw data'!I139 -> 1.9137515e-07 | F134: 1.890979881e-06 | G134: -5.678486226e-06 | H134: 1.916170482e-07 | J134: -4.810994018e-05 | K134: -0.0009727081636 | L134: -1.019842057e-05 | M134: -0.001380958854 | N134: 7.294043037e-08
A135: 65.84672667 | B135: ='DF raw data'!G140 -> 8.0237969e-06 | C135: ='DF raw data'!H140 -> -1.4729466e-06 | D135: ='DF raw data'!I140 -> -5.5616956e-06 | F135: 8.033938979e-06 | G135: =(1-$G$1*($B$2-$G$2))*C135*$M$2/$M$1 -> -1.478134185e-06 | H135: -5.568725583e-06 | J135: -4.409184594e-05 | K135: -0.0009947602595 | L135: -1.09376946e-05 | M135: -0.001386429232 | N135: 7.397258132e-08
A136: =A135+$B$1 -> 66.34686667 | B136: ='DF raw data'!G141 -> 3.2926632e-06 | C136: ='DF raw data'!H141 -> -7.9913923e-07 | D136: ='DF raw data'!I141 -> -3.2602518e-06 | F136: 3.296825126e-06 | G136: -8.01953726e-07 | H136: -3.264372758e-06 | J136: =F136*$B$1+J135 -> -4.244297182e-05 | K136: =J136*$B$1+K135 -> -0.001015987687 | L136: =G136*$B$1+L135 -> -1.133878374e-05 | M136: =L136*$B$1+M135 -> -0.001392100212 | N136: =(J136^2+L136^2)*$B$1+N135 -> 7.493783845e-08
A137: 66.84700667 | B137: ='DF raw data'!G142 -> -1.8843275e-08 | C137: ='DF raw data'!H142 -> -1.0659936e-06 | D137: ='DF raw data'!I142 -> 1.2224948e-06 | F137: -1.88670929e-08 | G137: -1.069747933e-06 | H137: 1.224040033e-06 | J137: -4.245240801e-05 | K137: -0.001037219835 | L137: -1.187380747e-05 | M137: -0.001398038778 | N137: 7.590970762e-08
A138: 67.34714667 | B138: ='DF raw data'!G143 -> 3.9371967e-06 | C138: ='DF raw data'!H143 -> 1.8625993e-06 | D138: ='DF raw data'!I143 -> 5.5265436e-06 | F138: 3.942173317e-06 | G138: 1.869159206e-06 | H138: 5.533529151e-06 | J138: -4.048076944e-05 | K138: -0.001057465887 | L138: -1.093896618e-05 | M138: -0.001403509792 | N138: 7.678913063e-08
A139: 67.84728667 | B139: ='DF raw data'!G144 -> 4.9159439e-06 | C139: ='DF raw data'!H144 -> -5.5419418e-06 | D139: ='DF raw data'!I144 -> 9.4949673e-06 | F139: 4.922157653e-06 | G139: -5.561460017e-06 | H139: 9.506968939e-06 | J139: -3.801900151e-05 | K139: -0.00107648071 | L139: -1.372047479e-05 | M139: -0.001410371951 | N139: 7.76062073e-08
A140: 68.34742667 | B140: ='DF raw data'!G145 -> 5.9723257e-06 | C140: ='DF raw data'!H145 -> 5.0876674e-06 | D140: ='DF raw data'!I145 -> 1.1405605e-05 | F140: 5.97987472e-06 | G140: 5.105585704e-06 | H140: 1.142002168e-05 | J140: -3.502822697e-05 | K140: -0.001093999728 | L140: -1.116696716e-05 | M140: -0.001415956998 | N140: 7.828223545e-08
A141: 68.84756667 | B141: ='DF raw data'!G146 -> 1.3374389e-06 | C141: ='DF raw data'!H146 -> 5.6735462e-06 | D141: ='DF raw data'!I146 -> 8.2246579e-06 | F141: 1.339129423e-06 | G141: 5.693527916e-06 | H141: 8.235053868e-06 | J141: -3.435847478e-05 | K141: -0.001111183775 | L141: -8.319406108e-06 | M141: -0.001420117865 | N141: 7.890726907e-08
A142: 69.34770667 | B142: ='DF raw data'!G147 -> -7.3533433e-06 | C142: ='DF raw data'!H147 -> -1.2925528e-06 | D142: ='DF raw data'!I147 -> 2.3951754e-06 | F142: -7.362637926e-06 | G142: -1.297105054e-06 | H142: 2.398202902e-06 | J142: -3.804082451e-05 | K142: -0.001130209513 | L142: -8.96814023e-06 | M142: -0.001424603191 | N142: 7.967124886e-08
A143: 69.84784667 | B143: ='DF raw data'!G148 -> -4.8862116e-06 | C143: ='DF raw data'!H148 -> 2.1938988e-06 | D143: ='DF raw data'!I148 -> 4.815086e-06 | F143: -4.892387771e-06 | G143: 2.201625513e-06 | H143: 4.821172269e-06 | J143: -4.048770333e-05 | K143: -0.001150459033 | L143: -7.867019246e-06 | M143: -0.001428537802 | N143: 8.052205907e-08
A144: 70.34798667 | B144: ='DF raw data'!G149 -> 1.1315148e-06 | C144: ='DF raw data'!H149 -> 6.3493549e-06 | D144: ='DF raw data'!I149 -> 1.0490886e-05 | F144: 1.132945035e-06 | G144: 6.371716753e-06 | H144: 1.050414648e-05 | J144: -3.99210722e-05 | K144: -0.001170425158 | L144: -4.680268829e-06 | M144: -0.001430878592 | N144: 8.133008372e-08
A145: 70.84812667 | B145: ='DF raw data'!G150 -> -3.7746345e-06 | C145: ='DF raw data'!H150 -> 3.5261692e-06 | D145: ='DF raw data'!I150 -> 9.7904003e-06 | F145: -3.779405638e-06 | G145: 3.538588049e-06 | H145: 9.802775366e-06 | J145: -4.181130414e-05 | K145: -0.001191336664 | L145: -2.910479402e-06 | M145: -0.001432334239 | N145: 8.220865767e-08
A146: 71.34826667 | B146: ='DF raw data'!G151 -> -6.9459043e-06 | C146: ='DF raw data'!H151 -> -5.0546655e-06 | D146: ='DF raw data'!I151 -> 3.7800376e-06 | F146: -6.954683923e-06 | G146: -5.072467574e-06 | H146: 3.784815568e-06 | J146: -4.528961976e-05 | K146: -0.001213987814 | L146: -5.447423335e-06 | M146: -0.001435058713 | N146: 8.324936103e-08
A147: 71.84840667 | B147: ='DF raw data'!G152 -> -2.9812495e-06 | C147: ='DF raw data'!H152 -> -7.5622961e-06 | D147: ='DF raw data'!I152 -> -1.4141813e-06 | F147: -2.985017799e-06 | G147: -7.588929822e-06 | H147: -1.415968825e-06 | J147: -4.678254656e-05 | K147: -0.001237385637 | L147: -9.242950696e-06 | M147: -0.001439681483 | N147: 8.438669879e-08
A148: 72.34854667 | B148: ='DF raw data'!G153 -> -1.4940728e-06 | C148: ='DF raw data'!H153 -> 3.1301574e-06 | D148: ='DF raw data'!I153 -> -4.3390291e-06 | F148: -1.495961308e-06 | G148: 3.141181531e-06 | H148: -4.344513633e-06 | J148: -4.753073665e-05 | K148: -0.00126115766 | L148: -7.671920165e-06 | M148: -0.001443518517 | N148: 8.554603796e-08
A149: 72.84868667 | B149: ='DF raw data'!G154 -> -1.9266591e-07 | C149: ='DF raw data'!H154 -> 3.3912743e-06 | D149: ='DF raw data'!I154 -> -1.1846248e-06 | F149: -1.929094397e-07 | G149: 3.403218061e-06 | H149: -1.186122166e-06 | J149: -4.762721838e-05 | K149: -0.001284977937 | L149: -5.969834684e-06 | M149: -0.00144650427 | N149: 8.669835595e-08
A150: 73.34882667 | B150: ='DF raw data'!G155 -> 3.7518344e-06 | C150: ='DF raw data'!H155 -> -2.6680536e-06 | D150: ='DF raw data'!I155 -> 6.6497187e-06 | F150: 3.756576719e-06 | G150: -2.677450243e-06 | H150: 6.658123944e-06 | J150: -4.57484041e-05 | K150: -0.001307858544 | L150: -7.308934649e-06 | M150: -0.00145015976 | N150: 8.777182494e-08
A151: 73.84896667 | B151: ='DF raw data'!G156 -> 5.54399e-06 | C151: ='DF raw data'!H156 -> 8.6583123e-06 | D151: ='DF raw data'!I156 -> 9.3971348e-06 | F151: =(1-$G$1*($B$2-$G$2))*B151 -> 5.550997603e-06 | G151: 8.688806092e-06 | H151: 9.409012778e-06 | J151: -4.297212815e-05 | K151: -0.001329350624 | L151: -2.96331517e-06 | M151: -0.001451641833 | N151: 8.869977721e-08
A152: 74.34910667 | B152: ='DF raw data'!G157 -> 1.9411832e-06 | C152: ='DF raw data'!H157 -> -1.6109053e-07 | D152: ='DF raw data'!I157 -> 8.2577926e-06 | F152: 1.943636856e-06 | G152: -1.616578763e-07 | H152: 8.26823045e-06 | J152: -4.200003762e-05 | K152: -0.001350356523 | L152: -3.04416674e-06 | M152: -0.001453164342 | N152: 8.958666052e-08
A153: 74.84924667 | B153: ='DF raw data'!G158 -> -2.7157207e-06 | C153: ='DF raw data'!H158 -> -1.2732197e-05 | D153: ='DF raw data'!I158 -> 5.3685535e-06 | F153: -2.719153371e-06 | G153: -1.277703864e-05 | H153: 5.375339352e-06 | J153: -4.335999498e-05 | K153: -0.00137204259 | L153: -9.434474848e-06 | M153: -0.001457882901 | N153: 9.057148543e-08
A154: 75.34938667 | B154: ='DF raw data'!G159 -> -1.6412508e-06 | C154: ='DF raw data'!H159 -> 3.1656491e-06 | D154: ='DF raw data'!I159 -> 2.73927e-06 | F154: -1.643325341e-06 | G154: 3.176798229e-06 | H154: 2.742732437e-06 | J154: -4.418188772e-05 | K154: -0.00139413972 | L154: -7.845630982e-06 | M154: -0.001461806815 | N154: 9.15785639e-08
A155: 75.84952667 | B155: ='DF raw data'!G160 -> 5.2576374e-06 | C155: ='DF raw data'!H160 -> 1.2483007e-06 | D155: ='DF raw data'!I160 -> 2.7067174e-06 | F155: 5.264283054e-06 | G155: 1.252697102e-06 | H155: 2.710138691e-06 | J155: -4.154900919e-05 | K155: -0.001414920041 | L155: -7.219107053e-06 | M155: -0.001465417379 | N155: 9.246803072e-08
A156: 76.34966667 | B156: ='DF raw data'!G161 -> 8.5038646e-06 | C156: ='DF raw data'!H161 -> -2.3806515e-06 | D156: ='DF raw data'!I161 -> -2.0308623e-06 | F156: 8.514613485e-06 | G156: -2.389035939e-06 | H156: -2.03342931e-06 | J156: -3.729051041e-05 | K156: -0.001433570517 | L156: -8.413959488e-06 | M156: -0.001469625536 | N156: 9.319892375e-08
A157: 76.84980667 | B157: ='DF raw data'!G162 -> 4.9265523e-06 | C157: ='DF raw data'!H162 -> -6.9573332e-07 | D157: ='DF raw data'!I162 -> -9.3588724e-06 | F157: 4.932779462e-06 | G157: -6.981836297e-07 | H157: -9.370702015e-06 | J157: -3.482343009e-05 | K157: -0.001450987107 | L157: -8.763149048e-06 | M157: -0.001474008338 | N157: 9.384383631e-08
A158: 77.34994667 | B158: ='DF raw data'!G163 -> -2.451065e-06 | C158: ='DF raw data'!H163 -> -2.5039385e-06 | D158: ='DF raw data'!I163 -> -2.7980423e-08 | F158: -2.454163146e-06 | G158: -2.512757145e-06 | H158: -2.801579025e-08 | J158: -3.605085524e-05 | K158: -0.001469017582 | L158: -1.001987941e-05 | M158: -0.00147901968 | N158: 9.454406339e-08
A159: 77.85008667 | B159: ='DF raw data'!G164 -> -9.1853417e-06 | C159: ='DF raw data'!H164 -> 8.8407069e-06 | D159: ='DF raw data'!I164 -> 6.8156396e-06 | F159: -9.196951972e-06 | G159: 8.871843069e-06 | H159: 6.824254568e-06 | J159: -4.06506188e-05 | K159: -0.001489348583 | L159: -5.582715814e-06 | M159: -0.00148181182 | N159: 9.538611886e-08
A160: 78.35022667 | B160: ='DF raw data'!G165 -> -1.0722388e-05 | C160: ='DF raw data'!H165 -> 7.5145745e-06 | D160: ='DF raw data'!I165 -> -1.60372e-06 | F160: -1.07359411e-05 | G160: 7.541040151e-06 | H160: -1.605747102e-06 | J160: -4.602009238e-05 | K160: -0.001512365072 | L160: -1.811139993e-06 | M160: -0.001482717643 | N160: 9.644698039e-08
A161: 78.85036667 | B161: ='DF raw data'!G166 -> -9.1268139e-06 | C161: ='DF raw data'!H166 -> 8.6836635e-06 | D161: ='DF raw data'!I166 -> -1.714041e-07 | F161: -9.138350193e-06 | G161: 8.714246576e-06 | H161: -1.716207548e-07 | J161: -5.059054685e-05 | K161: -0.001537667428 | L161: 2.54720329e-06 | M161: -0.001481443685 | N161: 9.773028545e-08
A162: 79.35050667 | B162: ='DF raw data'!G167 -> -3.4543759e-06 | C162: ='DF raw data'!H167 -> 1.0155231e-05 | D162: ='DF raw data'!I167 -> 6.2183126e-06 | F162: -3.458742231e-06 | G162: 1.01909968e-05 | H162: 6.226172547e-06 | J162: -5.232040219e-05 | K162: -0.001563834954 | L162: 7.644128432e-06 | M162: -0.001477620551 | N162: 9.912860546e-08
A163: 79.85064667 | B163: ='DF raw data'!G168 -> 2.3746557e-06 | C163: ='DF raw data'!H168 -> -3.6233928e-06 | D163: ='DF raw data'!I168 -> 5.5809242e-06 | F163: 2.377657265e-06 | G163: -3.636154061e-06 | H163: 5.587978488e-06 | J163: -5.113124068e-05 | K163: -0.001589407732 | L163: 5.825542339e-06 | M163: -0.001474706964 | N163: 1.004531466e-07
A164: 80.35078667 | B164: ='DF raw data'!G169 -> 4.6695654e-06 | C164: ='DF raw data'!H169 -> -6.3637194e-06 | D164: ='DF raw data'!I169 -> 5.7515745e-06 | F164: 4.675467731e-06 | G164: -6.386131843e-06 | H164: 5.75884449e-06 | J164: -4.879285225e-05 | K164: -0.00161381099 | L164: 2.631582359e-06 | M164: -0.001473390804 | N164: 1.016473147e-07
A165: 80.85092667 | B165: ='DF raw data'!G170 -> 2.5534841e-06 | C165: ='DF raw data'!H170 -> 3.1581772e-06 | D165: ='DF raw data'!I170 -> 9.6723988e-06 | F165: 2.556711704e-06 | G165: 3.169300014e-06 | H165: 9.684624712e-06 | J165: -4.751413846e-05 | K165: -0.001637574711 | L165: 4.216676068e-06 | M165: -0.001471281876 | N165: 1.027853201e-07
A166: 81.35106667 | B166: ='DF raw data'!G171 -> 1.4718113e-06 | C166: ='DF raw data'!H171 -> -5.1664779e-06 | D166: ='DF raw data'!I171 -> 4.1094199e-06 | F166: 1.473671669e-06 | G166: -5.184673767e-06 | H166: 4.114614207e-06 | J166: -4.677709631e-05 | K166: -0.001660969808 | L166: 1.62361333e-06 | M166: -0.001470469842 | N166: 1.038809932e-07
A167: 81.85120667 | B167: ='DF raw data'!G172 -> 2.932416e-06 | C167: ='DF raw data'!H172 -> 1.1646413e-05 | D167: ='DF raw data'!I172 -> 3.0565891e-06 | F167: 2.936122574e-06 | G167: 1.168743061e-05 | H167: 3.060452629e-06 | J167: -4.530862397e-05 | K167: -0.001683630463 | L167: 7.468964876e-06 | M167: -0.001466734314 | N167: 1.049356169e-07
A168: 82.35134667 | B168: ='DF raw data'!G173 -> 1.7074941e-06 | C168: ='DF raw data'!H173 -> 4.7463609e-06 | D168: ='DF raw data'!I173 -> 3.8673634e-06 | F168: 1.709652373e-06 | G168: 4.763077153e-06 | H168: 3.872251747e-06 | J168: -4.445355843e-05 | K168: -0.001705863466 | L168: 9.851170284e-06 | M168: -0.00146180735 | N168: 1.059724893e-07
A169: 82.85148667 | B169: ='DF raw data'!G174 -> -8.7510705e-07 | C169: ='DF raw data'!H174 -> -3.4707514e-06 | D169: ='DF raw data'!I174 -> -5.6266408e-06 | F169: -8.762131853e-07 | G169: -3.482975072e-06 | H169: -5.633752874e-06 | J169: -4.489178769e-05 | K169: -0.001728315644 | L169: 8.109195131e-06 | M169: -0.001457751617 | N169: 1.070132965e-07
A170: 83.35162667 | B170: ='DF raw data'!G175 -> 2.2165622e-07 | C170: ='DF raw data'!H175 -> 2.3027753e-06 | D170: ='DF raw data'!I175 -> -1.0639368e-05 | F170: 2.219363935e-07 | G170: 2.310885466e-06 | H170: -1.065281616e-05 | J170: -4.478078842e-05 | K170: -0.001750712308 | L170: 9.264961388e-06 | M170: -0.001453117839 | N170: 1.080591685e-07
A171: 83.85176667 | B171: ='DF raw data'!G176 -> 1.3919795e-06 | C171: ='DF raw data'!H176 -> 6.5985969e-06 | D171: ='DF raw data'!I176 -> -4.9479249e-06 | F171: 1.393738962e-06 | G171: 6.621836561e-06 | H171: -4.954179077e-06 | J171: -4.408372382e-05 | K171: -0.001772760341 | L171: 1.257680673e-05 | M171: -0.001446827675 | N171: 1.091102381e-07
A172: 84.35190667 | B172: ='DF raw data'!G177 -> -2.0556313e-06 | C172: ='DF raw data'!H177 -> 1.0847985e-05 | D172: ='DF raw data'!I177 -> -3.0282506e-06 | F172: -2.058229618e-06 | G172: 1.088619062e-05 | H172: -3.032078309e-06 | J172: -4.511312678e-05 | K172: -0.001795323221 | L172: 1.80214261e-05 | M172: -0.001437814439 | N172: 1.102905515e-07
A173: 84.85204667 | B173: ='DF raw data'!G178 -> -3.7189006e-06 | C173: ='DF raw data'!H178 -> 1.9523957e-06 | D173: ='DF raw data'!I178 -> -2.201047e-06 | F173: -3.72360129e-06 | G173: 1.959271861e-06 | H173: -2.203829123e-06 | J173: -4.697544873e-05 | K173: -0.001818817522 | L173: 1.900133633e-05 | M173: -0.00142831111 | N173: 1.115747828e-07
A174: 85.35218667 | B174: ='DF raw data'!G179 -> -2.5670001e-06 | C174: ='DF raw data'!H179 -> -3.9241372e-06 | D174: ='DF raw data'!I179 -> 7.2588909e-06 | F174: -2.570244788e-06 | G174: -3.937957656e-06 | H174: 7.268066138e-06 | J174: -4.826093096e-05 | K174: -0.001842954744 | L174: 1.703180619e-05 | M174: -0.001419792823 | N174: 1.128847494e-07
A175: 85.85232667 | B175: ='DF raw data'!G180 -> -1.7192928e-06 | C175: ='DF raw data'!H180 -> -1.4902657e-05 | D175: ='DF raw data'!I180 -> 9.634331e-06 | F175: -1.721465986e-06 | G175: -1.495514281e-05 | H175: 9.646508794e-06 | J175: -4.912190496e-05 | K175: -0.001867522573 | L175: 9.552141065e-06 | M175: -0.001415015415 | N175: 1.141372025e-07
A176: 86.35246667 | B176: ='DF raw data'!G181 -> 1.6774007e-06 | C176: ='DF raw data'!H181 -> -1.3388527e-05 | D176: ='DF raw data'!I181 -> -4.3472073e-06 | F176: 1.679520934e-06 | G176: -1.343568018e-05 | H176: -4.35270217e-06 | J176: -4.828190936e-05 | K176: -0.001891670287 | L176: 2.83241998e-06 | M176: -0.001413598808 | N176: 1.153071126e-07
A177: 86.85260667 | B177: ='DF raw data'!G182 -> 1.710972e-06 | C177: ='DF raw data'!H182 -> -1.0176534e-05 | D177: ='DF raw data'!I182 -> -9.9742874e-06 | F177: 1.713134669e-06 | G177: -1.021237483e-05 | H177: -9.986894899e-06 | J177: -4.742510218e-05 | K177: -0.001915389478 | L177: -2.275197168e-06 | M177: -0.001414736726 | N177: 1.164345867e-07
A178: 87.35274667 | B178: ='DF raw data'!G183 -> -2.2655572e-06 | C178: ='DF raw data'!H183 -> 1.611356e-06 | D178: ='DF raw data'!I183 -> -3.4670345e-06 | F178: -2.268420864e-06 | G178: 1.61703105e-06 | H178: -3.471416832e-06 | J178: -4.855963019e-05 | K178: -0.001939676091 | L178: -1.466455259e-06 | M178: -0.001415470159 | N178: 1.176150112e-07
A179: 87.85288667 | B179: ='DF raw data'!G184 -> -3.9544525e-06 | C179: ='DF raw data'!H184 -> 9.1534603e-06 | D179: ='DF raw data'!I184 -> 6.8567459e-07 | F179: -3.959450928e-06 | G179: 9.185697958e-06 | H179: 6.865412827e-07 | J179: -5.053990998e-05 | K179: -0.001964953122 | L179: 3.127679718e-06 | M179: -0.001413905881 | N179: 1.188974026e-07
A180: 88.35302667 | B180: ='DF raw data'!G185 -> 4.3331383e-07 | C180: ='DF raw data'!H185 -> 5.3170288e-06 | D180: ='DF raw data'!I185 -> 2.8005627e-06 | F180: 4.338615387e-07 | G180: 5.335754894e-06 | H180: 2.804102611e-06 | J180: -5.032291847e-05 | K180: -0.001990121626 | L180: 5.796304171e-06 | M180: -0.001411006917 | N180: 1.201807584e-07
A181: 88.85316667 | B181: ='DF raw data'!G186 -> 5.292271e-06 | C181: ='DF raw data'!H186 -> 1.1722334e-05 | D181: ='DF raw data'!I186 -> 2.6415685e-06 | F181: 5.298960431e-06 | G181: 1.1763619e-05 | H181: 2.644907443e-06 | J181: -4.76726964e-05 | K181: -0.002013964649 | L181: 1.167976058e-05 | M181: -0.001405165402 | N181: 1.213856471e-07
A182: 89.35330667 | B182: ='DF raw data'!G187 -> 4.4523053e-06 | C182: ='DF raw data'!H187 -> 1.193942e-05 | D182: ='DF raw data'!I187 -> 2.5288202e-06 | F182: 4.457933014e-06 | G182: 1.198146956e-05 | H182: 2.532016629e-06 | J182: -4.544310578e-05 | K182: -0.002036692564 | L182: 1.767217276e-05 | M182: -0.001396326841 | N182: 1.225746707e-07
A183: 89.85344667 | B183: ='DF raw data'!G188 -> 5.3043188e-08 | C183: ='DF raw data'!H188 -> 8.2893857e-06 | D183: ='DF raw data'!I188 -> 2.9269461e-06 | F183: 5.311023459e-08 | G183: 8.318580166e-06 | H183: 2.93064576e-06 | J183: -4.541654323e-05 | K183: -0.002059407194 | L183: 2.183262744e-05 | M183: -0.001385407471 | N183: 1.238446892e-07
A184: 90.35358667 | B184: ='DF raw data'!G189 -> -1.8771826e-07 | C184: ='DF raw data'!H189 -> 1.2057372e-06 | D184: ='DF raw data'!I189 -> 4.604546e-07 | F184: -1.879555359e-07 | G184: 1.209983697e-06 | H184: 4.610366146e-07 | J184: -4.551054731e-05 | K184: -0.002082168839 | L184: 2.243778869e-05 | M184: -0.001374185435 | N184: 1.251323818e-07
A185: 90.85372667 | B185: ='DF raw data'!G190 -> 3.915296e-06 | C185: ='DF raw data'!H190 -> -6.8452562e-07 | D185: ='DF raw data'!I190 -> 2.2205379e-06 | F185: 3.920244934e-06 | G185: -6.869364572e-07 | H185: 2.22334466e-06 | J185: -4.354987601e-05 | K185: -0.002103949874 | L185: 2.209422429e-05 | M185: -0.00136313523 | N185: 1.263250889e-07
A186: 91.35386667 | B186: ='DF raw data'!G191 -> 7.1114059e-06 | C186: ='DF raw data'!H191 -> -1.7706224e-06 | D186: ='DF raw data'!I191 -> -7.9415332e-07 | F186: 7.120394717e-06 | G186: -1.776858372e-06 | H186: -7.951571298e-07 | J186: -3.99886818e-05 | K186: -0.002123949813 | L186: 2.120554635e-05 | M186: -0.001352529488 | N186: 1.273497607e-07
A187: 91.85400667 | B187: ='DF raw data'!G192 -> 6.4881619e-06 | C187: ='DF raw data'!H192 -> 4.8234815e-06 | D187: ='DF raw data'!I192 -> -1.3799026e-05 | F187: 6.496362937e-06 | G187: 4.840469365e-06 | H187: -1.381646797e-05 | J187: -3.673959084e-05 | K187: -0.002142324752 | L187: 2.362645869e-05 | M187: -0.001340712951 | N187: 1.283040314e-07
A188: 92.35414667 | B188: ='DF raw data'!G193 -> 3.0728565e-06 | C188: ='DF raw data'!H193 -> 8.8591196e-06 | D188: ='DF raw data'!I193 -> -1.1019129e-05 | F188: 3.076740591e-06 | G188: 8.890320617e-06 | H188: -1.103305718e-05 | J188: -3.52007898e-05 | K188: -0.002159930075 | L188: 2.807286365e-05 | M188: -0.001326672589 | N188: 1.293179058e-07
A189: 92.85428667 | B189: ='DF raw data'!G194 -> 1.1042154e-06 | C189: ='DF raw data'!H194 -> 1.2178522e-05 | D189: ='DF raw data'!I194 -> -3.049671e-06 | F189: 1.105611128e-06 | G189: 1.222141365e-05 | H189: -3.053525784e-06 | J189: -3.464782945e-05 | K189: -0.00217725884 | L189: 3.418528147e-05 | M189: -0.001309575162 | N189: 1.305027902e-07
A190: 93.35442667 | B190: ='DF raw data'!G195 -> -1.5314291e-07 | C190: ='DF raw data'!H195 -> 8.3547657e-06 | D190: ='DF raw data'!I195 -> 4.7732929e-06 | F190: -1.533364826e-07 | G190: 8.384190428e-06 | H190: 4.779326342e-06 | J190: -3.472451916e-05 | K190: -0.002194625961 | L190: 3.837855047e-05 | M190: -0.001290380514 | N190: 1.318425179e-07
A191: 93.85456667 | B191: ='DF raw data'!G196 -> -9.0060347e-08 | C191: ='DF raw data'!H196 -> 3.4256987e-06 | D191: ='DF raw data'!I196 -> 1.1820232e-05 | F191: -9.017418328e-08 | G191: 3.437763701e-06 | H191: 1.183517277e-05 | J191: -3.476961887e-05 | K191: -0.002212015639 | L191: 4.009791361e-05 | M191: -0.001270325944 | N191: 1.332512968e-07
A192: 94.35470667 | B192: ='DF raw data'!G197 -> 1.8265724e-06 | C192: ='DF raw data'!H197 -> 4.8037346e-06 | D192: ='DF raw data'!I197 -> 5.9819167e-06 | F192: 1.828881188e-06 | G192: 4.820652918e-06 | H192: 5.989477843e-06 | J192: -3.385492224e-05 | K192: -0.002228947839 | L192: 4.250891496e-05 | M192: -0.001249065535 | N192: 1.347282921e-07
A193: 94.85484667 | B193: ='DF raw data'!G198 -> 1.3867699e-06 | C193: ='DF raw data'!H198 -> 2.0568691e-06 | D193: ='DF raw data'!I198 -> 5.4941365e-06 | F193: 1.388522777e-06 | G193: 2.064113207e-06 | H193: 5.501081089e-06 | J193: -3.316046646e-05 | K193: -0.002245532715 | L193: 4.354126054e-05 | M193: -0.001227288809 | N193: 1.362264404e-07
A194: 95.35498667 | B194: ='DF raw data'!G199 -> -3.2369703e-06 | C194: ='DF raw data'!H199 -> 6.3589614e-06 | D194: ='DF raw data'!I199 -> 2.9282121e-06 | F194: -3.24106183e-06 | G194: 6.381357086e-06 | H194: 2.93191336e-06 | J194: -3.478145112e-05 | K194: -0.00226292831 | L194: 4.673283247e-05 | M194: -0.00120391585 | N194: 1.37923769e-07
A195: 95.85512667 | B195: ='DF raw data'!G200 -> -6.1258165e-06 | C195: ='DF raw data'!H200 -> 5.8184478e-06 | D195: ='DF raw data'!I200 -> -2.2556167e-06 | F195: -6.133559532e-06 | G195: 5.838939846e-06 | H195: -2.2584678e-06 | J195: -3.784908958e-05 | K195: -0.002281858154 | L195: 4.965311985e-05 | M195: -0.001179082339 | N195: 1.398733077e-07
A196: 96.35526667 | B196: ='DF raw data'!G201 -> 9.7164595e-08 | C196: ='DF raw data'!H201 -> 3.5385779e-06 | D196: ='DF raw data'!I201 -> -6.5652131e-07 | F196: 9.728741105e-08 | G196: 3.551040451e-06 | H196: -6.573511529e-07 | J196: -3.780043226e-05 | K196: -0.002300763662 | L196: 5.142913722e-05 | M196: -0.00115336057 | N196: 1.419107924e-07
A197: 96.85540667 | B197: ='DF raw data'!G202 -> 3.2964758e-06 | C197: ='DF raw data'!H202 -> 4.8777865e-06 | D197: ='DF raw data'!I202 -> -2.3382133e-06 | F197: 3.300642545e-06 | G197: 4.894965622e-06 | H197: -2.341168802e-06 | J197: -3.61496489e-05 | K197: -0.002318843547 | L197: 5.387730532e-05 | M197: -0.001126414374 | N197: 1.440161623e-07
A198: 97.35554667 | B198: ='DF raw data'!G203 -> -2.301806e-06 | C198: ='DF raw data'!H203 -> 5.5640025e-06 | D198: ='DF raw data'!I203 -> 7.1495305e-07 | F198: -2.304715483e-06 | G198: 5.583598413e-06 | H198: 7.158567507e-07 | J198: -3.73023293e-05 | K198: -0.002337499934 | L198: 5.666988623e-05 | M198: -0.001098071498 | N198: 1.463182766e-07
A199: 97.85568667 | B199: ='DF raw data'!G204 -> -6.0058069e-06 | C199: ='DF raw data'!H204 -> 7.3373831e-06 | D199: ='DF raw data'!I204 -> -4.6845062e-06 | F199: -6.01339824e-06 | G199: =(1-$G$1*($B$2-$G$2))*C199*$M$2/$M$1 -> 7.363224699e-06 | H199: -4.690427416e-06 | J199: -4.030987029e-05 | K199: -0.002357660513 | L199: 6.035252943e-05 | M199: -0.001067886783 | N199: 1.489526708e-07
A200: =A199+$B$1 -> 98.35582667 | B200: ='DF raw data'!G205 -> -2.7441552e-06 | C200: ='DF raw data'!H205 -> 2.4915748e-06 | D200: ='DF raw data'!I205 -> -1.1016466e-05 | F200: -2.747623812e-06 | G200: 2.500349901e-06 | H200: -1.103039081e-05 | J200: =F200*$B$1+J199 -> -4.168406687e-05 | K200: =J200*$B$1+K199 -> -0.002378508382 | L200: =G200*$B$1+L199 -> 6.160305443e-05 | M200: =L200*$B$1+M199 -> -0.001037076632 | N200: =(J200^2+L200^2)*$B$1+N199 -> 1.517196942e-07
A201: 98.85596667 | B201: ='DF raw data'!G206 -> -5.0898086e-07 | C201: ='DF raw data'!H206 -> 2.9799185e-06 | D201: ='DF raw data'!I206 -> -2.5104498e-06 | F201: -5.096242118e-07 | G201: 2.990413503e-06 | H201: -2.513623009e-06 | J201: -4.193895032e-05 | K201: -0.002399483729 | L201: 6.309867984e-05 | M201: -0.001005518458 | N201: 1.545906573e-07
... 1002 more rows

Sheet 10 y=0.1
A1: dz | B1: ='DF raw data'!K7 -> 0.50014 | C1: mm | F1: T_coeff | G1: -0.0008 | H1: /degC | L1: Hallref | M1: ='PI vs y'!B44 -> 0.50553 | N1: T | P1: IBy total | Q1: =L1203*1000 -> -13.94031548 | R1: muTm | X1: DF ref | Y1: 20
A2: Tref | B2: ='DF raw data'!K8 -> 21.61 | C2: degC | F2: Tcorr | G2: 20 | H2: degC | L2: NMRref | M2: ='PI vs y'!B45 -> 0.50667 | N2: T | P2: JBy total | Q2: =M1203 -> -5.19614186 | R2: muTm^2
A3: Encoder | B3: ='DF raw data'!K9 -> 5134437 | P3: PI total | Q3: =N1203 -> 715.2722622 | R3: T^2mm^3
A5: z [mm] | B5: Bx | C5: By | D5: Bz | F5: Bx_corr | G5: By_corr | H5: Bz_corr | J5: Ix | K5: Jx | L5: Iy | M5: Jy | N5: PI
A6: ='PI vs y'!B53 -> 1.328666667 | B6: ='DF raw data'!J11 -> -4.209367e-06 | C6: ='DF raw data'!K11 -> 4.4696235e-06 | D6: ='DF raw data'!L11 -> -1.7861894e-06 | F6: =(1-$G$1*($B$2-$G$2))*B6 -> -4.214788665e-06 | G6: =(1-$G$1*($B$2-$G$2))*C6*$M$2/$M$1 -> 4.485472622e-06 | H6: =(1-$G$1*($B$2-$G$2))*D6 -> -1.788490012e-06 | J6: =F6*$B$1 -> -2.107984403e-06 | K6: =J6*$B$1 -> -1.054287319e-06 | L6: =G6*$B$1 -> 2.243364277e-06 | M6: =L6*$B$1 -> 1.12199621e-06 | N6: =(J6^2+L6^2)*$B$1 -> 4.739467441e-12
A7: =A6+$B$1 -> 1.828806667 | B7: ='DF raw data'!J12 -> -4.8020956e-06 | C7: ='DF raw data'!K12 -> 2.1478918e-05 | D7: ='DF raw data'!L12 -> 4.0960585e-06 | F7: =(1-$G$1*($B$2-$G$2))*B7 -> -4.808280699e-06 | G7: =(1-$G$1*($B$2-$G$2))*C7*$M$2/$M$1 -> 2.155508146e-05 | H7: 4.101334223e-06 | J7: =F7*$B$1+J6 -> -4.512797912e-06 | K7: =J7*$B$1+K6 -> -3.311318067e-06 | L7: =G7*$B$1+L6 -> 1.302392272e-05 | M7: =L7*$B$1+M6 -> 7.635780918e-06 | N7: =(J7^2+L7^2)*$B$1+N6 -> 9.976001974e-11
A8: =A7+$B$1 -> 2.328946667 | B8: ='DF raw data'!J13 -> -4.2759712e-06 | C8: ='DF raw data'!K13 -> 7.1349646e-06 | D8: ='DF raw data'!L13 -> 5.3503463e-06 | F8: -4.281478651e-06 | G8: 7.160264924e-06 | H8: 5.357237546e-06 | J8: =F8*$B$1+J7 -> -6.654136644e-06 | K8: =J8*$B$1+K7 -> -6.639317968e-06 | L8: =G8*$B$1+L7 -> 1.660505762e-05 | M8: =L8*$B$1+M7 -> 1.594063444e-05 | N8: =(J8^2+L8^2)*$B$1+N7 -> 2.59807557e-10
A9: 2.829086667 | B9: ='DF raw data'!J14 -> -3.915593e-06 | C9: ='DF raw data'!K14 -> -3.0760832e-06 | D9: ='DF raw data'!L14 -> 3.0996744e-06 | F9: -3.920636284e-06 | G9: -3.086990879e-06 | H9: 3.103666781e-06 | J9: -8.615003675e-06 | K9: -1.094802591e-05 | L9: 1.506113e-05 | M9: 2.347330799e-05 | N9: 4.103776674e-10
A10: 3.329226667 | B10: ='DF raw data'!J15 -> -4.078327e-06 | C10: ='DF raw data'!K15 -> 9.2072759e-07 | D10: ='DF raw data'!L15 -> -6.6967914e-08 | F10: -4.083579885e-06 | G10: 9.239924565e-07 | H10: -6.705416867e-08 | J10: -1.065736532e-05 | K10: -1.62782006e-05 | L10: 1.552325559e-05 | M10: 3.123710904e-05 | N10: 5.877027543e-10
A11: 3.829366667 | B11: ='DF raw data'!J16 -> -4.0065715e-06 | C11: ='DF raw data'!K16 -> -1.3104415e-06 | D11: ='DF raw data'!L16 -> -1.9108411e-06 | F11: -4.011731964e-06 | G11: -1.315088278e-06 | H11: -1.913302263e-06 | J11: -1.266379294e-05 | K11: -2.261187e-05 | L11: 1.486552734e-05 | M11: 3.867195388e-05 | N11: 7.784339215e-10
A12: 4.329506667 | B12: ='DF raw data'!J17 -> -3.897243e-06 | C12: ='DF raw data'!K17 -> -2.7103595e-06 | D12: ='DF raw data'!L17 -> 7.5932767e-06 | F12: -3.902262649e-06 | G12: -2.719970336e-06 | H12: 7.60305684e-06 | J12: -1.461547058e-05 | K12: -2.992165146e-05 | L12: 1.350516137e-05 | M12: 4.542642529e-05 | N12: 9.764900437e-10
A13: 4.829646667 | B13: ='DF raw data'!J18 -> -3.9796796e-06 | C13: ='DF raw data'!K18 -> -3.5283477e-07 | D13: ='DF raw data'!L18 -> 8.431467e-06 | F13: -3.984805427e-06 | G13: -3.540859092e-07 | H13: 8.442326729e-06 | J13: -1.660843117e-05 | K13: -3.822819222e-05 | L13: 1.332806885e-05 | M13: 5.209232565e-05 | N13: 1.203292233e-09
A14: 5.329786667 | B14: ='DF raw data'!J19 -> -3.7204229e-06 | C14: ='DF raw data'!K19 -> -6.6908924e-06 | D14: ='DF raw data'!L19 -> 1.3049721e-05 | F14: -3.725214805e-06 | G14: -6.714618061e-06 | H14: 1.306652904e-05 | J14: -1.84715601e-05 | K14: -4.746655829e-05 | L14: 9.969819769e-06 | M14: 5.70786313e-05 | N14: 1.423651836e-09
A15: 5.829926667 | B15: ='DF raw data'!J20 -> -3.79992e-06 | C15: ='DF raw data'!K20 -> -6.0994098e-06 | D15: ='DF raw data'!L20 -> 3.4644618e-06 | F15: -3.804814297e-06 | G15: -6.121038085e-06 | H15: 3.468924027e-06 | J15: -2.037449993e-05 | K15: -5.765666069e-05 | L15: 6.908443781e-06 | M15: 6.053382038e-05 | N15: 1.655140056e-09
A16: 6.330066667 | B16: ='DF raw data'!J21 -> -3.4474872e-06 | C16: ='DF raw data'!K21 -> -1.6586653e-05 | D16: ='DF raw data'!L21 -> -2.5455665e-06 | F16: -3.451927564e-06 | G16: -1.664546867e-05 | H16: -2.54884519e-06 | J16: -2.210094698e-05 | K16: -6.871022831e-05 | L16: -1.416620918e-06 | M16: 5.982531159e-05 | N16: 1.900438056e-09
A17: 6.830206667 | B17: ='DF raw data'!J22 -> -3.7457869e-06 | C17: ='DF raw data'!K22 -> -8.0335694e-06 | D17: ='DF raw data'!L22 -> -5.0968083e-07 | F17: -3.750611474e-06 | G17: -8.062056144e-06 | H17: -5.103372989e-07 | J17: -2.39767778e-05 | K17: -8.070197396e-05 | L17: -5.448777678e-06 | M17: 5.710015992e-05 | N17: 2.202810223e-09
A18: 7.330346667 | B18: ='DF raw data'!J23 -> -4.4344997e-06 | C18: ='DF raw data'!K23 -> 9.9584167e-06 | D18: ='DF raw data'!L23 -> -4.5105116e-06 | F18: -4.440211336e-06 | G18: 9.993728883e-06 | H18: -4.516321139e-06 | J18: -2.61975051e-05 | K18: -9.380439416e-05 | L18: -4.50514115e-07 | M18: 5.687483979e-05 | N18: 2.546162452e-09
A19: 7.830486667 | B19: ='DF raw data'!J24 -> -3.7677457e-06 | C19: ='DF raw data'!K24 -> -8.8849683e-06 | D19: ='DF raw data'!L24 -> -7.6350261e-06 | F19: -3.772598556e-06 | G19: -8.916474074e-06 | H19: -7.644860014e-06 | J19: -2.808433254e-05 | K19: -0.0001078504922 | L19: -4.909999458e-06 | M19: 5.441915266e-05 | N19: 2.952695164e-09
A20: 8.330626667 | B20: ='DF raw data'!J25 -> -3.5253836e-06 | C20: ='DF raw data'!K25 -> -1.4398179e-05 | D20: ='DF raw data'!L25 -> -1.3127137e-06 | F20: -3.529924294e-06 | G20: -1.444923442e-05 | H20: -1.314404475e-06 | J20: -2.984978888e-05 | K20: -0.0001227795656 | L20: -1.213663956e-05 | M20: 4.834913376e-05 | N20: 3.471994485e-09
A21: 8.830766667 | B21: ='DF raw data'!J26 -> -3.7955836e-06 | C21: ='DF raw data'!K26 -> -6.7131741e-06 | D21: ='DF raw data'!L26 -> 1.3037061e-07 | F21: -3.800472312e-06 | G21: -6.736978771e-06 | H21: 1.305385273e-07 | J21: -3.17505571e-05 | K21: -0.0001386592893 | L21: -1.550607212e-05 | M21: 4.059392684e-05 | N21: 4.096437355e-09
A22: 9.330906667 | B22: ='DF raw data'!J27 -> -2.9942532e-06 | C22: ='DF raw data'!K27 -> -1.0121438e-05 | D22: ='DF raw data'!L27 -> -4.0494924e-06 | F22: -2.998109798e-06 | G22: -1.015732825e-05 | H22: -4.054708146e-06 | J22: -3.325003173e-05 | K22: -0.0001552889601 | L22: -2.058615827e-05 | M22: 3.029796564e-05 | N22: 4.861328726e-09
A23: 9.831046667 | B23: ='DF raw data'!J28 -> -3.2856844e-06 | C23: ='DF raw data'!K28 -> -1.2948761e-05 | D23: ='DF raw data'!L28 -> -2.961664e-06 | F23: =(1-$G$1*($B$2-$G$2))*B23 -> -3.289916362e-06 | G23: -1.299467683e-05 | H23: -2.965478623e-06 | J23: -3.48954505e-05 | K23: -0.0001727415708 | L23: -2.708531595e-05 | M23: 1.675151573e-05 | N23: 5.837255311e-09
A24: 10.33118667 | B24: ='DF raw data'!J29 -> -4.3508699e-06 | C24: ='DF raw data'!K29 -> -7.7576424e-06 | D24: ='DF raw data'!L29 -> 1.1943193e-05 | F24: -4.35647382e-06 | G24: -7.785150717e-06 | H24: 1.195857583e-05 | J24: -3.707429732e-05 | K24: -0.0001912839098 | L24: -3.097898123e-05 | M24: 1.257688057e-06 | N24: 7.004682499e-09
A25: 10.83132667 | B25: ='DF raw data'!J30 -> -1.2100428e-06 | C25: ='DF raw data'!K30 -> 1.1392813e-06 | D25: ='DF raw data'!L30 -> 9.3391282e-06 | F25: -1.211601335e-06 | G25: 1.14332115e-06 | H25: 9.351156997e-06 | J25: -3.768026761e-05 | K25: -0.0002101293189 | L25: -3.040716059e-05 | M25: -1.395014924e-05 | N25: 8.177209706e-09
A26: 11.33146667 | B26: ='DF raw data'!J31 -> -2.027156e-07 | C26: ='DF raw data'!K31 -> -7.3304082e-06 | D26: ='DF raw data'!L31 -> 3.5782723e-06 | F26: -2.029766977e-07 | G26: -7.35640156e-06 | H26: 3.582881115e-06 | J26: -3.778178438e-05 | K26: -0.0002290255005 | L26: -3.408639126e-05 | M26: -3.099811696e-05 | N26: 9.472244864e-09
A27: 11.83160667 | B27: ='DF raw data'!J32 -> 7.7328133e-07 | C27: ='DF raw data'!K32 -> 4.3921023e-06 | D27: ='DF raw data'!L32 -> 2.3574685e-06 | F27: 7.742773164e-07 | G27: 4.407676535e-06 | H27: 2.360504919e-06 | J27: -3.739453732e-05 | K27: -0.0002477280044 | L27: -3.188193592e-05 | M27: -4.694354839e-05 | N27: 1.067998757e-08
A28: 12.33174667 | B28: ='DF raw data'!J33 -> 2.160137e-06 | C28: ='DF raw data'!K33 -> -7.1455582e-07 | D28: ='DF raw data'!L33 -> 8.109273e-06 | F28: 2.162919256e-06 | G28: -7.170896089e-07 | H28: 8.119717744e-06 | J28: -3.631277488e-05 | K28: -0.0002658894756 | L28: -3.224058112e-05 | M28: -6.306835263e-05 | N28: 1.185935404e-08
A29: 12.83188667 | B29: ='DF raw data'!J34 -> 9.3087857e-07 | C29: ='DF raw data'!K34 -> -6.3822754e-06 | D29: ='DF raw data'!L34 -> 9.2169939e-06 | F29: 9.320775416e-07 | G29: -6.404906716e-06 | H29: 9.228865388e-06 | J29: -3.584660562e-05 | K29: -0.0002838177969 | L29: -3.544393116e-05 | M29: -8.079528037e-05 | N29: 1.313033551e-08
A30: 13.33202667 | B30: ='DF raw data'!J35 -> 1.3630037e-07 | C30: ='DF raw data'!K35 -> -7.1829718e-06 | D30: ='DF raw data'!L35 -> -9.3036215e-07 | F30: 1.364759249e-07 | G30: -7.208442356e-06 | H30: -9.315604564e-07 | J30: -3.577834855e-05 | K30: -0.0003017119802 | L30: -3.904916152e-05 | M30: -0.000100325328 | N30: 1.453319182e-08
A31: 13.83216667 | B31: ='DF raw data'!J36 -> -1.6965715e-06 | C31: ='DF raw data'!K36 -> -7.9776637e-06 | D31: ='DF raw data'!L36 -> 3.4488039e-07 | F31: -1.698756684e-06 | G31: -8.005952205e-06 | H31: 3.453245959e-07 | J31: -3.662796472e-05 | K31: -0.0003200310905 | L31: -4.305325846e-05 | M31: -0.0001218579847 | N31: 1.613123458e-08
A32: 14.33230667 | B32: ='DF raw data'!J37 -> -2.0240479e-06 | C32: ='DF raw data'!K37 -> 2.9039891e-06 | D32: ='DF raw data'!L37 -> 6.281829e-06 | F32: -2.026654874e-06 | G32: 2.91428654e-06 | H32: 6.289919996e-06 | J32: -3.764157589e-05 | K32: -0.0003388571482 | L32: -4.159570719e-05 | M32: -0.0001426616617 | N32: 1.770522072e-08
A33: 14.83244667 | B33: ='DF raw data'!J38 -> 4.0697123e-06 | C33: ='DF raw data'!K38 -> -6.9400003e-06 | D33: ='DF raw data'!L38 -> 4.4995977e-07 | F33: 4.074954089e-06 | G33: -6.964609288e-06 | H33: 4.505393182e-07 | J33: -3.560352835e-05 | K33: -0.0003566638969 | L33: -4.507898688e-05 | M33: -0.0001652074662 | N33: 1.935554583e-08
A34: 15.33258667 | B34: ='DF raw data'!J39 -> 6.0474922e-06 | C34: ='DF raw data'!K39 -> -1.4024584e-05 | D34: ='DF raw data'!L39 -> -4.6129571e-07 | F34: 6.05528137e-06 | G34: -1.407431466e-05 | H34: -4.618898589e-07 | J34: -3.257503992e-05 | K34: -0.0003729559774 | L34: -5.211811461e-05 | M34: -0.00019127382 | N34: 2.124479021e-08
A35: 15.83272667 | B35: ='DF raw data'!J40 -> -6.528731e-08 | C35: ='DF raw data'!K40 -> 3.1636384e-06 | D35: ='DF raw data'!L40 -> -8.8691013e-07 | F35: -6.537140006e-08 | G35: 3.174856546e-06 | H35: -8.880524702e-07 | J35: -3.260773478e-05 | K35: -0.0003892644098 | L35: -5.053024186e-05 | M35: -0.0002165460152 | N35: 2.305358139e-08
A36: 16.33286667 | B36: ='DF raw data'!J41 -> -5.7364394e-07 | C36: ='DF raw data'!K41 -> 6.5939175e-06 | D36: ='DF raw data'!L41 -> -3.5647827e-06 | F36: -5.743827934e-07 | G36: 6.617299291e-06 | H36: -3.56937414e-06 | J36: -3.289500659e-05 | K36: -0.0004057165184 | L36: -4.722066579e-05 | M36: -0.000240162959 | N36: 2.470998142e-08
A37: 16.83300667 | B37: ='DF raw data'!J42 -> 3.9514343e-06 | C37: ='DF raw data'!K42 -> -7.4498257e-06 | D37: ='DF raw data'!L42 -> -2.9496878e-06 | F37: 3.956523747e-06 | G37: -7.47624251e-06 | H37: -2.953486998e-06 | J37: -3.09161908e-05 | K37: -0.0004211789421 | L37: -5.095983372e-05 | M37: -0.0002656500102 | N37: 2.648683655e-08
A38: 17.33314667 | B38: ='DF raw data'!J43 -> 8.1677936e-06 | C38: ='DF raw data'!K43 -> -7.7587101e-06 | D38: ='DF raw data'!L43 -> -2.291461e-06 | F38: 8.178313718e-06 | G38: -7.786222203e-06 | H38: -2.294412402e-06 | J38: -2.682588898e-05 | K38: -0.0004345956422 | L38: -5.485403489e-05 | M38: -0.0002930847072 | N38: 2.835165529e-08
A39: 17.83328667 | B39: ='DF raw data'!J44 -> 4.6328714e-06 | C39: ='DF raw data'!K44 -> -1.0609115e-05 | D39: ='DF raw data'!L44 -> -5.8381993e-06 | F39: 4.638838538e-06 | G39: -1.064673454e-05 | H39: -5.845718901e-06 | J39: -2.450582027e-05 | K39: -0.0004468519832 | L39: -6.01788927e-05 | M39: -0.0003231825786 | N39: 3.046326355e-08
A40: 18.33342667 | B40: ='DF raw data'!J45 -> 9.6852443e-07 | C40: ='DF raw data'!K45 -> -1.0462745e-05 | D40: ='DF raw data'!L45 -> -1.0012198e-05 | F40: 9.697718895e-07 | G40: -1.049984551e-05 | H40: -1.002509371e-05 | J40: -2.402079856e-05 | K40: -0.0004588657454 | L40: -6.543028544e-05 | M40: -0.0003559068816 | N40: 3.289300419e-08
A41: 18.83356667 | B41: ='DF raw data'!J46 -> 4.086738e-06 | C41: ='DF raw data'!K46 -> -1.8685131e-07 | D41: ='DF raw data'!L46 -> -7.3612173e-06 | F41: 4.092001719e-06 | G41: -1.875138779e-07 | H41: -7.370698548e-06 | J41: -2.197422482e-05 | K41: -0.0004698559342 | L41: -6.552406863e-05 | M41: -0.0003886780893 | N41: 3.528180794e-08
A42: 19.33370667 | B42: ='DF raw data'!J47 -> 4.0169762e-06 | C42: ='DF raw data'!K47 -> -6.4296419e-06 | D42: ='DF raw data'!L47 -> -3.327048e-06 | F42: 4.022150065e-06 | G42: -6.452441176e-06 | H42: -3.331333238e-06 | J42: -1.996258668e-05 | K42: -0.0004798400223 | L42: -6.875119256e-05 | M42: -0.0004230633107 | N42: 3.784514114e-08
A43: 19.83384667 | B43: ='DF raw data'!J48 -> -4.9978771e-06 | C43: ='DF raw data'!K48 -> -4.4765347e-06 | D43: ='DF raw data'!L48 -> 6.9281668e-08 | F43: -5.004314366e-06 | G43: -4.492408329e-06 | H43: 6.937090279e-08 | J43: -2.246544447e-05 | K43: -0.0004910758897 | L43: -7.099802566e-05 | M43: -0.0004585722633 | N43: 4.061862542e-08
A44: 20.33398667 | B44: ='DF raw data'!J49 -> -1.1584307e-05 | C44: ='DF raw data'!K49 -> -9.065041e-08 | D44: ='DF raw data'!L49 -> -3.3671095e-06 | F44: -1.159922759e-05 | G44: -9.097185305e-08 | H44: -3.371446337e-06 | J44: -2.826668216e-05 | K44: -0.0005052131881 | L44: -7.104352432e-05 | M44: -0.0004941039715 | N44: 4.354253772e-08
A45: 20.83412667 | B45: ='DF raw data'!J50 -> -8.2165279e-06 | C45: ='DF raw data'!K50 -> -9.1520897e-06 | D45: ='DF raw data'!L50 -> -2.9746443e-06 | F45: -8.227110788e-06 | G45: -9.184542677e-06 | H45: -2.978475642e-06 | J45: -3.238138935e-05 | K45: -0.0005214084161 | L45: -7.56370815e-05 | M45: -0.0005319331015 | N45: 4.692824669e-08
A46: 21.33426667 | B46: ='DF raw data'!J51 -> -5.3498443e-06 | C46: ='DF raw data'!K51 -> -6.3614607e-06 | D46: ='DF raw data'!L51 -> 2.195884e-06 | F46: -5.356734899e-06 | G46: -6.384018208e-06 | H46: 2.198712299e-06 | J46: -3.506050674e-05 | K46: -0.000538943578 | L46: -7.882998437e-05 | M46: -0.0005713591298 | N46: 5.065099155e-08
A47: 21.83440667 | B47: ='DF raw data'!J52 -> -1.0557364e-05 | C47: ='DF raw data'!K52 -> 2.6926405e-06 | D47: ='DF raw data'!L52 -> -2.2722961e-06 | F47: -1.057096188e-05 | G47: 2.702188505e-06 | H47: -2.275222817e-06 | J47: -4.034746762e-05 | K47: -0.0005591229604 | L47: -7.747851181e-05 | M47: -0.0006101092327 | N47: 5.446747884e-08
A48: 22.33454667 | B48: ='DF raw data'!J53 -> -6.7609872e-06 | C48: ='DF raw data'!K53 -> 5.3597159e-06 | D48: ='DF raw data'!L53 -> -3.2402604e-06 | F48: -6.769695352e-06 | G48: 5.378721257e-06 | H48: -3.244433855e-06 | J48: -4.373326305e-05 | K48: -0.0005809957146 | L48: -7.478839816e-05 | M48: -0.0006475139022 | N48: 5.822148106e-08
A49: 22.83468667 | B49: ='DF raw data'!J54 -> 3.823296e-07 | C49: ='DF raw data'!K54 -> -8.5842239e-06 | D49: ='DF raw data'!L54 -> 4.314963e-06 | F49: 3.828220405e-07 | G49: -8.614663245e-06 | H49: 4.320520672e-06 | J49: -4.354179843e-05 | K49: -0.0006027727097 | L49: -7.909693583e-05 | M49: -0.0006870734437 | N49: 6.229872911e-08
A50: 23.33482667 | B50: ='DF raw data'!J55 -> -4.0811938e-06 | C50: ='DF raw data'!K55 -> -1.0462558e-06 | D50: ='DF raw data'!L55 -> -2.906294e-06 | F50: -4.086450378e-06 | G50: -1.049965785e-06 | H50: -2.910037307e-06 | J50: -4.558559573e-05 | K50: -0.0006255718895 | L50: -7.962206572e-05 | M50: -0.0007268956236 | N50: 6.650876753e-08
A51: 23.83496667 | B51: ='DF raw data'!J56 -> -3.2462924e-06 | C51: ='DF raw data'!K56 -> 4.5475449e-06 | D51: ='DF raw data'!L56 -> -4.9055088e-06 | F51: -3.250473625e-06 | G51: 4.563670329e-06 | H51: -4.911827095e-06 | J51: -4.72112876e-05 | K51: -0.0006491841429 | L51: -7.733959164e-05 | M51: -0.000765576247 | N51: 7.061507603e-08
A52: 24.33510667 | B52: ='DF raw data'!J57 -> 7.0579481e-06 | C52: ='DF raw data'!K57 -> -9.2364153e-06 | D52: ='DF raw data'!L57 -> 8.0839091e-06 | F52: 7.067038737e-06 | G52: -9.269167292e-06 | H52: 8.094321175e-06 | J52: -4.367677885e-05 | K52: -0.0006710286471 | L52: -8.197547297e-05 | M52: -0.00080657546 | N52: 7.493010349e-08
A53: 24.83524667 | B53: ='DF raw data'!J58 -> 9.1265902e-06 | C53: ='DF raw data'!K58 -> 1.5232041e-07 | D53: ='DF raw data'!L58 -> 1.8914579e-06 | F53: 9.138345248e-06 | G53: 1.528605326e-07 | H53: 1.893894098e-06 | J53: -3.910632686e-05 | K53: -0.0006905872854 | L53: -8.18990213e-05 | M53: -0.0008475364366 | N53: 7.904963388e-08
A54: 25.33538667 | B54: ='DF raw data'!J59 -> 2.4264079e-06 | C54: ='DF raw data'!K59 -> 2.2970289e-06 | D54: ='DF raw data'!L59 -> -5.3275289e-06 | F54: 2.429533113e-06 | G54: 2.305174081e-06 | H54: -5.334390757e-06 | J54: -3.789122017e-05 | K54: -0.0007095382003 | L54: -8.074611154e-05 | M54: -0.0008879207968 | N54: 8.302858722e-08
A55: 25.83552667 | B55: ='DF raw data'!J60 -> -7.6676241e-07 | C55: ='DF raw data'!K60 -> -9.7660666e-07 | D55: ='DF raw data'!L60 -> 2.9234507e-06 | F55: -7.6775e-07 | G55: -9.800696716e-07 | H55: 2.927216105e-06 | J55: -3.827520265e-05 | K55: -0.0007286811601 | L55: -8.123628359e-05 | M55: -0.0009285503117 | N55: 8.706187868e-08
A56: 26.33566667 | B56: ='DF raw data'!J61 -> -3.1848251e-06 | C56: ='DF raw data'!K61 -> -9.6152951e-07 | D56: ='DF raw data'!L61 -> 1.0101503e-06 | F56: -3.188927155e-06 | G56: -9.649390586e-07 | H56: 1.011451374e-06 | J56: -3.987011268e-05 | K56: -0.0007486217983 | L56: -8.171888821e-05 | M56: -0.0009694211964 | N56: 9.119683743e-08
A57: 26.83580667 | B57: ='DF raw data'!J62 -> -7.4519849e-06 | C57: ='DF raw data'!K62 -> 4.0189066e-06 | D57: ='DF raw data'!L62 -> -2.007946e-06 | F57: -7.461583057e-06 | G57: 4.033157496e-06 | H57: -2.010532234e-06 | J57: -4.360194883e-05 | K57: -0.0007704288769 | L57: -7.970174482e-05 | M57: -0.001009283227 | N57: 9.532474196e-08
A58: 27.33594667 | B58: ='DF raw data'!J63 -> -3.1431775e-06 | C58: ='DF raw data'!K63 -> 9.3847342e-07 | D58: ='DF raw data'!L63 -> 2.2205641e-06 | F58: -3.147225913e-06 | G58: 9.418012126e-07 | H58: 2.223424187e-06 | J58: -4.51760024e-05 | K58: -0.0007930232028 | L58: -7.923071236e-05 | M58: -0.001048909676 | N58: 9.948509502e-08
A59: 27.83608667 | B59: ='DF raw data'!J64 -> -1.8884822e-06 | C59: ='DF raw data'!K64 -> 8.2189272e-06 | D59: ='DF raw data'!L64 -> 3.5492558e-06 | F59: -1.890914565e-06 | G59: 8.248071216e-06 | H59: 3.553827241e-06 | J59: -4.612172441e-05 | K59: -0.000816090522 | L59: -7.510552202e-05 | M59: -0.001086472951 | N59: 1.03370209e-07
A60: 28.33622667 | B60: ='DF raw data'!J65 -> -1.6272171e-06 | C60: ='DF raw data'!K65 -> 3.1589684e-06 | D60: ='DF raw data'!L65 -> 2.5355694e-06 | F60: -1.629312956e-06 | G60: 3.170169987e-06 | H60: 2.538835213e-06 | J60: -4.693660899e-05 | K60: -0.0008395653976 | L60: -7.35199932e-05 | M60: -0.001123243241 | N60: 1.071753915e-07
A61: 28.83636667 | B61: ='DF raw data'!J66 -> -2.5632485e-07 | C61: ='DF raw data'!K66 -> 6.8027311e-06 | D61: ='DF raw data'!L66 -> 7.8999437e-07 | F61: -2.566549964e-07 | G61: 6.826853337e-06 | H61: 7.910118827e-07 | J61: -4.706497242e-05 | K61: -0.000863104473 | L61: -7.010561077e-05 | M61: -0.001158305861 | N61: 1.107413438e-07
A62: 29.33650667 | B62: ='DF raw data'!J67 -> -2.3673422e-06 | C62: ='DF raw data'!K67 -> 2.0282077e-05 | D62: ='DF raw data'!L67 -> -3.0169031e-06 | F62: -2.370391337e-06 | G62: 2.035399651e-05 | H62: -3.020788871e-06 | J62: -4.825049994e-05 | K62: -0.000887236478 | L62: -5.992576296e-05 | M62: -0.001188277132 | N62: 1.137017764e-07
A63: 29.83664667 | B63: ='DF raw data'!J68 -> -7.0895985e-06 | C63: ='DF raw data'!K68 -> 4.0075652e-06 | D63: ='DF raw data'!L68 -> -1.847875e-06 | F63: -7.098729903e-06 | G63: 4.02177588e-06 | H63: -1.850255063e-06 | J63: -5.180085872e-05 | K63: -0.0009131441595 | L63: -5.791431197e-05 | M63: -0.001217242396 | N63: 1.167213199e-07
A64: 30.33678667 | B64: ='DF raw data'!J69 -> -5.3031763e-06 | C64: ='DF raw data'!K69 -> 2.1566634e-06 | D64: ='DF raw data'!L69 -> -8.7473018e-07 | F64: -5.310006791e-06 | G64: 2.16431085e-06 | H64: -8.758568325e-07 | J64: -5.445660551e-05 | K64: -0.0009403800862 | L64: -5.683185354e-05 | M64: -0.001245666279 | N64: 1.19819878e-07
A65: 30.83692667 | B65: ='DF raw data'!J70 -> 6.1916199e-07 | C65: ='DF raw data'!K70 -> 6.470364e-06 | D65: ='DF raw data'!L70 -> -8.4738713e-06 | F65: 6.199594706e-07 | G65: 6.493307675e-06 | H65: -8.484785646e-06 | J65: -5.414653898e-05 | K65: -0.0009674609362 | L65: -5.358429064e-05 | M65: -0.001272465926 | N65: 1.227222524e-07
A66: 31.33706667 | B66: ='DF raw data'!J71 -> 4.4611297e-06 | C66: ='DF raw data'!K71 -> 1.0209527e-05 | D66: ='DF raw data'!L71 -> -1.1884898e-05 | F66: 4.466875635e-06 | G66: 1.024572961e-05 | H66: -1.190020575e-05 | J66: -5.19124758e-05 | K66: -0.0009934244418 | L66: -4.845999144e-05 | M66: -0.001296702706 | N66: 1.252445964e-07
A67: 31.83720667 | B67: ='DF raw data'!J72 -> 2.9182772e-06 | C67: ='DF raw data'!K72 -> 6.5346758e-06 | D67: ='DF raw data'!L72 -> -3.2467797e-06 | F67: 2.922035941e-06 | G67: 6.557847522e-06 | H67: -3.250961552e-06 | J67: -5.045104875e-05 | K67: -0.001018657029 | L67: -4.518014958e-05 | M67: -0.001319299106 | N67: 1.275385156e-07
A68: 32.33734667 | B68: ='DF raw data'!J73 -> 1.7946949e-06 | C68: ='DF raw data'!K73 -> 4.6736336e-06 | D68: ='DF raw data'!L73 -> 2.1568703e-06 | F68: 1.797006467e-06 | G68: 4.690206134e-06 | H68: 2.159648349e-06 | J68: -4.955229393e-05 | K68: -0.001043440114 | L68: -4.283438988e-05 | M68: -0.001340722298 | N68: 1.296842236e-07
A69: 32.83748667 | B69: ='DF raw data'!J74 -> 8.8177188e-08 | C69: ='DF raw data'!K74 -> 9.3865483e-06 | D69: ='DF raw data'!L74 -> -1.3424724e-06 | F69: 8.829076022e-08 | G69: 9.419832658e-06 | H69: -1.344201504e-06 | J69: -4.950813619e-05 | K69: -0.001068201113 | L69: -3.812315477e-05 | M69: -0.001359789213 | N69: 1.316369855e-07
A70: 33.33762667 | B70: ='DF raw data'!J75 -> -4.9047594e-06 | C70: ='DF raw data'!K75 -> 3.8415819e-06 | D70: ='DF raw data'!L75 -> 3.2093667e-06 | F70: -4.91107673e-06 | G70: 3.855204009e-06 | H70: 3.213500364e-06 | J70: -5.196436211e-05 | K70: -0.001094190569 | L70: -3.619501304e-05 | M70: -0.001377891787 | N70: 1.336427339e-07
A71: 33.83776667 | B71: ='DF raw data'!J76 -> -6.0619859e-06 | C71: ='DF raw data'!K76 -> -3.4576849e-06 | D71: ='DF raw data'!L76 -> 1.0452568e-05 | F71: -6.069793738e-06 | G71: =(1-$G$1*($B$2-$G$2))*C71*$M$2/$M$1 -> -3.469945725e-06 | H71: 1.046603091e-05 | J71: -5.500010875e-05 | K71: -0.001121698323 | L71: -3.79304717e-05 | M71: -0.001396862333 | N71: 1.358752251e-07
A72: =A71+$B$1 -> 34.33790667 | B72: ='DF raw data'!J77 -> 6.9018989e-07 | C72: ='DF raw data'!K77 -> 1.8467122e-06 | D72: ='DF raw data'!L77 -> 9.6060103e-06 | F72: 6.910788546e-07 | G72: 1.853260574e-06 | H72: 9.618382841e-06 | J72: =F72*$B$1+J71 -> -5.465447257e-05 | K72: =J72*$B$1+K71 -> -0.001149033211 | L72: =G72*$B$1+L71 -> -3.700358195e-05 | M72: =L72*$B$1+M71 -> -0.001415369304 | N72: =(J72^2+L72^2)*$B$1+N71 -> 1.380540233e-07
A73: 34.83804667 | B73: ='DF raw data'!J78 -> 4.5824781e-06 | C73: ='DF raw data'!K78 -> -5.4723813e-07 | D73: ='DF raw data'!L78 -> -2.0685547e-07 | F73: 4.588380332e-06 | G73: -5.491786165e-07 | H73: -2.071218998e-07 | J73: -5.235964003e-05 | K73: -0.001175220362 | L73: -3.727824815e-05 | M73: -0.001434013647 | N73: 1.401202015e-07
A74: 35.33818667 | B74: ='DF raw data'!J79 -> 9.3848922e-07 | C74: ='DF raw data'!K79 -> 2.7032291e-08 | D74: ='DF raw data'!L79 -> -2.7749193e-06 | F74: 9.396979941e-07 | G74: 2.712814652e-08 | H74: -2.778493396e-06 | J74: -5.188965947e-05 | K74: -0.001201172456 | L74: -3.726468027e-05 | M74: -0.001452651204 | N74: 1.421613694e-07
A75: 35.83832667 | B75: ='DF raw data'!J80 -> -2.784662e-06 | C75: ='DF raw data'!K80 -> 7.7369083e-07 | D75: ='DF raw data'!L80 -> -3.3906108e-06 | F75: -2.788248645e-06 | G75: 7.764343095e-07 | H75: -3.394977907e-06 | J75: -5.328417415e-05 | K75: -0.001227822003 | L75: -3.687635442e-05 | M75: -0.001471094544 | N75: 1.442614916e-07
A76: 36.33846667 | B76: ='DF raw data'!J81 -> -2.5197298e-06 | C76: ='DF raw data'!K81 -> 2.7381391e-06 | D76: ='DF raw data'!L81 -> -8.2904444e-06 | F76: -2.522975212e-06 | G76: 2.747848441e-06 | H76: -8.301122492e-06 | J76: -5.454601497e-05 | K76: -0.001255102647 | L76: -3.55020455e-05 | M76: -0.001488850537 | N76: 1.463799161e-07
A77: 36.83860667 | B77: ='DF raw data'!J82 -> -2.4888943e-06 | C77: ='DF raw data'!K82 -> 7.6366505e-06 | D77: ='DF raw data'!L82 -> -5.5285927e-06 | F77: -2.492099996e-06 | G77: 7.663729784e-06 | H77: -5.535713527e-06 | J77: -5.579241387e-05 | K77: -0.001283006665 | L77: -3.166910769e-05 | M77: -0.001504689525 | N77: 1.484383552e-07
A78: 37.33874667 | B78: ='DF raw data'!J83 -> -3.2721366e-06 | C78: ='DF raw data'!K83 -> 5.0005301e-06 | D78: ='DF raw data'!L83 -> 5.1007664e-06 | F78: -3.276351112e-06 | G78: 5.018261798e-06 | H78: 5.107336187e-06 | J78: -5.743104811e-05 | K78: -0.001311730229 | L78: -2.915927423e-05 | M78: -0.001519273244 | N78: 1.505132303e-07
A79: 37.83888667 | B79: ='DF raw data'!J84 -> 1.8323407e-06 | C79: ='DF raw data'!K84 -> 7.0377502e-07 | D79: ='DF raw data'!L84 -> 3.4996046e-06 | F79: 1.834700755e-06 | G79: 7.062705806e-07 | H79: 3.504112091e-06 | J79: -5.651344088e-05 | K79: -0.001339994861 | L79: -2.880604006e-05 | M79: -0.001533680297 | N79: 1.525255721e-07
A80: 38.33902667 | B80: ='DF raw data'!J85 -> 6.2784457e-06 | C80: ='DF raw data'!K85 -> -5.7725128e-06 | D80: ='DF raw data'!L85 -> -6.3855987e-06 | F80: 6.286532338e-06 | G80: -5.79298192e-06 | H80: -6.393823351e-06 | J80: -5.336929459e-05 | K80: -0.00136668698 | L80: -3.170334204e-05 | M80: -0.001549536407 | N80: 1.544528033e-07
A81: 38.83916667 | B81: ='DF raw data'!J86 -> 4.9261798e-06 | C81: ='DF raw data'!K86 -> -1.5960211e-05 | D81: ='DF raw data'!L86 -> -7.8977173e-06 | F81: 4.93252472e-06 | G81: -1.601680533e-05 | H81: -7.90788956e-06 | J81: -5.090234168e-05 | K81: -0.001392145277 | L81: -3.971398706e-05 | M81: -0.00156939896 | N81: 1.565375115e-07
A82: 39.33930667 | B82: ='DF raw data'!J87 -> 2.1220255e-06 | C82: ='DF raw data'!K87 -> -5.1850329e-06 | D82: ='DF raw data'!L87 -> 1.3760582e-06 | F82: 2.124758669e-06 | G82: -5.203418838e-06 | H82: 1.377830563e-06 | J82: -4.983966488e-05 | K82: -0.001417072087 | L82: -4.231642495e-05 | M82: -0.001590563097 | N82: 1.586754459e-07
A83: 39.83944667 | B83: ='DF raw data'!J88 -> 3.9141e-07 | C83: ='DF raw data'!K88 -> -7.487185e-06 | D83: ='DF raw data'!L88 -> 1.4041434e-06 | F83: 3.919141361e-07 | G83: -7.513734285e-06 | H83: 1.405951937e-06 | J83: -4.964365294e-05 | K83: -0.001441900864 | L83: -4.607434402e-05 | M83: -0.001613606719 | N83: 1.609697569e-07
A84: 40.33958667 | B84: ='DF raw data'!J89 -> 5.7917333e-07 | C84: ='DF raw data'!K89 -> -1.9907922e-05 | D84: ='DF raw data'!L89 -> 4.3432374e-06 | F84: 5.799193052e-07 | G84: -1.997851477e-05 | H84: 4.34883149e-06 | J84: -4.93536121e-05 | K84: -0.00146658458 | L84: -5.606639839e-05 | M84: -0.001641647768 | N84: 1.63760148e-07
A85: 40.83972667 | B85: ='DF raw data'!J90 -> -4.6565415e-07 | C85: ='DF raw data'!K90 -> -1.2277621e-05 | D85: ='DF raw data'!L90 -> 7.6244905e-06 | F85: -4.662539125e-07 | G85: -1.2321157e-05 | H85: 7.634310844e-06 | J85: -4.958680433e-05 | K85: -0.001491384924 | L85: -6.222870185e-05 | M85: -0.001672770831 | N85: 1.669266656e-07
A86: 41.33986667 | B86: ='DF raw data'!J91 -> -1.1523736e-06 | C86: ='DF raw data'!K91 -> -4.6046248e-06 | D86: ='DF raw data'!L91 -> 2.448447e-06 | F86: -1.153857857e-06 | G86: -4.620952632e-06 | H86: 2.4516006e-06 | J86: -5.01638948e-05 | K86: -0.001516473894 | L86: -6.45398251e-05 | M86: -0.001705049779 | N86: 1.702685038e-07
A87: 41.84000667 | B87: ='DF raw data'!J92 -> 2.3953687e-06 | C87: ='DF raw data'!K92 -> -1.4819009e-05 | D87: ='DF raw data'!L92 -> -6.587652e-07 | F87: =(1-$G$1*($B$2-$G$2))*B87 -> 2.398453935e-06 | G87: -1.487155667e-05 | H87: -6.596136896e-07 | J87: -4.896433205e-05 | K87: -0.001540962915 | L87: -7.197768545e-05 | M87: -0.001741048699 | N87: 1.740587112e-07
A88: 42.34014667 | B88: ='DF raw data'!J93 -> 3.7561183e-06 | C88: ='DF raw data'!K93 -> -5.5434184e-06 | D88: ='DF raw data'!L93 -> -6.6524808e-06 | F88: 3.76095618e-06 | G88: -5.56307516e-06 | H88: -6.661049195e-06 | J88: -4.708332743e-05 | K88: -0.001564511171 | L88: -7.476000186e-05 | M88: -0.001778439166 | N88: 1.779627528e-07
A89: 42.84028667 | B89: ='DF raw data'!J94 -> 9.6266001e-07 | C89: ='DF raw data'!K94 -> -9.3842527e-06 | D89: ='DF raw data'!L94 -> -8.7517983e-06 | F89: 9.638999161e-07 | G89: -9.417528918e-06 | H89: -8.763070616e-06 | J89: -4.660124252e-05 | K89: -0.001587818316 | L89: -7.947008478e-05 | M89: -0.001818185334 | N89: 1.822075261e-07
A90: 43.34042667 | B90: ='DF raw data'!J95 -> -3.6969943e-06 | C90: ='DF raw data'!K95 -> 2.9553585e-06 | D90: ='DF raw data'!L95 -> 7.157214e-06 | F90: -3.701756029e-06 | G90: 2.965838094e-06 | H90: 7.166432492e-06 | J90: -4.845263878e-05 | K90: -0.001612051419 | L90: -7.798675051e-05 | M90: -0.001857189627 | N90: 1.86423502e-07
A91: 43.84056667 | B91: ='DF raw data'!J96 -> -5.8754304e-06 | C91: ='DF raw data'!K96 -> 7.2633215e-06 | D91: ='DF raw data'!L96 -> 5.9185841e-06 | F91: -5.882997954e-06 | G91: 7.289076973e-06 | H91: 5.926207236e-06 | J91: -5.139496138e-05 | K91: -0.001637756095 | L91: -7.434119156e-05 | M91: -0.001894370631 | N91: 1.90508673e-07
A92: 44.34070667 | B92: ='DF raw data'!J97 -> -3.8431681e-06 | C92: ='DF raw data'!K97 -> -1.6016605e-07 | D92: ='DF raw data'!L97 -> 5.1106326e-07 | F92: -3.848118101e-06 | G92: -1.60733993e-07 | H92: 5.117215095e-07 | J92: -5.331955917e-05 | K92: -0.001664423339 | L92: -7.442158105e-05 | M92: -0.001931591841 | N92: 1.947006199e-07
A93: 44.84084667 | B93: ='DF raw data'!J98 -> 2.8604043e-06 | C93: ='DF raw data'!K98 -> 2.9753726e-06 | D93: ='DF raw data'!L98 -> 4.6683563e-06 | F93: 2.864088501e-06 | G93: 2.985923163e-06 | H93: 4.674369143e-06 | J93: -5.188711394e-05 | K93: -0.00169037416 | L93: -7.292820144e-05 | M93: -0.001968066151 | N93: 1.98707139e-07
A94: 45.34098667 | B94: ='DF raw data'!J99 -> 3.6628696e-06 | C94: ='DF raw data'!K99 -> -5.172491e-06 | D94: ='DF raw data'!L99 -> -2.144574e-06 | F94: 3.667587376e-06 | G94: -5.190832465e-06 | H94: -2.147336211e-06 | J94: -5.005280679e-05 | K94: -0.001715407571 | L94: -7.552434439e-05 | M94: -0.002005838897 | N94: 2.028128933e-07
A95: 45.84112667 | B95: ='DF raw data'!J100 -> 1.3780444e-06 | C95: ='DF raw data'!K100 -> 7.5794645e-07 | D95: ='DF raw data'!L100 -> -5.4519769e-06 | F95: 1.379819321e-06 | G95: 7.606341005e-07 | H95: -5.458999046e-06 | J95: -4.936270396e-05 | K95: -0.001740095834 | L95: -7.514392085e-05 | M95: -0.002043421377 | N95: 2.068556677e-07
A96: 46.34126667 | B96: ='DF raw data'!J101 -> 6.5306303e-06 | C96: ='DF raw data'!K101 -> 1.5312315e-05 | D96: ='DF raw data'!L101 -> 1.5911646e-06 | F96: 6.539041752e-06 | G96: 1.536661191e-05 | H96: 1.59321402e-06 | J96: -4.609226762e-05 | K96: -0.001763148421 | L96: -6.745846357e-05 | M96: -0.002077160053 | N96: 2.101941729e-07
A97: 46.84140667 | B97: ='DF raw data'!J102 -> 8.5453285e-06 | C97: ='DF raw data'!K102 -> 7.5064258e-06 | D97: ='DF raw data'!L102 -> 5.1305688e-07 | F97: 8.556334883e-06 | G97: 7.533043312e-06 | H97: 5.137176973e-07 | J97: -4.181290229e-05 | K97: -0.001784060726 | L97: -6.369088729e-05 | M97: -0.002109014414 | N97: 2.130974096e-07
A98: 47.34154667 | B98: ='DF raw data'!J103 -> 4.9307055e-06 | C98: ='DF raw data'!K103 -> 2.6345997e-06 | D98: ='DF raw data'!L103 -> -2.5862973e-06 | F98: 4.937056249e-06 | G98: 2.643941895e-06 | H98: -2.589628451e-06 | J98: -3.934368298e-05 | K98: -0.001803738075 | L98: -6.236854619e-05 | M98: -0.002140207418 | N98: 2.158170513e-07
A99: 47.84168667 | B99: ='DF raw data'!J104 -> 3.4172333e-06 | C99: ='DF raw data'!K104 -> 5.6006857e-06 | D99: ='DF raw data'!L104 -> 6.3698099e-07 | F99: 3.421634696e-06 | G99: 5.620545527e-06 | H99: 6.378014215e-07 | J99: -3.76323866e-05 | K99: -0.001822559537 | L99: -5.955748655e-05 | M99: -0.0021699945 | N99: 2.182993916e-07
A100: 48.34182667 | B100: ='DF raw data'!J105 -> 4.2832471e-06 | C100: ='DF raw data'!K105 -> 3.8163639e-06 | D100: ='DF raw data'!L105 -> -1.8587307e-06 | F100: 4.288763922e-06 | G100: 3.829896587e-06 | H100: -1.861124745e-06 | J100: -3.548740421e-05 | K100: -0.001840308207 | L100: -5.764200207e-05 | M100: -0.002198823571 | N100: 2.205910112e-07
A101: 48.84196667 | B101: ='DF raw data'!J106 -> 6.6305583e-06 | C101: ='DF raw data'!K106 -> 3.1350849e-06 | D101: ='DF raw data'!L106 -> -2.517816e-06 | F101: 6.639098459e-06 | G101: 3.146201797e-06 | H101: -2.521058947e-06 | J101: -3.216692551e-05 | K101: -0.001856396173 | L101: -5.606846071e-05 | M101: -0.002226865651 | N101: 2.226807878e-07
A102: 49.34210667 | B102: ='DF raw data'!J107 -> 1.1776276e-05 | C102: ='DF raw data'!K107 -> 2.2888898e-06 | D102: ='DF raw data'!L107 -> 6.9266098e-06 | F102: 1.179144384e-05 | G102: 2.29700612e-06 | H102: 6.935531273e-06 | J102: -2.626955278e-05 | K102: -0.001869534628 | L102: -5.491963606e-05 | M102: -0.002254333157 | N102: 2.245344346e-07
A103: 49.84224667 | B103: ='DF raw data'!J108 -> 7.3182091e-06 | C103: ='DF raw data'!K108 -> 2.9996563e-06 | D103: ='DF raw data'!L108 -> 8.0491009e-06 | F103: 7.327634953e-06 | G103: 3.010292972e-06 | H103: 8.059468142e-06 | J103: -2.260470944e-05 | K103: -0.001880840147 | L103: -5.341406814e-05 | M103: -0.002281047669 | N103: 2.262169234e-07
A104: 50.34238667 | B104: ='DF raw data'!J109 -> 2.3122627e-06 | C104: ='DF raw data'!K109 -> 2.9875146e-06 | D104: ='DF raw data'!L109 -> 6.1874744e-07 | F104: 2.315240894e-06 | G104: 2.998108218e-06 | H104: 6.195443867e-07 | J104: -2.144676486e-05 | K104: -0.001891566532 | L104: -5.191459429e-05 | M104: -0.002307012235 | N104: 2.277949095e-07
A105: 50.84252667 | B105: ='DF raw data'!J110 -> 1.5953045e-06 | C105: ='DF raw data'!K110 -> 9.6610074e-06 | D105: ='DF raw data'!L110 -> 1.4106045e-06 | F105: 1.597359252e-06 | G105: 9.69526498e-06 | H105: 1.412421359e-06 | J105: -2.06478616e-05 | K105: -0.001901893353 | L105: -4.706560447e-05 | M105: -0.002330551626 | N105: 2.291160319e-07
A106: 51.34266667 | B106: ='DF raw data'!J111 -> -3.267189e-06 | C106: ='DF raw data'!K111 -> 7.4944178e-06 | D106: ='DF raw data'!L111 -> 8.1478065e-06 | F106: -3.271397139e-06 | G106: 7.520992732e-06 | H106: 8.158300875e-06 | J106: -2.228401817e-05 | K106: -0.001913038482 | L106: -4.330405516e-05 | M106: -0.002352209716 | N106: 2.303022733e-07
A107: 51.84280667 | B107: ='DF raw data'!J112 -> -4.4691478e-06 | C107: ='DF raw data'!K112 -> -5.728215e-06 | D107: ='DF raw data'!L112 -> 7.4680283e-06 | F107: -4.474904062e-06 | G107: -5.748527042e-06 | H107: 7.47764712e-06 | J107: -2.452209668e-05 | K107: -0.001925302964 | L107: -4.617912348e-05 | M107: -0.002375305743 | N107: 2.316695784e-07
A108: 52.34294667 | B108: ='DF raw data'!J113 -> -2.9556761e-06 | C108: ='DF raw data'!K113 -> -3.5023834e-06 | D108: ='DF raw data'!L113 -> 7.2775583e-07 | F108: -2.959483011e-06 | G108: -3.514802724e-06 | H108: 7.286931795e-07 | J108: -2.600225252e-05 | K108: -0.00193830773 | L108: -4.793701691e-05 | M108: -0.002399280963 | N108: 2.331570321e-07
A109: 52.84308667 | B109: ='DF raw data'!J114 -> -4.5202105e-06 | C109: ='DF raw data'!K114 -> 4.419855e-06 | D109: ='DF raw data'!L114 -> 4.7031062e-06 | F109: -4.526032531e-06 | G109: 4.435527645e-06 | H109: 4.709163801e-06 | J109: -2.826590243e-05 | K109: -0.001952444639 | L109: -4.571863211e-05 | M109: -0.002422146679 | N109: 2.346020139e-07
A110: 53.34322667 | B110: ='DF raw data'!J115 -> -6.2610998e-06 | C110: ='DF raw data'!K115 -> 6.1211849e-06 | D110: ='DF raw data'!L115 -> 3.9341394e-06 | F110: -6.269164097e-06 | G110: 6.142890399e-06 | H110: 3.939206572e-06 | J110: -3.140136216e-05 | K110: -0.001968149716 | L110: -4.264632691e-05 | M110: -0.002443475813 | N110: 2.360047839e-07
A111: 53.84336667 | B111: ='DF raw data'!J116 -> -3.3241888e-06 | C111: ='DF raw data'!K116 -> -3.4236612e-06 | D111: ='DF raw data'!L116 -> 1.5938276e-06 | F111: -3.328470355e-06 | G111: -3.435801378e-06 | H111: 1.59588045e-06 | J111: -3.306606332e-05 | K111: -0.001984687377 | L111: -4.436470861e-05 | M111: -0.002465664379 | N111: 2.375360085e-07
A112: 54.34350667 | B112: ='DF raw data'!J117 -> 3.5210527e-07 | C112: ='DF raw data'!K117 -> -8.525516e-06 | D112: ='DF raw data'!L117 -> 3.0015799e-06 | F112: 3.525587816e-07 | G112: -8.555747169e-06 | H112: 3.005445935e-06 | J112: -3.288973457e-05 | K112: -0.002001136849 | L112: -4.864378e-05 | M112: -0.002489993079 | N112: 2.392604672e-07
A113: 54.84364667 | B113: ='DF raw data'!J118 -> 2.2649399e-06 | C113: ='DF raw data'!K118 -> 9.5215764e-06 | D113: ='DF raw data'!L118 -> 7.0150563e-06 | F113: 2.267857143e-06 | G113: 9.555339563e-06 | H113: 7.024091693e-06 | J113: -3.17554885e-05 | K113: -0.002017019039 | L113: -4.386477247e-05 | M113: -0.002511931606 | N113: 2.407271424e-07
A114: 55.34378667 | B114: ='DF raw data'!J119 -> 4.2710963e-06 | C114: ='DF raw data'!K119 -> 5.5035507e-06 | D114: ='DF raw data'!L119 -> 4.1344028e-06 | F114: 4.276597472e-06 | G114: 5.52306609e-06 | H114: 4.139727911e-06 | J114: -2.961659104e-05 | K114: -0.002031831481 | L114: -4.11024662e-05 | M114: -0.002532488594 | N114: 2.420107793e-07
A115: 55.84392667 | B115: ='DF raw data'!J120 -> 4.9708979e-06 | C115: ='DF raw data'!K120 -> 6.3436082e-06 | D115: ='DF raw data'!L120 -> -3.8083672e-06 | F115: 4.977300416e-06 | G115: 6.366102404e-06 | H115: -3.813272377e-06 | J115: -2.712724401e-05 | K115: -0.0020453989 | L115: -3.791852374e-05 | M115: -0.002551453164 | N115: 2.430979346e-07
A116: 56.34406667 | B116: ='DF raw data'!J121 -> 1.6214689e-06 | C116: ='DF raw data'!K121 -> 1.2192121e-05 | D116: ='DF raw data'!L121 -> -1.3306271e-06 | F116: 1.623557352e-06 | G116: 1.223535382e-05 | H116: -1.332340948e-06 | J116: -2.631523804e-05 | K116: -0.002058560204 | L116: -3.179913388e-05 | M116: -0.002567357183 | N116: 2.439500114e-07
A117: 56.84420667 | B117: ='DF raw data'!J122 -> -4.3118271e-06 | C117: ='DF raw data'!K122 -> 5.2544419e-06 | D117: ='DF raw data'!L122 -> -6.3167245e-06 | F117: -4.317380733e-06 | G117: 5.27307396e-06 | H117: -6.324860441e-06 | J117: -2.847453284e-05 | K117: -0.002072801456 | L117: -2.916185867e-05 | M117: -0.002581942195 | N117: 2.447808505e-07
A118: 57.34434667 | B118: ='DF raw data'!J123 -> -4.9784503e-06 | C118: ='DF raw data'!K123 -> -1.4541425e-06 | D118: ='DF raw data'!L123 -> -1.1132506e-05 | F118: -4.984862544e-06 | G118: -1.459298836e-06 | H118: -1.114684467e-05 | J118: -3.096766199e-05 | K118: -0.002088289623 | L118: -2.989171239e-05 | M118: -0.002596892236 | N118: 2.457073651e-07
A119: 57.84448667 | B119: ='DF raw data'!J124 -> -4.5917623e-06 | C119: ='DF raw data'!K124 -> 1.2593657e-06 | D119: ='DF raw data'!L124 -> -1.757362e-06 | F119: -4.59767649e-06 | G119: 1.263831365e-06 | H119: -1.759625482e-06 | J119: -3.326714391e-05 | K119: -0.002104927852 | L119: -2.925961977e-05 | M119: -0.002611526142 | N119: 2.46689054e-07
A120: 58.34462667 | B120: ='DF raw data'!J125 -> -4.1500825e-06 | C120: ='DF raw data'!K125 -> 6.7265441e-06 | D120: ='DF raw data'!L125 -> -3.122841e-07 | F120: -4.155427806e-06 | G120: 6.75039618e-06 | H120: -3.126863219e-07 | J120: -3.534543957e-05 | K120: -0.00212260552 | L120: -2.588347663e-05 | M120: -0.002624471504 | N120: 2.4764895e-07
A121: 58.84476667 | B121: ='DF raw data'!J126 -> -2.7323915e-06 | C121: ='DF raw data'!K126 -> -3.9102697e-06 | D121: ='DF raw data'!L126 -> -4.1614985e-06 | F121: -2.73591082e-06 | G121: -3.924135374e-06 | H121: -4.16685851e-06 | J121: -3.671377801e-05 | K121: -0.002140967549 | L121: -2.784609369e-05 | M121: -0.002638398449 | N121: 2.487109004e-07
A122: 59.34490667 | B122: ='DF raw data'!J127 -> 3.4976242e-07 | C122: ='DF raw data'!K127 -> 7.8045023e-06 | D122: ='DF raw data'!L127 -> -1.6376434e-06 | F122: 3.50212914e-07 | G122: 7.832176781e-06 | H122: -1.639752685e-06 | J122: -3.653862252e-05 | K122: -0.002159241976 | L122: -2.39289088e-05 | M122: -0.002650366254 | N122: 2.496649993e-07
A123: 59.84504667 | B123: ='DF raw data'!J128 -> 1.9324577e-06 | C123: ='DF raw data'!K128 -> 7.4651971e-06 | D123: ='DF raw data'!L128 -> 4.6288187e-07 | F123: 1.934946706e-06 | G123: 7.491668417e-06 | H123: 4.634780618e-07 | J123: -3.557087828e-05 | K123: -0.002177032395 | L123: -2.018202576e-05 | M123: -0.002660460092 | N123: 2.505015343e-07
A124: 60.34518667 | B124: ='DF raw data'!J129 -> -7.6682062e-07 | C124: ='DF raw data'!K129 -> -1.2840551e-05 | D124: ='DF raw data'!L129 -> 1.3773242e-06 | F124: -7.67808285e-07 | G124: -1.288608313e-05 | H124: 1.379098194e-06 | J124: -3.595488991e-05 | K124: -0.002195014874 | L124: -2.662687137e-05 | M124: -0.002673777256 | N124: 2.515026867e-07
A125: 60.84532667 | B125: ='DF raw data'!J130 -> -3.4453481e-06 | C125: ='DF raw data'!K130 -> -7.5317503e-06 | D125: ='DF raw data'!L130 -> -8.456409e-07 | F125: -3.449785708e-06 | G125: -7.558457612e-06 | H125: -8.467300855e-07 | J125: -3.768026574e-05 | K125: -0.002213860282 | L125: -3.040715836e-05 | M125: -0.002688985092 | N125: 2.526752138e-07
A126: 61.34546667 | B126: ='DF raw data'!J131 -> -2.7534918e-06 | C126: ='DF raw data'!K131 -> -3.0962308e-06 | D126: ='DF raw data'!L131 -> -1.9521685e-06 | F126: -2.757038297e-06 | G126: -3.107209922e-06 | H126: -1.954682893e-06 | J126: -3.905917087e-05 | K126: -0.002233395336 | L126: -3.196119833e-05 | M126: -0.002704970166 | N126: 2.539491389e-07
A127: 61.84560667 | B127: ='DF raw data'!J132 -> -5.4621851e-06 | C127: ='DF raw data'!K132 -> 1.6692541e-06 | D127: ='DF raw data'!L132 -> 3.6927377e-06 | F127: -5.469220394e-06 | G127: 1.675173214e-06 | H127: 3.697493946e-06 | J127: -4.179454676e-05 | K127: -0.00225429846 | L127: -3.11233772e-05 | M127: -0.002720536211 | N127: 2.553072434e-07
A128: 62.34574667 | B128: ='DF raw data'!J133 -> -1.0248383e-05 | C128: ='DF raw data'!K133 -> -4.2364991e-06 | D128: ='DF raw data'!L133 -> 6.1698811e-06 | F128: -1.026158292e-05 | G128: -4.251521571e-06 | H128: 6.177827907e-06 | J128: -4.692677484e-05 | K128: -0.002277768417 | L128: -3.32497332e-05 | M128: -0.002737165733 | N128: 2.5696154e-07
A129: 62.84588667 | B129: ='DF raw data'!J134 -> -6.0029197e-06 | C129: ='DF raw data'!K134 -> -2.0001269e-06 | D129: ='DF raw data'!L134 -> 1.1736469e-05 | F129: -6.010651461e-06 | G129: -2.007219277e-06 | H129: 1.175158557e-05 | J129: -4.993294206e-05 | K129: -0.002302741879 | L129: -3.425362385e-05 | M129: -0.00275429734 | N129: 2.58795358e-07
A130: 63.34602667 | B130: ='DF raw data'!J135 -> 1.5307668e-06 | C130: ='DF raw data'!K135 -> 9.8942382e-06 | D130: ='DF raw data'!L135 -> 6.2347826e-06 | F130: 1.532738428e-06 | G130: 9.929322808e-06 | H130: 6.242813e-06 | J130: -4.916635826e-05 | K130: -0.002327331941 | L130: -2.928757234e-05 | M130: -0.002768945227 | N130: 2.604333629e-07
A131: 63.84616667 | B131: ='DF raw data'!J136 -> 2.9140135e-06 | C131: ='DF raw data'!K136 -> 6.9342905e-06 | D131: ='DF raw data'!L136 -> 1.7789716e-07 | F131: 2.917766749e-06 | G131: 6.958879241e-06 | H131: 1.781262915e-07 | J131: -4.77070664e-05 | K131: -0.002351192154 | L131: -2.580715848e-05 | M131: -0.002781852419 | N131: 2.619047615e-07
A132: 64.34630667 | B132: ='DF raw data'!J137 -> 2.1272703e-07 | C132: ='DF raw data'!K137 -> 9.296351e-06 | D132: ='DF raw data'!L137 -> 3.2994139e-06 | F132: 2.130010224e-07 | G132: 9.329315522e-06 | H132: 3.303663545e-06 | J132: -4.760053607e-05 | K132: -0.002374999086 | L132: -2.114119461e-05 | M132: -0.002792425976 | N132: 2.632615219e-07
A133: 64.84644667 | B133: ='DF raw data'!J138 -> -3.7800797e-07 | C133: ='DF raw data'!K138 -> 7.0948031e-06 | D133: ='DF raw data'!L138 -> 4.9038354e-06 | F133: -3.784948443e-07 | G133: 7.119961013e-06 | H133: 4.91015154e-06 | J133: -4.778983648e-05 | K133: -0.002398900694 | L133: -1.758021731e-05 | M133: -0.002801218546 | N133: 2.645583512e-07
A134: 65.34658667 | B134: ='DF raw data'!J139 -> -3.6672939e-06 | C134: ='DF raw data'!K139 -> 2.3341215e-06 | D134: ='DF raw data'!L139 -> 4.2587199e-06 | F134: -3.672017375e-06 | G134: 2.34239821e-06 | H134: 4.264205131e-06 | J134: -4.962635925e-05 | K134: -0.002423720822 | L134: -1.640869027e-05 | M134: -0.002809425188 | N134: 2.65924744e-07
A135: 65.84672667 | B135: ='DF raw data'!J140 -> -1.1336328e-05 | C135: ='DF raw data'!K140 -> -2.0859204e-06 | D135: ='DF raw data'!L140 -> -1.3239624e-06 | F135: -1.135092919e-05 | G135: =(1-$G$1*($B$2-$G$2))*C135*$M$2/$M$1 -> -2.093316998e-06 | H135: -1.325667664e-06 | J135: -5.530341298e-05 | K135: -0.002451380271 | L135: -1.745564183e-05 | M135: -0.002818155453 | N135: 2.676067983e-07
A136: =A135+$B$1 -> 66.34686667 | B136: ='DF raw data'!J141 -> -1.0481679e-05 | C136: ='DF raw data'!K141 -> -6.4587284e-06 | D136: ='DF raw data'!L141 -> 9.9444878e-07 | F136: -1.04951794e-05 | G136: -6.481630816e-06 | H136: 9.9572963e-07 | J136: =F136*$B$1+J135 -> -6.0552472e-05 | K136: =J136*$B$1+K135 -> -0.002481664984 | L136: =G136*$B$1+L135 -> -2.069736467e-05 | M136: =L136*$B$1+M135 -> -0.002828507033 | N136: =(J136^2+L136^2)*$B$1+N135 -> 2.69654863e-07
A137: 66.84700667 | B137: ='DF raw data'!J142 -> -3.9820079e-06 | C137: ='DF raw data'!K142 -> 6.8362743e-07 | D137: ='DF raw data'!L142 -> 3.0648807e-06 | F137: -3.987136726e-06 | G137: 6.86051548e-07 | H137: 3.068828266e-06 | J137: -6.254659857e-05 | K137: -0.00251294704 | L137: -2.035424285e-05 | M137: -0.002838687004 | N137: 2.718186548e-07
A138: 67.34714667 | B138: ='DF raw data'!J143 -> -3.3017643e-06 | C138: ='DF raw data'!K143 -> -1.1012465e-05 | D138: ='DF raw data'!L143 -> 2.9670337e-06 | F138: -3.306016972e-06 | G138: -1.10515148e-05 | H138: 2.970855239e-06 | J138: -6.420006989e-05 | K138: -0.002545056063 | L138: -2.588154746e-05 | M138: -0.002851631401 | N138: 2.742150773e-07
A139: 67.84728667 | B139: ='DF raw data'!J144 -> -4.4951812e-06 | C139: ='DF raw data'!K144 -> -4.93886e-06 | D139: ='DF raw data'!L144 -> -9.5153518e-07 | F139: -4.500970993e-06 | G139: -4.956373018e-06 | H139: -9.527607573e-07 | J139: -6.645118553e-05 | K139: -0.002578290959 | L139: -2.836042786e-05 | M139: -0.002865815586 | N139: 2.768258451e-07
A140: 68.34742667 | B140: ='DF raw data'!J145 -> -3.4936022e-06 | C140: ='DF raw data'!K145 -> 8.9787945e-06 | D140: ='DF raw data'!L145 -> -6.6466891e-06 | F140: -3.49810196e-06 | G140: 9.010632978e-06 | H140: -6.655250036e-06 | J140: -6.820072624e-05 | K140: -0.00261240087 | L140: -2.385384988e-05 | M140: -0.00287774585 | N140: 2.794367485e-07
A141: 68.84756667 | B141: ='DF raw data'!J146 -> -4.4542699e-07 | C141: ='DF raw data'!K146 -> -3.7528259e-06 | D141: ='DF raw data'!L146 -> -2.3613393e-06 | F141: -4.460007e-07 | G141: -3.766133284e-06 | H141: -2.364380705e-06 | J141: -6.842378903e-05 | K141: -0.002646622344 | L141: -2.573744378e-05 | M141: -0.002890618175 | N141: 2.821096122e-07
A142: 69.34770667 | B142: ='DF raw data'!J147 -> 3.13756e-06 | C142: ='DF raw data'!K147 -> -8.1636608e-06 | D142: ='DF raw data'!L147 -> -1.2685341e-06 | F142: 3.141601177e-06 | G142: -8.192608844e-06 | H142: -1.270167972e-06 | J142: -6.685254862e-05 | K142: -0.002680057978 | L142: -2.983489517e-05 | M142: -0.0029055398 | N142: 2.847900546e-07
A143: 69.84784667 | B143: ='DF raw data'!J148 -> 2.7382555e-06 | C143: ='DF raw data'!K148 -> -9.6050753e-06 | D143: ='DF raw data'!L148 -> -3.1759701e-06 | F143: 2.741782373e-06 | G143: -9.639134547e-06 | H143: -3.180060749e-06 | J143: -6.548127358e-05 | K143: -0.002712807782 | L143: -3.465581192e-05 | M143: -0.002922872557 | N143: 2.875352343e-07
A144: 70.34798667 | B144: ='DF raw data'!J149 -> -2.1814415e-06 | C144: ='DF raw data'!K149 -> -7.2516868e-06 | D144: ='DF raw data'!L149 -> 8.2998304e-07 | F144: -2.184251197e-06 | G144: -7.277401017e-06 | H144: 8.310520582e-07 | J144: -6.657370498e-05 | K144: -0.002746103955 | L144: -3.829553127e-05 | M144: -0.002942025684 | N144: 2.90485363e-07
A145: 70.84812667 | B145: ='DF raw data'!J150 -> -2.6716518e-06 | C145: ='DF raw data'!K150 -> 3.5332316e-06 | D145: ='DF raw data'!L150 -> 5.4758566e-06 | F145: -2.675092888e-06 | G145: 3.545760311e-06 | H145: 5.482909503e-06 | J145: -6.791162593e-05 | K145: -0.002780069275 | L145: -3.65221547e-05 | M145: -0.002960291875 | N145: 2.934591238e-07
A146: 71.34826667 | B146: ='DF raw data'!J151 -> 4.244574e-07 | C146: ='DF raw data'!K151 -> 6.48803e-07 | D146: ='DF raw data'!L151 -> 8.2725892e-06 | F146: 4.250041011e-07 | G146: 6.511036318e-07 | H146: 8.283244295e-06 | J146: -6.769906438e-05 | K146: -0.002813928285 | L146: -3.619651173e-05 | M146: -0.002978395198 | N146: 2.964066243e-07
A147: 71.84840667 | B147: ='DF raw data'!J152 -> -1.5722836e-06 | C147: ='DF raw data'!K152 -> -5.9540542e-07 | D147: ='DF raw data'!L152 -> 7.1873656e-06 | F147: -1.574308701e-06 | G147: -5.975167059e-07 | H147: 7.196622927e-06 | J147: -6.848643914e-05 | K147: -0.002848181093 | L147: -3.649535374e-05 | M147: -0.002996647985 | N147: 2.99418619e-07
A148: 72.34854667 | B148: ='DF raw data'!J153 -> -4.8178408e-06 | C148: ='DF raw data'!K153 -> -4.9049695e-06 | D148: ='DF raw data'!L153 -> 1.5580881e-06 | F148: -4.824046179e-06 | G148: -4.922362343e-06 | H148: 1.560094917e-06 | J148: -7.089913759e-05 | K148: -0.002883640588 | L148: -3.895722404e-05 | M148: -0.003016132051 | N148: 3.026917117e-07
A149: 72.84868667 | B149: ='DF raw data'!J154 -> -5.039059e-06 | C149: ='DF raw data'!K154 -> -6.8112431e-06 | D149: ='DF raw data'!L154 -> -6.9254311e-06 | F149: -5.045549308e-06 | G149: -6.83539552e-06 | H149: -6.934351055e-06 | J149: -7.342261862e-05 | K149: -0.002920362176 | L149: -4.237587876e-05 | M149: -0.003037325923 | N149: 3.062860159e-07
A150: 73.34882667 | B150: ='DF raw data'!J155 -> -4.1774547e-06 | C150: ='DF raw data'!K155 -> -2.059902e-06 | D150: ='DF raw data'!L155 -> -9.665062e-06 | F150: -4.182835262e-06 | G150: -2.067206337e-06 | H150: -9.6775106e-06 | J150: -7.551462185e-05 | K150: -0.002958130059 | L150: -4.340977133e-05 | M150: -0.003059036886 | N150: 3.100805112e-07
A151: 73.84896667 | B151: ='DF raw data'!J156 -> -1.800836e-06 | C151: ='DF raw data'!K156 -> 5.6483191e-06 | D151: ='DF raw data'!L156 -> -4.1722815e-06 | F151: =(1-$G$1*($B$2-$G$2))*B151 -> -1.803155477e-06 | G151: 5.668347834e-06 | H151: -4.177655399e-06 | J151: -7.641645203e-05 | K151: -0.002996348983 | L151: -4.057480385e-05 | M151: -0.003079329968 | N151: 3.138244536e-07
A152: 74.34910667 | B152: ='DF raw data'!J157 -> 1.182132e-06 | C152: ='DF raw data'!K157 -> 2.0180325e-06 | D152: ='DF raw data'!L157 -> -3.0262163e-06 | F152: 1.183654586e-06 | G152: 2.02518837e-06 | H152: -3.030114067e-06 | J152: -7.582445903e-05 | K152: -0.003034271828 | L152: -3.956192614e-05 | M152: -0.00309911647 | N152: 3.17482725e-07
A153: 74.84924667 | B153: ='DF raw data'!J158 -> 2.359862e-06 | C153: ='DF raw data'!K158 -> 1.8764664e-06 | D153: ='DF raw data'!L158 -> -3.4063851e-06 | F153: 2.362901502e-06 | G153: 1.883120281e-06 | H153: -3.410772524e-06 | J153: -7.464267747e-05 | K153: -0.003071603617 | L153: -3.862010236e-05 | M153: -0.003118431928 | N153: 3.210152346e-07
A154: 75.34938667 | B154: ='DF raw data'!J159 -> 4.1754465e-06 | C154: ='DF raw data'!K159 -> 5.3769281e-06 | D154: ='DF raw data'!L159 -> 1.3152312e-06 | F154: 4.180824475e-06 | G154: 5.395994491e-06 | H154: 1.316925218e-06 | J154: -7.255167992e-05 | K154: -0.003107889614 | L154: -3.592134968e-05 | M154: -0.003136397632 | N154: 3.24293197e-07
A155: 75.84952667 | B155: ='DF raw data'!J160 -> 2.3312821e-06 | C155: ='DF raw data'!K160 -> -2.9829514e-06 | D155: ='DF raw data'!L160 -> 7.8143785e-06 | F155: 2.334284791e-06 | G155: -2.993528837e-06 | H155: 7.82444342e-06 | J155: -7.138421072e-05 | K155: -0.003143591713 | L155: -3.741853319e-05 | M155: -0.003155112137 | N155: 3.275420325e-07
A156: 76.34966667 | B156: ='DF raw data'!J161 -> -9.4913194e-06 | C156: ='DF raw data'!K161 -> -4.1034723e-06 | D156: ='DF raw data'!L161 -> -1.8102146e-06 | F156: -9.503544219e-06 | G156: -4.118023063e-06 | H156: -1.812546156e-06 | J156: -7.613731333e-05 | K156: -0.003181671029 | L156: -3.947812124e-05 | M156: -0.003174856724 | N156: 3.312207685e-07
A157: 76.84980667 | B157: ='DF raw data'!J162 -> -1.855108e-05 | C157: ='DF raw data'!K162 -> 6.4580886e-06 | D157: ='DF raw data'!L162 -> -5.614711e-06 | F157: -1.857497379e-05 | G157: 6.480988747e-06 | H157: -5.621942748e-06 | J157: -8.542740072e-05 | K157: -0.003224396689 | L157: -3.623671953e-05 | M157: -0.003192980157 | N157: 3.355274443e-07
A158: 77.34994667 | B158: ='DF raw data'!J163 -> -1.3548481e-05 | C158: ='DF raw data'!K163 -> 9.8092451e-06 | D158: ='DF raw data'!L163 -> -1.8827559e-06 | F158: -1.356593144e-05 | G158: 9.844028326e-06 | H158: -1.88518089e-06 | J158: -9.221226567e-05 | K158: -0.003270515732 | L158: -3.13133272e-05 | M158: -0.003208641205 | N158: 3.402705853e-07
A159: 77.85008667 | B159: ='DF raw data'!J164 -> -7.8321245e-06 | C159: ='DF raw data'!K164 -> -1.6630894e-06 | D159: ='DF raw data'!L164 -> 2.6205526e-06 | F159: -7.842212276e-06 | G159: -1.668986654e-06 | H159: 2.623927872e-06 | J159: -9.613446972e-05 | K159: -0.003318596426 | L159: -3.214805419e-05 | M159: -0.003224719732 | N159: 3.454096906e-07
A160: 78.35022667 | B160: ='DF raw data'!J165 -> -1.000976e-05 | C160: ='DF raw data'!K165 -> -2.3279574e-06 | D160: ='DF raw data'!L165 -> 8.3538616e-06 | F160: -1.002265257e-05 | G160: -2.336212252e-06 | H160: 8.364621374e-06 | J160: -0.0001011471992 | K160: -0.003369184186 | L160: -3.331648739e-05 | M160: -0.00324138264 | N160: 3.510816504e-07
A161: 78.85036667 | B161: ='DF raw data'!J166 -> -1.1753385e-05 | C161: ='DF raw data'!K166 -> -1.3214634e-07 | D161: ='DF raw data'!L166 -> 1.7397106e-06 | F161: -1.176852336e-05 | G161: -1.326149261e-07 | H161: 1.741951347e-06 | J161: -0.0001070331084 | K161: -0.003422715725 | L161: -3.338281341e-05 | M161: -0.003258078721 | N161: 3.573686596e-07
A162: 79.35050667 | B162: ='DF raw data'!J167 -> -1.0079915e-05 | C162: ='DF raw data'!K167 -> 6.3895072e-06 | D162: ='DF raw data'!L167 -> -4.7702779e-06 | F162: -1.009289793e-05 | G162: 6.41216416e-06 | H162: -4.776422018e-06 | J162: -0.0001120809704 | K162: -0.003478771901 | L162: -3.017583363e-05 | M162: -0.003273170862 | N162: 3.641069082e-07
A163: 79.85064667 | B163: ='DF raw data'!J168 -> -2.2610113e-06 | C163: ='DF raw data'!K168 -> 7.6307797e-06 | D163: ='DF raw data'!L168 -> -8.4845815e-06 | F163: -2.263923483e-06 | G163: 7.657838167e-06 | H163: -8.495509641e-06 | J163: -0.0001132132491 | K163: -0.003535394376 | L163: -2.634584245e-05 | M163: -0.003286347472 | N163: 3.708644714e-07
A164: 80.35078667 | B164: ='DF raw data'!J169 -> 3.9382794e-06 | C164: ='DF raw data'!K169 -> 3.2837229e-06 | D164: ='DF raw data'!L169 -> -2.4259643e-06 | F164: 3.943351904e-06 | G164: 3.295366862e-06 | H164: -2.429088942e-06 | J164: -0.0001112410211 | K164: -0.00359103046 | L164: -2.469769767e-05 | M164: -0.003298699778 | N164: 3.773585597e-07
A165: 80.85092667 | B165: ='DF raw data'!J170 -> 2.9561268e-06 | C165: ='DF raw data'!K170 -> -1.6516148e-06 | D165: ='DF raw data'!L170 -> -2.2147869e-06 | F165: 2.959934291e-06 | G165: -1.657471366e-06 | H165: -2.217639546e-06 | J165: -0.0001097606396 | K165: -0.003645926146 | L165: -2.55266654e-05 | M165: -0.003311466685 | N165: 3.837098419e-07
A166: 81.35106667 | B166: ='DF raw data'!J171 -> 3.0510259e-07 | C166: ='DF raw data'!K171 -> -1.1128413e-05 | D166: ='DF raw data'!L171 -> -1.0251868e-05 | F166: 3.054955621e-07 | G166: -1.116787395e-05 | H166: -1.026507241e-05 | J166: -0.000109607849 | K166: -0.003700745416 | L166: -3.111216587e-05 | M166: -0.003327027123 | N166: 3.902025831e-07
A167: 81.85120667 | B167: ='DF raw data'!J172 -> 4.3820896e-07 | C167: ='DF raw data'!K172 -> -9.0895918e-07 | D167: ='DF raw data'!L172 -> -1.3116616e-05 | F167: 4.387733731e-07 | G167: -9.121823161e-07 | H167: -1.31335102e-05 | J167: -0.0001093884009 | K167: -0.003755454931 | L167: -3.156838474e-05 | M167: -0.003342815735 | N167: 3.966855904e-07
A168: 82.35134667 | B168: ='DF raw data'!J173 -> 7.3304528e-07 | C168: ='DF raw data'!K173 -> 1.0952716e-05 | D168: ='DF raw data'!L173 -> -2.4443434e-06 | F168: 7.339894423e-07 | G168: 1.099155393e-05 | H168: -2.447491714e-06 | J168: -0.0001090213034 | K168: -0.003809980845 | L168: -2.607106895e-05 | M168: -0.00335585492 | N168: 4.029700222e-07
A169: 82.85148667 | B169: ='DF raw data'!J174 -> 2.2581296e-06 | C169: ='DF raw data'!K174 -> 1.2091117e-05 | D169: ='DF raw data'!L174 -> -6.3133484e-07 | F169: 2.261038071e-06 | G169: 1.213399166e-05 | H169: -6.321479993e-07 | J169: -0.0001078904678 | K169: -0.003863941184 | L169: -2.000237436e-05 | M169: -0.003365858907 | N169: 4.089919318e-07
A170: 83.35162667 | B170: ='DF raw data'!J175 -> 3.7657953e-06 | C170: ='DF raw data'!K175 -> 4.3655505e-06 | D170: ='DF raw data'!L175 -> -6.1198516e-06 | F170: 3.770645644e-06 | G170: 4.381030583e-06 | H170: -6.127733969e-06 | J170: -0.0001060046171 | K170: -0.003916958333 | L170: -1.781124573e-05 | M170: -0.003374767024 | N170: 4.147706591e-07
A171: 83.85176667 | B171: ='DF raw data'!J176 -> 3.1932211e-06 | C171: ='DF raw data'!K176 -> 2.2144375e-06 | D171: ='DF raw data'!L176 -> -3.1495438e-06 | F171: 3.197333969e-06 | G171: 2.222289815e-06 | H171: -3.153600412e-06 | J171: -0.0001044055025 | K171: -0.003969175701 | L171: -1.66997897e-05 | M171: -0.003383119257 | N171: 4.203619202e-07
A172: 84.35190667 | B172: ='DF raw data'!J177 -> 2.8837746e-06 | C172: ='DF raw data'!K177 -> -9.77274e-07 | D172: ='DF raw data'!L177 -> -6.4082997e-06 | F172: 2.887488902e-06 | G172: -9.80739378e-07 | H172: -6.41655359e-06 | J172: -0.0001029613538 | K172: -0.004020670793 | L172: -1.719029669e-05 | M172: -0.003391716812 | N172: 4.25811719e-07
A173: 84.85204667 | B173: ='DF raw data'!J178 -> 5.1630906e-07 | C173: ='DF raw data'!K178 -> 1.9127585e-06 | D173: ='DF raw data'!L178 -> -1.0582706e-05 | F173: 5.169740661e-07 | G173: 1.919541072e-06 | H173: -1.059633653e-05 | J173: -0.0001027027944 | K173: -0.004072036568 | L173: -1.623025742e-05 | M173: -0.003399834213 | N173: 4.312188752e-07
A174: 85.35218667 | B174: ='DF raw data'!J179 -> -4.1451872e-07 | C174: ='DF raw data'!K179 -> 4.9100668e-06 | D174: ='DF raw data'!L179 -> -3.6759157e-06 | F174: -4.150526201e-07 | G174: 4.927477718e-06 | H174: -3.680650279e-06 | J174: -0.0001029103788 | K174: -0.004123506165 | L174: -1.376582872e-05 | M174: -0.003406719054 | N174: 4.366104065e-07
A175: 85.85232667 | B175: ='DF raw data'!J180 -> 8.3898925e-08 | C175: ='DF raw data'!K180 -> 2.2540653e-06 | D175: ='DF raw data'!L180 -> -2.9217917e-06 | F175: 8.400698682e-08 | G175: 2.262058133e-06 | H175: -2.925554968e-06 | J175: -0.0001028683636 | K175: -0.004174954748 | L175: -1.263448296e-05 | M175: -0.003413038064 | N175: 4.419826755e-07
A176: 86.35246667 | B176: ='DF raw data'!J181 -> -2.4287513e-06 | C176: ='DF raw data'!K181 -> 4.2496022e-06 | D176: ='DF raw data'!L181 -> -2.449131e-06 | F176: -2.431879532e-06 | G176: 4.264671135e-06 | H176: -2.452285481e-06 | J176: -0.0001040846438 | K176: -0.004227011642 | L176: -1.050155034e-05 | M176: -0.00341829031 | N176: 4.474561555e-07
A177: 86.85260667 | B177: ='DF raw data'!J182 -> -6.5879794e-06 | C177: ='DF raw data'!K182 -> 6.1023716e-06 | D177: ='DF raw data'!L182 -> 3.4058903e-06 | F177: -6.596464717e-06 | G177: 6.124010387e-06 | H177: 3.410277087e-06 | J177: -0.0001073837996 | K177: -0.004280718576 | L177: -7.438687785e-06 | M177: -0.003422010695 | N177: 4.532510848e-07
A178: 87.35274667 | B178: ='DF raw data'!J183 -> -5.1648749e-06 | C178: ='DF raw data'!K183 -> 8.4033236e-06 | D178: ='DF raw data'!L183 -> 3.4028199e-07 | F178: -5.171527259e-06 | G178: 8.433121479e-06 | H178: 3.407202732e-07 | J178: -0.0001099702873 | K178: -0.004335719115 | L178: -3.220946408e-06 | M178: -0.003423621619 | N178: 4.593046987e-07
A179: 87.85288667 | B179: ='DF raw data'!J184 -> -6.0184029e-06 | C179: ='DF raw data'!K184 -> 2.0802097e-06 | D179: ='DF raw data'!L184 -> -2.4281617e-06 | F179: -6.026154603e-06 | G179: 2.087586048e-06 | H179: -2.431289172e-06 | J179: -0.0001129842083 | K179: -0.004392227037 | L179: -2.176861122e-06 | M179: -0.003424710355 | N179: 4.656915715e-07
A180: 88.35302667 | B180: ='DF raw data'!J185 -> -1.2223034e-05 | C180: ='DF raw data'!K185 -> 2.105561e-06 | D180: ='DF raw data'!L185 -> 3.9234146e-06 | F180: -1.223877727e-05 | G180: 2.113027243e-06 | H180: 3.928467958e-06 | J180: -0.0001191053103 | K180: -0.004451796367 | L180: -1.120051677e-06 | M180: -0.003425270537 | N180: 4.727872225e-07
A181: 88.85316667 | B181: ='DF raw data'!J186 -> -7.9217643e-06 | C181: ='DF raw data'!K186 -> 4.7747712e-06 | D181: ='DF raw data'!L186 -> 3.6086858e-06 | F181: -7.931967532e-06 | G181: 4.791702365e-06 | H181: 3.613333787e-06 | J181: -0.0001230724046 | K181: -0.004513349799 | L181: 1.276470343e-06 | M181: -0.003424632123 | N181: 4.803635663e-07
A182: 89.35330667 | B182: ='DF raw data'!J187 -> 5.6409755e-07 | C182: ='DF raw data'!K187 -> 2.2946272e-06 | D182: ='DF raw data'!L187 -> -2.9290532e-06 | F182: 5.648241076e-07 | G182: 2.302763864e-06 | H182: -2.932825821e-06 | J182: -0.0001227899134 | K182: -0.004574761947 | L182: 2.428174663e-06 | M182: -0.003423417696 | N182: 4.879073074e-07
A183: 89.85344667 | B183: ='DF raw data'!J188 -> 7.5753616e-07 | C183: ='DF raw data'!K188 -> 4.4800308e-06 | D183: ='DF raw data'!L188 -> -3.3705728e-06 | F183: 7.585118666e-07 | G183: 4.495916826e-06 | H183: -3.374914098e-06 | J183: -0.0001224105513 | K183: -0.00463598436 | L183: 4.676762504e-06 | M183: -0.00342107866 | N183: 4.954125159e-07
A184: 90.35358667 | B184: ='DF raw data'!J189 -> -5.4693883e-06 | C184: ='DF raw data'!K189 -> 6.6827802e-06 | D184: ='DF raw data'!L189 -> -4.6315108e-06 | F184: -5.476432872e-06 | G184: 6.706477095e-06 | H184: -4.637476186e-06 | J184: -0.0001251495344 | K184: -0.004698576648 | L184: 8.030939958e-06 | M184: -0.003417062066 | N184: 5.032781686e-07
A185: 90.85372667 | B185: ='DF raw data'!J190 -> -7.8862577e-06 | C185: ='DF raw data'!K190 -> 5.129421e-06 | D185: ='DF raw data'!L190 -> -5.0949893e-06 | F185: -7.8964152e-06 | G185: 5.14760974e-06 | H185: -5.101551646e-06 | J185: -0.0001290988475 | K185: -0.004763144146 | L185: 1.060546549e-05 | M185: -0.003411757848 | N185: 5.116700118e-07
A186: 91.35386667 | B186: ='DF raw data'!J191 -> -3.0826998e-06 | C186: ='DF raw data'!K191 -> 2.1885526e-06 | D186: ='DF raw data'!L191 -> -5.4786069e-06 | F186: -3.086670317e-06 | G186: 2.196313128e-06 | H186: -5.485663346e-06 | J186: -0.0001306426148 | K186: -0.004828483743 | L186: 1.170392954e-05 | M186: -0.003405904245 | N186: 5.202746579e-07
A187: 91.85400667 | B187: ='DF raw data'!J192 -> -6.7819343e-08 | C187: ='DF raw data'!K192 -> -3.7137318e-06 | D187: ='DF raw data'!L192 -> 2.2028689e-06 | F187: -6.790669431e-08 | G187: -3.726900558e-06 | H187: 2.205706195e-06 | J187: -0.0001306765777 | K187: -0.004893840327 | L187: 9.839957497e-06 | M187: -0.003400982889 | N187: 5.288636585e-07
A188: 92.35414667 | B188: ='DF raw data'!J193 -> -1.4517356e-06 | C188: ='DF raw data'!K193 -> -3.5666951e-06 | D188: ='DF raw data'!L193 -> 5.5554556e-06 | F188: -1.453605435e-06 | G188: -3.579342471e-06 | H188: 5.562611027e-06 | J188: -0.0001314035839 | K188: -0.004959560515 | L188: 8.049785153e-06 | M188: -0.003396956869 | N188: 5.375319354e-07
A189: 92.85428667 | B189: ='DF raw data'!J194 -> -5.4695573e-07 | C189: ='DF raw data'!K194 -> -6.2311019e-06 | D189: ='DF raw data'!L194 -> 4.2205793e-06 | F189: -5.47660209e-07 | G189: -6.25319716e-06 | H189: 4.226015406e-06 | J189: -0.0001316774907 | K189: -0.005025417695 | L189: 4.922311125e-06 | M189: -0.003394495024 | N189: 5.462159616e-07
A190: 93.35442667 | B190: ='DF raw data'!J195 -> 4.9141073e-07 | C190: ='DF raw data'!K195 -> 1.0534876e-06 | D190: ='DF raw data'!L195 -> 2.5272457e-06 | F190: 4.92043667e-07 | G190: 1.057223229e-06 | H190: 2.530500792e-06 | J190: -0.0001314314 | K190: -0.005091151796 | L190: 5.451070751e-06 | M190: -0.003391768726 | N190: 5.548703476e-07
A191: 93.85456667 | B191: ='DF raw data'!J196 -> -3.5383724e-07 | C191: ='DF raw data'!K196 -> 7.1652526e-06 | D191: ='DF raw data'!L196 -> 5.5192504e-07 | F191: -3.542929824e-07 | G191: 7.190660325e-06 | H191: 5.526359195e-07 | J191: -0.0001316085961 | K191: -0.005156974519 | L191: 9.047407606e-06 | M191: -0.003387243755 | N191: 5.635741231e-07
A192: 94.35470667 | B192: ='DF raw data'!J197 -> 4.2659653e-07 | C192: ='DF raw data'!K197 -> -2.329158e-06 | D192: ='DF raw data'!L197 -> -3.4891709e-06 | F192: 4.271459863e-07 | G192: -2.337417109e-06 | H192: -3.493664952e-06 | J192: -0.0001313949633 | K192: -0.005222690396 | L192: 7.878371813e-06 | M192: -0.003383303467 | N192: 5.722399014e-07
A193: 94.85484667 | B193: ='DF raw data'!J198 -> 5.6302071e-07 | C193: ='DF raw data'!K198 -> -3.6480858e-06 | D193: ='DF raw data'!L198 -> -6.177288e-06 | F193: 5.637458807e-07 | G193: -3.661021779e-06 | H193: -6.185244347e-06 | J193: -0.0001311130114 | K193: -0.005288265257 | L193: 6.04734838e-06 | M193: -0.003380278946 | N193: 5.808559093e-07
A194: 95.35498667 | B194: ='DF raw data'!J199 -> -1.6551859e-06 | C194: ='DF raw data'!K199 -> -2.2715174e-06 | D194: ='DF raw data'!L199 -> -3.6427082e-06 | F194: -1.657317779e-06 | G194: -2.279572118e-06 | H194: -3.647400008e-06 | J194: -0.0001319419023 | K194: -0.00535425468 | L194: 4.907243181e-06 | M194: -0.003377824637 | N194: 5.895747232e-07
A195: 95.85512667 | B195: ='DF raw data'!J200 -> -6.6210123e-06 | C195: ='DF raw data'!K200 -> 2.9047897e-06 | D195: ='DF raw data'!L200 -> -8.5755601e-06 | F195: -6.629540164e-06 | G195: 2.915089978e-06 | H195: -8.586605421e-06 | J195: -0.0001352576005 | K195: -0.005421902417 | L195: 6.365196283e-06 | M195: -0.003374641148 | N195: 5.987448572e-07
A196: 96.35526667 | B196: ='DF raw data'!J201 -> -1.3098521e-05 | C196: ='DF raw data'!K201 -> 3.8729372e-06 | D196: ='DF raw data'!L201 -> -9.5870491e-06 | F196: -1.31153919e-05 | G196: 3.886670494e-06 | H196: -9.599397219e-06 | J196: -0.0001418171326 | K196: -0.005492830837 | L196: 8.309075664e-06 | M196: -0.003370485447 | N196: 6.088382525e-07
A197: 96.85540667 | B197: ='DF raw data'!J202 -> -1.3110133e-05 | C197: ='DF raw data'!K202 -> -4.2746597e-06 | D197: ='DF raw data'!L202 -> -2.3313914e-06 | F197: -1.312701885e-05 | G197: -4.289817488e-06 | H197: -2.334394232e-06 | J197: -0.0001483824798 | K197: -0.005567042851 | L197: 6.163566345e-06 | M197: -0.003367402801 | N197: 6.198690152e-07
A198: 97.35554667 | B198: ='DF raw data'!J203 -> -5.395159e-06 | C198: ='DF raw data'!K203 -> -1.1748795e-06 | D198: ='DF raw data'!L203 -> 5.9740851e-06 | F198: -5.402107965e-06 | G198: -1.17904558e-06 | H198: 5.981779722e-06 | J198: -0.0001510842901 | K198: -0.005642606148 | L198: 5.573878489e-06 | M198: -0.003364615081 | N198: 6.313009806e-07
A199: 97.85568667 | B199: ='DF raw data'!J204 -> 1.2776508e-06 | C199: ='DF raw data'!K204 -> 3.0833153e-06 | D199: ='DF raw data'!L204 -> 8.1851467e-06 | F199: 1.279296414e-06 | G199: =(1-$G$1*($B$2-$G$2))*C199*$M$2/$M$1 -> 3.094248624e-06 | H199: 8.195689169e-06 | J199: -0.0001504444628 | K199: -0.005717849441 | L199: 7.121435996e-06 | M199: -0.003361053366 | N199: 6.426462821e-07
A200: =A199+$B$1 -> 98.35582667 | B200: ='DF raw data'!J205 -> -1.3666942e-06 | C200: ='DF raw data'!K205 -> -9.0762495e-07 | D200: ='DF raw data'!L205 -> -2.2862514e-07 | F200: -1.368454502e-06 | G200: -9.10843355e-07 | H200: -2.289196092e-07 | J200: =F200*$B$1+J199 -> -0.0001511288816 | K200: =J200*$B$1+K199 -> -0.00579343504 | L200: =G200*$B$1+L199 -> 6.6658868e-06 | M200: =L200*$B$1+M199 -> -0.003357719489 | N200: =(J200^2+L200^2)*$B$1+N199 -> 6.540916723e-07
A201: 98.85596667 | B201: ='DF raw data'!J206 -> -6.1141836e-06 | C201: ='DF raw data'!K206 -> 5.0248737e-08 | D201: ='DF raw data'!L206 -> -2.4666369e-06 | F201: -6.122058668e-06 | G201: 5.042691719e-08 | H201: -2.469813928e-06 | J201: -0.0001541907681 | K201: -0.005870552011 | L201: 6.691107319e-06 | M201: -0.003354372999 | N201: 6.66004789e-07
... 1002 more rows

Sheet 10 y=0.2
A1: dz | B1: ='DF raw data'!N7 -> 0.50014 | C1: mm | F1: T_coeff | G1: -0.0008 | H1: /degC | L1: Hallref | M1: ='PI vs y'!B44 -> 0.50553 | N1: T | P1: IBy total | Q1: =L1203*1000 -> -12.8306089 | R1: muTm | X1: DF ref | Y1: 21
A2: Tref | B2: ='DF raw data'!N8 -> 21.6 | C2: degC | F2: Tcorr | G2: 20 | H2: degC | L2: NMRref | M2: ='PI vs y'!B45 -> 0.50667 | N2: T | P2: JBy total | Q2: =M1203 -> -4.98037384 | R2: muTm^2
A3: Encoder | B3: ='DF raw data'!N9 -> 5134429 | P3: PI total | Q3: =N1203 -> 715.6848442 | R3: T^2mm^3
A5: z [mm] | B5: Bx | C5: By | D5: Bz | F5: Bx_corr | G5: By_corr | H5: Bz_corr | J5: Ix | K5: Jx | L5: Iy | M5: Jy | N5: PI
A6: ='PI vs y'!B53 -> 1.328666667 | B6: ='DF raw data'!M11 -> 1.5197506e-05 | C6: ='DF raw data'!N11 -> 3.389413e-06 | D6: ='DF raw data'!O11 -> 6.4186647e-06 | F6: =(1-$G$1*($B$2-$G$2))*B6 -> 1.521695881e-05 | G6: =(1-$G$1*($B$2-$G$2))*C6*$M$2/$M$1 -> 3.401404559e-06 | H6: =(1-$G$1*($B$2-$G$2))*D6 -> 6.426880591e-06 | J6: =F6*$B$1 -> 7.610609778e-06 | K6: =J6*$B$1 -> 3.806370374e-06 | L6: =G6*$B$1 -> 1.701178476e-06 | M6: =L6*$B$1 -> 8.508274029e-07 | N6: =(J6^2+L6^2)*$B$1 -> 3.041620886e-11
A7: =A6+$B$1 -> 1.828806667 | B7: ='DF raw data'!M12 -> 1.5104782e-05 | C7: ='DF raw data'!N12 -> 6.6527746e-06 | D7: ='DF raw data'!O12 -> 1.0691965e-05 | F7: =(1-$G$1*($B$2-$G$2))*B7 -> 1.512411612e-05 | G7: =(1-$G$1*($B$2-$G$2))*C7*$M$2/$M$1 -> 6.676311754e-06 | H7: 1.070565072e-05 | J7: =F7*$B$1+J6 -> 1.517478521e-05 | K7: =J7*$B$1+K6 -> 1.139588745e-05 | L7: =G7*$B$1+L6 -> 5.040269037e-06 | M7: =L7*$B$1+M6 -> 3.371667559e-06 | N7: =(J7^2+L7^2)*$B$1+N6 -> 1.58291213e-10
A8: =A7+$B$1 -> 2.328946667 | B8: ='DF raw data'!M13 -> 1.5628098e-05 | C8: ='DF raw data'!N13 -> -7.9697757e-06 | D8: ='DF raw data'!O13 -> 8.3425439e-06 | F8: 1.564810197e-05 | G8: -7.997972332e-06 | H8: 8.353222356e-06 | J8: =F8*$B$1+J7 -> 2.300102693e-05 | K8: =J8*$B$1+K7 -> 2.289962106e-05 | L8: =G8*$B$1+L7 -> 1.040163154e-06 | M8: =L8*$B$1+M7 -> 3.891894759e-06 | N8: =(J8^2+L8^2)*$B$1+N7 -> 4.234300207e-10
A9: 2.829086667 | B9: ='DF raw data'!M14 -> 1.4887711e-05 | C9: ='DF raw data'!N14 -> 1.1704194e-05 | D9: ='DF raw data'!O14 -> 5.0224958e-06 | F9: 1.490676727e-05 | G9: 1.17456028e-05 | H9: 5.028924595e-06 | J9: 3.045649751e-05 | K9: 3.813213373e-05 | L9: 6.914608939e-06 | M9: 7.350167274e-06 | N9: 9.112716069e-10
A10: 3.329226667 | B10: ='DF raw data'!M15 -> 1.534128e-05 | C10: ='DF raw data'!N15 -> -1.3577925e-06 | D10: ='DF raw data'!O15 -> 8.5967304e-07 | F10: 1.536091684e-05 | G10: -1.362596296e-06 | H10: 8.607734215e-07 | J10: 3.813910646e-05 | K10: 5.720702643e-05 | L10: 6.233120028e-06 | M10: 1.046759992e-05 | N10: 1.658202302e-09
A11: 3.829366667 | B11: ='DF raw data'!M16 -> 1.4992848e-05 | C11: ='DF raw data'!N16 -> 7.7440754e-06 | D11: ='DF raw data'!O16 -> -1.5377404e-06 | F11: 1.501203885e-05 | G11: 7.771473517e-06 | H11: -1.539708708e-06 | J11: 4.564722757e-05 | K11: 8.003703083e-05 | L11: 1.011994479e-05 | M11: 1.552898911e-05 | N11: 2.751549688e-09
A12: 4.329506667 | B12: ='DF raw data'!M17 -> 1.4995118e-05 | C12: ='DF raw data'!N17 -> 8.3938658e-06 | D12: ='DF raw data'!O17 -> 3.0598062e-06 | F12: 1.501431175e-05 | G12: 8.42356284e-06 | H12: 3.063722752e-06 | J12: 5.315648545e-05 | K12: 0.0001066227155 | L12: 1.433290551e-05 | M12: 2.269744848e-05 | N12: 4.267496097e-09
A13: 4.829646667 | B13: ='DF raw data'!M18 -> 1.4939981e-05 | C13: ='DF raw data'!N18 -> 9.2208475e-06 | D13: ='DF raw data'!O18 -> -4.149729e-07 | F13: 1.495910418e-05 | G13: 9.253470356e-06 | H13: -4.155040653e-07 | J13: 6.063813181e-05 | K13: 0.0001369502707 | L13: 1.896093618e-05 | M13: 3.218057109e-05 | N13: 6.286311272e-09
A14: 5.329786667 | B14: ='DF raw data'!M19 -> 1.5237553e-05 | C14: ='DF raw data'!N19 -> 1.5220293e-07 | D14: ='DF raw data'!O19 -> -5.9728441e-06 | F14: 1.525705707e-05 | G14: 1.527414157e-07 | H14: -5.98048934e-06 | J14: 6.826879633e-05 | K14: 0.0001710942265 | L14: 1.903732827e-05 | M14: 4.170190045e-05 | N14: 8.798538709e-09
A15: 5.829926667 | B15: ='DF raw data'!M20 -> 1.5425652e-05 | C15: ='DF raw data'!N20 -> -4.3118694e-06 | D15: ='DF raw data'!O20 -> -2.4195865e-06 | F15: 1.544539683e-05 | G15: -4.327124559e-06 | H15: -2.422683571e-06 | J15: 7.599365711e-05 | K15: 0.0002091016942 | L15: 1.687316019e-05 | M15: 5.014084279e-05 | N15: 1.18292568e-08
A16: 6.330066667 | B16: ='DF raw data'!M21 -> 1.5250504e-05 | C16: ='DF raw data'!N21 -> 1.2014742e-06 | D16: ='DF raw data'!O21 -> 1.6089366e-06 | F16: 1.527002465e-05 | G16: 1.20572495e-06 | H16: 1.610996039e-06 | J16: 8.363080723e-05 | K16: 0.0002509288061 | L16: 1.747619147e-05 | M16: 5.888138519e-05 | N16: 1.548004333e-08
A17: 6.830206667 | B17: ='DF raw data'!M22 -> 1.5268462e-05 | C17: ='DF raw data'!N22 -> -1.1651933e-07 | D17: ='DF raw data'!O22 -> -3.3991341e-06 | F17: 1.528800563e-05 | G17: -1.16931569e-07 | H17: -3.403484992e-06 | J17: 9.127695037e-05 | K17: 0.0002965800601 | L17: 1.741770931e-05 | M17: 6.759267833e-05 | N17: 1.979868134e-08
A18: 7.330346667 | B18: ='DF raw data'!M23 -> 1.5272988e-05 | C18: ='DF raw data'!N23 -> -8.7612e-07 | D18: ='DF raw data'!O23 -> -7.0701894e-06 | F18: 1.529253742e-05 | G18: -8.792196648e-07 | H18: -7.079239242e-06 | J18: 9.892536004e-05 | K18: 0.0003460565896 | L18: 1.697797639e-05 | M18: 7.608404344e-05 | N18: 2.483733104e-08
A19: 7.830486667 | B19: ='DF raw data'!M24 -> 1.5063541e-05 | C19: ='DF raw data'!N24 -> 4.0413383e-06 | D19: ='DF raw data'!O24 -> -1.1519729e-05 | F19: 1.508282233e-05 | G19: 4.055636335e-06 | H19: -1.153447425e-05 | J19: 0.0001064688828 | K19: 0.0003993059367 | L19: 1.900636234e-05 | M19: 8.55898855e-05 | N19: 3.068740101e-08
A20: 8.330626667 | B20: ='DF raw data'!M25 -> 1.5351699e-05 | C20: ='DF raw data'!N25 -> -3.08474e-06 | D20: ='DF raw data'!O25 -> -6.935948e-06 | F20: 1.537134917e-05 | G20: -3.095653642e-06 | H20: -6.944826013e-06 | J20: 0.0001141567094 | K20: 0.0004564002733 | L20: 1.745810213e-05 | M20: 9.43213807e-05 | N20: 3.735753793e-08
A21: 8.830766667 | B21: ='DF raw data'!M26 -> 1.5490132e-05 | C21: ='DF raw data'!N26 -> -6.4657847e-06 | D21: ='DF raw data'!O26 -> -4.9105688e-06 | F21: 1.550995937e-05 | G21: -6.488660294e-06 | H21: -4.916854328e-06 | J21: 0.0001219138605 | K21: 0.0005173742715 | L21: 1.421286357e-05 | M21: 0.0001014298023 | N21: 4.489214446e-08
A22: 9.330906667 | B22: ='DF raw data'!M27 -> 1.1073857e-05 | C22: ='DF raw data'!N27 -> -4.8327697e-06 | D22: ='DF raw data'!O27 -> 1.9911793e-07 | F22: 1.108803154e-05 | G22: -4.849867776e-06 | H22: 1.99372801e-07 | J22: 0.0001274594285 | K22: 0.0005811218301 | L22: 1.17872507e-05 | M22: 0.0001073250779 | N22: 5.308686094e-08
A23: 9.831046667 | B23: ='DF raw data'!M28 -> -1.8171399e-07 | C23: ='DF raw data'!N28 -> -2.4829833e-06 | D23: ='DF raw data'!O28 -> 1.4261791e-06 | F23: =(1-$G$1*($B$2-$G$2))*B23 -> -1.819465839e-07 | G23: -2.49176796e-06 | H23: 1.428004609e-06 | J23: 0.0001273684298 | K23: 0.0006448238765 | L23: 1.054101788e-05 | M23: 0.0001125970625 | N23: 6.125606266e-08
A24: 10.33118667 | B24: ='DF raw data'!M29 -> -7.5491885e-06 | C24: ='DF raw data'!N29 -> 1.3228866e-05 | D24: ='DF raw data'!O29 -> 4.083548e-06 | F24: -7.558851461e-06 | G24: 1.327566901e-05 | H24: 4.088774941e-06 | J24: 0.0001235879458 | K24: 0.0007066351517 | L24: 1.718071097e-05 | M24: 0.0001211898233 | N24: 6.904282093e-08
A25: 10.83132667 | B25: ='DF raw data'!M30 -> -5.8554765e-06 | C25: ='DF raw data'!N30 -> 6.9172274e-06 | D25: ='DF raw data'!O30 -> 1.8671603e-06 | F25: -5.86297151e-06 | G25: 6.941700174e-06 | H25: 1.869550265e-06 | J25: 0.0001206556392 | K25: 0.0007669798632 | L25: 2.06525329e-05 | M25: 0.0001315189811 | N25: 7.653707394e-08
A26: 11.33146667 | B26: ='DF raw data'!M31 -> 3.0175245e-06 | C26: ='DF raw data'!N31 -> 7.6071797e-06 | D26: ='DF raw data'!O31 -> 1.0025095e-05 | F26: 3.021386931e-06 | G26: 7.634093487e-06 | H26: 1.003792712e-05 | J26: 0.0001221667557 | K26: 0.0008280803443 | L26: 2.447064841e-05 | M26: 0.0001437577312 | N26: 8.430101165e-08
A27: 11.83160667 | B27: ='DF raw data'!M32 -> 1.1609848e-05 | C27: ='DF raw data'!N32 -> 6.7899377e-06 | D27: ='DF raw data'!O32 -> 1.4109177e-05 | F27: 1.162470861e-05 | G27: 6.81396013e-06 | H27: 1.412723675e-05 | J27: 0.0001279807375 | K27: 0.0008920886304 | L27: 2.787858243e-05 | M27: 0.0001577009254 | N27: 9.288155578e-08
A28: 12.33174667 | B28: ='DF raw data'!M33 -> 1.1245192e-05 | C28: ='DF raw data'!N33 -> -1.6002625e-05 | D28: ='DF raw data'!O33 -> 5.5263704e-06 | F28: 1.125958585e-05 | G28: -1.605924142e-05 | H28: 5.533444154e-06 | J28: 0.0001336121067 | K28: 0.0009589133894 | L28: 1.984671343e-05 | M28: 0.0001676270607 | N28: 1.020071538e-07
A29: 12.83188667 | B29: ='DF raw data'!M34 -> 5.2111823e-06 | C29: ='DF raw data'!N34 -> -1.5588022e-07 | D29: ='DF raw data'!O34 -> -2.9457547e-06 | F29: 5.217852613e-06 | G29: -1.564317157e-07 | H29: -2.949525266e-06 | J29: 0.0001362217635 | K29: 0.001027043342 | L29: 1.976847567e-05 | M29: 0.0001775140661 | N29: 1.114833871e-07
A30: 13.33202667 | B30: ='DF raw data'!M35 -> 3.5710793e-06 | C30: ='DF raw data'!N35 -> -1.381602e-05 | D30: ='DF raw data'!O35 -> -3.894816e-06 | F30: 3.575650282e-06 | G30: -1.386490033e-05 | H30: -3.899801364e-06 | J30: 0.0001380100893 | K30: 0.001096067708 | L30: 1.283408443e-05 | M30: 0.0001839329051 | N30: 1.21091826e-07
A31: 13.83216667 | B31: ='DF raw data'!M36 -> 2.8622701e-06 | C31: ='DF raw data'!N36 -> -9.7635711e-06 | D31: ='DF raw data'!O36 -> 7.0364226e-06 | F31: 2.865933806e-06 | G31: -9.798114083e-06 | H31: 7.045429221e-06 | J31: 0.0001394434574 | K31: 0.001165808959 | L31: 7.933655648e-06 | M31: 0.0001879008436 | N31: 1.308482674e-07
A32: 14.33230667 | B32: ='DF raw data'!M37 -> 4.1355775e-06 | C32: ='DF raw data'!N37 -> -3.8802327e-06 | D32: ='DF raw data'!O37 -> 1.170392e-05 | F32: 4.140871039e-06 | G32: -3.893960752e-06 | H32: 1.171890102e-05 | J32: 0.0001415144726 | K32: 0.001236586007 | L32: 5.986130117e-06 | M32: 0.0001908947468 | N32: 1.408821659e-07
A33: 14.83244667 | B33: ='DF raw data'!M38 -> 6.9216289e-06 | C33: ='DF raw data'!N38 -> 2.4306692e-07 | D33: ='DF raw data'!O38 -> -3.8148969e-06 | F33: 6.930488585e-06 | G33: 2.439268775e-07 | H33: -3.819779968e-06 | J33: 0.0001449806872 | K33: 0.001309096648 | L33: 6.108127706e-06 | M33: 0.0001939496657 | N33: 1.514134683e-07
A34: 15.33258667 | B34: ='DF raw data'!M39 -> 6.5314193e-06 | C34: ='DF raw data'!N39 -> 1.8079008e-06 | D34: ='DF raw data'!O39 -> -1.1022767e-05 | F34: 6.539779517e-06 | G34: 1.814297055e-06 | H34: -1.103687614e-05 | J34: 0.0001482514925 | K34: 0.00138324315 | L34: 7.015530235e-06 | M34: 0.000197458413 | N34: 1.624304135e-07
A35: 15.83272667 | B35: ='DF raw data'!M40 -> 3.1657794e-06 | C35: ='DF raw data'!N40 -> 4.1879062e-07 | D35: ='DF raw data'!O40 -> -1.0357817e-05 | F35: 3.169831598e-06 | G35: 4.202722784e-07 | H35: -1.037107501e-05 | J35: 0.0001498368521 | K35: 0.001458182553 | L35: 7.225725212e-06 | M35: 0.0002010722872 | N35: 1.736852107e-07
A36: 16.33286667 | B36: ='DF raw data'!M41 -> -2.1081782e-07 | C36: ='DF raw data'!N41 -> -1.406093e-06 | D36: ='DF raw data'!O41 -> -4.3953146e-06 | F36: -2.110876668e-07 | G36: -1.41106768e-06 | H36: -4.400940603e-06 | J36: 0.0001497312787 | K36: 0.001533069155 | L36: 6.519993822e-06 | M36: 0.000204333197 | N36: 1.849193384e-07
A37: 16.83300667 | B37: ='DF raw data'!M42 -> -3.3892181e-06 | C37: ='DF raw data'!N42 -> 8.259638e-06 | D37: ='DF raw data'!O42 -> 2.0010089e-06 | F37: -3.393556299e-06 | G37: 8.288860149e-06 | H37: 2.003570191e-06 | J37: 0.0001480340255 | K37: 0.001607106892 | L37: 1.066558434e-05 | M37: 0.0002096674823 | N37: 1.95936336e-07
A38: 17.33314667 | B38: ='DF raw data'!M43 -> -2.4383087e-06 | C38: ='DF raw data'!N43 -> -5.3305862e-06 | D38: ='DF raw data'!O43 -> 6.3094526e-06 | F38: -2.441429735e-06 | G38: -5.349445524e-06 | H38: 6.317528699e-06 | J38: 0.0001468129688 | K38: 0.00168053393 | L38: 7.990112653e-06 | M38: 0.0002136636573 | N38: 2.067483074e-07
A39: 17.83328667 | B39: ='DF raw data'!M44 -> -7.2645037e-07 | C39: ='DF raw data'!N44 -> 5.3692056e-06 | D39: ='DF raw data'!O44 -> 3.0610722e-06 | F39: -7.273802265e-07 | G39: 5.388201557e-06 | H39: 3.064990372e-06 | J39: 0.0001464491769 | K39: 0.001753779022 | L39: 1.068496778e-05 | M39: 0.000219007637 | N39: 2.17532091e-07
A40: 18.33342667 | B40: ='DF raw data'!M45 -> -1.5323209e-06 | C40: ='DF raw data'!N45 -> -4.5484362e-06 | D40: ='DF raw data'!O45 -> -1.9505055e-06 | F40: -1.534282271e-06 | G40: -4.564528319e-06 | H40: -1.953002147e-06 | J40: 0.0001456818209 | K40: 0.001826640328 | L40: 8.402064586e-06 | M40: 0.0002232098456 | N40: 2.281819659e-07
A41: 18.83356667 | B41: ='DF raw data'!M46 -> -1.4905278e-06 | C41: ='DF raw data'!N46 -> 3.3926153e-06 | D41: ='DF raw data'!O46 -> -1.702992e-06 | F41: -1.492435676e-06 | G41: 3.404618188e-06 | H41: -1.70517183e-06 | J41: 0.0001449353941 | K41: 0.001899128316 | L41: 1.010485033e-05 | M41: 0.0002282636855 | N41: 2.387391093e-07
A42: 19.33370667 | B42: ='DF raw data'!M47 -> -6.9494547e-07 | C42: ='DF raw data'!N47 -> 1.4453791e-06 | D42: ='DF raw data'!O47 -> 3.2304203e-07 | F42: -6.958350002e-07 | G42: 1.450492773e-06 | H42: 3.234555238e-07 | J42: 0.0001445873792 | K42: 0.001971442248 | L42: 1.083029978e-05 | M42: 0.0002336803516 | N42: 2.492534553e-07
A43: 19.83384667 | B43: ='DF raw data'!M48 -> -1.2369461e-06 | C43: ='DF raw data'!N48 -> -1.8582774e-06 | D43: ='DF raw data'!O48 -> 1.1316774e-06 | F43: -1.238529391e-06 | G43: -1.864851884e-06 | H43: 1.133125947e-06 | J43: 0.0001439679411 | K43: 0.002043446374 | L43: 9.897612761e-06 | M43: 0.0002386305436 | N43: 2.596687362e-07
A44: 20.33398667 | B44: ='DF raw data'!M49 -> -3.2613941e-06 | C44: ='DF raw data'!N49 -> -7.5602879e-06 | D44: ='DF raw data'!O49 -> 1.430632e-06 | F44: -3.265568684e-06 | G44: -7.587035787e-06 | H44: 1.432463209e-06 | J44: 0.0001423346996 | K44: 0.00211463365 | L44: 6.103032682e-06 | M44: 0.0002416829144 | N44: 2.698197846e-07
A45: 20.83412667 | B45: ='DF raw data'!M50 -> -6.1399082e-06 | C45: ='DF raw data'!N50 -> 3.1455081e-06 | D45: ='DF raw data'!O50 -> 8.5335523e-06 | F45: -6.147767282e-06 | G45: 3.156636736e-06 | H45: 8.544475247e-06 | J45: 0.0001392599553 | K45: 0.002184283124 | L45: 7.68179298e-06 | M45: 0.0002455248863 | N45: 2.795486804e-07
A46: 21.33426667 | B46: ='DF raw data'!M51 -> -5.1390566e-06 | C46: ='DF raw data'!N51 -> -1.0763944e-06 | D46: ='DF raw data'!O51 -> 1.0552936e-05 | F46: -5.145634592e-06 | G46: -1.080202625e-06 | H46: 1.056644376e-05 | J46: 0.0001366864176 | K46: 0.002252645469 | L46: 7.141540439e-06 | M46: 0.0002490966564 | N46: 2.889183924e-07
A47: 21.83440667 | B47: ='DF raw data'!M52 -> -4.7472463e-06 | C47: ='DF raw data'!N52 -> -1.0388811e-05 | D47: ='DF raw data'!O52 -> 8.1806102e-06 | F47: -4.753322775e-06 | G47: -1.042556605e-05 | H47: 8.191081381e-06 | J47: 0.0001343090907 | K47: 0.002319818818 | L47: 1.927297836e-06 | M47: 0.0002500605751 | N47: 2.979422415e-07
A48: 22.33454667 | B48: ='DF raw data'!M53 -> -8.90307e-06 | C48: ='DF raw data'!N53 -> -3.7836317e-06 | D48: ='DF raw data'!O53 -> -1.5189685e-06 | F48: -8.91446593e-06 | G48: -3.797017983e-06 | H48: -1.52091278e-06 | J48: 0.0001298506098 | K48: 0.002384762302 | L48: 2.825726214e-08 | M48: 0.0002500747077 | N48: 3.063751929e-07
A49: 22.83468667 | B49: ='DF raw data'!M54 -> -1.0919296e-05 | C49: ='DF raw data'!N54 -> 1.9812228e-06 | D49: ='DF raw data'!O54 -> -3.2417988e-06 | F49: -1.09332727e-05 | G49: 1.988232258e-06 | H49: -3.245948302e-06 | J49: 0.0001243824427 | K49: 0.002446970937 | L49: 1.022651744e-06 | M49: 0.0002505861768 | N49: 3.141133779e-07
A50: 23.33482667 | B50: ='DF raw data'!M55 -> -7.183135e-06 | C50: ='DF raw data'!N55 -> 2.5736394e-06 | D50: ='DF raw data'!O55 -> 2.2480206e-07 | F50: -7.192329413e-06 | G50: 2.582744796e-06 | H50: 2.250898066e-07 | J50: 0.0001207852711 | K50: 0.002507380482 | L50: 2.314385726e-06 | M50: 0.0002517436936 | N50: 3.214126402e-07
A51: 23.83496667 | B51: ='DF raw data'!M56 -> -4.4706289e-06 | C51: ='DF raw data'!N56 -> -5.8186629e-06 | D51: ='DF raw data'!O56 -> 2.9628468e-06 | F51: -4.476351305e-06 | G51: -5.839249012e-06 | H51: 2.966639244e-06 | J51: 0.0001185464688 | K51: 0.002566670313 | L51: -6.06056275e-07 | M51: 0.0002514405806 | N51: 3.28441424e-07
A52: 24.33510667 | B52: ='DF raw data'!M57 -> -4.4203666e-06 | C52: ='DF raw data'!N57 -> 1.4149113e-05 | D52: ='DF raw data'!O57 -> 2.3681828e-06 | F52: -4.426024669e-06 | G52: 1.419917179e-05 | H52: 2.371214074e-06 | J52: 0.0001163328368 | K52: 0.002624853018 | L52: 6.495517505e-06 | M52: 0.0002546892488 | N52: 3.352310849e-07
A53: 24.83524667 | B53: ='DF raw data'!M58 -> -2.7700487e-06 | C53: ='DF raw data'!N58 -> 7.2901566e-06 | D53: ='DF raw data'!O58 -> -1.2016494e-06 | F53: -2.773594362e-06 | G53: 7.315948777e-06 | H53: -1.203187511e-06 | J53: 0.0001149456513 | K53: 0.002682341936 | L53: 1.015451613e-05 | M53: 0.0002597679285 | N53: 3.418907576e-07
A54: 25.33538667 | B54: ='DF raw data'!M59 -> -1.6783057e-06 | C54: ='DF raw data'!N59 -> 2.3425434e-06 | D54: ='DF raw data'!O59 -> 2.6735943e-08 | F54: -1.680453931e-06 | G54: 2.350831191e-06 | H54: 2.677016501e-08 | J54: 0.0001141051891 | K54: 0.002739410505 | L54: 1.133026084e-05 | M54: 0.0002654346451 | N54: 3.484667828e-07
A55: 25.83552667 | B55: ='DF raw data'!M60 -> -2.2088977e-06 | C55: ='DF raw data'!N60 -> 1.102545e-05 | D55: ='DF raw data'!O60 -> 6.0559437e-06 | F55: -2.211725089e-06 | G55: 1.106445744e-05 | H55: 6.063695308e-06 | J55: 0.0001129990169 | K55: 0.002795925834 | L55: 1.686403858e-05 | M55: 0.0002738690254 | N55: 3.549951971e-07
A56: 26.33566667 | B56: ='DF raw data'!M61 -> -3.3571166e-06 | C56: ='DF raw data'!N61 -> 2.1206542e-06 | D56: ='DF raw data'!O61 -> 7.8735939e-06 | F56: -3.361413709e-06 | G56: 2.128156959e-06 | H56: 7.8836721e-06 | J56: 0.0001113178394 | K56: 0.002851600338 | L56: 1.7928415e-05 | M56: 0.0002828357429 | N56: 3.613535216e-07
A57: 26.83580667 | B57: ='DF raw data'!M62 -> -3.8852345e-06 | C57: ='DF raw data'!N62 -> -7.8987932e-06 | D57: ='DF raw data'!O62 -> 4.6144455e-06 | F57: -3.8902076e-06 | G57: -7.9267387e-06 | H57: 4.62035199e-06 | J57: 0.000109372191 | K57: 0.002906301746 | L57: 1.396393591e-05 | M57: 0.0002898196658 | N57: 3.674338575e-07
A58: 27.33594667 | B58: ='DF raw data'!M63 -> -6.5740355e-06 | C58: ='DF raw data'!N63 -> -1.8932418e-05 | D58: ='DF raw data'!O63 -> 3.6105525e-06 | F58: -6.582450265e-06 | G58: -1.899939986e-05 | H58: 3.615174007e-06 | J58: 0.0001060800443 | K58: 0.002959356619 | L58: 4.461576063e-06 | M58: 0.0002920510784 | N58: 3.730718764e-07
A59: 27.83608667 | B59: ='DF raw data'!M64 -> -8.7390554e-06 | C59: ='DF raw data'!N64 -> 2.0188493e-06 | D59: ='DF raw data'!O64 -> 1.349636e-06 | F59: -8.750241391e-06 | G59: 2.025991879e-06 | H59: 1.351363534e-06 | J59: 0.0001017036986 | K59: 0.003010222707 | L59: 5.474855641e-06 | M59: 0.0002947892727 | N59: 3.782601369e-07
A60: 28.33622667 | B60: ='DF raw data'!M65 -> -7.115978e-06 | C60: ='DF raw data'!N65 -> 1.8748813e-06 | D60: ='DF raw data'!O65 -> 1.6903255e-06 | F60: -7.125086452e-06 | G60: 1.881514528e-06 | H60: 1.692489117e-06 | J60: 9.814015787e-05 | K60: 0.003059306525 | L60: 6.415876317e-06 | M60: 0.0002979981091 | N60: 3.830978181e-07
A61: 28.83636667 | B61: ='DF raw data'!M66 -> -2.6852838e-06 | C61: ='DF raw data'!N66 -> 4.5609036e-06 | D61: ='DF raw data'!O66 -> 3.3483852e-06 | F61: -2.688720963e-06 | G61: 4.577039828e-06 | H61: 3.352671133e-06 | J61: 9.679542097e-05 | K61: 0.003107717787 | L61: 8.705037017e-06 | M61: 0.0003023518463 | N61: 3.87821706e-07
A62: 29.33650667 | B62: ='DF raw data'!M67 -> -5.6494756e-08 | C62: ='DF raw data'!N67 -> 1.2763872e-05 | D62: ='DF raw data'!O67 -> 3.4731825e-06 | F62: -5.656706929e-08 | G62: 1.280902988e-05 | H62: 3.477628174e-06 | J62: 9.676712952e-05 | K62: 0.003156114899 | L62: 1.511134522e-05 | M62: 0.0003099096345 | N62: 3.92619164e-07
A63: 29.83664667 | B63: ='DF raw data'!M68 -> 2.5067523e-06 | C63: ='DF raw data'!N68 -> -1.3508539e-06 | D63: ='DF raw data'!O68 -> 5.8889605e-06 | F63: 2.509960943e-06 | G63: -1.355633148e-06 | H63: 5.896498369e-06 | J63: 9.802246138e-05 | K63: 0.003205139853 | L63: 1.443333886e-05 | M63: 0.0003171283246 | N63: 3.975289004e-07
A64: 30.33678667 | B64: ='DF raw data'!M69 -> 3.0766635e-06 | C64: ='DF raw data'!N69 -> 1.7981606e-06 | D64: ='DF raw data'!O69 -> 8.6695254e-06 | F64: 3.080601629e-06 | G64: 1.804522394e-06 | H64: 8.680622393e-06 | J64: 9.956319348e-05 | K64: 0.003254935389 | L64: 1.533585269e-05 | M64: 0.000324798398 | N64: 4.026043301e-07
A65: 30.83692667 | B65: ='DF raw data'!M70 -> -1.5688316e-06 | C65: ='DF raw data'!N70 -> 1.3303986e-05 | D65: ='DF raw data'!O70 -> 5.919243e-06 | F65: -1.570839704e-06 | G65: 1.335105478e-05 | H65: 5.926819631e-06 | J65: 9.877755371e-05 | K65: 0.003304337995 | L65: 2.201324923e-05 | M65: 0.0003358081044 | N65: 4.077265581e-07
A66: 31.33706667 | B66: ='DF raw data'!M71 -> -4.2964862e-06 | C66: ='DF raw data'!N71 -> 1.4464134e-05 | D66: ='DF raw data'!O71 -> 1.2341666e-06 | F66: -4.301985702e-06 | G66: 1.451530732e-05 | H66: 1.235746333e-06 | J66: 9.662595858e-05 | K66: 0.003352664501 | L66: 2.927293503e-05 | M66: 0.0003504486702 | N66: 4.128247254e-07
A67: 31.83720667 | B67: ='DF raw data'!M72 -> 2.0802938e-06 | C67: ='DF raw data'!N72 -> 6.2240733e-06 | D67: ='DF raw data'!O72 -> 4.8389893e-07 | F67: 2.082956576e-06 | G67: 6.246093732e-06 | H67: 4.845183206e-07 | J67: 9.766772848e-05 | K67: 0.003401512039 | L67: 3.239685635e-05 | M67: 0.0003666516339 | N67: 4.181204786e-07
A68: 32.33734667 | B68: ='DF raw data'!M73 -> 7.2914222e-06 | C68: ='DF raw data'!N73 -> -7.8127323e-06 | D68: ='DF raw data'!O73 -> -3.0067854e-06 | F68: 7.30075522e-06 | G68: -7.840373321e-06 | H68: -3.010634085e-06 | J68: 0.0001013191282 | K68: 0.003452185788 | L68: 2.847557204e-05 | M68: 0.0003808934065 | N68: 4.236602413e-07
A69: 32.83748667 | B69: ='DF raw data'!M74 -> 1.1861224e-06 | C69: ='DF raw data'!N74 -> -1.5227771e-07 | D69: ='DF raw data'!O74 -> -2.4021533e-06 | F69: 1.187640637e-06 | G69: -1.528164602e-07 | H69: -2.405228056e-06 | J69: 0.0001019131148 | K69: 0.003503156613 | L69: 2.839914241e-05 | M69: 0.0003950969536 | N69: 4.292582054e-07
A70: 33.33762667 | B70: ='DF raw data'!M75 -> -7.3939195e-06 | C70: ='DF raw data'!N75 -> 3.552728e-06 | D70: ='DF raw data'!O75 -> -5.6325689e-07 | F70: -7.403383717e-06 | G70: 3.565297358e-06 | H70: -5.639778588e-07 | J70: 9.821038646e-05 | K70: 0.003552275556 | L70: 3.018229023e-05 | M70: 0.0004101923242 | N70: 4.345378086e-07
A71: 33.83776667 | B71: ='DF raw data'!M76 -> -6.7869009e-06 | C71: ='DF raw data'!N76 -> -1.0994037e-05 | D71: ='DF raw data'!O76 -> 3.7714676e-06 | F71: -6.795588133e-06 | G71: =(1-$G$1*($B$2-$G$2))*C71*$M$2/$M$1 -> -1.10329333e-05 | H71: 3.776295079e-06 | J71: 9.481164101e-05 | K71: 0.00359969465 | L71: 2.466427897e-05 | M71: 0.0004225279167 | N71: 4.393379392e-07
A72: =A71+$B$1 -> 34.33790667 | B72: ='DF raw data'!M77 -> -3.3248841e-06 | C72: ='DF raw data'!N77 -> -1.0172863e-06 | D72: ='DF raw data'!O77 -> 3.6605238e-06 | F72: -3.329139952e-06 | G72: -1.020885404e-06 | H72: 3.66520927e-06 | J72: =F72*$B$1+J71 -> 9.314660495e-05 | K72: =J72*$B$1+K71 -> 0.003646280993 | L72: =G72*$B$1+L71 -> 2.415369334e-05 | M72: =L72*$B$1+M71 -> 0.0004346081449 | N72: =(J72^2+L72^2)*$B$1+N71 -> 4.43969081e-07
A73: 34.83804667 | B73: ='DF raw data'!M78 -> -3.5229211e-06 | C73: ='DF raw data'!N78 -> -3.130639e-06 | D73: ='DF raw data'!O78 -> -1.8241949e-06 | F73: -3.527430439e-06 | G73: -3.14171503e-06 | H73: -1.826529869e-06 | J73: 9.138239589e-05 | K73: 0.003691984984 | L73: 2.258239599e-05 | M73: 0.0004459025044 | N73: 4.48400675e-07
A74: 35.33818667 | B74: ='DF raw data'!M79 -> -3.8870389e-06 | C74: ='DF raw data'!N79 -> -1.0577477e-05 | D74: ='DF raw data'!O79 -> -5.3128856e-06 | F74: -3.89201431e-06 | G74: -1.061489954e-05 | H74: -5.319686094e-06 | J74: 8.943584386e-05 | K74: 0.003736715427 | L74: 1.727346013e-05 | M74: 0.0004545416528 | N74: 4.525504079e-07
A75: 35.83832667 | B75: ='DF raw data'!M80 -> -3.1973802e-06 | C75: ='DF raw data'!N80 -> -2.7064739e-06 | D75: ='DF raw data'!O80 -> -2.2080162e-06 | F75: -3.201472847e-06 | G75: -2.716049257e-06 | H75: -2.210842461e-06 | J75: 8.783465923e-05 | K75: 0.003780645054 | L75: 1.591505526e-05 | M75: 0.0004625014085 | N75: 4.565356316e-07
